Workbook

Sheet MainDisplay
U1: =UPPER(U4) -> S.XLU | V1: =LEN(RTD("cqg.rtd", ,"ContractData", U1, "TickSize",, "T"))-2 -> 2 | W1: =IF(V1=0,"#",IF(V1=1,"#.0",IF(V1=2,"#.00",IF(V1=3,"#.000",IF(V1=4,"#.0000",IF(V1=5,"#.00000",IF(V1=6,"#.000000",IF(V1=7,"#.0000000")))))))) -> #.00 | Y1: =IF(W5-AA5<=AA1,1,0) -> 1 | Z1: =IF(AA5-Y5<=AA1,1,0) -> 0 | AA1: =2*RTD("cqg.rtd", ,"ContractData", U1, "TickSize",, "T") -> 0.02
F2: CQG Market Performance | Y2: =RTD("cqg.rtd", ,"SystemInfo", "Linetime") -> 44404.51765
B4: Today's Ranked Net Percent Change | H4: Volume Ratio to Previous 10-day Moving Average | N4: Last Price as a Percentage to 12-week Hi/Lo Levels | T4: Symbol: | U4: S.XLU | V4: Time Frame: | X4: 5 | Y4: Volume: | Z4: =IFERROR(RTD("cqg.rtd", ,"ContractData",U1, "T_CVol",, "T"),"") -> 9229719
T5: Open: | U5: =IFERROR(TEXT(RTD("cqg.rtd", ,"ContractData", U1, "OPen",, "T"),$W$1),"") -> 65.68 | V5: High: | W5: =IFERROR(TEXT(RTD("cqg.rtd", ,"ContractData", U1, "HIgh",, "T"),$W$1),"") -> 66.88 | X5: Low: | Y5: =IFERROR(TEXT(RTD("cqg.rtd", ,"ContractData", U1, "Low",, "T"),$W$1),"") -> 65.30 | Z5: Last: | AA5: =IFERROR(TEXT(RTD("cqg.rtd", ,"ContractData", U1, "LastTrade",, "T"),$W$1),"") -> 66.86 | AB5: =IFERROR(IF(RTD("cqg.rtd", ,"ContractData", U1, "NetLastTrade",, "T")>0,"+"&TEXT(RTD("cqg.rtd", ,"ContractData", U1, "NetLastTrade",, "T"),$W$1),TEXT(RTD("cqg.rtd", ,"ContractData", U1, "NetLastTrade",, "T"),$W$1)),"") -> +1.13
B36: Symbol | C36: Last | D36: NC | E36: % NC | F36: Rank | G36: Vol Ratio | H36: Rank | I36: Level | J36: Rank | K36: Symbol | L36: Last | M36: NC | N36: % NC | O36: Rank | P36: Vol Ratio | Q36: Rank | R36: Level | S36: Rank | T36: Symbol | U36: Last | V36: NC | W36: % NC | X36: Rank | Y36: Vol Ratio | Z36: Rank | AA36: Level | AB36: Rank
B37: =Symbols!B3 -> S.US.XLC | C37: =IFERROR(TEXT(Data!V1,C48),"") -> 82.36 | D37: =IFERROR(TEXT(Data!W1,C48),"") -> -1.57 | E37: =IFERROR(Data!X1,"") -> -0.01870606458 | F37: =IFERROR(Data!Y1,"") -> 20 | G37: =IFERROR(Data!AA1,"") -> 0.6537178907 | H37: =IFERROR(Data!AB1,"") -> 9 | I37: =IFERROR(Data!AD1,"") -> 0.8310308183 | J37: =IFERROR(Data!AE1,"") -> 6 | K37: =Symbols!B15 -> S.US.XLU | L37: =IFERROR(TEXT(Data!V11,L48),"") -> 66.86 | M37: =IFERROR(TEXT(Data!W11,L48),"") -> 1.13 | N37: =IFERROR(IFERROR(Data!X11,""),"") -> 0.01719154115 | O37: =IFERROR(Data!Y11,"") -> 1 | P37: =IFERROR(Data!AA11,"") -> 0.6998958519 | Q37: =IFERROR(Data!AB11,"") -> 6 | R37: =IFERROR(Data!AD11,"") -> 0.8835616438 | S37: =IFERROR(Data!AE11,"") -> 4 | T37: =Symbols!B27 -> S.US.XME | U37: =IFERROR(TEXT(Data!V21,U48),"") -> 42.29 | V37: =IFERROR(TEXT(Data!W21,U48),"") -> -.95 | W37: =IFERROR(Data!X21,"") -> -0.02197039778 | X37: =IFERROR(Data!Y21,"") -> 24 | Y37: =IFERROR(Data!AA21,"") -> 0.521750761 | Z37: =IFERROR(Data!AB21,"") -> 12 | AA37: =IFERROR(Data!AD21,"") -> 0.3956521739 | AB37: =IFERROR(Data!AE21,"") -> 18
B38: =Symbols!B4 -> S.US.XLY | C38: =IFERROR(TEXT(Data!V2,C49),"") -> 181.10 | D38: =IFERROR(TEXT(Data!W2,C49),"") -> -3.53 | E38: =IFERROR(Data!X2,"") -> -0.01911931972 | F38: =IFERROR(Data!Y2,"") -> 21 | G38: =IFERROR(Data!AA2,"") -> 0.5188690622 | H38: =IFERROR(Data!AB2,"") -> 13 | I38: =IFERROR(Data!AD2,"") -> 0.8147181628 | J38: =IFERROR(Data!AE2,"") -> 7 | K38: =Symbols!B16 -> S.US.XAR | L38: =IFERROR(TEXT(Data!V12,L49),"") -> 126.66 | M38: =IFERROR(TEXT(Data!W12,L49),"") -> -.66 | N38: =IFERROR(IFERROR(Data!X12,""),"") -> -0.005183788878 | O38: =IFERROR(Data!Y12,"") -> 12 | P38: =IFERROR(Data!AA12,"") -> 0.6891857976 | Q38: =IFERROR(Data!AB12,"") -> 7 | R38: =IFERROR(Data!AD12,"") -> 0.3870772947 | S38: =IFERROR(Data!AE12,"") -> 20 | T38: =Symbols!B28 -> S.US.XOP | U38: =IFERROR(TEXT(Data!V22,U49),"") -> 81.22 | V38: =IFERROR(TEXT(Data!W22,U49),"") -> -3.48 | W38: =IFERROR(Data!X22,"") -> -0.04108618654 | X38: =IFERROR(Data!Y22,"") -> 29 | Y38: =IFERROR(Data!AA22,"") -> 0.6570897769 | Z38: =IFERROR(Data!AB22,"") -> 8 | AA38: =IFERROR(Data!AD22,"") -> 0.1660808436 | AB38: =IFERROR(Data!AE22,"") -> 30
B39: =Symbols!B5 -> S.US.XLP | C39: =IFERROR(TEXT(Data!V3,C50),"") -> 71.72 | D39: =IFERROR(TEXT(Data!W3,C50),"") -> .20 | E39: =IFERROR(Data!X3,"") -> 0.002796420582 | F39: =IFERROR(Data!Y3,"") -> 3 | G39: =IFERROR(Data!AA3,"") -> 0.7401704429 | H39: =IFERROR(Data!AB3,"") -> 4 | I39: =IFERROR(Data!AD3,"") -> 0.9202453988 | J39: =IFERROR(Data!AE3,"") -> 3 | K39: =Symbols!B17 -> S.US.KBE | L39: =IFERROR(TEXT(Data!V13,L50),"") -> 48.75 | M39: =IFERROR(TEXT(Data!W13,L50),"") -> -.46 | N39: =IFERROR(IFERROR(Data!X13,""),"") -> -0.009347693558 | O39: =IFERROR(Data!Y13,"") -> 14 | P39: =IFERROR(Data!AA13,"") -> 0.3813060786 | Q39: =IFERROR(Data!AB13,"") -> 20 | R39: =IFERROR(Data!AD13,"") -> 0.2130777903 | S39: =IFERROR(Data!AE13,"") -> 26 | T39: =Symbols!B29 -> S.US.XES | U39: =IFERROR(TEXT(Data!V23,U50),"") -> 53.19 | V39: =IFERROR(TEXT(Data!W23,U50),"") -> -1.51 | W39: =IFERROR(Data!X23,"") -> -0.02760511883 | X39: =IFERROR(Data!Y23,"") -> 27 | Y39: =IFERROR(Data!AA23,"") -> 0.3187916497 | Z39: =IFERROR(Data!AB23,"") -> 25 | AA39: =IFERROR(Data!AD23,"") -> 0.1831815747 | AB39: =IFERROR(Data!AE23,"") -> 29
B40: =Symbols!B6 -> S.US.XLE | C40: =IFERROR(TEXT(Data!V4,C51),"") -> 48.96 | D40: =IFERROR(TEXT(Data!W4,C51),"") -> -.76 | E40: =IFERROR(Data!X4,"") -> -0.01528559936 | F40: =IFERROR(Data!Y4,"") -> 18 | G40: =IFERROR(Data!AA4,"") -> 0.4757055804 | H40: =IFERROR(Data!AB4,"") -> 15 | I40: =IFERROR(Data!AD4,"") -> 0.2570048309 | J40: =IFERROR(Data!AE4,"") -> 25 | K40: =Symbols!B18 -> S.US.XBI | L40: =IFERROR(TEXT(Data!V14,L51),"") -> 122.60 | M40: =IFERROR(TEXT(Data!W14,L51),"") -> -1.62 | N40: =IFERROR(IFERROR(Data!X14,""),"") -> -0.0130413782 | O40: =IFERROR(Data!Y14,"") -> 17 | P40: =IFERROR(Data!AA14,"") -> 1.156858956 | Q40: =IFERROR(Data!AB14,"") -> 1 | R40: =IFERROR(Data!AD14,"") -> 0.1877954448 | S40: =IFERROR(Data!AE14,"") -> 28 | T40: =Symbols!B30 -> S.US.XPH | U40: =IFERROR(TEXT(Data!V24,U51),"") -> 51.44 | V40: =IFERROR(TEXT(Data!W24,U51),"") -> -.26 | W40: =IFERROR(Data!X24,"") -> -0.00502901354 | X40: =IFERROR(Data!Y24,"") -> 11 | Y40: =IFERROR(Data!AA24,"") -> 0.1138983346 | Z40: =IFERROR(Data!AB24,"") -> 30 | AA40: =IFERROR(Data!AD24,"") -> 0.6739495798 | AB40: =IFERROR(Data!AE24,"") -> 11
B41: =Symbols!B7 -> S.US.XLF | C41: =IFERROR(TEXT(Data!V5,C52),"") -> 36.40 | D41: =IFERROR(TEXT(Data!W5,C52),"") -> -.07 | E41: =IFERROR(Data!X5,"") -> -0.001919385797 | F41: =IFERROR(Data!Y5,"") -> 7 | G41: =IFERROR(Data!AA5,"") -> 0.3629592146 | H41: =IFERROR(Data!AB5,"") -> 22 | I41: =IFERROR(Data!AD5,"") -> 0.4054054054 | J41: =IFERROR(Data!AE5,"") -> 17 | K41: =Symbols!B19 -> S.US.KCE | L41: =IFERROR(TEXT(Data!V15,L52),"") -> 93.11 | M41: =IFERROR(TEXT(Data!W15,L52),"") -> -1.20 | N41: =IFERROR(IFERROR(Data!X15,""),"") -> -0.01272399533 | O41: =IFERROR(Data!Y15,"") -> 16 | P41: =IFERROR(Data!AA15,"") -> 0.4165620227 | Q41: =IFERROR(Data!AB15,"") -> 17 | R41: =IFERROR(Data!AD15,"") -> 0.6847222222 | S41: =IFERROR(Data!AE15,"") -> 10 | T41: =Symbols!B31 -> S.US.KRE | U41: =IFERROR(TEXT(Data!V25,U52),"") -> 61.88 | V41: =IFERROR(TEXT(Data!W25,U52),"") -> -.59 | W41: =IFERROR(Data!X25,"") -> -0.009444533376 | X41: =IFERROR(Data!Y25,"") -> 15 | Y41: =IFERROR(Data!AA25,"") -> 0.3469772573 | Z41: =IFERROR(Data!AB25,"") -> 24 | AA41: =IFERROR(Data!AD25,"") -> 0.2067039106 | AB41: =IFERROR(Data!AE25,"") -> 27
B42: =Symbols!B8 -> S.US.XLV | C42: =IFERROR(TEXT(Data!V6,C53),"") -> 130.82 | D42: =IFERROR(TEXT(Data!W6,C53),"") -> .19 | E42: =IFERROR(Data!X6,"") -> 0.00145448978 | F42: =IFERROR(Data!Y6,"") -> 4 | G42: =IFERROR(Data!AA6,"") -> 0.5544667286 | H42: =IFERROR(Data!AB6,"") -> 11 | I42: =IFERROR(Data!AD6,"") -> 0.9281818182 | J42: =IFERROR(Data!AE6,"") -> 2 | K42: =Symbols!B20 -> S.US.XHE | L42: =IFERROR(TEXT(Data!V16,L53),"") -> 125.17 | M42: =IFERROR(TEXT(Data!W16,L53),"") -> -.15 | N42: =IFERROR(IFERROR(Data!X16,""),"") -> -0.001196935844 | O42: =IFERROR(Data!Y16,"") -> 6 | P42: =IFERROR(Data!AA16,"") -> 0.3593938214 | Q42: =IFERROR(Data!AB16,"") -> 23 | R42: =IFERROR(Data!AD16,"") -> 0.6405266171 | S42: =IFERROR(Data!AE16,"") -> 12 | T42: =Symbols!B32 -> S.US.XRT | U42: =IFERROR(TEXT(Data!V26,U53),"") -> 94.17 | V42: =IFERROR(TEXT(Data!W26,U53),"") -> -2.32 | W42: =IFERROR(Data!X26,"") -> -0.02404394238 | X42: =IFERROR(Data!Y26,"") -> 26 | Y42: =IFERROR(Data!AA26,"") -> 0.3735267705 | Z42: =IFERROR(Data!AB26,"") -> 21 | AA42: =IFERROR(Data!AD26,"") -> 0.5875706215 | AB42: =IFERROR(Data!AE26,"") -> 13
B43: =Symbols!B9 -> S.US.XLI | C43: =IFERROR(TEXT(Data!V7,C54),"") -> 102.80 | D43: =IFERROR(TEXT(Data!W7,C54),"") -> -.76 | E43: =IFERROR(Data!X7,"") -> -0.007338740827 | F43: =IFERROR(Data!Y7,"") -> 13 | G43: =IFERROR(Data!AA7,"") -> 0.5563546024 | H43: =IFERROR(Data!AB7,"") -> 10 | I43: =IFERROR(Data!AD7,"") -> 0.501867995 | J43: =IFERROR(Data!AE7,"") -> 14 | K43: =Symbols!B21 -> S.US.XHS | L43: =IFERROR(TEXT(Data!V17,L54),"") -> 110.84 | M43: =IFERROR(TEXT(Data!W17,L54),"") -> -.29 | N43: =IFERROR(IFERROR(Data!X17,""),"") -> -0.002609556375 | O43: =IFERROR(Data!Y17,"") -> 9 | P43: =IFERROR(Data!AA17,"") -> 0.2498781592 | Q43: =IFERROR(Data!AB17,"") -> 26 | R43: =IFERROR(Data!AD17,"") -> 0.3951332561 | S43: =IFERROR(Data!AE17,"") -> 19 | T43: =Symbols!B33 -> S.US.XSD | U43: =IFERROR(TEXT(Data!V27,U54),"") -> 174.44 | V43: =IFERROR(TEXT(Data!W27,U54),"") -> -8.51 | W43: =IFERROR(Data!X27,"") -> -0.04651544138 | X43: =IFERROR(Data!Y27,"") -> 30 | Y43: =IFERROR(Data!AA27,"") -> 0.7092275747 | Z43: =IFERROR(Data!AB27,"") -> 5 | AA43: =IFERROR(Data!AD27,"") -> 0.4773548208 | AB43: =IFERROR(Data!AE27,"") -> 15
B44: =Symbols!B10 -> S.US.XLK | C44: =IFERROR(TEXT(Data!V8,C55),"") -> 151.08 | D44: =IFERROR(TEXT(Data!W8,C55),"") -> -3.36 | E44: =IFERROR(Data!X8,"") -> -0.02175602176 | F44: =IFERROR(Data!Y8,"") -> 23 | G44: =IFERROR(Data!AA8,"") -> 0.7517663184 | H44: =IFERROR(Data!AB8,"") -> 3 | I44: =IFERROR(Data!AD8,"") -> 0.8472222222 | J44: =IFERROR(Data!AE8,"") -> 5 | K44: =Symbols!B22 -> S.US.XHB | L44: =IFERROR(TEXT(Data!V18,L55),"") -> 73.29 | M44: =IFERROR(TEXT(Data!W18,L55),"") -> -.36 | N44: =IFERROR(IFERROR(Data!X18,""),"") -> -0.004887983707 | O44: =IFERROR(Data!Y18,"") -> 10 | P44: =IFERROR(Data!AA18,"") -> 0.3879883404 | Q44: =IFERROR(Data!AB18,"") -> 19 | R44: =IFERROR(Data!AD18,"") -> 0.3440766551 | S44: =IFERROR(Data!AE18,"") -> 22 | T44: =Symbols!B34 -> S.US.XSW | U44: =IFERROR(TEXT(Data!V28,U55),"") -> 167.45 | V44: =IFERROR(TEXT(Data!W28,U55),"") -> -4.97 | W44: =IFERROR(Data!X28,"") -> -0.0288249623 | X44: =IFERROR(Data!Y28,"") -> 28 | Y44: =IFERROR(Data!AA28,"") -> 0.200168665 | Z44: =IFERROR(Data!AB28,"") -> 28 | AA44: =IFERROR(Data!AD28,"") -> 0.722326454 | AB44: =IFERROR(Data!AE28,"") -> 8
B45: =Symbols!B11 -> S.US.XLB | C45: =IFERROR(TEXT(Data!V9,C56),"") -> 82.23 | D45: =IFERROR(TEXT(Data!W9,C56),"") -> -.19 | E45: =IFERROR(Data!X9,"") -> -0.002305265712 | F45: =IFERROR(Data!Y9,"") -> 8 | G45: =IFERROR(Data!AA9,"") -> 0.7830383201 | H45: =IFERROR(Data!AB9,"") -> 2 | I45: =IFERROR(Data!AD9,"") -> 0.3371320038 | J45: =IFERROR(Data!AE9,"") -> 23 | K45: =Symbols!B23 -> S.US.KIE | L45: =IFERROR(TEXT(Data!V19,L56),"") -> 37.98 | M45: =IFERROR(TEXT(Data!W19,L56),"") -> -.04 | N45: =IFERROR(IFERROR(Data!X19,""),"") -> -0.001052077854 | O45: =IFERROR(Data!Y19,"") -> 5 | P45: =IFERROR(Data!AA19,"") -> 0.195266475 | Q45: =IFERROR(Data!AB19,"") -> 29 | R45: =IFERROR(Data!AD19,"") -> 0.3671497585 | S45: =IFERROR(Data!AE19,"") -> 21 | T45: =Symbols!B35 -> S.US.XTL | U45: =IFERROR(TEXT(Data!V29,U56),"") -> 98.13 | V45: =IFERROR(TEXT(Data!W29,U56),"") -> -1.80 | W45: =IFERROR(Data!X29,"") -> -0.01801260883 | X45: =IFERROR(Data!Y29,"") -> 19 | Y45: =IFERROR(Data!AA29,"") -> 0.4641233226 | Z45: =IFERROR(Data!AB29,"") -> 16 | AA45: =IFERROR(Data!AD29,"") -> 0.4170249355 | AB45: =IFERROR(Data!AE29,"") -> 16
B46: =Symbols!B12 -> S.US.XLRE | C46: =IFERROR(TEXT(Data!V10,C57),"") -> 46.61 | D46: =IFERROR(TEXT(Data!W10,C57),"") -> .33 | E46: =IFERROR(Data!X10,"") -> 0.007130509939 | F46: =IFERROR(Data!Y10,"") -> 2 | G46: =IFERROR(Data!AA10,"") -> 0.5080455861 | H46: =IFERROR(Data!AB10,"") -> 14 | I46: =IFERROR(Data!AD10,"") -> 0.9858906526 | J46: =IFERROR(Data!AE10,"") -> 1 | K46: =Symbols!B24 -> S.US.XWEB | L46: =IFERROR(TEXT(Data!V20,L57),"") -> 175.53 | M46: =IFERROR(TEXT(Data!W20,L57),"") -> -3.95 | N46: =IFERROR(IFERROR(Data!X20,""),"") -> -0.02200802318 | O46: =IFERROR(Data!Y20,"") -> 25 | P46: =IFERROR(Data!AA20,"") -> 0.2025774561 | Q46: =IFERROR(Data!AB20,"") -> 27 | R46: =IFERROR(Data!AD20,"") -> 0.6990014265 | S46: =IFERROR(Data!AE20,"") -> 9 | T46: =Symbols!B36 -> S.US.XTN | U46: =IFERROR(TEXT(Data!V30,U57),"") -> 81.83 | V46: =IFERROR(TEXT(Data!W30,U57),"") -> -1.63 | W46: =IFERROR(Data!X30,"") -> -0.01953031392 | X46: =IFERROR(Data!Y30,"") -> 22 | Y46: =IFERROR(Data!AA30,"") -> 0.3903679773 | Z46: =IFERROR(Data!AB30,"") -> 18 | AA46: =IFERROR(Data!AD30,"") -> 0.2657103825 | AB46: =IFERROR(Data!AE30,"") -> 24
B47: Copyright © 2021, CQG Inc. | H47: Designed by Thom Hartle | T47: Chart Session (All or PrimaryOnly): | X47: PrimaryOnly
B48: =LEN(RTD("cqg.rtd", ,"ContractData", B37, "TickSize",, "T"))-2 -> 2 | C48: =IF(B48=0,"#",IF(B48=1,"#.0",IF(B48=2,"#.00",IF(B48=3,"#.000",IF(B48=4,"#.0000",IF(B48=5,"#.00000",IF(B48=6,"#.000000",IF(B48=7,"#.0000000")))))))) -> #.00 | K48: =LEN(RTD("cqg.rtd", ,"ContractData", K37, "TickSize",, "T"))-2 -> 2 | L48: =IF(K48=0,"#",IF(K48=1,"#.0",IF(K48=2,"#.00",IF(K48=3,"#.000",IF(K48=4,"#.0000",IF(K48=5,"#.00000",IF(K48=6,"#.000000",IF(K48=7,"#.0000000")))))))) -> #.00 | T48: =LEN(RTD("cqg.rtd", ,"ContractData", T37, "TickSize",, "T"))-2 -> 2 | U48: =IF(T48=0,"#",IF(T48=1,"#.0",IF(T48=2,"#.00",IF(T48=3,"#.000",IF(T48=4,"#.0000",IF(T48=5,"#.00000",IF(T48=6,"#.000000",IF(T48=7,"#.0000000")))))))) -> #.00
B49: =LEN(RTD("cqg.rtd", ,"ContractData", B38, "TickSize",, "T"))-2 -> 2 | C49: =IF(B49=0,"#",IF(B49=1,"#.0",IF(B49=2,"#.00",IF(B49=3,"#.000",IF(B49=4,"#.0000",IF(B49=5,"#.00000",IF(B49=6,"#.000000",IF(B49=7,"#.0000000")))))))) -> #.00 | K49: =LEN(RTD("cqg.rtd", ,"ContractData", K38, "TickSize",, "T"))-2 -> 2 | L49: =IF(K49=0,"#",IF(K49=1,"#.0",IF(K49=2,"#.00",IF(K49=3,"#.000",IF(K49=4,"#.0000",IF(K49=5,"#.00000",IF(K49=6,"#.000000",IF(K49=7,"#.0000000")))))))) -> #.00 | T49: =LEN(RTD("cqg.rtd", ,"ContractData", T38, "TickSize",, "T"))-2 -> 2 | U49: =IF(T49=0,"#",IF(T49=1,"#.0",IF(T49=2,"#.00",IF(T49=3,"#.000",IF(T49=4,"#.0000",IF(T49=5,"#.00000",IF(T49=6,"#.000000",IF(T49=7,"#.0000000")))))))) -> #.00
B50: =LEN(RTD("cqg.rtd", ,"ContractData", B39, "TickSize",, "T"))-2 -> 2 | C50: #.00 | K50: =LEN(RTD("cqg.rtd", ,"ContractData", K39, "TickSize",, "T"))-2 -> 2 | L50: #.00 | T50: =LEN(RTD("cqg.rtd", ,"ContractData", T39, "TickSize",, "T"))-2 -> 2 | U50: #.00
B51: =LEN(RTD("cqg.rtd", ,"ContractData", B40, "TickSize",, "T"))-2 -> 2 | C51: #.00 | K51: =LEN(RTD("cqg.rtd", ,"ContractData", K40, "TickSize",, "T"))-2 -> 2 | L51: #.00 | T51: =LEN(RTD("cqg.rtd", ,"ContractData", T40, "TickSize",, "T"))-2 -> 2 | U51: #.00
B52: =LEN(RTD("cqg.rtd", ,"ContractData", B41, "TickSize",, "T"))-2 -> 2 | C52: #.00 | K52: =LEN(RTD("cqg.rtd", ,"ContractData", K41, "TickSize",, "T"))-2 -> 2 | L52: #.00 | T52: =LEN(RTD("cqg.rtd", ,"ContractData", T41, "TickSize",, "T"))-2 -> 2 | U52: #.00
B53: =LEN(RTD("cqg.rtd", ,"ContractData", B42, "TickSize",, "T"))-2 -> 2 | C53: #.00 | K53: =LEN(RTD("cqg.rtd", ,"ContractData", K42, "TickSize",, "T"))-2 -> 2 | L53: #.00 | T53: =LEN(RTD("cqg.rtd", ,"ContractData", T42, "TickSize",, "T"))-2 -> 2 | U53: #.00
B54: =LEN(RTD("cqg.rtd", ,"ContractData", B43, "TickSize",, "T"))-2 -> 2 | C54: #.00 | K54: =LEN(RTD("cqg.rtd", ,"ContractData", K43, "TickSize",, "T"))-2 -> 2 | L54: #.00 | T54: =LEN(RTD("cqg.rtd", ,"ContractData", T43, "TickSize",, "T"))-2 -> 2 | U54: #.00
B55: =LEN(RTD("cqg.rtd", ,"ContractData", B44, "TickSize",, "T"))-2 -> 2 | C55: #.00 | K55: =LEN(RTD("cqg.rtd", ,"ContractData", K44, "TickSize",, "T"))-2 -> 2 | L55: #.00 | T55: =LEN(RTD("cqg.rtd", ,"ContractData", T44, "TickSize",, "T"))-2 -> 2 | U55: #.00
B56: =LEN(RTD("cqg.rtd", ,"ContractData", B45, "TickSize",, "T"))-2 -> 2 | C56: #.00 | K56: =LEN(RTD("cqg.rtd", ,"ContractData", K45, "TickSize",, "T"))-2 -> 2 | L56: #.00 | T56: =LEN(RTD("cqg.rtd", ,"ContractData", T45, "TickSize",, "T"))-2 -> 2 | U56: #.00
B57: =LEN(RTD("cqg.rtd", ,"ContractData", B46, "TickSize",, "T"))-2 -> 2 | C57: #.00 | K57: =LEN(RTD("cqg.rtd", ,"ContractData", K46, "TickSize",, "T"))-2 -> 2 | L57: #.00 | T57: =LEN(RTD("cqg.rtd", ,"ContractData", T46, "TickSize",, "T"))-2 -> 2 | U57: #.00

Sheet Symbols
C2: Left Column MainDisplay | D2: Open | E2: High | F2: Low | G2: Last Trade
B3: S.US.XLC | C3: =RTD("cqg.rtd", ,"ContractData",B3, "LongDescription",, "T") -> Communication Services Select Sector SPDR | D3: =RTD("cqg.rtd", ,"ContractData",B3, "Open",, "T") -> 83.83 | E3: =RTD("cqg.rtd", ,"ContractData",B3, "High",, "T") -> 83.91 | F3: =RTD("cqg.rtd", ,"ContractData",B3, "Low",, "T") -> 82.33 | G3: =RTD("cqg.rtd", ,"ContractData",B3, "LastTrade",, "T") -> 82.36
B4: S.US.XLY | C4: =RTD("cqg.rtd", ,"ContractData",B4, "LongDescription",, "T") -> Consumer Discretionary Select SectorSPDR | D4: =RTD("cqg.rtd", ,"ContractData",B4, "Open",, "T") -> 184.51 | E4: =RTD("cqg.rtd", ,"ContractData",B4, "High",, "T") -> 184.51 | F4: =RTD("cqg.rtd", ,"ContractData",B4, "Low",, "T") -> 180.8 | G4: =RTD("cqg.rtd", ,"ContractData",B4, "LastTrade",, "T") -> 181.1
B5: S.US.XLP | C5: =RTD("cqg.rtd", ,"ContractData",B5, "LongDescription",, "T") -> Consumer Staples Select Sector SPDR | D5: =RTD("cqg.rtd", ,"ContractData",B5, "Open",, "T") -> 71.5 | E5: =RTD("cqg.rtd", ,"ContractData",B5, "High",, "T") -> 71.98 | F5: =RTD("cqg.rtd", ,"ContractData",B5, "Low",, "T") -> 71.27 | G5: =RTD("cqg.rtd", ,"ContractData",B5, "LastTrade",, "T") -> 71.72
B6: S.US.XLE | C6: =RTD("cqg.rtd", ,"ContractData",B6, "LongDescription",, "T") -> Energy Select Sector SPDR | D6: =RTD("cqg.rtd", ,"ContractData",B6, "Open",, "T") -> 49.33 | E6: =RTD("cqg.rtd", ,"ContractData",B6, "High",, "T") -> 49.41 | F6: =RTD("cqg.rtd", ,"ContractData",B6, "Low",, "T") -> 48.68 | G6: =RTD("cqg.rtd", ,"ContractData",B6, "LastTrade",, "T") -> 48.96
B7: S.US.XLF | C7: =RTD("cqg.rtd", ,"ContractData",B7, "LongDescription",, "T") -> Financial Select Sector SPDR | D7: =RTD("cqg.rtd", ,"ContractData",B7, "Open",, "T") -> 36.19 | E7: =RTD("cqg.rtd", ,"ContractData",B7, "High",, "T") -> 36.62 | F7: =RTD("cqg.rtd", ,"ContractData",B7, "Low",, "T") -> 36.02 | G7: =RTD("cqg.rtd", ,"ContractData",B7, "LastTrade",, "T") -> 36.4
B8: S.US.XLV | C8: =RTD("cqg.rtd", ,"ContractData",B8, "LongDescription",, "T") -> Health Care Select Sector SPDR | D8: =RTD("cqg.rtd", ,"ContractData",B8, "Open",, "T") -> 130.45 | E8: =RTD("cqg.rtd", ,"ContractData",B8, "High",, "T") -> 131.16 | F8: =RTD("cqg.rtd", ,"ContractData",B8, "Low",, "T") -> 130.1 | G8: =RTD("cqg.rtd", ,"ContractData",B8, "LastTrade",, "T") -> 130.82
B9: S.US.XLI | C9: =RTD("cqg.rtd", ,"ContractData",B9, "LongDescription",, "T") -> Industrial Select Sector SPDR | D9: =RTD("cqg.rtd", ,"ContractData",B9, "Open",, "T") -> 102.9 | E9: =RTD("cqg.rtd", ,"ContractData",B9, "High",, "T") -> 103.54 | F9: =RTD("cqg.rtd", ,"ContractData",B9, "Low",, "T") -> 102.4 | G9: =RTD("cqg.rtd", ,"ContractData",B9, "LastTrade",, "T") -> 102.8
B10: S.US.XLK | C10: =RTD("cqg.rtd", ,"ContractData",B10, "LongDescription",, "T") -> Technology Sector SPDR Fund | D10: =RTD("cqg.rtd", ,"ContractData",B10, "Open",, "T") -> 154.25 | E10: =RTD("cqg.rtd", ,"ContractData",B10, "High",, "T") -> 154.3 | F10: =RTD("cqg.rtd", ,"ContractData",B10, "Low",, "T") -> 151.07 | G10: =RTD("cqg.rtd", ,"ContractData",B10, "LastTrade",, "T") -> 151.08
B11: S.US.XLB | C11: =RTD("cqg.rtd", ,"ContractData",B11, "LongDescription",, "T") -> Materials Select Sector SPDR | D11: =RTD("cqg.rtd", ,"ContractData",B11, "Open",, "T") -> 81.91 | E11: =RTD("cqg.rtd", ,"ContractData",B11, "High",, "T") -> 82.9 | F11: =RTD("cqg.rtd", ,"ContractData",B11, "Low",, "T") -> 81.13 | G11: =RTD("cqg.rtd", ,"ContractData",B11, "LastTrade",, "T") -> 82.23
B12: S.US.XLRE | C12: =RTD("cqg.rtd", ,"ContractData",B12, "LongDescription",, "T") -> Real Estate Select Sector SPDR | D12: =RTD("cqg.rtd", ,"ContractData",B12, "Open",, "T") -> 46.26 | E12: =RTD("cqg.rtd", ,"ContractData",B12, "High",, "T") -> 46.69 | F12: =RTD("cqg.rtd", ,"ContractData",B12, "Low",, "T") -> 46.09 | G12: =RTD("cqg.rtd", ,"ContractData",B12, "LastTrade",, "T") -> 46.61
C14: Center Column Main Display | D14: Open | E14: High | F14: Low | G14: Last Trade
B15: S.US.XLU | C15: =RTD("cqg.rtd", ,"ContractData",B15, "LongDescription",, "T") -> Utilities Select Sector SPDR | D15: =RTD("cqg.rtd", ,"ContractData",B15, "Open",, "T") -> 65.68 | E15: =RTD("cqg.rtd", ,"ContractData",B15, "High",, "T") -> 66.88 | F15: =RTD("cqg.rtd", ,"ContractData",B15, "Low",, "T") -> 65.3 | G15: =RTD("cqg.rtd", ,"ContractData",B15, "LastTrade",, "T") -> 66.86
B16: S.US.XAR | C16: =RTD("cqg.rtd", ,"ContractData",B16, "LongDescription",, "T") -> SPDR S&P Aerospace & Defense ETF | D16: =RTD("cqg.rtd", ,"ContractData",B16, "Open",, "T") -> 126.73 | E16: =RTD("cqg.rtd", ,"ContractData",B16, "High",, "T") -> 127.12 | F16: =RTD("cqg.rtd", ,"ContractData",B16, "Low",, "T") -> 126.17 | G16: =RTD("cqg.rtd", ,"ContractData",B16, "LastTrade",, "T") -> 126.66
B17: S.US.KBE | C17: =RTD("cqg.rtd", ,"ContractData",B17, "LongDescription",, "T") -> SPDR S&P Bank ETF | D17: =RTD("cqg.rtd", ,"ContractData",B17, "Open",, "T") -> 48.71 | E17: =RTD("cqg.rtd", ,"ContractData",B17, "High",, "T") -> 49.32 | F17: =RTD("cqg.rtd", ,"ContractData",B17, "Low",, "T") -> 48.36 | G17: =RTD("cqg.rtd", ,"ContractData",B17, "LastTrade",, "T") -> 48.75
B18: S.US.XBI | C18: =RTD("cqg.rtd", ,"ContractData",B18, "LongDescription",, "T") -> SPDR S&P Biotech ETF | D18: =RTD("cqg.rtd", ,"ContractData",B18, "Open",, "T") -> 124 | E18: =RTD("cqg.rtd", ,"ContractData",B18, "High",, "T") -> 124.49 | F18: =RTD("cqg.rtd", ,"ContractData",B18, "Low",, "T") -> 120.62 | G18: =RTD("cqg.rtd", ,"ContractData",B18, "LastTrade",, "T") -> 122.6
B19: S.US.KCE | C19: =RTD("cqg.rtd", ,"ContractData",B19, "LongDescription",, "T") -> SPDR S&P Capital Markets ETF | D19: =RTD("cqg.rtd", ,"ContractData",B19, "Open",, "T") -> 93.89 | E19: =RTD("cqg.rtd", ,"ContractData",B19, "High",, "T") -> 93.97 | F19: =RTD("cqg.rtd", ,"ContractData",B19, "Low",, "T") -> 93.11 | G19: =RTD("cqg.rtd", ,"ContractData",B19, "LastTrade",, "T") -> 93.11
B20: S.US.XHE | C20: =RTD("cqg.rtd", ,"ContractData",B20, "LongDescription",, "T") -> SPDR S&P Health Care Equipment ETF | D20: =RTD("cqg.rtd", ,"ContractData",B20, "Open",, "T") -> 125 | E20: =RTD("cqg.rtd", ,"ContractData",B20, "High",, "T") -> 125.39 | F20: =RTD("cqg.rtd", ,"ContractData",B20, "Low",, "T") -> 124.78 | G20: =RTD("cqg.rtd", ,"ContractData",B20, "LastTrade",, "T") -> 125.17
B21: S.US.XHS | C21: =RTD("cqg.rtd", ,"ContractData",B21, "LongDescription",, "T") -> SPDR S&P Health Care Services ETF | D21: =RTD("cqg.rtd", ,"ContractData",B21, "Open",, "T") -> 110.91 | E21: =RTD("cqg.rtd", ,"ContractData",B21, "High",, "T") -> 110.94 | F21: =RTD("cqg.rtd", ,"ContractData",B21, "Low",, "T") -> 110.52 | G21: =RTD("cqg.rtd", ,"ContractData",B21, "LastTrade",, "T") -> 110.84
B22: S.US.XHB | C22: =RTD("cqg.rtd", ,"ContractData",B22, "LongDescription",, "T") -> SPDR S&P Homebuilders ETF | D22: =RTD("cqg.rtd", ,"ContractData",B22, "Open",, "T") -> 73.35 | E22: =RTD("cqg.rtd", ,"ContractData",B22, "High",, "T") -> 73.77 | F22: =RTD("cqg.rtd", ,"ContractData",B22, "Low",, "T") -> 72.66 | G22: =RTD("cqg.rtd", ,"ContractData",B22, "LastTrade",, "T") -> 73.29
B23: S.US.KIE | C23: =RTD("cqg.rtd", ,"ContractData",B23, "LongDescription",, "T") -> SPDR S&P Insurance ETF | D23: =RTD("cqg.rtd", ,"ContractData",B23, "Open",, "T") -> 37.74 | E23: =RTD("cqg.rtd", ,"ContractData",B23, "High",, "T") -> 38.08 | F23: =RTD("cqg.rtd", ,"ContractData",B23, "Low",, "T") -> 37.59 | G23: =RTD("cqg.rtd", ,"ContractData",B23, "LastTrade",, "T") -> 37.98
B24: S.US.XWEB | C24: =RTD("cqg.rtd", ,"ContractData",B24, "LongDescription",, "T") -> SPDR S&P Internet | D24: =RTD("cqg.rtd", ,"ContractData",B24, "Open",, "T") -> 175.53 | E24: =RTD("cqg.rtd", ,"ContractData",B24, "High",, "T") -> 175.53 | F24: =RTD("cqg.rtd", ,"ContractData",B24, "Low",, "T") -> 175.53 | G24: =RTD("cqg.rtd", ,"ContractData",B24, "LastTrade",, "T") -> 175.53
C26: Right Column Main Display | D26: Open | E26: High | F26: Low | G26: Last Trade
B27: S.US.XME | C27: =RTD("cqg.rtd", ,"ContractData",B27, "LongDescription",, "T") -> SPDR S&P Metals & Mining ETF | D27: =RTD("cqg.rtd", ,"ContractData",B27, "Open",, "T") -> 42.99 | E27: =RTD("cqg.rtd", ,"ContractData",B27, "High",, "T") -> 42.99 | F27: =RTD("cqg.rtd", ,"ContractData",B27, "Low",, "T") -> 42.22 | G27: =RTD("cqg.rtd", ,"ContractData",B27, "LastTrade",, "T") -> 42.29
B28: S.US.XOP | C28: =RTD("cqg.rtd", ,"ContractData",B28, "LongDescription",, "T") -> SPDR S&P Oil & Gas E&P ETF | D28: =RTD("cqg.rtd", ,"ContractData",B28, "Open",, "T") -> 84.33 | E28: =RTD("cqg.rtd", ,"ContractData",B28, "High",, "T") -> 84.34 | F28: =RTD("cqg.rtd", ,"ContractData",B28, "Low",, "T") -> 81.01 | G28: =RTD("cqg.rtd", ,"ContractData",B28, "LastTrade",, "T") -> 81.22
B29: S.US.XES | C29: =RTD("cqg.rtd", ,"ContractData",B29, "LongDescription",, "T") -> SPDR S&P Oil & Gas Equip.& Services ETF | D29: =RTD("cqg.rtd", ,"ContractData",B29, "Open",, "T") -> 54.27 | E29: =RTD("cqg.rtd", ,"ContractData",B29, "High",, "T") -> 54.27 | F29: =RTD("cqg.rtd", ,"ContractData",B29, "Low",, "T") -> 52.85 | G29: =RTD("cqg.rtd", ,"ContractData",B29, "LastTrade",, "T") -> 53.19
B30: S.US.XPH | C30: =RTD("cqg.rtd", ,"ContractData",B30, "LongDescription",, "T") -> SPDR S&P Pharmaceuticals ETF | D30: =RTD("cqg.rtd", ,"ContractData",B30, "Open",, "T") -> 51.66 | E30: =RTD("cqg.rtd", ,"ContractData",B30, "High",, "T") -> 51.66 | F30: =RTD("cqg.rtd", ,"ContractData",B30, "Low",, "T") -> 51.17 | G30: =RTD("cqg.rtd", ,"ContractData",B30, "LastTrade",, "T") -> 51.44
B31: S.US.KRE | C31: =RTD("cqg.rtd", ,"ContractData",B31, "LongDescription",, "T") -> SPDR S&P Regional Banking ETF | D31: =RTD("cqg.rtd", ,"ContractData",B31, "Open",, "T") -> 61.87 | E31: =RTD("cqg.rtd", ,"ContractData",B31, "High",, "T") -> 62.63 | F31: =RTD("cqg.rtd", ,"ContractData",B31, "Low",, "T") -> 61.34 | G31: =RTD("cqg.rtd", ,"ContractData",B31, "LastTrade",, "T") -> 61.88
B32: S.US.XRT | C32: =RTD("cqg.rtd", ,"ContractData",B32, "LongDescription",, "T") -> SPDR S&P Retail ETF | D32: =RTD("cqg.rtd", ,"ContractData",B32, "Open",, "T") -> 96.01 | E32: =RTD("cqg.rtd", ,"ContractData",B32, "High",, "T") -> 96.01 | F32: =RTD("cqg.rtd", ,"ContractData",B32, "Low",, "T") -> 93.79 | G32: =RTD("cqg.rtd", ,"ContractData",B32, "LastTrade",, "T") -> 94.17
B33: S.US.XSD | C33: =RTD("cqg.rtd", ,"ContractData",B33, "LongDescription",, "T") -> SPDR S&P Semiconductor ETF | D33: =RTD("cqg.rtd", ,"ContractData",B33, "Open",, "T") -> 182.18 | E33: =RTD("cqg.rtd", ,"ContractData",B33, "High",, "T") -> 182.18 | F33: =RTD("cqg.rtd", ,"ContractData",B33, "Low",, "T") -> 174.39 | G33: =RTD("cqg.rtd", ,"ContractData",B33, "LastTrade",, "T") -> 174.44
B34: S.US.XSW | C34: =RTD("cqg.rtd", ,"ContractData",B34, "LongDescription",, "T") -> SPDR S&P Software & Services ETF | D34: =RTD("cqg.rtd", ,"ContractData",B34, "Open",, "T") -> 171.91 | E34: =RTD("cqg.rtd", ,"ContractData",B34, "High",, "T") -> 172.01 | F34: =RTD("cqg.rtd", ,"ContractData",B34, "Low",, "T") -> 167.45 | G34: =RTD("cqg.rtd", ,"ContractData",B34, "LastTrade",, "T") -> 167.45
B35: S.US.XTL | C35: =RTD("cqg.rtd", ,"ContractData",B35, "LongDescription",, "T") -> SPDR S&P Telecom ETF | D35: =RTD("cqg.rtd", ,"ContractData",B35, "Open",, "T") -> 99.58 | E35: =RTD("cqg.rtd", ,"ContractData",B35, "High",, "T") -> 99.58 | F35: =RTD("cqg.rtd", ,"ContractData",B35, "Low",, "T") -> 98.12 | G35: =RTD("cqg.rtd", ,"ContractData",B35, "LastTrade",, "T") -> 98.13
B36: S.US.XTN | C36: =RTD("cqg.rtd", ,"ContractData",B36, "LongDescription",, "T") -> SPDR S&P Transportation ETF | D36: =RTD("cqg.rtd", ,"ContractData",B36, "Open",, "T") -> 82.77 | E36: =RTD("cqg.rtd", ,"ContractData",B36, "High",, "T") -> 83.06 | F36: =RTD("cqg.rtd", ,"ContractData",B36, "Low",, "T") -> 81.72 | G36: =RTD("cqg.rtd", ,"ContractData",B36, "LastTrade",, "T") -> 81.83

Sheet Data (hidden)
A1: =Symbols!B3 -> S.US.XLC | B1: =COUNTIF($A$1:A1,A1)&"-"&A1 -> 1-S.US.XLC | C1: =IFERROR(RTD("cqg.rtd", ,"ContractData",A1, "LastTrade",, "T"),"") -> 82.36 | D1: =IFERROR(RTD("cqg.rtd", ,"ContractData",A1, "NetLastTradeToday",, "T"),"") -> -1.57 | E1: =IFERROR(RTD("cqg.rtd", ,"ContractData",A1, "PerCentNetLastTrade",, "T")/100,"") -> -0.01870606458 | F1: =IFERROR(RTD("cqg.rtd", ,"ContractData",A1, "PerCentNetLastTrade",, "T")/100,"") -> -0.01870606458 | G1: =IFERROR(RANK(E1,E$1:E$30,0)+COUNTIF($E$1:E1,E1)-1,"") -> 20 | H1: =A1 -> S.US.XLC | I1: =E1 -> -0.01870606458 | J1: 1 | K1: =IFERROR(VLOOKUP(J1,$G$1:H$30,2,FALSE),"") -> S.US.XLU | L1: =IFERROR(RTD("cqg.rtd", ,"ContractData",K1, "PerCentNetLastTrade",, "T")/100,"") -> 0.01719154115 | M1: =G1 -> 20 | O1: =IF(L1>0,L1,NA()) -> 0.01719154115 | P1: =IF(L1>0,NA(),-1*L1) ->  | Q1: =IF(L1>0,L1,"") -> 0.01719154115 | R1: =IF(L1<0,L1,"") ->  | S1: =MainDisplay!B37 -> S.US.XLC | T1: =COUNTIF($S$1:S1,S1)&"-"&S1 -> 1-S.US.XLC | U1: =T1 -> 1-S.US.XLC | V1: =VLOOKUP(U1,$B$1:$G$30,2,FALSE) -> 82.36 | W1: =VLOOKUP(U1,$B$1:$G$30,3,FALSE) -> -1.57 | X1: =VLOOKUP(U1,$B$1:$G$30,5,FALSE) -> -0.01870606458 | Y1: =VLOOKUP(U1,$B$1:$G30,6,FALSE) -> 20 | Z1: =T2 -> 2-S.US.XLC | AA1: =VLOOKUP(Z1,$I$31:$M$60,4,FALSE) -> 0.6537178907 | AB1: =VLOOKUP(Z1,$I$31:$M$60,5,FALSE) -> 9 | AC1: =T3 -> 3-S.US.XLC | AD1: =VLOOKUP(AC1,$J$61:$M$90,4,FALSE) -> 0.8310308183 | AE1: =VLOOKUP(AC1,$J$61:$N$90,5,FALSE) -> 6
A2: =Symbols!B4 -> S.US.XLY | B2: =COUNTIF($A$1:A2,A2)&"-"&A2 -> 1-S.US.XLY | C2: =IFERROR(RTD("cqg.rtd", ,"ContractData",A2, "LastTrade",, "T"),"") -> 181.1 | D2: =IFERROR(RTD("cqg.rtd", ,"ContractData",A2, "NetLastTradeToday",, "T"),"") -> -3.53 | E2: =IFERROR(RTD("cqg.rtd", ,"ContractData",A2, "PerCentNetLastTrade",, "T")/100,"") -> -0.01911931972 | F2: =IFERROR(RTD("cqg.rtd", ,"ContractData",A2, "PerCentNetLastTrade",, "T")/100,"") -> -0.01911931972 | G2: =IFERROR(RANK(E2,E$1:E$30,0)+COUNTIF($E$1:E2,E2)-1,"") -> 21 | H2: S.US.XLY | I2: =E2 -> -0.01911931972 | J2: =J1+1 -> 2 | K2: =IFERROR(VLOOKUP(J2,$G$1:H$30,2,FALSE),"") -> S.US.XLRE | L2: =IFERROR(RTD("cqg.rtd", ,"ContractData",K2, "PerCentNetLastTrade",, "T")/100,"") -> 0.007130509939 | M2: =G2 -> 21 | O2: =IF(L2>0,L2,NA()) -> 0.007130509939 | P2: =IF(L2>0,NA(),-1*L2) ->  | Q2: =IF(L2>0,L2,"") -> 0.007130509939 | R2: =IF(L2<0,L2,"") ->  | S2: =S1 -> S.US.XLC | T2: =COUNTIF($S$1:S2,S2)&"-"&S2 -> 2-S.US.XLC | U2: =T4 -> 1-S.US.XLY | V2: =VLOOKUP(U2,$B$1:$G$30,2,FALSE) -> 181.1 | W2: =VLOOKUP(U2,$B$1:$G$30,3,FALSE) -> -3.53 | X2: =VLOOKUP(U2,$B$1:$G$30,5,FALSE) -> -0.01911931972 | Y2: =VLOOKUP(U2,$B$1:$G31,6,FALSE) -> 21 | Z2: =T5 -> 2-S.US.XLY | AA2: =VLOOKUP(Z2,$I$31:$M$60,4,FALSE) -> 0.5188690622 | AB2: =VLOOKUP(Z2,$I$31:$M$60,5,FALSE) -> 13 | AC2: =T6 -> 3-S.US.XLY | AD2: =VLOOKUP(AC2,$J$61:$M$90,4,FALSE) -> 0.8147181628 | AE2: =VLOOKUP(AC2,$J$61:$N$90,5,FALSE) -> 7
A3: =Symbols!B5 -> S.US.XLP | B3: =COUNTIF($A$1:A3,A3)&"-"&A3 -> 1-S.US.XLP | C3: =IFERROR(RTD("cqg.rtd", ,"ContractData",A3, "LastTrade",, "T"),"") -> 71.72 | D3: =IFERROR(RTD("cqg.rtd", ,"ContractData",A3, "NetLastTradeToday",, "T"),"") -> 0.2 | E3: =IFERROR(RTD("cqg.rtd", ,"ContractData",A3, "PerCentNetLastTrade",, "T")/100,"") -> 0.002796420582 | F3: =IFERROR(RTD("cqg.rtd", ,"ContractData",A3, "PerCentNetLastTrade",, "T")/100,"") -> 0.002796420582 | G3: =IFERROR(RANK(E3,E$1:E$30,0)+COUNTIF($E$1:E3,E3)-1,"") -> 3 | H3: S.US.XLP | I3: 0.002796420582 | J3: =J2+1 -> 3 | K3: =IFERROR(VLOOKUP(J3,$G$1:H$30,2,FALSE),"") -> S.US.XLP | L3: =IFERROR(RTD("cqg.rtd", ,"ContractData",K3, "PerCentNetLastTrade",, "T")/100,"") -> 0.002796420582 | M3: 3 | O3: 0.002796420582 | Q3: 0.002796420582 | S3: =S2 -> S.US.XLC | T3: =COUNTIF($S$1:S3,S3)&"-"&S3 -> 3-S.US.XLC | U3: =T7 -> 1-S.US.XLP | V3: 71.72 | W3: 0.2 | X3: 0.002796420582 | Y3: =VLOOKUP(U3,$B$1:$G32,6,FALSE) -> 3 | Z3: =T8 -> 2-S.US.XLP | AA3: 0.7401704429 | AB3: 4 | AC3: =T9 -> 3-S.US.XLP | AD3: 0.9202453988 | AE3: 3
A4: =Symbols!B6 -> S.US.XLE | B4: =COUNTIF($A$1:A4,A4)&"-"&A4 -> 1-S.US.XLE | C4: =IFERROR(RTD("cqg.rtd", ,"ContractData",A4, "LastTrade",, "T"),"") -> 48.96 | D4: =IFERROR(RTD("cqg.rtd", ,"ContractData",A4, "NetLastTradeToday",, "T"),"") -> -0.76 | E4: =IFERROR(RTD("cqg.rtd", ,"ContractData",A4, "PerCentNetLastTrade",, "T")/100,"") -> -0.01528559936 | F4: =IFERROR(RTD("cqg.rtd", ,"ContractData",A4, "PerCentNetLastTrade",, "T")/100,"") -> -0.01528559936 | G4: =IFERROR(RANK(E4,E$1:E$30,0)+COUNTIF($E$1:E4,E4)-1,"") -> 18 | H4: S.US.XLE | I4: -0.01528559936 | J4: 4 | K4: =IFERROR(VLOOKUP(J4,$G$1:H$30,2,FALSE),"") -> S.US.XLV | L4: =IFERROR(RTD("cqg.rtd", ,"ContractData",K4, "PerCentNetLastTrade",, "T")/100,"") -> 0.00145448978 | M4: 18 | O4: 0.00145448978 | Q4: 0.00145448978 | S4: =MainDisplay!B38 -> S.US.XLY | T4: =COUNTIF($S$1:S4,S4)&"-"&S4 -> 1-S.US.XLY | U4: =T10 -> 1-S.US.XLE | V4: 48.96 | W4: -0.76 | X4: -0.01528559936 | Y4: =VLOOKUP(U4,$B$1:$G33,6,FALSE) -> 18 | Z4: =T11 -> 2-S.US.XLE | AA4: 0.4757055804 | AB4: 15 | AC4: =T12 -> 3-S.US.XLE | AD4: 0.2570048309 | AE4: 25
A5: =Symbols!B7 -> S.US.XLF | B5: =COUNTIF($A$1:A5,A5)&"-"&A5 -> 1-S.US.XLF | C5: =IFERROR(RTD("cqg.rtd", ,"ContractData",A5, "LastTrade",, "T"),"") -> 36.4 | D5: =IFERROR(RTD("cqg.rtd", ,"ContractData",A5, "NetLastTradeToday",, "T"),"") -> -0.07 | E5: =IFERROR(RTD("cqg.rtd", ,"ContractData",A5, "PerCentNetLastTrade",, "T")/100,"") -> -0.001919385797 | F5: =IFERROR(RTD("cqg.rtd", ,"ContractData",A5, "PerCentNetLastTrade",, "T")/100,"") -> -0.001919385797 | G5: =IFERROR(RANK(E5,E$1:E$30,0)+COUNTIF($E$1:E5,E5)-1,"") -> 7 | H5: S.US.XLF | I5: -0.001919385797 | J5: 5 | K5: =IFERROR(VLOOKUP(J5,$G$1:H$30,2,FALSE),"") -> S.US.KIE | L5: =IFERROR(RTD("cqg.rtd", ,"ContractData",K5, "PerCentNetLastTrade",, "T")/100,"") -> -0.001052077854 | M5: 7 | P5: 0.001052077854 | R5: -0.001052077854 | S5: =S4 -> S.US.XLY | T5: =COUNTIF($S$1:S5,S5)&"-"&S5 -> 2-S.US.XLY | U5: =T13 -> 1-S.US.XLF | V5: 36.4 | W5: -0.07 | X5: -0.001919385797 | Y5: =VLOOKUP(U5,$B$1:$G34,6,FALSE) -> 7 | Z5: =T14 -> 2-S.US.XLF | AA5: 0.3629592146 | AB5: 22 | AC5: =T15 -> 3-S.US.XLF | AD5: 0.4054054054 | AE5: 17
A6: =Symbols!B8 -> S.US.XLV | B6: =COUNTIF($A$1:A6,A6)&"-"&A6 -> 1-S.US.XLV | C6: =IFERROR(RTD("cqg.rtd", ,"ContractData",A6, "LastTrade",, "T"),"") -> 130.82 | D6: =IFERROR(RTD("cqg.rtd", ,"ContractData",A6, "NetLastTradeToday",, "T"),"") -> 0.19 | E6: =IFERROR(RTD("cqg.rtd", ,"ContractData",A6, "PerCentNetLastTrade",, "T")/100,"") -> 0.00145448978 | F6: =IFERROR(RTD("cqg.rtd", ,"ContractData",A6, "PerCentNetLastTrade",, "T")/100,"") -> 0.00145448978 | G6: =IFERROR(RANK(E6,E$1:E$30,0)+COUNTIF($E$1:E6,E6)-1,"") -> 4 | H6: S.US.XLV | I6: 0.00145448978 | J6: 6 | K6: =IFERROR(VLOOKUP(J6,$G$1:H$30,2,FALSE),"") -> S.US.XHE | L6: =IFERROR(RTD("cqg.rtd", ,"ContractData",K6, "PerCentNetLastTrade",, "T")/100,"") -> -0.001196935844 | M6: 4 | P6: 0.001196935844 | R6: -0.001196935844 | S6: =S5 -> S.US.XLY | T6: =COUNTIF($S$1:S6,S6)&"-"&S6 -> 3-S.US.XLY | U6: =T16 -> 1-S.US.XLV | V6: 130.82 | W6: 0.19 | X6: 0.00145448978 | Y6: =VLOOKUP(U6,$B$1:$G35,6,FALSE) -> 4 | Z6: =T17 -> 2-S.US.XLV | AA6: 0.5544667286 | AB6: =VLOOKUP(Z6,$I$31:$M$60,5,FALSE) -> 11 | AC6: =T18 -> 3-S.US.XLV | AD6: 0.9281818182 | AE6: =VLOOKUP(AC6,$J$61:$N$90,5,FALSE) -> 2
A7: =Symbols!B9 -> S.US.XLI | B7: =COUNTIF($A$1:A7,A7)&"-"&A7 -> 1-S.US.XLI | C7: =IFERROR(RTD("cqg.rtd", ,"ContractData",A7, "LastTrade",, "T"),"") -> 102.8 | D7: =IFERROR(RTD("cqg.rtd", ,"ContractData",A7, "NetLastTradeToday",, "T"),"") -> -0.76 | E7: =IFERROR(RTD("cqg.rtd", ,"ContractData",A7, "PerCentNetLastTrade",, "T")/100,"") -> -0.007338740827 | F7: =IFERROR(RTD("cqg.rtd", ,"ContractData",A7, "PerCentNetLastTrade",, "T")/100,"") -> -0.007338740827 | G7: =IFERROR(RANK(E7,E$1:E$30,0)+COUNTIF($E$1:E7,E7)-1,"") -> 13 | H7: S.US.XLI | I7: -0.007338740827 | J7: 7 | K7: =IFERROR(VLOOKUP(J7,$G$1:H$30,2,FALSE),"") -> S.US.XLF | L7: =IFERROR(RTD("cqg.rtd", ,"ContractData",K7, "PerCentNetLastTrade",, "T")/100,"") -> -0.001919385797 | M7: 13 | P7: 0.001919385797 | R7: -0.001919385797 | S7: =MainDisplay!B39 -> S.US.XLP | T7: =COUNTIF($S$1:S7,S7)&"-"&S7 -> 1-S.US.XLP | U7: =T19 -> 1-S.US.XLI | V7: 102.8 | W7: =VLOOKUP(U7,$B$1:$G$30,3,FALSE) -> -0.76 | X7: =VLOOKUP(U7,$B$1:$G$30,5,FALSE) -> -0.007338740827 | Y7: =VLOOKUP(U7,$B$1:$G36,6,FALSE) -> 13 | Z7: =T20 -> 2-S.US.XLI | AA7: 0.5563546024 | AB7: =VLOOKUP(Z7,$I$31:$M$60,5,FALSE) -> 10 | AC7: =T21 -> 3-S.US.XLI | AD7: 0.501867995 | AE7: =VLOOKUP(AC7,$J$61:$N$90,5,FALSE) -> 14
A8: =Symbols!B10 -> S.US.XLK | B8: =COUNTIF($A$1:A8,A8)&"-"&A8 -> 1-S.US.XLK | C8: =IFERROR(RTD("cqg.rtd", ,"ContractData",A8, "LastTrade",, "T"),"") -> 151.08 | D8: =IFERROR(RTD("cqg.rtd", ,"ContractData",A8, "NetLastTradeToday",, "T"),"") -> -3.36 | E8: =IFERROR(RTD("cqg.rtd", ,"ContractData",A8, "PerCentNetLastTrade",, "T")/100,"") -> -0.02175602176 | F8: =IFERROR(RTD("cqg.rtd", ,"ContractData",A8, "PerCentNetLastTrade",, "T")/100,"") -> -0.02175602176 | G8: =IFERROR(RANK(E8,E$1:E$30,0)+COUNTIF($E$1:E8,E8)-1,"") -> 23 | H8: S.US.XLK | I8: -0.02175602176 | J8: 8 | K8: =IFERROR(VLOOKUP(J8,$G$1:H$30,2,FALSE),"") -> S.US.XLB | L8: =IFERROR(RTD("cqg.rtd", ,"ContractData",K8, "PerCentNetLastTrade",, "T")/100,"") -> -0.002305265712 | M8: 23 | P8: 0.002305265712 | R8: -0.002305265712 | S8: =S7 -> S.US.XLP | T8: =COUNTIF($S$1:S8,S8)&"-"&S8 -> 2-S.US.XLP | U8: =T22 -> 1-S.US.XLK | V8: 151.08 | W8: =VLOOKUP(U8,$B$1:$G$30,3,FALSE) -> -3.36 | X8: =VLOOKUP(U8,$B$1:$G$30,5,FALSE) -> -0.02175602176 | Y8: =VLOOKUP(U8,$B$1:$G37,6,FALSE) -> 23 | Z8: =T23 -> 2-S.US.XLK | AA8: 0.7517663184 | AB8: =VLOOKUP(Z8,$I$31:$M$60,5,FALSE) -> 3 | AC8: =T24 -> 3-S.US.XLK | AD8: 0.8472222222 | AE8: =VLOOKUP(AC8,$J$61:$N$90,5,FALSE) -> 5
A9: =Symbols!B11 -> S.US.XLB | B9: =COUNTIF($A$1:A9,A9)&"-"&A9 -> 1-S.US.XLB | C9: =IFERROR(RTD("cqg.rtd", ,"ContractData",A9, "LastTrade",, "T"),"") -> 82.23 | D9: =IFERROR(RTD("cqg.rtd", ,"ContractData",A9, "NetLastTradeToday",, "T"),"") -> -0.19 | E9: =IFERROR(RTD("cqg.rtd", ,"ContractData",A9, "PerCentNetLastTrade",, "T")/100,"") -> -0.002305265712 | F9: =IFERROR(RTD("cqg.rtd", ,"ContractData",A9, "PerCentNetLastTrade",, "T")/100,"") -> -0.002305265712 | G9: =IFERROR(RANK(E9,E$1:E$30,0)+COUNTIF($E$1:E9,E9)-1,"") -> 8 | H9: S.US.XLB | I9: -0.002305265712 | J9: 9 | K9: =IFERROR(VLOOKUP(J9,$G$1:H$30,2,FALSE),"") -> S.US.XHS | L9: =IFERROR(RTD("cqg.rtd", ,"ContractData",K9, "PerCentNetLastTrade",, "T")/100,"") -> -0.002609556375 | M9: 8 | P9: 0.002609556375 | R9: -0.002609556375 | S9: =S8 -> S.US.XLP | T9: =COUNTIF($S$1:S9,S9)&"-"&S9 -> 3-S.US.XLP | U9: =T25 -> 1-S.US.XLB | V9: 82.23 | W9: =VLOOKUP(U9,$B$1:$G$30,3,FALSE) -> -0.19 | X9: =VLOOKUP(U9,$B$1:$G$30,5,FALSE) -> -0.002305265712 | Y9: =VLOOKUP(U9,$B$1:$G38,6,FALSE) -> 8 | Z9: =T26 -> 2-S.US.XLB | AA9: 0.7830383201 | AB9: =VLOOKUP(Z9,$I$31:$M$60,5,FALSE) -> 2 | AC9: =T27 -> 3-S.US.XLB | AD9: 0.3371320038 | AE9: =VLOOKUP(AC9,$J$61:$N$90,5,FALSE) -> 23
A10: =Symbols!B12 -> S.US.XLRE | B10: =COUNTIF($A$1:A10,A10)&"-"&A10 -> 1-S.US.XLRE | C10: =IFERROR(RTD("cqg.rtd", ,"ContractData",A10, "LastTrade",, "T"),"") -> 46.61 | D10: =IFERROR(RTD("cqg.rtd", ,"ContractData",A10, "NetLastTradeToday",, "T"),"") -> 0.33 | E10: =IFERROR(RTD("cqg.rtd", ,"ContractData",A10, "PerCentNetLastTrade",, "T")/100,"") -> 0.007130509939 | F10: =IFERROR(RTD("cqg.rtd", ,"ContractData",A10, "PerCentNetLastTrade",, "T")/100,"") -> 0.007130509939 | G10: =IFERROR(RANK(E10,E$1:E$30,0)+COUNTIF($E$1:E10,E10)-1,"") -> 2 | H10: S.US.XLRE | I10: 0.007130509939 | J10: 10 | K10: =IFERROR(VLOOKUP(J10,$G$1:H$30,2,FALSE),"") -> S.US.XHB | L10: =IFERROR(RTD("cqg.rtd", ,"ContractData",K10, "PerCentNetLastTrade",, "T")/100,"") -> -0.004887983707 | M10: 2 | P10: 0.004887983707 | R10: -0.004887983707 | S10: =MainDisplay!B40 -> S.US.XLE | T10: =COUNTIF($S$1:S10,S10)&"-"&S10 -> 1-S.US.XLE | U10: =T28 -> 1-S.US.XLRE | V10: 46.61 | W10: =VLOOKUP(U10,$B$1:$G$30,3,FALSE) -> 0.33 | X10: =VLOOKUP(U10,$B$1:$G$30,5,FALSE) -> 0.007130509939 | Y10: =VLOOKUP(U10,$B$1:$G39,6,FALSE) -> 2 | Z10: =T29 -> 2-S.US.XLRE | AA10: 0.5080455861 | AB10: =VLOOKUP(Z10,$I$31:$M$60,5,FALSE) -> 14 | AC10: =T30 -> 3-S.US.XLRE | AD10: 0.9858906526 | AE10: =VLOOKUP(AC10,$J$61:$N$90,5,FALSE) -> 1
A11: =Symbols!B15 -> S.US.XLU | B11: =COUNTIF($A$1:A11,A11)&"-"&A11 -> 1-S.US.XLU | C11: =IFERROR(RTD("cqg.rtd", ,"ContractData",A11, "LastTrade",, "T"),"") -> 66.86 | D11: =IFERROR(RTD("cqg.rtd", ,"ContractData",A11, "NetLastTradeToday",, "T"),"") -> 1.13 | E11: =IFERROR(RTD("cqg.rtd", ,"ContractData",A11, "PerCentNetLastTrade",, "T")/100,"") -> 0.01719154115 | F11: =IFERROR(RTD("cqg.rtd", ,"ContractData",A11, "PerCentNetLastTrade",, "T")/100,"") -> 0.01719154115 | G11: =IFERROR(RANK(E11,E$1:E$30,0)+COUNTIF($E$1:E11,E11)-1,"") -> 1 | H11: S.US.XLU | I11: 0.01719154115 | J11: 11 | K11: =IFERROR(VLOOKUP(J11,$G$1:H$30,2,FALSE),"") -> S.US.XPH | L11: =IFERROR(RTD("cqg.rtd", ,"ContractData",K11, "PerCentNetLastTrade",, "T")/100,"") -> -0.00502901354 | M11: 1 | P11: 0.00502901354 | R11: -0.00502901354 | S11: =S10 -> S.US.XLE | T11: =COUNTIF($S$1:S11,S11)&"-"&S11 -> 2-S.US.XLE | U11: =T31 -> 1-S.US.XLU | V11: 66.86 | W11: =VLOOKUP(U11,$B$1:$G$30,3,FALSE) -> 1.13 | X11: =VLOOKUP(U11,$B$1:$G$30,5,FALSE) -> 0.01719154115 | Y11: =VLOOKUP(U11,$B$1:$G40,6,FALSE) -> 1 | Z11: =T32 -> 2-S.US.XLU | AA11: 0.6998958519 | AB11: =VLOOKUP(Z11,$I$31:$M$60,5,FALSE) -> 6 | AC11: =T33 -> 3-S.US.XLU | AD11: 0.8835616438 | AE11: =VLOOKUP(AC11,$J$61:$N$90,5,FALSE) -> 4
A12: =Symbols!B16 -> S.US.XAR | B12: =COUNTIF($A$1:A12,A12)&"-"&A12 -> 1-S.US.XAR | C12: =IFERROR(RTD("cqg.rtd", ,"ContractData",A12, "LastTrade",, "T"),"") -> 126.66 | D12: =IFERROR(RTD("cqg.rtd", ,"ContractData",A12, "NetLastTradeToday",, "T"),"") -> -0.66 | E12: =IFERROR(RTD("cqg.rtd", ,"ContractData",A12, "PerCentNetLastTrade",, "T")/100,"") -> -0.005183788878 | F12: =IFERROR(RTD("cqg.rtd", ,"ContractData",A12, "PerCentNetLastTrade",, "T")/100,"") -> -0.005183788878 | G12: =IFERROR(RANK(E12,E$1:E$30,0)+COUNTIF($E$1:E12,E12)-1,"") -> 12 | H12: S.US.XAR | I12: -0.005183788878 | J12: 12 | K12: =IFERROR(VLOOKUP(J12,$G$1:H$30,2,FALSE),"") -> S.US.XAR | L12: =IFERROR(RTD("cqg.rtd", ,"ContractData",K12, "PerCentNetLastTrade",, "T")/100,"") -> -0.005183788878 | M12: 12 | P12: 0.005183788878 | R12: -0.005183788878 | S12: =S11 -> S.US.XLE | T12: =COUNTIF($S$1:S12,S12)&"-"&S12 -> 3-S.US.XLE | U12: =T34 -> 1-S.US.XAR | V12: 126.66 | W12: =VLOOKUP(U12,$B$1:$G$30,3,FALSE) -> -0.66 | X12: =VLOOKUP(U12,$B$1:$G$30,5,FALSE) -> -0.005183788878 | Y12: =VLOOKUP(U12,$B$1:$G41,6,FALSE) -> 12 | Z12: =T35 -> 2-S.US.XAR | AA12: 0.6891857976 | AB12: =VLOOKUP(Z12,$I$31:$M$60,5,FALSE) -> 7 | AC12: =T36 -> 3-S.US.XAR | AD12: 0.3870772947 | AE12: =VLOOKUP(AC12,$J$61:$N$90,5,FALSE) -> 20
A13: =Symbols!B17 -> S.US.KBE | B13: =COUNTIF($A$1:A13,A13)&"-"&A13 -> 1-S.US.KBE | C13: =IFERROR(RTD("cqg.rtd", ,"ContractData",A13, "LastTrade",, "T"),"") -> 48.75 | D13: =IFERROR(RTD("cqg.rtd", ,"ContractData",A13, "NetLastTradeToday",, "T"),"") -> -0.46 | E13: =IFERROR(RTD("cqg.rtd", ,"ContractData",A13, "PerCentNetLastTrade",, "T")/100,"") -> -0.009347693558 | F13: =IFERROR(RTD("cqg.rtd", ,"ContractData",A13, "PerCentNetLastTrade",, "T")/100,"") -> -0.009347693558 | G13: =IFERROR(RANK(E13,E$1:E$30,0)+COUNTIF($E$1:E13,E13)-1,"") -> 14 | H13: S.US.KBE | I13: -0.009347693558 | J13: 13 | K13: =IFERROR(VLOOKUP(J13,$G$1:H$30,2,FALSE),"") -> S.US.XLI | L13: =IFERROR(RTD("cqg.rtd", ,"ContractData",K13, "PerCentNetLastTrade",, "T")/100,"") -> -0.007338740827 | M13: 14 | P13: 0.007338740827 | R13: -0.007338740827 | S13: =MainDisplay!B41 -> S.US.XLF | T13: =COUNTIF($S$1:S13,S13)&"-"&S13 -> 1-S.US.XLF | U13: =T37 -> 1-S.US.KBE | V13: 48.75 | W13: =VLOOKUP(U13,$B$1:$G$30,3,FALSE) -> -0.46 | X13: =VLOOKUP(U13,$B$1:$G$30,5,FALSE) -> -0.009347693558 | Y13: =VLOOKUP(U13,$B$1:$G42,6,FALSE) -> 14 | Z13: =T38 -> 2-S.US.KBE | AA13: 0.3813060786 | AB13: =VLOOKUP(Z13,$I$31:$M$60,5,FALSE) -> 20 | AC13: =T39 -> 3-S.US.KBE | AD13: 0.2130777903 | AE13: =VLOOKUP(AC13,$J$61:$N$90,5,FALSE) -> 26
A14: =Symbols!B18 -> S.US.XBI | B14: =COUNTIF($A$1:A14,A14)&"-"&A14 -> 1-S.US.XBI | C14: =IFERROR(RTD("cqg.rtd", ,"ContractData",A14, "LastTrade",, "T"),"") -> 122.6 | D14: =IFERROR(RTD("cqg.rtd", ,"ContractData",A14, "NetLastTradeToday",, "T"),"") -> -1.62 | E14: =IFERROR(RTD("cqg.rtd", ,"ContractData",A14, "PerCentNetLastTrade",, "T")/100,"") -> -0.0130413782 | F14: =IFERROR(RTD("cqg.rtd", ,"ContractData",A14, "PerCentNetLastTrade",, "T")/100,"") -> -0.0130413782 | G14: =IFERROR(RANK(E14,E$1:E$30,0)+COUNTIF($E$1:E14,E14)-1,"") -> 17 | H14: S.US.XBI | I14: -0.0130413782 | J14: 14 | K14: =IFERROR(VLOOKUP(J14,$G$1:H$30,2,FALSE),"") -> S.US.KBE | L14: =IFERROR(RTD("cqg.rtd", ,"ContractData",K14, "PerCentNetLastTrade",, "T")/100,"") -> -0.009347693558 | M14: 17 | P14: 0.009347693558 | R14: -0.009347693558 | S14: =S13 -> S.US.XLF | T14: =COUNTIF($S$1:S14,S14)&"-"&S14 -> 2-S.US.XLF | U14: =T40 -> 1-S.US.XBI | V14: 122.6 | W14: =VLOOKUP(U14,$B$1:$G$30,3,FALSE) -> -1.62 | X14: =VLOOKUP(U14,$B$1:$G$30,5,FALSE) -> -0.0130413782 | Y14: =VLOOKUP(U14,$B$1:$G43,6,FALSE) -> 17 | Z14: =T41 -> 2-S.US.XBI | AA14: 1.156858956 | AB14: =VLOOKUP(Z14,$I$31:$M$60,5,FALSE) -> 1 | AC14: =T42 -> 3-S.US.XBI | AD14: 0.1877954448 | AE14: =VLOOKUP(AC14,$J$61:$N$90,5,FALSE) -> 28
A15: =Symbols!B19 -> S.US.KCE | B15: =COUNTIF($A$1:A15,A15)&"-"&A15 -> 1-S.US.KCE | C15: =IFERROR(RTD("cqg.rtd", ,"ContractData",A15, "LastTrade",, "T"),"") -> 93.11 | D15: =IFERROR(RTD("cqg.rtd", ,"ContractData",A15, "NetLastTradeToday",, "T"),"") -> -1.2 | E15: =IFERROR(RTD("cqg.rtd", ,"ContractData",A15, "PerCentNetLastTrade",, "T")/100,"") -> -0.01272399533 | F15: =IFERROR(RTD("cqg.rtd", ,"ContractData",A15, "PerCentNetLastTrade",, "T")/100,"") -> -0.01272399533 | G15: =IFERROR(RANK(E15,E$1:E$30,0)+COUNTIF($E$1:E15,E15)-1,"") -> 16 | H15: S.US.KCE | I15: -0.01272399533 | J15: 15 | K15: =IFERROR(VLOOKUP(J15,$G$1:H$30,2,FALSE),"") -> S.US.KRE | L15: =IFERROR(RTD("cqg.rtd", ,"ContractData",K15, "PerCentNetLastTrade",, "T")/100,"") -> -0.009444533376 | M15: 16 | P15: 0.009444533376 | R15: -0.009444533376 | S15: =S14 -> S.US.XLF | T15: =COUNTIF($S$1:S15,S15)&"-"&S15 -> 3-S.US.XLF | U15: =T43 -> 1-S.US.KCE | V15: 93.11 | W15: =VLOOKUP(U15,$B$1:$G$30,3,FALSE) -> -1.2 | X15: =VLOOKUP(U15,$B$1:$G$30,5,FALSE) -> -0.01272399533 | Y15: =VLOOKUP(U15,$B$1:$G44,6,FALSE) -> 16 | Z15: =T44 -> 2-S.US.KCE | AA15: 0.4165620227 | AB15: =VLOOKUP(Z15,$I$31:$M$60,5,FALSE) -> 17 | AC15: =T45 -> 3-S.US.KCE | AD15: 0.6847222222 | AE15: =VLOOKUP(AC15,$J$61:$N$90,5,FALSE) -> 10
A16: =Symbols!B20 -> S.US.XHE | B16: =COUNTIF($A$1:A16,A16)&"-"&A16 -> 1-S.US.XHE | C16: =IFERROR(RTD("cqg.rtd", ,"ContractData",A16, "LastTrade",, "T"),"") -> 125.17 | D16: =IFERROR(RTD("cqg.rtd", ,"ContractData",A16, "NetLastTradeToday",, "T"),"") -> -0.15 | E16: =IFERROR(RTD("cqg.rtd", ,"ContractData",A16, "PerCentNetLastTrade",, "T")/100,"") -> -0.001196935844 | F16: =IFERROR(RTD("cqg.rtd", ,"ContractData",A16, "PerCentNetLastTrade",, "T")/100,"") -> -0.001196935844 | G16: =IFERROR(RANK(E16,E$1:E$30,0)+COUNTIF($E$1:E16,E16)-1,"") -> 6 | H16: S.US.XHE | I16: -0.001196935844 | J16: 16 | K16: =IFERROR(VLOOKUP(J16,$G$1:H$30,2,FALSE),"") -> S.US.KCE | L16: =IFERROR(RTD("cqg.rtd", ,"ContractData",K16, "PerCentNetLastTrade",, "T")/100,"") -> -0.01272399533 | M16: 6 | P16: 0.01272399533 | R16: -0.01272399533 | S16: =MainDisplay!B42 -> S.US.XLV | T16: =COUNTIF($S$1:S16,S16)&"-"&S16 -> 1-S.US.XLV | U16: =T46 -> 1-S.US.XHE | V16: 125.17 | W16: =VLOOKUP(U16,$B$1:$G$30,3,FALSE) -> -0.15 | X16: =VLOOKUP(U16,$B$1:$G$30,5,FALSE) -> -0.001196935844 | Y16: =VLOOKUP(U16,$B$1:$G45,6,FALSE) -> 6 | Z16: =T47 -> 2-S.US.XHE | AA16: 0.3593938214 | AB16: =VLOOKUP(Z16,$I$31:$M$60,5,FALSE) -> 23 | AC16: =T48 -> 3-S.US.XHE | AD16: 0.6405266171 | AE16: =VLOOKUP(AC16,$J$61:$N$90,5,FALSE) -> 12
A17: =Symbols!B21 -> S.US.XHS | B17: =COUNTIF($A$1:A17,A17)&"-"&A17 -> 1-S.US.XHS | C17: =IFERROR(RTD("cqg.rtd", ,"ContractData",A17, "LastTrade",, "T"),"") -> 110.84 | D17: =IFERROR(RTD("cqg.rtd", ,"ContractData",A17, "NetLastTradeToday",, "T"),"") -> -0.29 | E17: =IFERROR(RTD("cqg.rtd", ,"ContractData",A17, "PerCentNetLastTrade",, "T")/100,"") -> -0.002609556375 | F17: =IFERROR(RTD("cqg.rtd", ,"ContractData",A17, "PerCentNetLastTrade",, "T")/100,"") -> -0.002609556375 | G17: =IFERROR(RANK(E17,E$1:E$30,0)+COUNTIF($E$1:E17,E17)-1,"") -> 9 | H17: S.US.XHS | I17: -0.002609556375 | J17: 17 | K17: =IFERROR(VLOOKUP(J17,$G$1:H$30,2,FALSE),"") -> S.US.XBI | L17: =IFERROR(RTD("cqg.rtd", ,"ContractData",K17, "PerCentNetLastTrade",, "T")/100,"") -> -0.0130413782 | M17: 9 | P17: 0.0130413782 | R17: -0.0130413782 | S17: =S16 -> S.US.XLV | T17: =COUNTIF($S$1:S17,S17)&"-"&S17 -> 2-S.US.XLV | U17: =T49 -> 1-S.US.XHS | V17: 110.84 | W17: =VLOOKUP(U17,$B$1:$G$30,3,FALSE) -> -0.29 | X17: =VLOOKUP(U17,$B$1:$G$30,5,FALSE) -> -0.002609556375 | Y17: =VLOOKUP(U17,$B$1:$G46,6,FALSE) -> 9 | Z17: =T50 -> 2-S.US.XHS | AA17: 0.2498781592 | AB17: =VLOOKUP(Z17,$I$31:$M$60,5,FALSE) -> 26 | AC17: =T51 -> 3-S.US.XHS | AD17: 0.3951332561 | AE17: =VLOOKUP(AC17,$J$61:$N$90,5,FALSE) -> 19
A18: =Symbols!B22 -> S.US.XHB | B18: =COUNTIF($A$1:A18,A18)&"-"&A18 -> 1-S.US.XHB | C18: =IFERROR(RTD("cqg.rtd", ,"ContractData",A18, "LastTrade",, "T"),"") -> 73.29 | D18: =IFERROR(RTD("cqg.rtd", ,"ContractData",A18, "NetLastTradeToday",, "T"),"") -> -0.36 | E18: =IFERROR(RTD("cqg.rtd", ,"ContractData",A18, "PerCentNetLastTrade",, "T")/100,"") -> -0.004887983707 | F18: =IFERROR(RTD("cqg.rtd", ,"ContractData",A18, "PerCentNetLastTrade",, "T")/100,"") -> -0.004887983707 | G18: =IFERROR(RANK(E18,E$1:E$30,0)+COUNTIF($E$1:E18,E18)-1,"") -> 10 | H18: S.US.XHB | I18: -0.004887983707 | J18: 18 | K18: =IFERROR(VLOOKUP(J18,$G$1:H$30,2,FALSE),"") -> S.US.XLE | L18: =IFERROR(RTD("cqg.rtd", ,"ContractData",K18, "PerCentNetLastTrade",, "T")/100,"") -> -0.01528559936 | M18: 10 | P18: 0.01528559936 | R18: -0.01528559936 | S18: =S17 -> S.US.XLV | T18: =COUNTIF($S$1:S18,S18)&"-"&S18 -> 3-S.US.XLV | U18: =T52 -> 1-S.US.XHB | V18: 73.29 | W18: =VLOOKUP(U18,$B$1:$G$30,3,FALSE) -> -0.36 | X18: =VLOOKUP(U18,$B$1:$G$30,5,FALSE) -> -0.004887983707 | Y18: =VLOOKUP(U18,$B$1:$G47,6,FALSE) -> 10 | Z18: =T53 -> 2-S.US.XHB | AA18: 0.3879883404 | AB18: =VLOOKUP(Z18,$I$31:$M$60,5,FALSE) -> 19 | AC18: =T54 -> 3-S.US.XHB | AD18: 0.3440766551 | AE18: =VLOOKUP(AC18,$J$61:$N$90,5,FALSE) -> 22
A19: =Symbols!B23 -> S.US.KIE | B19: =COUNTIF($A$1:A19,A19)&"-"&A19 -> 1-S.US.KIE | C19: =IFERROR(RTD("cqg.rtd", ,"ContractData",A19, "LastTrade",, "T"),"") -> 37.98 | D19: =IFERROR(RTD("cqg.rtd", ,"ContractData",A19, "NetLastTradeToday",, "T"),"") -> -0.04 | E19: =IFERROR(RTD("cqg.rtd", ,"ContractData",A19, "PerCentNetLastTrade",, "T")/100,"") -> -0.001052077854 | F19: =IFERROR(RTD("cqg.rtd", ,"ContractData",A19, "PerCentNetLastTrade",, "T")/100,"") -> -0.001052077854 | G19: =IFERROR(RANK(E19,E$1:E$30,0)+COUNTIF($E$1:E19,E19)-1,"") -> 5 | H19: S.US.KIE | I19: -0.001052077854 | J19: 19 | K19: =IFERROR(VLOOKUP(J19,$G$1:H$30,2,FALSE),"") -> S.US.XTL | L19: =IFERROR(RTD("cqg.rtd", ,"ContractData",K19, "PerCentNetLastTrade",, "T")/100,"") -> -0.01801260883 | M19: 5 | P19: 0.01801260883 | R19: -0.01801260883 | S19: =MainDisplay!B43 -> S.US.XLI | T19: =COUNTIF($S$1:S19,S19)&"-"&S19 -> 1-S.US.XLI | U19: =T55 -> 1-S.US.KIE | V19: 37.98 | W19: =VLOOKUP(U19,$B$1:$G$30,3,FALSE) -> -0.04 | X19: =VLOOKUP(U19,$B$1:$G$30,5,FALSE) -> -0.001052077854 | Y19: =VLOOKUP(U19,$B$1:$G48,6,FALSE) -> 5 | Z19: =T56 -> 2-S.US.KIE | AA19: 0.195266475 | AB19: =VLOOKUP(Z19,$I$31:$M$60,5,FALSE) -> 29 | AC19: =T57 -> 3-S.US.KIE | AD19: 0.3671497585 | AE19: =VLOOKUP(AC19,$J$61:$N$90,5,FALSE) -> 21
A20: =Symbols!B24 -> S.US.XWEB | B20: =COUNTIF($A$1:A20,A20)&"-"&A20 -> 1-S.US.XWEB | C20: =IFERROR(RTD("cqg.rtd", ,"ContractData",A20, "LastTrade",, "T"),"") -> 175.53 | D20: =IFERROR(RTD("cqg.rtd", ,"ContractData",A20, "NetLastTradeToday",, "T"),"") -> -3.95 | E20: =IFERROR(RTD("cqg.rtd", ,"ContractData",A20, "PerCentNetLastTrade",, "T")/100,"") -> -0.02200802318 | F20: =IFERROR(RTD("cqg.rtd", ,"ContractData",A20, "PerCentNetLastTrade",, "T")/100,"") -> -0.02200802318 | G20: =IFERROR(RANK(E20,E$1:E$30,0)+COUNTIF($E$1:E20,E20)-1,"") -> 25 | H20: S.US.XWEB | I20: -0.02200802318 | J20: 20 | K20: =IFERROR(VLOOKUP(J20,$G$1:H$30,2,FALSE),"") -> S.US.XLC | L20: =IFERROR(RTD("cqg.rtd", ,"ContractData",K20, "PerCentNetLastTrade",, "T")/100,"") -> -0.01870606458 | M20: 25 | P20: 0.01870606458 | R20: -0.01870606458 | S20: =S19 -> S.US.XLI | T20: =COUNTIF($S$1:S20,S20)&"-"&S20 -> 2-S.US.XLI | U20: =T58 -> 1-S.US.XWEB | V20: 175.53 | W20: =VLOOKUP(U20,$B$1:$G$30,3,FALSE) -> -3.95 | X20: =VLOOKUP(U20,$B$1:$G$30,5,FALSE) -> -0.02200802318 | Y20: =VLOOKUP(U20,$B$1:$G49,6,FALSE) -> 25 | Z20: =T59 -> 2-S.US.XWEB | AA20: 0.2025774561 | AB20: =VLOOKUP(Z20,$I$31:$M$60,5,FALSE) -> 27 | AC20: =T60 -> 3-S.US.XWEB | AD20: 0.6990014265 | AE20: =VLOOKUP(AC20,$J$61:$N$90,5,FALSE) -> 9
A21: =Symbols!B27 -> S.US.XME | B21: =COUNTIF($A$1:A21,A21)&"-"&A21 -> 1-S.US.XME | C21: =IFERROR(RTD("cqg.rtd", ,"ContractData",A21, "LastTrade",, "T"),"") -> 42.29 | D21: =IFERROR(RTD("cqg.rtd", ,"ContractData",A21, "NetLastTradeToday",, "T"),"") -> -0.95 | E21: =IFERROR(RTD("cqg.rtd", ,"ContractData",A21, "PerCentNetLastTrade",, "T")/100,"") -> -0.02197039778 | F21: =IFERROR(RTD("cqg.rtd", ,"ContractData",A21, "PerCentNetLastTrade",, "T")/100,"") -> -0.02197039778 | G21: =IFERROR(RANK(E21,E$1:E$30,0)+COUNTIF($E$1:E21,E21)-1,"") -> 24 | H21: S.US.XME | I21: -0.02197039778 | J21: 21 | K21: =IFERROR(VLOOKUP(J21,$G$1:H$30,2,FALSE),"") -> S.US.XLY | L21: =IFERROR(RTD("cqg.rtd", ,"ContractData",K21, "PerCentNetLastTrade",, "T")/100,"") -> -0.01911931972 | M21: 24 | P21: 0.01911931972 | R21: -0.01911931972 | S21: =S20 -> S.US.XLI | T21: =COUNTIF($S$1:S21,S21)&"-"&S21 -> 3-S.US.XLI | U21: =T61 -> 1-S.US.XME | V21: 42.29 | W21: =VLOOKUP(U21,$B$1:$G$30,3,FALSE) -> -0.95 | X21: =VLOOKUP(U21,$B$1:$G$30,5,FALSE) -> -0.02197039778 | Y21: =VLOOKUP(U21,$B$1:$G50,6,FALSE) -> 24 | Z21: =T62 -> 2-S.US.XME | AA21: 0.521750761 | AB21: =VLOOKUP(Z21,$I$31:$M$60,5,FALSE) -> 12 | AC21: =T63 -> 3-S.US.XME | AD21: 0.3956521739 | AE21: =VLOOKUP(AC21,$J$61:$N$90,5,FALSE) -> 18
A22: =Symbols!B28 -> S.US.XOP | B22: =COUNTIF($A$1:A22,A22)&"-"&A22 -> 1-S.US.XOP | C22: =IFERROR(RTD("cqg.rtd", ,"ContractData",A22, "LastTrade",, "T"),"") -> 81.22 | D22: =IFERROR(RTD("cqg.rtd", ,"ContractData",A22, "NetLastTradeToday",, "T"),"") -> -3.48 | E22: =IFERROR(RTD("cqg.rtd", ,"ContractData",A22, "PerCentNetLastTrade",, "T")/100,"") -> -0.04108618654 | F22: =IFERROR(RTD("cqg.rtd", ,"ContractData",A22, "PerCentNetLastTrade",, "T")/100,"") -> -0.04108618654 | G22: =IFERROR(RANK(E22,E$1:E$30,0)+COUNTIF($E$1:E22,E22)-1,"") -> 29 | H22: S.US.XOP | I22: -0.04108618654 | J22: 22 | K22: =IFERROR(VLOOKUP(J22,$G$1:H$30,2,FALSE),"") -> S.US.XTN | L22: =IFERROR(RTD("cqg.rtd", ,"ContractData",K22, "PerCentNetLastTrade",, "T")/100,"") -> -0.01953031392 | M22: 29 | P22: 0.01953031392 | R22: -0.01953031392 | S22: =MainDisplay!B44 -> S.US.XLK | T22: =COUNTIF($S$1:S22,S22)&"-"&S22 -> 1-S.US.XLK | U22: =T64 -> 1-S.US.XOP | V22: 81.22 | W22: =VLOOKUP(U22,$B$1:$G$30,3,FALSE) -> -3.48 | X22: =VLOOKUP(U22,$B$1:$G$30,5,FALSE) -> -0.04108618654 | Y22: =VLOOKUP(U22,$B$1:$G51,6,FALSE) -> 29 | Z22: =T65 -> 2-S.US.XOP | AA22: 0.6570897769 | AB22: =VLOOKUP(Z22,$I$31:$M$60,5,FALSE) -> 8 | AC22: =T66 -> 3-S.US.XOP | AD22: 0.1660808436 | AE22: =VLOOKUP(AC22,$J$61:$N$90,5,FALSE) -> 30
A23: =Symbols!B29 -> S.US.XES | B23: =COUNTIF($A$1:A23,A23)&"-"&A23 -> 1-S.US.XES | C23: =IFERROR(RTD("cqg.rtd", ,"ContractData",A23, "LastTrade",, "T"),"") -> 53.19 | D23: =IFERROR(RTD("cqg.rtd", ,"ContractData",A23, "NetLastTradeToday",, "T"),"") -> -1.51 | E23: =IFERROR(RTD("cqg.rtd", ,"ContractData",A23, "PerCentNetLastTrade",, "T")/100,"") -> -0.02760511883 | F23: =IFERROR(RTD("cqg.rtd", ,"ContractData",A23, "PerCentNetLastTrade",, "T")/100,"") -> -0.02760511883 | G23: =IFERROR(RANK(E23,E$1:E$30,0)+COUNTIF($E$1:E23,E23)-1,"") -> 27 | H23: S.US.XES | I23: -0.02760511883 | J23: 23 | K23: =IFERROR(VLOOKUP(J23,$G$1:H$30,2,FALSE),"") -> S.US.XLK | L23: =IFERROR(RTD("cqg.rtd", ,"ContractData",K23, "PerCentNetLastTrade",, "T")/100,"") -> -0.02175602176 | M23: 27 | P23: 0.02175602176 | R23: -0.02175602176 | S23: =S22 -> S.US.XLK | T23: =COUNTIF($S$1:S23,S23)&"-"&S23 -> 2-S.US.XLK | U23: =T67 -> 1-S.US.XES | V23: 53.19 | W23: =VLOOKUP(U23,$B$1:$G$30,3,FALSE) -> -1.51 | X23: =VLOOKUP(U23,$B$1:$G$30,5,FALSE) -> -0.02760511883 | Y23: =VLOOKUP(U23,$B$1:$G52,6,FALSE) -> 27 | Z23: =T68 -> 2-S.US.XES | AA23: 0.3187916497 | AB23: =VLOOKUP(Z23,$I$31:$M$60,5,FALSE) -> 25 | AC23: =T69 -> 3-S.US.XES | AD23: 0.1831815747 | AE23: =VLOOKUP(AC23,$J$61:$N$90,5,FALSE) -> 29
A24: =Symbols!B30 -> S.US.XPH | B24: =COUNTIF($A$1:A24,A24)&"-"&A24 -> 1-S.US.XPH | C24: =IFERROR(RTD("cqg.rtd", ,"ContractData",A24, "LastTrade",, "T"),"") -> 51.44 | D24: =IFERROR(RTD("cqg.rtd", ,"ContractData",A24, "NetLastTradeToday",, "T"),"") -> -0.26 | E24: =IFERROR(RTD("cqg.rtd", ,"ContractData",A24, "PerCentNetLastTrade",, "T")/100,"") -> -0.00502901354 | F24: =IFERROR(RTD("cqg.rtd", ,"ContractData",A24, "PerCentNetLastTrade",, "T")/100,"") -> -0.00502901354 | G24: =IFERROR(RANK(E24,E$1:E$30,0)+COUNTIF($E$1:E24,E24)-1,"") -> 11 | H24: S.US.XPH | I24: -0.00502901354 | J24: 24 | K24: =IFERROR(VLOOKUP(J24,$G$1:H$30,2,FALSE),"") -> S.US.XME | L24: =IFERROR(RTD("cqg.rtd", ,"ContractData",K24, "PerCentNetLastTrade",, "T")/100,"") -> -0.02197039778 | M24: 11 | P24: 0.02197039778 | R24: -0.02197039778 | S24: =S23 -> S.US.XLK | T24: =COUNTIF($S$1:S24,S24)&"-"&S24 -> 3-S.US.XLK | U24: =T70 -> 1-S.US.XPH | V24: 51.44 | W24: =VLOOKUP(U24,$B$1:$G$30,3,FALSE) -> -0.26 | X24: =VLOOKUP(U24,$B$1:$G$30,5,FALSE) -> -0.00502901354 | Y24: =VLOOKUP(U24,$B$1:$G53,6,FALSE) -> 11 | Z24: =T71 -> 2-S.US.XPH | AA24: 0.1138983346 | AB24: =VLOOKUP(Z24,$I$31:$M$60,5,FALSE) -> 30 | AC24: =T72 -> 3-S.US.XPH | AD24: 0.6739495798 | AE24: =VLOOKUP(AC24,$J$61:$N$90,5,FALSE) -> 11
A25: =Symbols!B31 -> S.US.KRE | B25: =COUNTIF($A$1:A25,A25)&"-"&A25 -> 1-S.US.KRE | C25: =IFERROR(RTD("cqg.rtd", ,"ContractData",A25, "LastTrade",, "T"),"") -> 61.88 | D25: =IFERROR(RTD("cqg.rtd", ,"ContractData",A25, "NetLastTradeToday",, "T"),"") -> -0.59 | E25: =IFERROR(RTD("cqg.rtd", ,"ContractData",A25, "PerCentNetLastTrade",, "T")/100,"") -> -0.009444533376 | F25: =IFERROR(RTD("cqg.rtd", ,"ContractData",A25, "PerCentNetLastTrade",, "T")/100,"") -> -0.009444533376 | G25: =IFERROR(RANK(E25,E$1:E$30,0)+COUNTIF($E$1:E25,E25)-1,"") -> 15 | H25: S.US.KRE | I25: -0.009444533376 | J25: 25 | K25: =IFERROR(VLOOKUP(J25,$G$1:H$30,2,FALSE),"") -> S.US.XWEB | L25: =IFERROR(RTD("cqg.rtd", ,"ContractData",K25, "PerCentNetLastTrade",, "T")/100,"") -> -0.02200802318 | M25: 15 | P25: 0.02200802318 | R25: -0.02200802318 | S25: =MainDisplay!B45 -> S.US.XLB | T25: =COUNTIF($S$1:S25,S25)&"-"&S25 -> 1-S.US.XLB | U25: =T73 -> 1-S.US.KRE | V25: 61.88 | W25: =VLOOKUP(U25,$B$1:$G$30,3,FALSE) -> -0.59 | X25: =VLOOKUP(U25,$B$1:$G$30,5,FALSE) -> -0.009444533376 | Y25: =VLOOKUP(U25,$B$1:$G54,6,FALSE) -> 15 | Z25: =T74 -> 2-S.US.KRE | AA25: 0.3469772573 | AB25: =VLOOKUP(Z25,$I$31:$M$60,5,FALSE) -> 24 | AC25: =T75 -> 3-S.US.KRE | AD25: 0.2067039106 | AE25: =VLOOKUP(AC25,$J$61:$N$90,5,FALSE) -> 27
A26: =Symbols!B32 -> S.US.XRT | B26: =COUNTIF($A$1:A26,A26)&"-"&A26 -> 1-S.US.XRT | C26: =IFERROR(RTD("cqg.rtd", ,"ContractData",A26, "LastTrade",, "T"),"") -> 94.17 | D26: =IFERROR(RTD("cqg.rtd", ,"ContractData",A26, "NetLastTradeToday",, "T"),"") -> -2.32 | E26: =IFERROR(RTD("cqg.rtd", ,"ContractData",A26, "PerCentNetLastTrade",, "T")/100,"") -> -0.02404394238 | F26: =IFERROR(RTD("cqg.rtd", ,"ContractData",A26, "PerCentNetLastTrade",, "T")/100,"") -> -0.02404394238 | G26: =IFERROR(RANK(E26,E$1:E$30,0)+COUNTIF($E$1:E26,E26)-1,"") -> 26 | H26: S.US.XRT | I26: -0.02404394238 | J26: 26 | K26: =IFERROR(VLOOKUP(J26,$G$1:H$30,2,FALSE),"") -> S.US.XRT | L26: =IFERROR(RTD("cqg.rtd", ,"ContractData",K26, "PerCentNetLastTrade",, "T")/100,"") -> -0.02404394238 | M26: 26 | P26: 0.02404394238 | R26: -0.02404394238 | S26: =S25 -> S.US.XLB | T26: =COUNTIF($S$1:S26,S26)&"-"&S26 -> 2-S.US.XLB | U26: =T76 -> 1-S.US.XRT | V26: 94.17 | W26: =VLOOKUP(U26,$B$1:$G$30,3,FALSE) -> -2.32 | X26: =VLOOKUP(U26,$B$1:$G$30,5,FALSE) -> -0.02404394238 | Y26: =VLOOKUP(U26,$B$1:$G55,6,FALSE) -> 26 | Z26: =T77 -> 2-S.US.XRT | AA26: 0.3735267705 | AB26: =VLOOKUP(Z26,$I$31:$M$60,5,FALSE) -> 21 | AC26: =T78 -> 3-S.US.XRT | AD26: 0.5875706215 | AE26: =VLOOKUP(AC26,$J$61:$N$90,5,FALSE) -> 13
A27: =Symbols!B33 -> S.US.XSD | B27: =COUNTIF($A$1:A27,A27)&"-"&A27 -> 1-S.US.XSD | C27: =IFERROR(RTD("cqg.rtd", ,"ContractData",A27, "LastTrade",, "T"),"") -> 174.44 | D27: =IFERROR(RTD("cqg.rtd", ,"ContractData",A27, "NetLastTradeToday",, "T"),"") -> -8.51 | E27: =IFERROR(RTD("cqg.rtd", ,"ContractData",A27, "PerCentNetLastTrade",, "T")/100,"") -> -0.04651544138 | F27: =IFERROR(RTD("cqg.rtd", ,"ContractData",A27, "PerCentNetLastTrade",, "T")/100,"") -> -0.04651544138 | G27: =IFERROR(RANK(E27,E$1:E$30,0)+COUNTIF($E$1:E27,E27)-1,"") -> 30 | H27: S.US.XSD | I27: -0.04651544138 | J27: 27 | K27: =IFERROR(VLOOKUP(J27,$G$1:H$30,2,FALSE),"") -> S.US.XES | L27: =IFERROR(RTD("cqg.rtd", ,"ContractData",K27, "PerCentNetLastTrade",, "T")/100,"") -> -0.02760511883 | M27: 30 | P27: 0.02760511883 | R27: -0.02760511883 | S27: =S26 -> S.US.XLB | T27: =COUNTIF($S$1:S27,S27)&"-"&S27 -> 3-S.US.XLB | U27: =T79 -> 1-S.US.XSD | V27: 174.44 | W27: =VLOOKUP(U27,$B$1:$G$30,3,FALSE) -> -8.51 | X27: =VLOOKUP(U27,$B$1:$G$30,5,FALSE) -> -0.04651544138 | Y27: =VLOOKUP(U27,$B$1:$G56,6,FALSE) -> 30 | Z27: =T80 -> 2-S.US.XSD | AA27: 0.7092275747 | AB27: =VLOOKUP(Z27,$I$31:$M$60,5,FALSE) -> 5 | AC27: =T81 -> 3-S.US.XSD | AD27: 0.4773548208 | AE27: =VLOOKUP(AC27,$J$61:$N$90,5,FALSE) -> 15
A28: =Symbols!B34 -> S.US.XSW | B28: =COUNTIF($A$1:A28,A28)&"-"&A28 -> 1-S.US.XSW | C28: =IFERROR(RTD("cqg.rtd", ,"ContractData",A28, "LastTrade",, "T"),"") -> 167.45 | D28: =IFERROR(RTD("cqg.rtd", ,"ContractData",A28, "NetLastTradeToday",, "T"),"") -> -4.97 | E28: =IFERROR(RTD("cqg.rtd", ,"ContractData",A28, "PerCentNetLastTrade",, "T")/100,"") -> -0.0288249623 | F28: =IFERROR(RTD("cqg.rtd", ,"ContractData",A28, "PerCentNetLastTrade",, "T")/100,"") -> -0.0288249623 | G28: =IFERROR(RANK(E28,E$1:E$30,0)+COUNTIF($E$1:E28,E28)-1,"") -> 28 | H28: S.US.XSW | I28: -0.0288249623 | J28: 28 | K28: =IFERROR(VLOOKUP(J28,$G$1:H$30,2,FALSE),"") -> S.US.XSW | L28: =IFERROR(RTD("cqg.rtd", ,"ContractData",K28, "PerCentNetLastTrade",, "T")/100,"") -> -0.0288249623 | M28: 28 | P28: 0.0288249623 | R28: -0.0288249623 | S28: =MainDisplay!B46 -> S.US.XLRE | T28: =COUNTIF($S$1:S28,S28)&"-"&S28 -> 1-S.US.XLRE | U28: =T82 -> 1-S.US.XSW | V28: 167.45 | W28: =VLOOKUP(U28,$B$1:$G$30,3,FALSE) -> -4.97 | X28: =VLOOKUP(U28,$B$1:$G$30,5,FALSE) -> -0.0288249623 | Y28: =VLOOKUP(U28,$B$1:$G57,6,FALSE) -> 28 | Z28: =T83 -> 2-S.US.XSW | AA28: 0.200168665 | AB28: =VLOOKUP(Z28,$I$31:$M$60,5,FALSE) -> 28 | AC28: =T84 -> 3-S.US.XSW | AD28: 0.722326454 | AE28: =VLOOKUP(AC28,$J$61:$N$90,5,FALSE) -> 8
A29: =Symbols!B35 -> S.US.XTL | B29: =COUNTIF($A$1:A29,A29)&"-"&A29 -> 1-S.US.XTL | C29: =IFERROR(RTD("cqg.rtd", ,"ContractData",A29, "LastTrade",, "T"),"") -> 98.13 | D29: =IFERROR(RTD("cqg.rtd", ,"ContractData",A29, "NetLastTradeToday",, "T"),"") -> -1.8 | E29: =IFERROR(RTD("cqg.rtd", ,"ContractData",A29, "PerCentNetLastTrade",, "T")/100,"") -> -0.01801260883 | F29: =IFERROR(RTD("cqg.rtd", ,"ContractData",A29, "PerCentNetLastTrade",, "T")/100,"") -> -0.01801260883 | G29: =IFERROR(RANK(E29,E$1:E$30,0)+COUNTIF($E$1:E29,E29)-1,"") -> 19 | H29: S.US.XTL | I29: -0.01801260883 | J29: 29 | K29: =IFERROR(VLOOKUP(J29,$G$1:H$30,2,FALSE),"") -> S.US.XOP | L29: =IFERROR(RTD("cqg.rtd", ,"ContractData",K29, "PerCentNetLastTrade",, "T")/100,"") -> -0.04108618654 | M29: 19 | P29: 0.04108618654 | R29: -0.04108618654 | S29: =S28 -> S.US.XLRE | T29: =COUNTIF($S$1:S29,S29)&"-"&S29 -> 2-S.US.XLRE | U29: =T85 -> 1-S.US.XTL | V29: 98.13 | W29: =VLOOKUP(U29,$B$1:$G$30,3,FALSE) -> -1.8 | X29: =VLOOKUP(U29,$B$1:$G$30,5,FALSE) -> -0.01801260883 | Y29: =VLOOKUP(U29,$B$1:$G58,6,FALSE) -> 19 | Z29: =T86 -> 2-S.US.XTL | AA29: 0.4641233226 | AB29: =VLOOKUP(Z29,$I$31:$M$60,5,FALSE) -> 16 | AC29: =T87 -> 3-S.US.XTL | AD29: 0.4170249355 | AE29: =VLOOKUP(AC29,$J$61:$N$90,5,FALSE) -> 16
A30: =Symbols!B36 -> S.US.XTN | B30: =COUNTIF($A$1:A30,A30)&"-"&A30 -> 1-S.US.XTN | C30: =IFERROR(RTD("cqg.rtd", ,"ContractData",A30, "LastTrade",, "T"),"") -> 81.83 | D30: =IFERROR(RTD("cqg.rtd", ,"ContractData",A30, "NetLastTradeToday",, "T"),"") -> -1.63 | E30: =IFERROR(RTD("cqg.rtd", ,"ContractData",A30, "PerCentNetLastTrade",, "T")/100,"") -> -0.01953031392 | F30: =IFERROR(RTD("cqg.rtd", ,"ContractData",A30, "PerCentNetLastTrade",, "T")/100,"") -> -0.01953031392 | G30: =IFERROR(RANK(E30,E$1:E$30,0)+COUNTIF($E$1:E30,E30)-1,"") -> 22 | H30: S.US.XTN | I30: -0.01953031392 | J30: 30 | K30: =IFERROR(VLOOKUP(J30,$G$1:H$30,2,FALSE),"") -> S.US.XSD | L30: =IFERROR(RTD("cqg.rtd", ,"ContractData",K30, "PerCentNetLastTrade",, "T")/100,"") -> -0.04651544138 | M30: 22 | P30: 0.04651544138 | R30: -0.04651544138 | S30: =S29 -> S.US.XLRE | T30: =COUNTIF($S$1:S30,S30)&"-"&S30 -> 3-S.US.XLRE | U30: =T88 -> 1-S.US.XTN | V30: 81.83 | W30: =VLOOKUP(U30,$B$1:$G$30,3,FALSE) -> -1.63 | X30: =VLOOKUP(U30,$B$1:$G$30,5,FALSE) -> -0.01953031392 | Y30: =VLOOKUP(U30,$B$1:$G59,6,FALSE) -> 22 | Z30: =T89 -> 2-S.US.XTN | AA30: 0.3903679773 | AB30: =VLOOKUP(Z30,$I$31:$M$60,5,FALSE) -> 18 | AC30: =T90 -> 3-S.US.XTN | AD30: 0.2657103825 | AE30: =VLOOKUP(AC30,$J$61:$N$90,5,FALSE) -> 24
A31: =A1 -> S.US.XLC | B31: =COUNTIF($A$1:A31,A31)&"-"&A31 -> 2-S.US.XLC | C31: =IFERROR(RTD("cqg.rtd", ,"ContractData",A31, "T_CVol",, "T"),"") -> 2509474 | D31: =RTD("cqg.rtd",,"StudyData",A31, "MA", "InputChoice=Vol,MAType=Sim,Period=10", "MA","D","-1","all",,,,"T") -> 3838772.1 | E31: =IFERROR(C31/D31,"") -> 0.6537178907 | F31: =IFERROR(RANK(E31,E$31:E$60,0)+COUNTIF($E$31:E31,E31)-1,"") -> 9 | G31: =A31 -> S.US.XLC | I31: =IFERROR(VLOOKUP(K31,$A$31:$B$60,2,FALSE),"") -> 2-S.US.XBI | J31: 1 | K31: =IFERROR(VLOOKUP(J31,$F$31:G$60,2,FALSE),"") -> S.US.XBI | L31: =IFERROR(RTD("cqg.rtd", ,"ContractData",K31, "T_CVol",, "T")/RTD("cqg.rtd",,"StudyData",K31, "MA", "InputChoice=Vol,MAType=Sim,Period=10", "MA","D","-1","all",,,,"T"),"") -> 1.156858956 | M31: =J31 -> 1 | S31: =MainDisplay!K37 -> S.US.XLU | T31: =COUNTIF($S$1:S31,S31)&"-"&S31 -> 1-S.US.XLU
A32: =A2 -> S.US.XLY | B32: =COUNTIF($A$1:A32,A32)&"-"&A32 -> 2-S.US.XLY | C32: =IFERROR(RTD("cqg.rtd", ,"ContractData",A32, "T_CVol",, "T"),"") -> 2362077 | D32: =RTD("cqg.rtd",,"StudyData",A32, "MA", "InputChoice=Vol,MAType=Sim,Period=10", "MA","D","-1","all",,,,"T") -> 4552356.6 | E32: =IFERROR(C32/D32,"") -> 0.5188690622 | F32: =IFERROR(RANK(E32,E$31:E$60,0)+COUNTIF($E$31:E32,E32)-1,"") -> 13 | G32: =A32 -> S.US.XLY | I32: =IFERROR(VLOOKUP(K32,$A$31:$B$60,2,FALSE),"") -> 2-S.US.XLB | J32: =J31+1 -> 2 | K32: =IFERROR(VLOOKUP(J32,$F$31:G$60,2,FALSE),"") -> S.US.XLB | L32: =IFERROR(RTD("cqg.rtd", ,"ContractData",K32, "T_CVol",, "T")/RTD("cqg.rtd",,"StudyData",K32, "MA", "InputChoice=Vol,MAType=Sim,Period=10", "MA","D","-1","all",,,,"T"),"") -> 0.7830383201 | M32: =J32 -> 2 | S32: =S31 -> S.US.XLU | T32: =COUNTIF($S$1:S32,S32)&"-"&S32 -> 2-S.US.XLU
A33: S.US.XLP | B33: =COUNTIF($A$1:A33,A33)&"-"&A33 -> 2-S.US.XLP | C33: =IFERROR(RTD("cqg.rtd", ,"ContractData",A33, "T_CVol",, "T"),"") -> 8348695 | D33: =RTD("cqg.rtd",,"StudyData",A33, "MA", "InputChoice=Vol,MAType=Sim,Period=10", "MA","D","-1","all",,,,"T") -> 11279422.3 | E33: 0.7401704429 | F33: =IFERROR(RANK(E33,E$31:E$60,0)+COUNTIF($E$31:E33,E33)-1,"") -> 4 | G33: S.US.XLP | I33: 2-S.US.XLK | J33: =J32+1 -> 3 | K33: =IFERROR(VLOOKUP(J33,$F$31:G$60,2,FALSE),"") -> S.US.XLK | L33: =IFERROR(RTD("cqg.rtd", ,"ContractData",K33, "T_CVol",, "T")/RTD("cqg.rtd",,"StudyData",K33, "MA", "InputChoice=Vol,MAType=Sim,Period=10", "MA","D","-1","all",,,,"T"),"") -> 0.7517663184 | M33: 3 | S33: =S32 -> S.US.XLU | T33: =COUNTIF($S$1:S33,S33)&"-"&S33 -> 3-S.US.XLU
A34: S.US.XLE | B34: =COUNTIF($A$1:A34,A34)&"-"&A34 -> 2-S.US.XLE | C34: =IFERROR(RTD("cqg.rtd", ,"ContractData",A34, "T_CVol",, "T"),"") -> 15997466 | D34: =RTD("cqg.rtd",,"StudyData",A34, "MA", "InputChoice=Vol,MAType=Sim,Period=10", "MA","D","-1","all",,,,"T") -> 33628922.3 | E34: 0.4757055804 | F34: =IFERROR(RANK(E34,E$31:E$60,0)+COUNTIF($E$31:E34,E34)-1,"") -> 15 | G34: S.US.XLE | I34: 2-S.US.XLP | J34: 4 | K34: =IFERROR(VLOOKUP(J34,$F$31:G$60,2,FALSE),"") -> S.US.XLP | L34: =IFERROR(RTD("cqg.rtd", ,"ContractData",K34, "T_CVol",, "T")/RTD("cqg.rtd",,"StudyData",K34, "MA", "InputChoice=Vol,MAType=Sim,Period=10", "MA","D","-1","all",,,,"T"),"") -> 0.7401704429 | M34: 4 | S34: =MainDisplay!K38 -> S.US.XAR | T34: =COUNTIF($S$1:S34,S34)&"-"&S34 -> 1-S.US.XAR
A35: S.US.XLF | B35: =COUNTIF($A$1:A35,A35)&"-"&A35 -> 2-S.US.XLF | C35: =IFERROR(RTD("cqg.rtd", ,"ContractData",A35, "T_CVol",, "T"),"") -> 19682755 | D35: =RTD("cqg.rtd",,"StudyData",A35, "MA", "InputChoice=Vol,MAType=Sim,Period=10", "MA","D","-1","all",,,,"T") -> 54228558.5 | E35: 0.3629592146 | F35: =IFERROR(RANK(E35,E$31:E$60,0)+COUNTIF($E$31:E35,E35)-1,"") -> 22 | G35: S.US.XLF | I35: 2-S.US.XSD | J35: 5 | K35: =IFERROR(VLOOKUP(J35,$F$31:G$60,2,FALSE),"") -> S.US.XSD | L35: =IFERROR(RTD("cqg.rtd", ,"ContractData",K35, "T_CVol",, "T")/RTD("cqg.rtd",,"StudyData",K35, "MA", "InputChoice=Vol,MAType=Sim,Period=10", "MA","D","-1","all",,,,"T"),"") -> 0.7092275747 | M35: 5 | S35: =S34 -> S.US.XAR | T35: =COUNTIF($S$1:S35,S35)&"-"&S35 -> 2-S.US.XAR
A36: S.US.XLV | B36: =COUNTIF($A$1:A36,A36)&"-"&A36 -> 2-S.US.XLV | C36: =IFERROR(RTD("cqg.rtd", ,"ContractData",A36, "T_CVol",, "T"),"") -> 5514146 | D36: =RTD("cqg.rtd",,"StudyData",A36, "MA", "InputChoice=Vol,MAType=Sim,Period=10", "MA","D","-1","all",,,,"T") -> 9944953.8 | E36: 0.5544667286 | F36: =IFERROR(RANK(E36,E$31:E$60,0)+COUNTIF($E$31:E36,E36)-1,"") -> 11 | G36: S.US.XLV | I36: 2-S.US.XLU | J36: 6 | K36: =IFERROR(VLOOKUP(J36,$F$31:G$60,2,FALSE),"") -> S.US.XLU | L36: =IFERROR(RTD("cqg.rtd", ,"ContractData",K36, "T_CVol",, "T")/RTD("cqg.rtd",,"StudyData",K36, "MA", "InputChoice=Vol,MAType=Sim,Period=10", "MA","D","-1","all",,,,"T"),"") -> 0.6998958519 | M36: 6 | S36: =S35 -> S.US.XAR | T36: =COUNTIF($S$1:S36,S36)&"-"&S36 -> 3-S.US.XAR
A37: S.US.XLI | B37: =COUNTIF($A$1:A37,A37)&"-"&A37 -> 2-S.US.XLI | C37: =IFERROR(RTD("cqg.rtd", ,"ContractData",A37, "T_CVol",, "T"),"") -> 7479827 | D37: =RTD("cqg.rtd",,"StudyData",A37, "MA", "InputChoice=Vol,MAType=Sim,Period=10", "MA","D","-1","all",,,,"T") -> 13444351.8 | E37: 0.5563546024 | F37: =IFERROR(RANK(E37,E$31:E$60,0)+COUNTIF($E$31:E37,E37)-1,"") -> 10 | G37: S.US.XLI | I37: 2-S.US.XAR | J37: 7 | K37: =IFERROR(VLOOKUP(J37,$F$31:G$60,2,FALSE),"") -> S.US.XAR | L37: =IFERROR(RTD("cqg.rtd", ,"ContractData",K37, "T_CVol",, "T")/RTD("cqg.rtd",,"StudyData",K37, "MA", "InputChoice=Vol,MAType=Sim,Period=10", "MA","D","-1","all",,,,"T"),"") -> 0.6891857976 | M37: 7 | S37: =MainDisplay!K39 -> S.US.KBE | T37: =COUNTIF($S$1:S37,S37)&"-"&S37 -> 1-S.US.KBE
A38: S.US.XLK | B38: =COUNTIF($A$1:A38,A38)&"-"&A38 -> 2-S.US.XLK | C38: =IFERROR(RTD("cqg.rtd", ,"ContractData",A38, "T_CVol",, "T"),"") -> 5188253 | D38: =RTD("cqg.rtd",,"StudyData",A38, "MA", "InputChoice=Vol,MAType=Sim,Period=10", "MA","D","-1","all",,,,"T") -> 6901417.2 | E38: 0.7517663184 | F38: =IFERROR(RANK(E38,E$31:E$60,0)+COUNTIF($E$31:E38,E38)-1,"") -> 3 | G38: S.US.XLK | I38: 2-S.US.XOP | J38: 8 | K38: =IFERROR(VLOOKUP(J38,$F$31:G$60,2,FALSE),"") -> S.US.XOP | L38: =IFERROR(RTD("cqg.rtd", ,"ContractData",K38, "T_CVol",, "T")/RTD("cqg.rtd",,"StudyData",K38, "MA", "InputChoice=Vol,MAType=Sim,Period=10", "MA","D","-1","all",,,,"T"),"") -> 0.6570897769 | M38: 8 | S38: =S37 -> S.US.KBE | T38: =COUNTIF($S$1:S38,S38)&"-"&S38 -> 2-S.US.KBE
A39: S.US.XLB | B39: =COUNTIF($A$1:A39,A39)&"-"&A39 -> 2-S.US.XLB | C39: =IFERROR(RTD("cqg.rtd", ,"ContractData",A39, "T_CVol",, "T"),"") -> 6208685 | D39: =RTD("cqg.rtd",,"StudyData",A39, "MA", "InputChoice=Vol,MAType=Sim,Period=10", "MA","D","-1","all",,,,"T") -> 7928967 | E39: 0.7830383201 | F39: =IFERROR(RANK(E39,E$31:E$60,0)+COUNTIF($E$31:E39,E39)-1,"") -> 2 | G39: S.US.XLB | I39: 2-S.US.XLC | J39: 9 | K39: =IFERROR(VLOOKUP(J39,$F$31:G$60,2,FALSE),"") -> S.US.XLC | L39: =IFERROR(RTD("cqg.rtd", ,"ContractData",K39, "T_CVol",, "T")/RTD("cqg.rtd",,"StudyData",K39, "MA", "InputChoice=Vol,MAType=Sim,Period=10", "MA","D","-1","all",,,,"T"),"") -> 0.6537178907 | M39: 9 | S39: =S38 -> S.US.KBE | T39: =COUNTIF($S$1:S39,S39)&"-"&S39 -> 3-S.US.KBE
A40: S.US.XLRE | B40: =COUNTIF($A$1:A40,A40)&"-"&A40 -> 2-S.US.XLRE | C40: =IFERROR(RTD("cqg.rtd", ,"ContractData",A40, "T_CVol",, "T"),"") -> 2396386 | D40: =RTD("cqg.rtd",,"StudyData",A40, "MA", "InputChoice=Vol,MAType=Sim,Period=10", "MA","D","-1","all",,,,"T") -> 4716872 | E40: 0.5080455861 | F40: =IFERROR(RANK(E40,E$31:E$60,0)+COUNTIF($E$31:E40,E40)-1,"") -> 14 | G40: S.US.XLRE | I40: 2-S.US.XLI | J40: 10 | K40: =IFERROR(VLOOKUP(J40,$F$31:G$60,2,FALSE),"") -> S.US.XLI | L40: =IFERROR(RTD("cqg.rtd", ,"ContractData",K40, "T_CVol",, "T")/RTD("cqg.rtd",,"StudyData",K40, "MA", "InputChoice=Vol,MAType=Sim,Period=10", "MA","D","-1","all",,,,"T"),"") -> 0.5563546024 | M40: 10 | S40: =MainDisplay!K40 -> S.US.XBI | T40: =COUNTIF($S$1:S40,S40)&"-"&S40 -> 1-S.US.XBI
A41: S.US.XLU | B41: =COUNTIF($A$1:A41,A41)&"-"&A41 -> 2-S.US.XLU | C41: =IFERROR(RTD("cqg.rtd", ,"ContractData",A41, "T_CVol",, "T"),"") -> 9229719 | D41: =RTD("cqg.rtd",,"StudyData",A41, "MA", "InputChoice=Vol,MAType=Sim,Period=10", "MA","D","-1","all",,,,"T") -> 13187274.9 | E41: 0.6998958519 | F41: =IFERROR(RANK(E41,E$31:E$60,0)+COUNTIF($E$31:E41,E41)-1,"") -> 6 | G41: S.US.XLU | I41: 2-S.US.XLV | J41: 11 | K41: =IFERROR(VLOOKUP(J41,$F$31:G$60,2,FALSE),"") -> S.US.XLV | L41: =IFERROR(RTD("cqg.rtd", ,"ContractData",K41, "T_CVol",, "T")/RTD("cqg.rtd",,"StudyData",K41, "MA", "InputChoice=Vol,MAType=Sim,Period=10", "MA","D","-1","all",,,,"T"),"") -> 0.5544667286 | M41: 11 | S41: =S40 -> S.US.XBI | T41: =COUNTIF($S$1:S41,S41)&"-"&S41 -> 2-S.US.XBI
A42: S.US.XAR | B42: =COUNTIF($A$1:A42,A42)&"-"&A42 -> 2-S.US.XAR | C42: =IFERROR(RTD("cqg.rtd", ,"ContractData",A42, "T_CVol",, "T"),"") -> 39543 | D42: =RTD("cqg.rtd",,"StudyData",A42, "MA", "InputChoice=Vol,MAType=Sim,Period=10", "MA","D","-1","all",,,,"T") -> 57376.4 | E42: 0.6891857976 | F42: =IFERROR(RANK(E42,E$31:E$60,0)+COUNTIF($E$31:E42,E42)-1,"") -> 7 | G42: S.US.XAR | I42: 2-S.US.XME | J42: 12 | K42: =IFERROR(VLOOKUP(J42,$F$31:G$60,2,FALSE),"") -> S.US.XME | L42: =IFERROR(RTD("cqg.rtd", ,"ContractData",K42, "T_CVol",, "T")/RTD("cqg.rtd",,"StudyData",K42, "MA", "InputChoice=Vol,MAType=Sim,Period=10", "MA","D","-1","all",,,,"T"),"") -> 0.521750761 | M42: 12 | S42: =S41 -> S.US.XBI | T42: =COUNTIF($S$1:S42,S42)&"-"&S42 -> 3-S.US.XBI
A43: S.US.KBE | B43: =COUNTIF($A$1:A43,A43)&"-"&A43 -> 2-S.US.KBE | C43: =IFERROR(RTD("cqg.rtd", ,"ContractData",A43, "T_CVol",, "T"),"") -> 1355538 | D43: =RTD("cqg.rtd",,"StudyData",A43, "MA", "InputChoice=Vol,MAType=Sim,Period=10", "MA","D","-1","all",,,,"T") -> 3554986.6 | E43: 0.3813060786 | F43: =IFERROR(RANK(E43,E$31:E$60,0)+COUNTIF($E$31:E43,E43)-1,"") -> 20 | G43: S.US.KBE | I43: 2-S.US.XLY | J43: 13 | K43: =IFERROR(VLOOKUP(J43,$F$31:G$60,2,FALSE),"") -> S.US.XLY | L43: =IFERROR(RTD("cqg.rtd", ,"ContractData",K43, "T_CVol",, "T")/RTD("cqg.rtd",,"StudyData",K43, "MA", "InputChoice=Vol,MAType=Sim,Period=10", "MA","D","-1","all",,,,"T"),"") -> 0.5188690622 | M43: 13 | S43: =MainDisplay!K41 -> S.US.KCE | T43: =COUNTIF($S$1:S43,S43)&"-"&S43 -> 1-S.US.KCE
A44: S.US.XBI | B44: =COUNTIF($A$1:A44,A44)&"-"&A44 -> 2-S.US.XBI | C44: =IFERROR(RTD("cqg.rtd", ,"ContractData",A44, "T_CVol",, "T"),"") -> 5830827 | D44: =RTD("cqg.rtd",,"StudyData",A44, "MA", "InputChoice=Vol,MAType=Sim,Period=10", "MA","D","-1","all",,,,"T") -> 5040222.9 | E44: 1.156858956 | F44: =IFERROR(RANK(E44,E$31:E$60,0)+COUNTIF($E$31:E44,E44)-1,"") -> 1 | G44: S.US.XBI | I44: 2-S.US.XLRE | J44: 14 | K44: =IFERROR(VLOOKUP(J44,$F$31:G$60,2,FALSE),"") -> S.US.XLRE | L44: =IFERROR(RTD("cqg.rtd", ,"ContractData",K44, "T_CVol",, "T")/RTD("cqg.rtd",,"StudyData",K44, "MA", "InputChoice=Vol,MAType=Sim,Period=10", "MA","D","-1","all",,,,"T"),"") -> 0.5080455861 | M44: 14 | S44: =S43 -> S.US.KCE | T44: =COUNTIF($S$1:S44,S44)&"-"&S44 -> 2-S.US.KCE
A45: S.US.KCE | B45: =COUNTIF($A$1:A45,A45)&"-"&A45 -> 2-S.US.KCE | C45: =IFERROR(RTD("cqg.rtd", ,"ContractData",A45, "T_CVol",, "T"),"") -> 6137 | D45: =RTD("cqg.rtd",,"StudyData",A45, "MA", "InputChoice=Vol,MAType=Sim,Period=10", "MA","D","-1","all",,,,"T") -> 14732.5 | E45: 0.4165620227 | F45: =IFERROR(RANK(E45,E$31:E$60,0)+COUNTIF($E$31:E45,E45)-1,"") -> 17 | G45: S.US.KCE | I45: 2-S.US.XLE | J45: 15 | K45: =IFERROR(VLOOKUP(J45,$F$31:G$60,2,FALSE),"") -> S.US.XLE | L45: =IFERROR(RTD("cqg.rtd", ,"ContractData",K45, "T_CVol",, "T")/RTD("cqg.rtd",,"StudyData",K45, "MA", "InputChoice=Vol,MAType=Sim,Period=10", "MA","D","-1","all",,,,"T"),"") -> 0.4757055804 | M45: 15 | S45: =S44 -> S.US.KCE | T45: =COUNTIF($S$1:S45,S45)&"-"&S45 -> 3-S.US.KCE
A46: S.US.XHE | B46: =COUNTIF($A$1:A46,A46)&"-"&A46 -> 2-S.US.XHE | C46: =IFERROR(RTD("cqg.rtd", ,"ContractData",A46, "T_CVol",, "T"),"") -> 11815 | D46: =RTD("cqg.rtd",,"StudyData",A46, "MA", "InputChoice=Vol,MAType=Sim,Period=10", "MA","D","-1","all",,,,"T") -> 32874.8 | E46: 0.3593938214 | F46: =IFERROR(RANK(E46,E$31:E$60,0)+COUNTIF($E$31:E46,E46)-1,"") -> 23 | G46: S.US.XHE | I46: 2-S.US.XTL | J46: 16 | K46: =IFERROR(VLOOKUP(J46,$F$31:G$60,2,FALSE),"") -> S.US.XTL | L46: =IFERROR(RTD("cqg.rtd", ,"ContractData",K46, "T_CVol",, "T")/RTD("cqg.rtd",,"StudyData",K46, "MA", "InputChoice=Vol,MAType=Sim,Period=10", "MA","D","-1","all",,,,"T"),"") -> 0.4641233226 | M46: 16 | S46: =MainDisplay!K42 -> S.US.XHE | T46: =COUNTIF($S$1:S46,S46)&"-"&S46 -> 1-S.US.XHE
A47: S.US.XHS | B47: =COUNTIF($A$1:A47,A47)&"-"&A47 -> 2-S.US.XHS | C47: =IFERROR(RTD("cqg.rtd", ,"ContractData",A47, "T_CVol",, "T"),"") -> 3589 | D47: =RTD("cqg.rtd",,"StudyData",A47, "MA", "InputChoice=Vol,MAType=Sim,Period=10", "MA","D","-1","all",,,,"T") -> 14363 | E47: 0.2498781592 | F47: =IFERROR(RANK(E47,E$31:E$60,0)+COUNTIF($E$31:E47,E47)-1,"") -> 26 | G47: S.US.XHS | I47: 2-S.US.KCE | J47: 17 | K47: =IFERROR(VLOOKUP(J47,$F$31:G$60,2,FALSE),"") -> S.US.KCE | L47: =IFERROR(RTD("cqg.rtd", ,"ContractData",K47, "T_CVol",, "T")/RTD("cqg.rtd",,"StudyData",K47, "MA", "InputChoice=Vol,MAType=Sim,Period=10", "MA","D","-1","all",,,,"T"),"") -> 0.4165620227 | M47: 17 | S47: =S46 -> S.US.XHE | T47: =COUNTIF($S$1:S47,S47)&"-"&S47 -> 2-S.US.XHE
A48: S.US.XHB | B48: =COUNTIF($A$1:A48,A48)&"-"&A48 -> 2-S.US.XHB | C48: =IFERROR(RTD("cqg.rtd", ,"ContractData",A48, "T_CVol",, "T"),"") -> 804607 | D48: =RTD("cqg.rtd",,"StudyData",A48, "MA", "InputChoice=Vol,MAType=Sim,Period=10", "MA","D","-1","all",,,,"T") -> 2073791.7 | E48: 0.3879883404 | F48: =IFERROR(RANK(E48,E$31:E$60,0)+COUNTIF($E$31:E48,E48)-1,"") -> 19 | G48: S.US.XHB | I48: 2-S.US.XTN | J48: 18 | K48: =IFERROR(VLOOKUP(J48,$F$31:G$60,2,FALSE),"") -> S.US.XTN | L48: =IFERROR(RTD("cqg.rtd", ,"ContractData",K48, "T_CVol",, "T")/RTD("cqg.rtd",,"StudyData",K48, "MA", "InputChoice=Vol,MAType=Sim,Period=10", "MA","D","-1","all",,,,"T"),"") -> 0.3903679773 | M48: 18 | S48: =S47 -> S.US.XHE | T48: =COUNTIF($S$1:S48,S48)&"-"&S48 -> 3-S.US.XHE
A49: S.US.KIE | B49: =COUNTIF($A$1:A49,A49)&"-"&A49 -> 2-S.US.KIE | C49: =IFERROR(RTD("cqg.rtd", ,"ContractData",A49, "T_CVol",, "T"),"") -> 237570 | D49: =RTD("cqg.rtd",,"StudyData",A49, "MA", "InputChoice=Vol,MAType=Sim,Period=10", "MA","D","-1","all",,,,"T") -> 1216645.1 | E49: 0.195266475 | F49: =IFERROR(RANK(E49,E$31:E$60,0)+COUNTIF($E$31:E49,E49)-1,"") -> 29 | G49: S.US.KIE | I49: 2-S.US.XHB | J49: 19 | K49: =IFERROR(VLOOKUP(J49,$F$31:G$60,2,FALSE),"") -> S.US.XHB | L49: =IFERROR(RTD("cqg.rtd", ,"ContractData",K49, "T_CVol",, "T")/RTD("cqg.rtd",,"StudyData",K49, "MA", "InputChoice=Vol,MAType=Sim,Period=10", "MA","D","-1","all",,,,"T"),"") -> 0.3879883404 | M49: 19 | S49: =MainDisplay!K43 -> S.US.XHS | T49: =COUNTIF($S$1:S49,S49)&"-"&S49 -> 1-S.US.XHS
A50: S.US.XWEB | B50: =COUNTIF($A$1:A50,A50)&"-"&A50 -> 2-S.US.XWEB | C50: =IFERROR(RTD("cqg.rtd", ,"ContractData",A50, "T_CVol",, "T"),"") -> 459 | D50: =RTD("cqg.rtd",,"StudyData",A50, "MA", "InputChoice=Vol,MAType=Sim,Period=10", "MA","D","-1","all",,,,"T") -> 2265.8 | E50: 0.2025774561 | F50: =IFERROR(RANK(E50,E$31:E$60,0)+COUNTIF($E$31:E50,E50)-1,"") -> 27 | G50: S.US.XWEB | I50: 2-S.US.KBE | J50: 20 | K50: =IFERROR(VLOOKUP(J50,$F$31:G$60,2,FALSE),"") -> S.US.KBE | L50: =IFERROR(RTD("cqg.rtd", ,"ContractData",K50, "T_CVol",, "T")/RTD("cqg.rtd",,"StudyData",K50, "MA", "InputChoice=Vol,MAType=Sim,Period=10", "MA","D","-1","all",,,,"T"),"") -> 0.3813060786 | M50: 20 | S50: =S49 -> S.US.XHS | T50: =COUNTIF($S$1:S50,S50)&"-"&S50 -> 2-S.US.XHS
A51: S.US.XME | B51: =COUNTIF($A$1:A51,A51)&"-"&A51 -> 2-S.US.XME | C51: =IFERROR(RTD("cqg.rtd", ,"ContractData",A51, "T_CVol",, "T"),"") -> 2581614 | D51: =RTD("cqg.rtd",,"StudyData",A51, "MA", "InputChoice=Vol,MAType=Sim,Period=10", "MA","D","-1","all",,,,"T") -> 4947983.2 | E51: 0.521750761 | F51: =IFERROR(RANK(E51,E$31:E$60,0)+COUNTIF($E$31:E51,E51)-1,"") -> 12 | G51: S.US.XME | I51: 2-S.US.XRT | J51: 21 | K51: =IFERROR(VLOOKUP(J51,$F$31:G$60,2,FALSE),"") -> S.US.XRT | L51: =IFERROR(RTD("cqg.rtd", ,"ContractData",K51, "T_CVol",, "T")/RTD("cqg.rtd",,"StudyData",K51, "MA", "InputChoice=Vol,MAType=Sim,Period=10", "MA","D","-1","all",,,,"T"),"") -> 0.3735267705 | M51: 21 | S51: =S50 -> S.US.XHS | T51: =COUNTIF($S$1:S51,S51)&"-"&S51 -> 3-S.US.XHS
A52: S.US.XOP | B52: =COUNTIF($A$1:A52,A52)&"-"&A52 -> 2-S.US.XOP | C52: =IFERROR(RTD("cqg.rtd", ,"ContractData",A52, "T_CVol",, "T"),"") -> 5554962 | D52: =RTD("cqg.rtd",,"StudyData",A52, "MA", "InputChoice=Vol,MAType=Sim,Period=10", "MA","D","-1","all",,,,"T") -> 8453885.9 | E52: 0.6570897769 | F52: =IFERROR(RANK(E52,E$31:E$60,0)+COUNTIF($E$31:E52,E52)-1,"") -> 8 | G52: S.US.XOP | I52: 2-S.US.XLF | J52: 22 | K52: =IFERROR(VLOOKUP(J52,$F$31:G$60,2,FALSE),"") -> S.US.XLF | L52: =IFERROR(RTD("cqg.rtd", ,"ContractData",K52, "T_CVol",, "T")/RTD("cqg.rtd",,"StudyData",K52, "MA", "InputChoice=Vol,MAType=Sim,Period=10", "MA","D","-1","all",,,,"T"),"") -> 0.3629592146 | M52: 22 | S52: =MainDisplay!K44 -> S.US.XHB | T52: =COUNTIF($S$1:S52,S52)&"-"&S52 -> 1-S.US.XHB
A53: S.US.XES | B53: =COUNTIF($A$1:A53,A53)&"-"&A53 -> 2-S.US.XES | C53: =IFERROR(RTD("cqg.rtd", ,"ContractData",A53, "T_CVol",, "T"),"") -> 39677 | D53: =RTD("cqg.rtd",,"StudyData",A53, "MA", "InputChoice=Vol,MAType=Sim,Period=10", "MA","D","-1","all",,,,"T") -> 124460.6 | E53: 0.3187916497 | F53: =IFERROR(RANK(E53,E$31:E$60,0)+COUNTIF($E$31:E53,E53)-1,"") -> 25 | G53: S.US.XES | I53: 2-S.US.XHE | J53: 23 | K53: =IFERROR(VLOOKUP(J53,$F$31:G$60,2,FALSE),"") -> S.US.XHE | L53: =IFERROR(RTD("cqg.rtd", ,"ContractData",K53, "T_CVol",, "T")/RTD("cqg.rtd",,"StudyData",K53, "MA", "InputChoice=Vol,MAType=Sim,Period=10", "MA","D","-1","all",,,,"T"),"") -> 0.3593938214 | M53: 23 | S53: =S52 -> S.US.XHB | T53: =COUNTIF($S$1:S53,S53)&"-"&S53 -> 2-S.US.XHB
A54: S.US.XPH | B54: =COUNTIF($A$1:A54,A54)&"-"&A54 -> 2-S.US.XPH | C54: =IFERROR(RTD("cqg.rtd", ,"ContractData",A54, "T_CVol",, "T"),"") -> 8903 | D54: =RTD("cqg.rtd",,"StudyData",A54, "MA", "InputChoice=Vol,MAType=Sim,Period=10", "MA","D","-1","all",,,,"T") -> 78166.2 | E54: 0.1138983346 | F54: =IFERROR(RANK(E54,E$31:E$60,0)+COUNTIF($E$31:E54,E54)-1,"") -> 30 | G54: S.US.XPH | I54: 2-S.US.KRE | J54: 24 | K54: =IFERROR(VLOOKUP(J54,$F$31:G$60,2,FALSE),"") -> S.US.KRE | L54: =IFERROR(RTD("cqg.rtd", ,"ContractData",K54, "T_CVol",, "T")/RTD("cqg.rtd",,"StudyData",K54, "MA", "InputChoice=Vol,MAType=Sim,Period=10", "MA","D","-1","all",,,,"T"),"") -> 0.3469772573 | M54: 24 | S54: =S53 -> S.US.XHB | T54: =COUNTIF($S$1:S54,S54)&"-"&S54 -> 3-S.US.XHB
A55: S.US.KRE | B55: =COUNTIF($A$1:A55,A55)&"-"&A55 -> 2-S.US.KRE | C55: =IFERROR(RTD("cqg.rtd", ,"ContractData",A55, "T_CVol",, "T"),"") -> 4243594 | D55: =RTD("cqg.rtd",,"StudyData",A55, "MA", "InputChoice=Vol,MAType=Sim,Period=10", "MA","D","-1","all",,,,"T") -> 12230179.1 | E55: 0.3469772573 | F55: =IFERROR(RANK(E55,E$31:E$60,0)+COUNTIF($E$31:E55,E55)-1,"") -> 24 | G55: S.US.KRE | I55: 2-S.US.XES | J55: 25 | K55: =IFERROR(VLOOKUP(J55,$F$31:G$60,2,FALSE),"") -> S.US.XES | L55: =IFERROR(RTD("cqg.rtd", ,"ContractData",K55, "T_CVol",, "T")/RTD("cqg.rtd",,"StudyData",K55, "MA", "InputChoice=Vol,MAType=Sim,Period=10", "MA","D","-1","all",,,,"T"),"") -> 0.3187916497 | M55: 25 | S55: =MainDisplay!K45 -> S.US.KIE | T55: =COUNTIF($S$1:S55,S55)&"-"&S55 -> 1-S.US.KIE
A56: S.US.XRT | B56: =COUNTIF($A$1:A56,A56)&"-"&A56 -> 2-S.US.XRT | C56: =IFERROR(RTD("cqg.rtd", ,"ContractData",A56, "T_CVol",, "T"),"") -> 912713 | D56: =RTD("cqg.rtd",,"StudyData",A56, "MA", "InputChoice=Vol,MAType=Sim,Period=10", "MA","D","-1","all",,,,"T") -> 2443500.9 | E56: 0.3735267705 | F56: =IFERROR(RANK(E56,E$31:E$60,0)+COUNTIF($E$31:E56,E56)-1,"") -> 21 | G56: S.US.XRT | I56: 2-S.US.XHS | J56: 26 | K56: =IFERROR(VLOOKUP(J56,$F$31:G$60,2,FALSE),"") -> S.US.XHS | L56: =IFERROR(RTD("cqg.rtd", ,"ContractData",K56, "T_CVol",, "T")/RTD("cqg.rtd",,"StudyData",K56, "MA", "InputChoice=Vol,MAType=Sim,Period=10", "MA","D","-1","all",,,,"T"),"") -> 0.2498781592 | M56: 26 | S56: =S55 -> S.US.KIE | T56: =COUNTIF($S$1:S56,S56)&"-"&S56 -> 2-S.US.KIE
A57: S.US.XSD | B57: =COUNTIF($A$1:A57,A57)&"-"&A57 -> 2-S.US.XSD | C57: =IFERROR(RTD("cqg.rtd", ,"ContractData",A57, "T_CVol",, "T"),"") -> 54103 | D57: =RTD("cqg.rtd",,"StudyData",A57, "MA", "InputChoice=Vol,MAType=Sim,Period=10", "MA","D","-1","all",,,,"T") -> 76284.4 | E57: 0.7092275747 | F57: =IFERROR(RANK(E57,E$31:E$60,0)+COUNTIF($E$31:E57,E57)-1,"") -> 5 | G57: S.US.XSD | I57: 2-S.US.XWEB | J57: 27 | K57: =IFERROR(VLOOKUP(J57,$F$31:G$60,2,FALSE),"") -> S.US.XWEB | L57: =IFERROR(RTD("cqg.rtd", ,"ContractData",K57, "T_CVol",, "T")/RTD("cqg.rtd",,"StudyData",K57, "MA", "InputChoice=Vol,MAType=Sim,Period=10", "MA","D","-1","all",,,,"T"),"") -> 0.2025774561 | M57: 27 | S57: =S56 -> S.US.KIE | T57: =COUNTIF($S$1:S57,S57)&"-"&S57 -> 3-S.US.KIE
A58: S.US.XSW | B58: =COUNTIF($A$1:A58,A58)&"-"&A58 -> 2-S.US.XSW | C58: =IFERROR(RTD("cqg.rtd", ,"ContractData",A58, "T_CVol",, "T"),"") -> 19843 | D58: =RTD("cqg.rtd",,"StudyData",A58, "MA", "InputChoice=Vol,MAType=Sim,Period=10", "MA","D","-1","all",,,,"T") -> 99131.4 | E58: 0.200168665 | F58: =IFERROR(RANK(E58,E$31:E$60,0)+COUNTIF($E$31:E58,E58)-1,"") -> 28 | G58: S.US.XSW | I58: 2-S.US.XSW | J58: 28 | K58: =IFERROR(VLOOKUP(J58,$F$31:G$60,2,FALSE),"") -> S.US.XSW | L58: =IFERROR(RTD("cqg.rtd", ,"ContractData",K58, "T_CVol",, "T")/RTD("cqg.rtd",,"StudyData",K58, "MA", "InputChoice=Vol,MAType=Sim,Period=10", "MA","D","-1","all",,,,"T"),"") -> 0.200168665 | M58: 28 | S58: =MainDisplay!K46 -> S.US.XWEB | T58: =COUNTIF($S$1:S58,S58)&"-"&S58 -> 1-S.US.XWEB
A59: S.US.XTL | B59: =COUNTIF($A$1:A59,A59)&"-"&A59 -> 2-S.US.XTL | C59: =IFERROR(RTD("cqg.rtd", ,"ContractData",A59, "T_CVol",, "T"),"") -> 837 | D59: =RTD("cqg.rtd",,"StudyData",A59, "MA", "InputChoice=Vol,MAType=Sim,Period=10", "MA","D","-1","all",,,,"T") -> 1803.4 | E59: 0.4641233226 | F59: =IFERROR(RANK(E59,E$31:E$60,0)+COUNTIF($E$31:E59,E59)-1,"") -> 16 | G59: S.US.XTL | I59: 2-S.US.KIE | J59: 29 | K59: =IFERROR(VLOOKUP(J59,$F$31:G$60,2,FALSE),"") -> S.US.KIE | L59: =IFERROR(RTD("cqg.rtd", ,"ContractData",K59, "T_CVol",, "T")/RTD("cqg.rtd",,"StudyData",K59, "MA", "InputChoice=Vol,MAType=Sim,Period=10", "MA","D","-1","all",,,,"T"),"") -> 0.195266475 | M59: 29 | S59: =S58 -> S.US.XWEB | T59: =COUNTIF($S$1:S59,S59)&"-"&S59 -> 2-S.US.XWEB
A60: S.US.XTN | B60: =COUNTIF($A$1:A60,A60)&"-"&A60 -> 2-S.US.XTN | C60: =IFERROR(RTD("cqg.rtd", ,"ContractData",A60, "T_CVol",, "T"),"") -> 28976 | D60: =RTD("cqg.rtd",,"StudyData",A60, "MA", "InputChoice=Vol,MAType=Sim,Period=10", "MA","D","-1","all",,,,"T") -> 74227.4 | E60: 0.3903679773 | F60: =IFERROR(RANK(E60,E$31:E$60,0)+COUNTIF($E$31:E60,E60)-1,"") -> 18 | G60: S.US.XTN | I60: 2-S.US.XPH | J60: 30 | K60: =IFERROR(VLOOKUP(J60,$F$31:G$60,2,FALSE),"") -> S.US.XPH | L60: =IFERROR(RTD("cqg.rtd", ,"ContractData",K60, "T_CVol",, "T")/RTD("cqg.rtd",,"StudyData",K60, "MA", "InputChoice=Vol,MAType=Sim,Period=10", "MA","D","-1","all",,,,"T"),"") -> 0.1138983346 | M60: 30 | S60: =S59 -> S.US.XWEB | T60: =COUNTIF($S$1:S60,S60)&"-"&S60 -> 3-S.US.XWEB
A61: =A31 -> S.US.XLC | B61: =COUNTIF($A$1:A61,A61)&"-"&A61 -> 3-S.US.XLC | C61: =IFERROR(RTD("cqg.rtd", ,"ContractData",A61, "LastTrade",, "T"),"") -> 82.36 | D61: =RTD("cqg.rtd",,"StudyData","HiLevel("&A61&",Period1:=12,AllowGaps:=0,InputChoice1:=High,InputChoice3:=High)","Bar",, "Close","W","0",,,,,"T") -> 83.95 | E61: =RTD("cqg.rtd",,"StudyData","LoLevel("&A61&",Period1:=12,AllowGaps:=0,InputChoice2:=Low,InputChoice4:=Low)","Bar",, "Close","W","0",,,,,"T") -> 74.54 | F61: =IFERROR((C61-E61)/(D61-E61),"") -> 0.8310308183 | G61: =IFERROR(RANK(F61,F$61:F$90,0)+COUNTIF($F$61:F61,F61)-1,"") -> 6 | H61: =A61 -> S.US.XLC | I61: =F61 -> 0.8310308183 | J61: =IFERROR(VLOOKUP(L61,$A$61:$B$90,2,FALSE),"") -> 3-S.US.XLRE | K61: 1 | L61: =IFERROR(VLOOKUP(K61,$G$61:$H$90,2,FALSE),"") -> S.US.XLRE | M61: =IFERROR(VLOOKUP(K61,$G$61:$I$90,3,FALSE),"") -> 0.9858906526 | N61: =K61 -> 1 | O61: =K61 -> 1 | S61: =MainDisplay!T37 -> S.US.XME | T61: =COUNTIF($S$1:S61,S61)&"-"&S61 -> 1-S.US.XME
A62: =A32 -> S.US.XLY | B62: =COUNTIF($A$1:A62,A62)&"-"&A62 -> 3-S.US.XLY | C62: =IFERROR(RTD("cqg.rtd", ,"ContractData",A62, "LastTrade",, "T"),"") -> 181.1 | D62: =RTD("cqg.rtd",,"StudyData","HiLevel("&A62&",Period1:=12,AllowGaps:=0,InputChoice1:=High,InputChoice3:=High)","Bar",, "Close","W","0",,,,,"T") -> 184.65 | E62: =RTD("cqg.rtd",,"StudyData","LoLevel("&A62&",Period1:=12,AllowGaps:=0,InputChoice2:=Low,InputChoice4:=Low)","Bar",, "Close","W","0",,,,,"T") -> 165.49 | F62: =IFERROR((C62-E62)/(D62-E62),"") -> 0.8147181628 | G62: =IFERROR(RANK(F62,F$61:F$90,0)+COUNTIF($F$61:F62,F62)-1,"") -> 7 | H62: =A62 -> S.US.XLY | I62: =F62 -> 0.8147181628 | J62: =IFERROR(VLOOKUP(L62,$A$61:$B$90,2,FALSE),"") -> 3-S.US.XLV | K62: =K61+1 -> 2 | L62: =IFERROR(VLOOKUP(K62,$G$61:$H$90,2,FALSE),"") -> S.US.XLV | M62: =IFERROR(VLOOKUP(K62,$G$61:$I$90,3,FALSE),"") -> 0.9281818182 | N62: =K62 -> 2 | O62: =K62 -> 2 | S62: =S61 -> S.US.XME | T62: =COUNTIF($S$1:S62,S62)&"-"&S62 -> 2-S.US.XME
A63: S.US.XLP | B63: =COUNTIF($A$1:A63,A63)&"-"&A63 -> 3-S.US.XLP | C63: =IFERROR(RTD("cqg.rtd", ,"ContractData",A63, "LastTrade",, "T"),"") -> 71.72 | D63: =RTD("cqg.rtd",,"StudyData","HiLevel("&A63&",Period1:=12,AllowGaps:=0,InputChoice1:=High,InputChoice3:=High)","Bar",, "Close","W","0",,,,,"T") -> 71.98 | E63: =RTD("cqg.rtd",,"StudyData","LoLevel("&A63&",Period1:=12,AllowGaps:=0,InputChoice2:=Low,InputChoice4:=Low)","Bar",, "Close","W","0",,,,,"T") -> 68.72 | F63: 0.9202453988 | G63: =IFERROR(RANK(F63,F$61:F$90,0)+COUNTIF($F$61:F63,F63)-1,"") -> 3 | H63: S.US.XLP | I63: 0.9202453988 | J63: 3-S.US.XLP | K63: =K62+1 -> 3 | L63: S.US.XLP | M63: 0.9202453988 | N63: 3 | O63: 3 | S63: =S62 -> S.US.XME | T63: =COUNTIF($S$1:S63,S63)&"-"&S63 -> 3-S.US.XME
A64: S.US.XLE | B64: =COUNTIF($A$1:A64,A64)&"-"&A64 -> 3-S.US.XLE | C64: =IFERROR(RTD("cqg.rtd", ,"ContractData",A64, "LastTrade",, "T"),"") -> 48.96 | D64: =RTD("cqg.rtd",,"StudyData","HiLevel("&A64&",Period1:=12,AllowGaps:=0,InputChoice1:=High,InputChoice3:=High)","Bar",, "Close","W","0",,,,,"T") -> 56.65 | E64: =RTD("cqg.rtd",,"StudyData","LoLevel("&A64&",Period1:=12,AllowGaps:=0,InputChoice2:=Low,InputChoice4:=Low)","Bar",, "Close","W","0",,,,,"T") -> 46.3 | F64: 0.2570048309 | G64: =IFERROR(RANK(F64,F$61:F$90,0)+COUNTIF($F$61:F64,F64)-1,"") -> 25 | H64: S.US.XLE | I64: 0.2570048309 | J64: 3-S.US.XLU | K64: 4 | L64: S.US.XLU | M64: 0.8835616438 | N64: 4 | O64: 4 | S64: =MainDisplay!T38 -> S.US.XOP | T64: =COUNTIF($S$1:S64,S64)&"-"&S64 -> 1-S.US.XOP
A65: S.US.XLF | B65: =COUNTIF($A$1:A65,A65)&"-"&A65 -> 3-S.US.XLF | C65: =IFERROR(RTD("cqg.rtd", ,"ContractData",A65, "LastTrade",, "T"),"") -> 36.4 | D65: =RTD("cqg.rtd",,"StudyData","HiLevel("&A65&",Period1:=12,AllowGaps:=0,InputChoice1:=High,InputChoice3:=High)","Bar",, "Close","W","0",,,,,"T") -> 38.6 | E65: =RTD("cqg.rtd",,"StudyData","LoLevel("&A65&",Period1:=12,AllowGaps:=0,InputChoice2:=Low,InputChoice4:=Low)","Bar",, "Close","W","0",,,,,"T") -> 34.9 | F65: 0.4054054054 | G65: =IFERROR(RANK(F65,F$61:F$90,0)+COUNTIF($F$61:F65,F65)-1,"") -> 17 | H65: S.US.XLF | I65: 0.4054054054 | J65: 3-S.US.XLK | K65: 5 | L65: S.US.XLK | M65: 0.8472222222 | N65: 5 | O65: 5 | S65: =S64 -> S.US.XOP | T65: =COUNTIF($S$1:S65,S65)&"-"&S65 -> 2-S.US.XOP
A66: S.US.XLV | B66: =COUNTIF($A$1:A66,A66)&"-"&A66 -> 3-S.US.XLV | C66: =IFERROR(RTD("cqg.rtd", ,"ContractData",A66, "LastTrade",, "T"),"") -> 130.82 | D66: =RTD("cqg.rtd",,"StudyData","HiLevel("&A66&",Period1:=12,AllowGaps:=0,InputChoice1:=High,InputChoice3:=High)","Bar",, "Close","W","0",,,,,"T") -> 131.61 | E66: =RTD("cqg.rtd",,"StudyData","LoLevel("&A66&",Period1:=12,AllowGaps:=0,InputChoice2:=Low,InputChoice4:=Low)","Bar",, "Close","W","0",,,,,"T") -> 120.61 | F66: 0.9281818182 | G66: =IFERROR(RANK(F66,F$61:F$90,0)+COUNTIF($F$61:F66,F66)-1,"") -> 2 | H66: S.US.XLV | I66: 0.9281818182 | J66: 3-S.US.XLC | K66: 6 | L66: S.US.XLC | M66: 0.8310308183 | N66: 6 | O66: 6 | S66: =S65 -> S.US.XOP | T66: =COUNTIF($S$1:S66,S66)&"-"&S66 -> 3-S.US.XOP
A67: S.US.XLI | B67: =COUNTIF($A$1:A67,A67)&"-"&A67 -> 3-S.US.XLI | C67: =IFERROR(RTD("cqg.rtd", ,"ContractData",A67, "LastTrade",, "T"),"") -> 102.8 | D67: =RTD("cqg.rtd",,"StudyData","HiLevel("&A67&",Period1:=12,AllowGaps:=0,InputChoice1:=High,InputChoice3:=High)","Bar",, "Close","W","0",,,,,"T") -> 106.8 | E67: =RTD("cqg.rtd",,"StudyData","LoLevel("&A67&",Period1:=12,AllowGaps:=0,InputChoice2:=Low,InputChoice4:=Low)","Bar",, "Close","W","0",,,,,"T") -> 98.77 | F67: 0.501867995 | G67: =IFERROR(RANK(F67,F$61:F$90,0)+COUNTIF($F$61:F67,F67)-1,"") -> 14 | H67: S.US.XLI | I67: 0.501867995 | J67: 3-S.US.XLY | K67: 7 | L67: S.US.XLY | M67: 0.8147181628 | N67: 7 | O67: 7 | S67: =MainDisplay!T39 -> S.US.XES | T67: =COUNTIF($S$1:S67,S67)&"-"&S67 -> 1-S.US.XES
A68: S.US.XLK | B68: =COUNTIF($A$1:A68,A68)&"-"&A68 -> 3-S.US.XLK | C68: =IFERROR(RTD("cqg.rtd", ,"ContractData",A68, "LastTrade",, "T"),"") -> 151.08 | D68: =RTD("cqg.rtd",,"StudyData","HiLevel("&A68&",Period1:=12,AllowGaps:=0,InputChoice1:=High,InputChoice3:=High)","Bar",, "Close","W","0",,,,,"T") -> 154.71 | E68: =RTD("cqg.rtd",,"StudyData","LoLevel("&A68&",Period1:=12,AllowGaps:=0,InputChoice2:=Low,InputChoice4:=Low)","Bar",, "Close","W","0",,,,,"T") -> 130.95 | F68: 0.8472222222 | G68: =IFERROR(RANK(F68,F$61:F$90,0)+COUNTIF($F$61:F68,F68)-1,"") -> 5 | H68: S.US.XLK | I68: 0.8472222222 | J68: 3-S.US.XSW | K68: 8 | L68: S.US.XSW | M68: 0.722326454 | N68: 8 | O68: 8 | S68: =S67 -> S.US.XES | T68: =COUNTIF($S$1:S68,S68)&"-"&S68 -> 2-S.US.XES
A69: S.US.XLB | B69: =COUNTIF($A$1:A69,A69)&"-"&A69 -> 3-S.US.XLB | C69: =IFERROR(RTD("cqg.rtd", ,"ContractData",A69, "LastTrade",, "T"),"") -> 82.23 | D69: =RTD("cqg.rtd",,"StudyData","HiLevel("&A69&",Period1:=12,AllowGaps:=0,InputChoice1:=High,InputChoice3:=High)","Bar",, "Close","W","0",,,,,"T") -> 89.21 | E69: =RTD("cqg.rtd",,"StudyData","LoLevel("&A69&",Period1:=12,AllowGaps:=0,InputChoice2:=Low,InputChoice4:=Low)","Bar",, "Close","W","0",,,,,"T") -> 78.68 | F69: 0.3371320038 | G69: =IFERROR(RANK(F69,F$61:F$90,0)+COUNTIF($F$61:F69,F69)-1,"") -> 23 | H69: S.US.XLB | I69: 0.3371320038 | J69: 3-S.US.XWEB | K69: 9 | L69: S.US.XWEB | M69: 0.6990014265 | N69: 9 | O69: 9 | S69: =S68 -> S.US.XES | T69: =COUNTIF($S$1:S69,S69)&"-"&S69 -> 3-S.US.XES
A70: S.US.XLRE | B70: =COUNTIF($A$1:A70,A70)&"-"&A70 -> 3-S.US.XLRE | C70: =IFERROR(RTD("cqg.rtd", ,"ContractData",A70, "LastTrade",, "T"),"") -> 46.61 | D70: =RTD("cqg.rtd",,"StudyData","HiLevel("&A70&",Period1:=12,AllowGaps:=0,InputChoice1:=High,InputChoice3:=High)","Bar",, "Close","W","0",,,,,"T") -> 46.69 | E70: =RTD("cqg.rtd",,"StudyData","LoLevel("&A70&",Period1:=12,AllowGaps:=0,InputChoice2:=Low,InputChoice4:=Low)","Bar",, "Close","W","0",,,,,"T") -> 41.02 | F70: 0.9858906526 | G70: =IFERROR(RANK(F70,F$61:F$90,0)+COUNTIF($F$61:F70,F70)-1,"") -> 1 | H70: S.US.XLRE | I70: 0.9858906526 | J70: 3-S.US.KCE | K70: 10 | L70: S.US.KCE | M70: 0.6847222222 | N70: 10 | O70: 10 | S70: =MainDisplay!T40 -> S.US.XPH | T70: =COUNTIF($S$1:S70,S70)&"-"&S70 -> 1-S.US.XPH
A71: S.US.XLU | B71: =COUNTIF($A$1:A71,A71)&"-"&A71 -> 3-S.US.XLU | C71: =IFERROR(RTD("cqg.rtd", ,"ContractData",A71, "LastTrade",, "T"),"") -> 66.86 | D71: =RTD("cqg.rtd",,"StudyData","HiLevel("&A71&",Period1:=12,AllowGaps:=0,InputChoice1:=High,InputChoice3:=High)","Bar",, "Close","W","0",,,,,"T") -> 67.37 | E71: =RTD("cqg.rtd",,"StudyData","LoLevel("&A71&",Period1:=12,AllowGaps:=0,InputChoice2:=Low,InputChoice4:=Low)","Bar",, "Close","W","0",,,,,"T") -> 62.99 | F71: 0.8835616438 | G71: =IFERROR(RANK(F71,F$61:F$90,0)+COUNTIF($F$61:F71,F71)-1,"") -> 4 | H71: S.US.XLU | I71: 0.8835616438 | J71: 3-S.US.XPH | K71: 11 | L71: S.US.XPH | M71: 0.6739495798 | N71: 11 | O71: 11 | S71: =S70 -> S.US.XPH | T71: =COUNTIF($S$1:S71,S71)&"-"&S71 -> 2-S.US.XPH
A72: S.US.XAR | B72: =COUNTIF($A$1:A72,A72)&"-"&A72 -> 3-S.US.XAR | C72: =IFERROR(RTD("cqg.rtd", ,"ContractData",A72, "LastTrade",, "T"),"") -> 126.66 | D72: =RTD("cqg.rtd",,"StudyData","HiLevel("&A72&",Period1:=12,AllowGaps:=0,InputChoice1:=High,InputChoice3:=High)","Bar",, "Close","W","0",,,,,"T") -> 136.81 | E72: =RTD("cqg.rtd",,"StudyData","LoLevel("&A72&",Period1:=12,AllowGaps:=0,InputChoice2:=Low,InputChoice4:=Low)","Bar",, "Close","W","0",,,,,"T") -> 120.25 | F72: 0.3870772947 | G72: =IFERROR(RANK(F72,F$61:F$90,0)+COUNTIF($F$61:F72,F72)-1,"") -> 20 | H72: S.US.XAR | I72: 0.3870772947 | J72: 3-S.US.XHE | K72: 12 | L72: S.US.XHE | M72: 0.6405266171 | N72: 12 | O72: 12 | S72: =S71 -> S.US.XPH | T72: =COUNTIF($S$1:S72,S72)&"-"&S72 -> 3-S.US.XPH
A73: S.US.KBE | B73: =COUNTIF($A$1:A73,A73)&"-"&A73 -> 3-S.US.KBE | C73: =IFERROR(RTD("cqg.rtd", ,"ContractData",A73, "LastTrade",, "T"),"") -> 48.75 | D73: =RTD("cqg.rtd",,"StudyData","HiLevel("&A73&",Period1:=12,AllowGaps:=0,InputChoice1:=High,InputChoice3:=High)","Bar",, "Close","W","0",,,,,"T") -> 55.73 | E73: =RTD("cqg.rtd",,"StudyData","LoLevel("&A73&",Period1:=12,AllowGaps:=0,InputChoice2:=Low,InputChoice4:=Low)","Bar",, "Close","W","0",,,,,"T") -> 46.86 | F73: 0.2130777903 | G73: =IFERROR(RANK(F73,F$61:F$90,0)+COUNTIF($F$61:F73,F73)-1,"") -> 26 | H73: S.US.KBE | I73: 0.2130777903 | J73: 3-S.US.XRT | K73: 13 | L73: S.US.XRT | M73: 0.5875706215 | N73: 13 | O73: 13 | S73: =MainDisplay!T41 -> S.US.KRE | T73: =COUNTIF($S$1:S73,S73)&"-"&S73 -> 1-S.US.KRE
A74: S.US.XBI | B74: =COUNTIF($A$1:A74,A74)&"-"&A74 -> 3-S.US.XBI | C74: =IFERROR(RTD("cqg.rtd", ,"ContractData",A74, "LastTrade",, "T"),"") -> 122.6 | D74: =RTD("cqg.rtd",,"StudyData","HiLevel("&A74&",Period1:=12,AllowGaps:=0,InputChoice1:=High,InputChoice3:=High)","Bar",, "Close","W","0",,,,,"T") -> 141.5 | E74: =RTD("cqg.rtd",,"StudyData","LoLevel("&A74&",Period1:=12,AllowGaps:=0,InputChoice2:=Low,InputChoice4:=Low)","Bar",, "Close","W","0",,,,,"T") -> 118.23 | F74: 0.1877954448 | G74: =IFERROR(RANK(F74,F$61:F$90,0)+COUNTIF($F$61:F74,F74)-1,"") -> 28 | H74: S.US.XBI | I74: 0.1877954448 | J74: 3-S.US.XLI | K74: 14 | L74: S.US.XLI | M74: 0.501867995 | N74: 14 | O74: 14 | S74: =S73 -> S.US.KRE | T74: =COUNTIF($S$1:S74,S74)&"-"&S74 -> 2-S.US.KRE
A75: S.US.KCE | B75: =COUNTIF($A$1:A75,A75)&"-"&A75 -> 3-S.US.KCE | C75: =IFERROR(RTD("cqg.rtd", ,"ContractData",A75, "LastTrade",, "T"),"") -> 93.11 | D75: =RTD("cqg.rtd",,"StudyData","HiLevel("&A75&",Period1:=12,AllowGaps:=0,InputChoice1:=High,InputChoice3:=High)","Bar",, "Close","W","0",,,,,"T") -> 95.38 | E75: =RTD("cqg.rtd",,"StudyData","LoLevel("&A75&",Period1:=12,AllowGaps:=0,InputChoice2:=Low,InputChoice4:=Low)","Bar",, "Close","W","0",,,,,"T") -> 88.18 | F75: 0.6847222222 | G75: =IFERROR(RANK(F75,F$61:F$90,0)+COUNTIF($F$61:F75,F75)-1,"") -> 10 | H75: S.US.KCE | I75: 0.6847222222 | J75: 3-S.US.XSD | K75: 15 | L75: S.US.XSD | M75: 0.4773548208 | N75: 15 | O75: 15 | S75: =S74 -> S.US.KRE | T75: =COUNTIF($S$1:S75,S75)&"-"&S75 -> 3-S.US.KRE
A76: S.US.XHE | B76: =COUNTIF($A$1:A76,A76)&"-"&A76 -> 3-S.US.XHE | C76: =IFERROR(RTD("cqg.rtd", ,"ContractData",A76, "LastTrade",, "T"),"") -> 125.17 | D76: =RTD("cqg.rtd",,"StudyData","HiLevel("&A76&",Period1:=12,AllowGaps:=0,InputChoice1:=High,InputChoice3:=High)","Bar",, "Close","W","0",,,,,"T") -> 131.45 | E76: =RTD("cqg.rtd",,"StudyData","LoLevel("&A76&",Period1:=12,AllowGaps:=0,InputChoice2:=Low,InputChoice4:=Low)","Bar",, "Close","W","0",,,,,"T") -> 113.98 | F76: 0.6405266171 | G76: =IFERROR(RANK(F76,F$61:F$90,0)+COUNTIF($F$61:F76,F76)-1,"") -> 12 | H76: S.US.XHE | I76: 0.6405266171 | J76: 3-S.US.XTL | K76: 16 | L76: S.US.XTL | M76: 0.4170249355 | N76: 16 | O76: 16 | S76: =MainDisplay!T42 -> S.US.XRT | T76: =COUNTIF($S$1:S76,S76)&"-"&S76 -> 1-S.US.XRT
A77: S.US.XHS | B77: =COUNTIF($A$1:A77,A77)&"-"&A77 -> 3-S.US.XHS | C77: =IFERROR(RTD("cqg.rtd", ,"ContractData",A77, "LastTrade",, "T"),"") -> 110.84 | D77: =RTD("cqg.rtd",,"StudyData","HiLevel("&A77&",Period1:=12,AllowGaps:=0,InputChoice1:=High,InputChoice3:=High)","Bar",, "Close","W","0",,,,,"T") -> 116.06 | E77: =RTD("cqg.rtd",,"StudyData","LoLevel("&A77&",Period1:=12,AllowGaps:=0,InputChoice2:=Low,InputChoice4:=Low)","Bar",, "Close","W","0",,,,,"T") -> 107.43 | F77: 0.3951332561 | G77: =IFERROR(RANK(F77,F$61:F$90,0)+COUNTIF($F$61:F77,F77)-1,"") -> 19 | H77: S.US.XHS | I77: 0.3951332561 | J77: 3-S.US.XLF | K77: 17 | L77: S.US.XLF | M77: 0.4054054054 | N77: 17 | O77: 17 | S77: =S76 -> S.US.XRT | T77: =COUNTIF($S$1:S77,S77)&"-"&S77 -> 2-S.US.XRT
A78: S.US.XHB | B78: =COUNTIF($A$1:A78,A78)&"-"&A78 -> 3-S.US.XHB | C78: =IFERROR(RTD("cqg.rtd", ,"ContractData",A78, "LastTrade",, "T"),"") -> 73.29 | D78: =RTD("cqg.rtd",,"StudyData","HiLevel("&A78&",Period1:=12,AllowGaps:=0,InputChoice1:=High,InputChoice3:=High)","Bar",, "Close","W","0",,,,,"T") -> 80.82 | E78: =RTD("cqg.rtd",,"StudyData","LoLevel("&A78&",Period1:=12,AllowGaps:=0,InputChoice2:=Low,InputChoice4:=Low)","Bar",, "Close","W","0",,,,,"T") -> 69.34 | F78: 0.3440766551 | G78: =IFERROR(RANK(F78,F$61:F$90,0)+COUNTIF($F$61:F78,F78)-1,"") -> 22 | H78: S.US.XHB | I78: 0.3440766551 | J78: 3-S.US.XME | K78: 18 | L78: S.US.XME | M78: 0.3956521739 | N78: 18 | O78: 18 | S78: =S77 -> S.US.XRT | T78: =COUNTIF($S$1:S78,S78)&"-"&S78 -> 3-S.US.XRT
A79: S.US.KIE | B79: =COUNTIF($A$1:A79,A79)&"-"&A79 -> 3-S.US.KIE | C79: =IFERROR(RTD("cqg.rtd", ,"ContractData",A79, "LastTrade",, "T"),"") -> 37.98 | D79: =RTD("cqg.rtd",,"StudyData","HiLevel("&A79&",Period1:=12,AllowGaps:=0,InputChoice1:=High,InputChoice3:=High)","Bar",, "Close","W","0",,,,,"T") -> 40.6 | E79: =RTD("cqg.rtd",,"StudyData","LoLevel("&A79&",Period1:=12,AllowGaps:=0,InputChoice2:=Low,InputChoice4:=Low)","Bar",, "Close","W","0",,,,,"T") -> 36.46 | F79: 0.3671497585 | G79: =IFERROR(RANK(F79,F$61:F$90,0)+COUNTIF($F$61:F79,F79)-1,"") -> 21 | H79: S.US.KIE | I79: 0.3671497585 | J79: 3-S.US.XHS | K79: 19 | L79: S.US.XHS | M79: 0.3951332561 | N79: 19 | O79: 19 | S79: =MainDisplay!T43 -> S.US.XSD | T79: =COUNTIF($S$1:S79,S79)&"-"&S79 -> 1-S.US.XSD
A80: =A50 -> S.US.XWEB | B80: =COUNTIF($A$1:A80,A80)&"-"&A80 -> 3-S.US.XWEB | C80: =IFERROR(RTD("cqg.rtd", ,"ContractData",A80, "LastTrade",, "T"),"") -> 175.53 | D80: =RTD("cqg.rtd",,"StudyData","HiLevel("&A80&",Period1:=12,AllowGaps:=0,InputChoice1:=High,InputChoice3:=High)","Bar",, "Close","W","0",,,,,"T") -> 186.08 | E80: =RTD("cqg.rtd",,"StudyData","LoLevel("&A80&",Period1:=12,AllowGaps:=0,InputChoice2:=Low,InputChoice4:=Low)","Bar",, "Close","W","0",,,,,"T") -> 151.03 | F80: 0.6990014265 | G80: =IFERROR(RANK(F80,F$61:F$90,0)+COUNTIF($F$61:F80,F80)-1,"") -> 9 | H80: S.US.XWEB | I80: 0.6990014265 | J80: 3-S.US.XAR | K80: 20 | L80: S.US.XAR | M80: 0.3870772947 | N80: 20 | O80: 20 | S80: =S79 -> S.US.XSD | T80: =COUNTIF($S$1:S80,S80)&"-"&S80 -> 2-S.US.XSD
A81: S.US.XME | B81: =COUNTIF($A$1:A81,A81)&"-"&A81 -> 3-S.US.XME | C81: =IFERROR(RTD("cqg.rtd", ,"ContractData",A81, "LastTrade",, "T"),"") -> 42.29 | D81: =RTD("cqg.rtd",,"StudyData","HiLevel("&A81&",Period1:=12,AllowGaps:=0,InputChoice1:=High,InputChoice3:=High)","Bar",, "Close","W","0",,,,,"T") -> 47.85 | E81: =RTD("cqg.rtd",,"StudyData","LoLevel("&A81&",Period1:=12,AllowGaps:=0,InputChoice2:=Low,InputChoice4:=Low)","Bar",, "Close","W","0",,,,,"T") -> 38.65 | F81: 0.3956521739 | G81: =IFERROR(RANK(F81,F$61:F$90,0)+COUNTIF($F$61:F81,F81)-1,"") -> 18 | H81: S.US.XME | I81: 0.3956521739 | J81: 3-S.US.KIE | K81: 21 | L81: S.US.KIE | M81: 0.3671497585 | N81: 21 | O81: 21 | S81: =S80 -> S.US.XSD | T81: =COUNTIF($S$1:S81,S81)&"-"&S81 -> 3-S.US.XSD
A82: S.US.XOP | B82: =COUNTIF($A$1:A82,A82)&"-"&A82 -> 3-S.US.XOP | C82: =IFERROR(RTD("cqg.rtd", ,"ContractData",A82, "LastTrade",, "T"),"") -> 81.22 | D82: =RTD("cqg.rtd",,"StudyData","HiLevel("&A82&",Period1:=12,AllowGaps:=0,InputChoice1:=High,InputChoice3:=High)","Bar",, "Close","W","0",,,,,"T") -> 100.2 | E82: =RTD("cqg.rtd",,"StudyData","LoLevel("&A82&",Period1:=12,AllowGaps:=0,InputChoice2:=Low,InputChoice4:=Low)","Bar",, "Close","W","0",,,,,"T") -> 77.44 | F82: 0.1660808436 | G82: =IFERROR(RANK(F82,F$61:F$90,0)+COUNTIF($F$61:F82,F82)-1,"") -> 30 | H82: S.US.XOP | I82: 0.1660808436 | J82: 3-S.US.XHB | K82: 22 | L82: S.US.XHB | M82: 0.3440766551 | N82: 22 | O82: 22 | S82: =MainDisplay!T44 -> S.US.XSW | T82: =COUNTIF($S$1:S82,S82)&"-"&S82 -> 1-S.US.XSW
A83: S.US.XES | B83: =COUNTIF($A$1:A83,A83)&"-"&A83 -> 3-S.US.XES | C83: =IFERROR(RTD("cqg.rtd", ,"ContractData",A83, "LastTrade",, "T"),"") -> 53.19 | D83: =RTD("cqg.rtd",,"StudyData","HiLevel("&A83&",Period1:=12,AllowGaps:=0,InputChoice1:=High,InputChoice3:=High)","Bar",, "Close","W","0",,,,,"T") -> 68.44 | E83: =RTD("cqg.rtd",,"StudyData","LoLevel("&A83&",Period1:=12,AllowGaps:=0,InputChoice2:=Low,InputChoice4:=Low)","Bar",, "Close","W","0",,,,,"T") -> 49.77 | F83: 0.1831815747 | G83: =IFERROR(RANK(F83,F$61:F$90,0)+COUNTIF($F$61:F83,F83)-1,"") -> 29 | H83: S.US.XES | I83: 0.1831815747 | J83: 3-S.US.XLB | K83: 23 | L83: S.US.XLB | M83: 0.3371320038 | N83: 23 | O83: 23 | S83: =S82 -> S.US.XSW | T83: =COUNTIF($S$1:S83,S83)&"-"&S83 -> 2-S.US.XSW
A84: S.US.XPH | B84: =COUNTIF($A$1:A84,A84)&"-"&A84 -> 3-S.US.XPH | C84: =IFERROR(RTD("cqg.rtd", ,"ContractData",A84, "LastTrade",, "T"),"") -> 51.44 | D84: =RTD("cqg.rtd",,"StudyData","HiLevel("&A84&",Period1:=12,AllowGaps:=0,InputChoice1:=High,InputChoice3:=High)","Bar",, "Close","W","0",,,,,"T") -> 53.38 | E84: =RTD("cqg.rtd",,"StudyData","LoLevel("&A84&",Period1:=12,AllowGaps:=0,InputChoice2:=Low,InputChoice4:=Low)","Bar",, "Close","W","0",,,,,"T") -> 47.43 | F84: 0.6739495798 | G84: =IFERROR(RANK(F84,F$61:F$90,0)+COUNTIF($F$61:F84,F84)-1,"") -> 11 | H84: S.US.XPH | I84: 0.6739495798 | J84: 3-S.US.XTN | K84: 24 | L84: S.US.XTN | M84: 0.2657103825 | N84: 24 | O84: 24 | S84: =S83 -> S.US.XSW | T84: =COUNTIF($S$1:S84,S84)&"-"&S84 -> 3-S.US.XSW
A85: S.US.KRE | B85: =COUNTIF($A$1:A85,A85)&"-"&A85 -> 3-S.US.KRE | C85: =IFERROR(RTD("cqg.rtd", ,"ContractData",A85, "LastTrade",, "T"),"") -> 61.88 | D85: =RTD("cqg.rtd",,"StudyData","HiLevel("&A85&",Period1:=12,AllowGaps:=0,InputChoice1:=High,InputChoice3:=High)","Bar",, "Close","W","0",,,,,"T") -> 71.82 | E85: =RTD("cqg.rtd",,"StudyData","LoLevel("&A85&",Period1:=12,AllowGaps:=0,InputChoice2:=Low,InputChoice4:=Low)","Bar",, "Close","W","0",,,,,"T") -> 59.29 | F85: 0.2067039106 | G85: =IFERROR(RANK(F85,F$61:F$90,0)+COUNTIF($F$61:F85,F85)-1,"") -> 27 | H85: S.US.KRE | I85: 0.2067039106 | J85: 3-S.US.XLE | K85: 25 | L85: S.US.XLE | M85: 0.2570048309 | N85: 25 | O85: 25 | S85: =MainDisplay!T45 -> S.US.XTL | T85: =COUNTIF($S$1:S85,S85)&"-"&S85 -> 1-S.US.XTL
A86: S.US.XRT | B86: =COUNTIF($A$1:A86,A86)&"-"&A86 -> 3-S.US.XRT | C86: =IFERROR(RTD("cqg.rtd", ,"ContractData",A86, "LastTrade",, "T"),"") -> 94.17 | D86: =RTD("cqg.rtd",,"StudyData","HiLevel("&A86&",Period1:=12,AllowGaps:=0,InputChoice1:=High,InputChoice3:=High)","Bar",, "Close","W","0",,,,,"T") -> 98.55 | E86: =RTD("cqg.rtd",,"StudyData","LoLevel("&A86&",Period1:=12,AllowGaps:=0,InputChoice2:=Low,InputChoice4:=Low)","Bar",, "Close","W","0",,,,,"T") -> 87.93 | F86: 0.5875706215 | G86: =IFERROR(RANK(F86,F$61:F$90,0)+COUNTIF($F$61:F86,F86)-1,"") -> 13 | H86: S.US.XRT | I86: 0.5875706215 | J86: 3-S.US.KBE | K86: 26 | L86: S.US.KBE | M86: 0.2130777903 | N86: 26 | O86: 26 | S86: =S85 -> S.US.XTL | T86: =COUNTIF($S$1:S86,S86)&"-"&S86 -> 2-S.US.XTL
A87: S.US.XSD | B87: =COUNTIF($A$1:A87,A87)&"-"&A87 -> 3-S.US.XSD | C87: =IFERROR(RTD("cqg.rtd", ,"ContractData",A87, "LastTrade",, "T"),"") -> 174.44 | D87: =RTD("cqg.rtd",,"StudyData","HiLevel("&A87&",Period1:=12,AllowGaps:=0,InputChoice1:=High,InputChoice3:=High)","Bar",, "Close","W","0",,,,,"T") -> 193.25 | E87: =RTD("cqg.rtd",,"StudyData","LoLevel("&A87&",Period1:=12,AllowGaps:=0,InputChoice2:=Low,InputChoice4:=Low)","Bar",, "Close","W","0",,,,,"T") -> 157.26 | F87: 0.4773548208 | G87: =IFERROR(RANK(F87,F$61:F$90,0)+COUNTIF($F$61:F87,F87)-1,"") -> 15 | H87: S.US.XSD | I87: 0.4773548208 | J87: 3-S.US.KRE | K87: 27 | L87: S.US.KRE | M87: 0.2067039106 | N87: 27 | O87: 27 | S87: =S86 -> S.US.XTL | T87: =COUNTIF($S$1:S87,S87)&"-"&S87 -> 3-S.US.XTL
A88: S.US.XSW | B88: =COUNTIF($A$1:A88,A88)&"-"&A88 -> 3-S.US.XSW | C88: =IFERROR(RTD("cqg.rtd", ,"ContractData",A88, "LastTrade",, "T"),"") -> 167.45 | D88: =RTD("cqg.rtd",,"StudyData","HiLevel("&A88&",Period1:=12,AllowGaps:=0,InputChoice1:=High,InputChoice3:=High)","Bar",, "Close","W","0",,,,,"T") -> 174.85 | E88: =RTD("cqg.rtd",,"StudyData","LoLevel("&A88&",Period1:=12,AllowGaps:=0,InputChoice2:=Low,InputChoice4:=Low)","Bar",, "Close","W","0",,,,,"T") -> 148.2 | F88: 0.722326454 | G88: =IFERROR(RANK(F88,F$61:F$90,0)+COUNTIF($F$61:F88,F88)-1,"") -> 8 | H88: S.US.XSW | I88: 0.722326454 | J88: 3-S.US.XBI | K88: 28 | L88: S.US.XBI | M88: 0.1877954448 | N88: 28 | O88: 28 | S88: =MainDisplay!T46 -> S.US.XTN | T88: =COUNTIF($S$1:S88,S88)&"-"&S88 -> 1-S.US.XTN
A89: S.US.XTL | B89: =COUNTIF($A$1:A89,A89)&"-"&A89 -> 3-S.US.XTL | C89: =IFERROR(RTD("cqg.rtd", ,"ContractData",A89, "LastTrade",, "T"),"") -> 98.13 | D89: =RTD("cqg.rtd",,"StudyData","HiLevel("&A89&",Period1:=12,AllowGaps:=0,InputChoice1:=High,InputChoice3:=High)","Bar",, "Close","W","0",,,,,"T") -> 104.91 | E89: =RTD("cqg.rtd",,"StudyData","LoLevel("&A89&",Period1:=12,AllowGaps:=0,InputChoice2:=Low,InputChoice4:=Low)","Bar",, "Close","W","0",,,,,"T") -> 93.28 | F89: 0.4170249355 | G89: =IFERROR(RANK(F89,F$61:F$90,0)+COUNTIF($F$61:F89,F89)-1,"") -> 16 | H89: S.US.XTL | I89: 0.4170249355 | J89: 3-S.US.XES | K89: 29 | L89: S.US.XES | M89: 0.1831815747 | N89: 29 | O89: 29 | S89: =S88 -> S.US.XTN | T89: =COUNTIF($S$1:S89,S89)&"-"&S89 -> 2-S.US.XTN
A90: S.US.XTN | B90: =COUNTIF($A$1:A90,A90)&"-"&A90 -> 3-S.US.XTN | C90: =IFERROR(RTD("cqg.rtd", ,"ContractData",A90, "LastTrade",, "T"),"") -> 81.83 | D90: =RTD("cqg.rtd",,"StudyData","HiLevel("&A90&",Period1:=12,AllowGaps:=0,InputChoice1:=High,InputChoice3:=High)","Bar",, "Close","W","0",,,,,"T") -> 92.58 | E90: =RTD("cqg.rtd",,"StudyData","LoLevel("&A90&",Period1:=12,AllowGaps:=0,InputChoice2:=Low,InputChoice4:=Low)","Bar",, "Close","W","0",,,,,"T") -> 77.94 | F90: 0.2657103825 | G90: =IFERROR(RANK(F90,F$61:F$90,0)+COUNTIF($F$61:F90,F90)-1,"") -> 24 | H90: S.US.XTN | I90: 0.2657103825 | J90: 3-S.US.XOP | K90: 30 | L90: S.US.XOP | M90: 0.1660808436 | N90: 30 | O90: 30 | S90: =S89 -> S.US.XTN | T90: =COUNTIF($S$1:S90,S90)&"-"&S90 -> 3-S.US.XTN

Sheet Charting (hidden)
B1: Date & Time | C1: Open | D1: High | E1: Low | F1: Close | G1: Volume | I1: Symbol | K1: Date | L1: Time
A2: 0 | B2: =RTD("cqg.rtd",,"StudyData", $I$2, "BAR", "", "Time", $I$4,-$A2,$I$6,$I$10, "","False","T") -> 2021-07-27T12:25:00 | C2: =IF(RTD("cqg.rtd",,"StudyData", $I$2, "BAR", "", "Open", $I$4, -$A2, $I$6,$I$10,,$I$8,$I$12)="",NA(),RTD("cqg.rtd",,"StudyData", $I$2, "BAR", "", "Open", $I$4, -$A2, $I$6,$I$10,,$I$8,$I$12)) -> 66.87 | D2: =IF(RTD("cqg.rtd",,"StudyData", $I$2, "BAR", "", "High", $I$4, -$A2, $I$6,$I$10,,$I$8,$I$12)="",NA(),RTD("cqg.rtd",,"StudyData", $I$2, "BAR", "", "High", $I$4, -$A2, $I$6,$I$10,,$I$8,$I$12)) -> 66.87 | E2: =IF(RTD("cqg.rtd",,"StudyData", $I$2, "BAR", "", "Low", $I$4, -$A2, $I$6,$I$10,,$I$8,$I$12)="",NA(), RTD("cqg.rtd",,"StudyData", $I$2, "BAR", "", "Low", $I$4, -$A2, $I$6,$I$10,,$I$8,$I$12)) -> 66.86 | F2: =IF(RTD("cqg.rtd",,"StudyData", $I$2, "BAR", "", "Close", $I$4, -$A2, $I$6,$I$10,,$I$8,$I$12)="",NA(),RTD("cqg.rtd",,"StudyData", $I$2, "BAR", "", "Close", $I$4, -$A2, $I$6,$I$10,,$I$8,$I$12)) -> 66.86 | G2: =RTD("cqg.rtd",,"StudyData", $I$2, "Vol", "VolType=auto,CoCType=auto", "Vol",$I$4,-$A2,$I$6,,,$I$8,$I$12) -> 3477 | I2: =MainDisplay!U4 -> S.XLU | K2: =B2 -> 2021-07-27T12:25:00 | L2: =B2 -> 44404.51736 | M2: =IF(OR($I$4="D",$I$4="W",$I$4=",'M"),TEXT(K2,"MM/DD/YY"),TEXT(L2,"HH:MM")) -> 12:25 | N2: =RTD("cqg.rtd", ,"ContractData",I2, "LongDescription",, "T") -> Utilities Select Sector SPDR | S2: =MAX(D2:D52) -> 66.88
A3: =A2+1 -> 1 | B3: =RTD("cqg.rtd",,"StudyData", $I$2, "BAR", "", "Time", $I$4,-$A3,$I$6,$I$10, "","False","T") -> 2021-07-27T12:20:00 | C3: =RTD("cqg.rtd",,"StudyData", $I$2, "BAR", "", "Open", $I$4, -$A3, $I$6,$I$10,,$I$8,$I$12) -> 66.87 | D3: =RTD("cqg.rtd",,"StudyData", $I$2, "BAR", "", "High", $I$4, -$A3, $I$6,$I$10,,$I$8,$I$12) -> 66.88 | E3: =RTD("cqg.rtd",,"StudyData", $I$2, "BAR", "", "Low", $I$4, -$A3, $I$6,$I$10,,$I$8,$I$12) -> 66.82 | F3: =RTD("cqg.rtd",,"StudyData", $I$2, "BAR", "", "Close", $I$4, -$A3, $I$6,$I$10,,$I$8,$I$12) -> 66.87 | G3: =RTD("cqg.rtd",,"StudyData", $I$2, "Vol", "VolType=auto,CoCType=auto", "Vol",$I$4,-$A3,$I$6,,,$I$8,$I$12) -> 87721 | I3: Chart Time Frame | K3: =B3 -> 2021-07-27T12:20:00 | L3: =B3 -> 44404.51389 | M3: =IF(OR($I$4="D",$I$4="W",$I$4=",'M"),TEXT(K3,"MM/DD/YY"),TEXT(L3,"HH:MM")) -> 12:20 | S3: =MIN(E2:E52) -> 65.3
A4: =A3+1 -> 2 | B4: =RTD("cqg.rtd",,"StudyData", $I$2, "BAR", "", "Time", $I$4,-$A4,$I$6,$I$10, "","False","T") -> 2021-07-27T12:15:00 | C4: =RTD("cqg.rtd",,"StudyData", $I$2, "BAR", "", "Open", $I$4, -$A4, $I$6,$I$10,,$I$8,$I$12) -> 66.8 | D4: =RTD("cqg.rtd",,"StudyData", $I$2, "BAR", "", "High", $I$4, -$A4, $I$6,$I$10,,$I$8,$I$12) -> 66.88 | E4: =RTD("cqg.rtd",,"StudyData", $I$2, "BAR", "", "Low", $I$4, -$A4, $I$6,$I$10,,$I$8,$I$12) -> 66.78 | F4: =RTD("cqg.rtd",,"StudyData", $I$2, "BAR", "", "Close", $I$4, -$A4, $I$6,$I$10,,$I$8,$I$12) -> 66.87 | G4: =RTD("cqg.rtd",,"StudyData", $I$2, "Vol", "VolType=auto,CoCType=auto", "Vol",$I$4,-$A4,$I$6,,,$I$8,$I$12) -> 136247 | I4: =MainDisplay!X4 -> 5 | K4: 2021-07-27T12:15:00 | L4: 44404.51042 | M4: 12:15
A5: 3 | B5: =RTD("cqg.rtd",,"StudyData", $I$2, "BAR", "", "Time", $I$4,-$A5,$I$6,$I$10, "","False","T") -> 2021-07-27T12:10:00 | C5: =RTD("cqg.rtd",,"StudyData", $I$2, "BAR", "", "Open", $I$4, -$A5, $I$6,$I$10,,$I$8,$I$12) -> 66.69 | D5: =RTD("cqg.rtd",,"StudyData", $I$2, "BAR", "", "High", $I$4, -$A5, $I$6,$I$10,,$I$8,$I$12) -> 66.79 | E5: =RTD("cqg.rtd",,"StudyData", $I$2, "BAR", "", "Low", $I$4, -$A5, $I$6,$I$10,,$I$8,$I$12) -> 66.66 | F5: =RTD("cqg.rtd",,"StudyData", $I$2, "BAR", "", "Close", $I$4, -$A5, $I$6,$I$10,,$I$8,$I$12) -> 66.79 | G5: =RTD("cqg.rtd",,"StudyData", $I$2, "Vol", "VolType=auto,CoCType=auto", "Vol",$I$4,-$A5,$I$6,,,$I$8,$I$12) -> 103605 | I5: Type All or PrimaryOnly | K5: 2021-07-27T12:10:00 | L5: 44404.50694 | M5: 12:10 | S5: =MAX(G2:G52) -> 1063432
A6: 4 | B6: =RTD("cqg.rtd",,"StudyData", $I$2, "BAR", "", "Time", $I$4,-$A6,$I$6,$I$10, "","False","T") -> 2021-07-27T12:05:00 | C6: =RTD("cqg.rtd",,"StudyData", $I$2, "BAR", "", "Open", $I$4, -$A6, $I$6,$I$10,,$I$8,$I$12) -> 66.66 | D6: =RTD("cqg.rtd",,"StudyData", $I$2, "BAR", "", "High", $I$4, -$A6, $I$6,$I$10,,$I$8,$I$12) -> 66.71 | E6: =RTD("cqg.rtd",,"StudyData", $I$2, "BAR", "", "Low", $I$4, -$A6, $I$6,$I$10,,$I$8,$I$12) -> 66.64 | F6: =RTD("cqg.rtd",,"StudyData", $I$2, "BAR", "", "Close", $I$4, -$A6, $I$6,$I$10,,$I$8,$I$12) -> 66.69 | G6: =RTD("cqg.rtd",,"StudyData", $I$2, "Vol", "VolType=auto,CoCType=auto", "Vol",$I$4,-$A6,$I$6,,,$I$8,$I$12) -> 101084 | I6: =MainDisplay!X47 -> PrimaryOnly | K6: 2021-07-27T12:05:00 | L6: 44404.50347 | M6: 12:05 | S6: =MIN(G2:G52) -> 3477
A7: 5 | B7: =RTD("cqg.rtd",,"StudyData", $I$2, "BAR", "", "Time", $I$4,-$A7,$I$6,$I$10, "","False","T") -> 2021-07-27T12:00:00 | C7: =RTD("cqg.rtd",,"StudyData", $I$2, "BAR", "", "Open", $I$4, -$A7, $I$6,$I$10,,$I$8,$I$12) -> 66.65 | D7: =RTD("cqg.rtd",,"StudyData", $I$2, "BAR", "", "High", $I$4, -$A7, $I$6,$I$10,,$I$8,$I$12) -> 66.67 | E7: =RTD("cqg.rtd",,"StudyData", $I$2, "BAR", "", "Low", $I$4, -$A7, $I$6,$I$10,,$I$8,$I$12) -> 66.61 | F7: =RTD("cqg.rtd",,"StudyData", $I$2, "BAR", "", "Close", $I$4, -$A7, $I$6,$I$10,,$I$8,$I$12) -> 66.66 | G7: =RTD("cqg.rtd",,"StudyData", $I$2, "Vol", "VolType=auto,CoCType=auto", "Vol",$I$4,-$A7,$I$6,,,$I$8,$I$12) -> 66804 | I7: Continuation | K7: 2021-07-27T12:00:00 | L7: 44404.5 | M7: 12:00
A8: 6 | B8: =RTD("cqg.rtd",,"StudyData", $I$2, "BAR", "", "Time", $I$4,-$A8,$I$6,$I$10, "","False","T") -> 2021-07-27T11:55:00 | C8: =RTD("cqg.rtd",,"StudyData", $I$2, "BAR", "", "Open", $I$4, -$A8, $I$6,$I$10,,$I$8,$I$12) -> 66.7 | D8: =RTD("cqg.rtd",,"StudyData", $I$2, "BAR", "", "High", $I$4, -$A8, $I$6,$I$10,,$I$8,$I$12) -> 66.73 | E8: =RTD("cqg.rtd",,"StudyData", $I$2, "BAR", "", "Low", $I$4, -$A8, $I$6,$I$10,,$I$8,$I$12) -> 66.64 | F8: =RTD("cqg.rtd",,"StudyData", $I$2, "BAR", "", "Close", $I$4, -$A8, $I$6,$I$10,,$I$8,$I$12) -> 66.64 | G8: =RTD("cqg.rtd",,"StudyData", $I$2, "Vol", "VolType=auto,CoCType=auto", "Vol",$I$4,-$A8,$I$6,,,$I$8,$I$12) -> 209314 | I8: FALSE | K8: 2021-07-27T11:55:00 | L8: 44404.49653 | M8: 11:55
A9: 7 | B9: =RTD("cqg.rtd",,"StudyData", $I$2, "BAR", "", "Time", $I$4,-$A9,$I$6,$I$10, "","False","T") -> 2021-07-27T11:50:00 | C9: =RTD("cqg.rtd",,"StudyData", $I$2, "BAR", "", "Open", $I$4, -$A9, $I$6,$I$10,,$I$8,$I$12) -> 66.69 | D9: =RTD("cqg.rtd",,"StudyData", $I$2, "BAR", "", "High", $I$4, -$A9, $I$6,$I$10,,$I$8,$I$12) -> 66.71 | E9: =RTD("cqg.rtd",,"StudyData", $I$2, "BAR", "", "Low", $I$4, -$A9, $I$6,$I$10,,$I$8,$I$12) -> 66.68 | F9: =RTD("cqg.rtd",,"StudyData", $I$2, "BAR", "", "Close", $I$4, -$A9, $I$6,$I$10,,$I$8,$I$12) -> 66.7 | G9: =RTD("cqg.rtd",,"StudyData", $I$2, "Vol", "VolType=auto,CoCType=auto", "Vol",$I$4,-$A9,$I$6,,,$I$8,$I$12) -> 104628 | I9: CustomSessionName eg 700to800 | K9: 2021-07-27T11:50:00 | L9: 44404.49306 | M9: 11:50
A10: 8 | B10: =RTD("cqg.rtd",,"StudyData", $I$2, "BAR", "", "Time", $I$4,-$A10,$I$6,$I$10, "","False","T") -> 2021-07-27T11:45:00 | C10: =RTD("cqg.rtd",,"StudyData", $I$2, "BAR", "", "Open", $I$4, -$A10, $I$6,$I$10,,$I$8,$I$12) -> 66.75 | D10: =RTD("cqg.rtd",,"StudyData", $I$2, "BAR", "", "High", $I$4, -$A10, $I$6,$I$10,,$I$8,$I$12) -> 66.77 | E10: =RTD("cqg.rtd",,"StudyData", $I$2, "BAR", "", "Low", $I$4, -$A10, $I$6,$I$10,,$I$8,$I$12) -> 66.68 | F10: =RTD("cqg.rtd",,"StudyData", $I$2, "BAR", "", "Close", $I$4, -$A10, $I$6,$I$10,,$I$8,$I$12) -> 66.68 | G10: =RTD("cqg.rtd",,"StudyData", $I$2, "Vol", "VolType=auto,CoCType=auto", "Vol",$I$4,-$A10,$I$6,,,$I$8,$I$12) -> 319567 | K10: 2021-07-27T11:45:00 | L10: 44404.48958 | M10: 11:45
A11: 9 | B11: =RTD("cqg.rtd",,"StudyData", $I$2, "BAR", "", "Time", $I$4,-$A11,$I$6,$I$10, "","False","T") -> 2021-07-27T11:40:00 | C11: =RTD("cqg.rtd",,"StudyData", $I$2, "BAR", "", "Open", $I$4, -$A11, $I$6,$I$10,,$I$8,$I$12) -> 66.68 | D11: =RTD("cqg.rtd",,"StudyData", $I$2, "BAR", "", "High", $I$4, -$A11, $I$6,$I$10,,$I$8,$I$12) -> 66.75 | E11: =RTD("cqg.rtd",,"StudyData", $I$2, "BAR", "", "Low", $I$4, -$A11, $I$6,$I$10,,$I$8,$I$12) -> 66.65 | F11: =RTD("cqg.rtd",,"StudyData", $I$2, "BAR", "", "Close", $I$4, -$A11, $I$6,$I$10,,$I$8,$I$12) -> 66.75 | G11: =RTD("cqg.rtd",,"StudyData", $I$2, "Vol", "VolType=auto,CoCType=auto", "Vol",$I$4,-$A11,$I$6,,,$I$8,$I$12) -> 250752 | I11: Decimal=T, Tick=D | K11: 2021-07-27T11:40:00 | L11: 44404.48611 | M11: 11:40
A12: 10 | B12: =RTD("cqg.rtd",,"StudyData", $I$2, "BAR", "", "Time", $I$4,-$A12,$I$6,$I$10, "","False","T") -> 2021-07-27T11:35:00 | C12: =RTD("cqg.rtd",,"StudyData", $I$2, "BAR", "", "Open", $I$4, -$A12, $I$6,$I$10,,$I$8,$I$12) -> 66.59 | D12: =RTD("cqg.rtd",,"StudyData", $I$2, "BAR", "", "High", $I$4, -$A12, $I$6,$I$10,,$I$8,$I$12) -> 66.69 | E12: =RTD("cqg.rtd",,"StudyData", $I$2, "BAR", "", "Low", $I$4, -$A12, $I$6,$I$10,,$I$8,$I$12) -> 66.59 | F12: =RTD("cqg.rtd",,"StudyData", $I$2, "BAR", "", "Close", $I$4, -$A12, $I$6,$I$10,,$I$8,$I$12) -> 66.68 | G12: =RTD("cqg.rtd",,"StudyData", $I$2, "Vol", "VolType=auto,CoCType=auto", "Vol",$I$4,-$A12,$I$6,,,$I$8,$I$12) -> 569442 | I12: T | K12: 2021-07-27T11:35:00 | L12: 44404.48264 | M12: 11:35
A13: 11 | B13: =RTD("cqg.rtd",,"StudyData", $I$2, "BAR", "", "Time", $I$4,-$A13,$I$6,$I$10, "","False","T") -> 2021-07-27T11:30:00 | C13: =RTD("cqg.rtd",,"StudyData", $I$2, "BAR", "", "Open", $I$4, -$A13, $I$6,$I$10,,$I$8,$I$12) -> 66.52 | D13: =RTD("cqg.rtd",,"StudyData", $I$2, "BAR", "", "High", $I$4, -$A13, $I$6,$I$10,,$I$8,$I$12) -> 66.6 | E13: =RTD("cqg.rtd",,"StudyData", $I$2, "BAR", "", "Low", $I$4, -$A13, $I$6,$I$10,,$I$8,$I$12) -> 66.49 | F13: =RTD("cqg.rtd",,"StudyData", $I$2, "BAR", "", "Close", $I$4, -$A13, $I$6,$I$10,,$I$8,$I$12) -> 66.58 | G13: =RTD("cqg.rtd",,"StudyData", $I$2, "Vol", "VolType=auto,CoCType=auto", "Vol",$I$4,-$A13,$I$6,,,$I$8,$I$12) -> 85639 | K13: 2021-07-27T11:30:00 | L13: 44404.47917 | M13: 11:30
A14: 12 | B14: =RTD("cqg.rtd",,"StudyData", $I$2, "BAR", "", "Time", $I$4,-$A14,$I$6,$I$10, "","False","T") -> 2021-07-27T11:25:00 | C14: =RTD("cqg.rtd",,"StudyData", $I$2, "BAR", "", "Open", $I$4, -$A14, $I$6,$I$10,,$I$8,$I$12) -> 66.47 | D14: =RTD("cqg.rtd",,"StudyData", $I$2, "BAR", "", "High", $I$4, -$A14, $I$6,$I$10,,$I$8,$I$12) -> 66.52 | E14: =RTD("cqg.rtd",,"StudyData", $I$2, "BAR", "", "Low", $I$4, -$A14, $I$6,$I$10,,$I$8,$I$12) -> 66.42 | F14: =RTD("cqg.rtd",,"StudyData", $I$2, "BAR", "", "Close", $I$4, -$A14, $I$6,$I$10,,$I$8,$I$12) -> 66.52 | G14: =RTD("cqg.rtd",,"StudyData", $I$2, "Vol", "VolType=auto,CoCType=auto", "Vol",$I$4,-$A14,$I$6,,,$I$8,$I$12) -> 136854 | K14: 2021-07-27T11:25:00 | L14: 44404.47569 | M14: 11:25
A15: 13 | B15: =RTD("cqg.rtd",,"StudyData", $I$2, "BAR", "", "Time", $I$4,-$A15,$I$6,$I$10, "","False","T") -> 2021-07-27T11:20:00 | C15: =RTD("cqg.rtd",,"StudyData", $I$2, "BAR", "", "Open", $I$4, -$A15, $I$6,$I$10,,$I$8,$I$12) -> 66.55 | D15: =RTD("cqg.rtd",,"StudyData", $I$2, "BAR", "", "High", $I$4, -$A15, $I$6,$I$10,,$I$8,$I$12) -> 66.59 | E15: =RTD("cqg.rtd",,"StudyData", $I$2, "BAR", "", "Low", $I$4, -$A15, $I$6,$I$10,,$I$8,$I$12) -> 66.45 | F15: =RTD("cqg.rtd",,"StudyData", $I$2, "BAR", "", "Close", $I$4, -$A15, $I$6,$I$10,,$I$8,$I$12) -> 66.46 | G15: =RTD("cqg.rtd",,"StudyData", $I$2, "Vol", "VolType=auto,CoCType=auto", "Vol",$I$4,-$A15,$I$6,,,$I$8,$I$12) -> 63065 | I15: SubMinute(EP,20,Regular) | K15: 2021-07-27T11:20:00 | L15: 44404.47222 | M15: 11:20
A16: 14 | B16: =RTD("cqg.rtd",,"StudyData", $I$2, "BAR", "", "Time", $I$4,-$A16,$I$6,$I$10, "","False","T") -> 2021-07-27T11:15:00 | C16: =RTD("cqg.rtd",,"StudyData", $I$2, "BAR", "", "Open", $I$4, -$A16, $I$6,$I$10,,$I$8,$I$12) -> 66.53 | D16: =RTD("cqg.rtd",,"StudyData", $I$2, "BAR", "", "High", $I$4, -$A16, $I$6,$I$10,,$I$8,$I$12) -> 66.57 | E16: =RTD("cqg.rtd",,"StudyData", $I$2, "BAR", "", "Low", $I$4, -$A16, $I$6,$I$10,,$I$8,$I$12) -> 66.5 | F16: =RTD("cqg.rtd",,"StudyData", $I$2, "BAR", "", "Close", $I$4, -$A16, $I$6,$I$10,,$I$8,$I$12) -> 66.54 | G16: =RTD("cqg.rtd",,"StudyData", $I$2, "Vol", "VolType=auto,CoCType=auto", "Vol",$I$4,-$A16,$I$6,,,$I$8,$I$12) -> 97965 | I16: RBOp (EP,5,Tick,0,0) | K16: 2021-07-27T11:15:00 | L16: 44404.46875 | M16: 11:15
A17: 15 | B17: =RTD("cqg.rtd",,"StudyData", $I$2, "BAR", "", "Time", $I$4,-$A17,$I$6,$I$10, "","False","T") -> 2021-07-27T11:10:00 | C17: =RTD("cqg.rtd",,"StudyData", $I$2, "BAR", "", "Open", $I$4, -$A17, $I$6,$I$10,,$I$8,$I$12) -> 66.61 | D17: =RTD("cqg.rtd",,"StudyData", $I$2, "BAR", "", "High", $I$4, -$A17, $I$6,$I$10,,$I$8,$I$12) -> 66.62 | E17: =RTD("cqg.rtd",,"StudyData", $I$2, "BAR", "", "Low", $I$4, -$A17, $I$6,$I$10,,$I$8,$I$12) -> 66.47 | F17: =RTD("cqg.rtd",,"StudyData", $I$2, "BAR", "", "Close", $I$4, -$A17, $I$6,$I$10,,$I$8,$I$12) -> 66.53 | G17: =RTD("cqg.rtd",,"StudyData", $I$2, "Vol", "VolType=auto,CoCType=auto", "Vol",$I$4,-$A17,$I$6,,,$I$8,$I$12) -> 100977 | K17: 2021-07-27T11:10:00 | L17: 44404.46528 | M17: 11:10
A18: 16 | B18: =RTD("cqg.rtd",,"StudyData", $I$2, "BAR", "", "Time", $I$4,-$A18,$I$6,$I$10, "","False","T") -> 2021-07-27T11:05:00 | C18: =RTD("cqg.rtd",,"StudyData", $I$2, "BAR", "", "Open", $I$4, -$A18, $I$6,$I$10,,$I$8,$I$12) -> 66.59 | D18: =RTD("cqg.rtd",,"StudyData", $I$2, "BAR", "", "High", $I$4, -$A18, $I$6,$I$10,,$I$8,$I$12) -> 66.63 | E18: =RTD("cqg.rtd",,"StudyData", $I$2, "BAR", "", "Low", $I$4, -$A18, $I$6,$I$10,,$I$8,$I$12) -> 66.55 | F18: =RTD("cqg.rtd",,"StudyData", $I$2, "BAR", "", "Close", $I$4, -$A18, $I$6,$I$10,,$I$8,$I$12) -> 66.61 | G18: =RTD("cqg.rtd",,"StudyData", $I$2, "Vol", "VolType=auto,CoCType=auto", "Vol",$I$4,-$A18,$I$6,,,$I$8,$I$12) -> 140809 | K18: 2021-07-27T11:05:00 | L18: 44404.46181 | M18: 11:05
A19: 17 | B19: =RTD("cqg.rtd",,"StudyData", $I$2, "BAR", "", "Time", $I$4,-$A19,$I$6,$I$10, "","False","T") -> 2021-07-27T11:00:00 | C19: =RTD("cqg.rtd",,"StudyData", $I$2, "BAR", "", "Open", $I$4, -$A19, $I$6,$I$10,,$I$8,$I$12) -> 66.49 | D19: =RTD("cqg.rtd",,"StudyData", $I$2, "BAR", "", "High", $I$4, -$A19, $I$6,$I$10,,$I$8,$I$12) -> 66.6 | E19: =RTD("cqg.rtd",,"StudyData", $I$2, "BAR", "", "Low", $I$4, -$A19, $I$6,$I$10,,$I$8,$I$12) -> 66.47 | F19: =RTD("cqg.rtd",,"StudyData", $I$2, "BAR", "", "Close", $I$4, -$A19, $I$6,$I$10,,$I$8,$I$12) -> 66.59 | G19: =RTD("cqg.rtd",,"StudyData", $I$2, "Vol", "VolType=auto,CoCType=auto", "Vol",$I$4,-$A19,$I$6,,,$I$8,$I$12) -> 151327 | K19: 2021-07-27T11:00:00 | L19: 44404.45833 | M19: 11:00
A20: 18 | B20: =RTD("cqg.rtd",,"StudyData", $I$2, "BAR", "", "Time", $I$4,-$A20,$I$6,$I$10, "","False","T") -> 2021-07-27T10:55:00 | C20: =RTD("cqg.rtd",,"StudyData", $I$2, "BAR", "", "Open", $I$4, -$A20, $I$6,$I$10,,$I$8,$I$12) -> 66.5 | D20: =RTD("cqg.rtd",,"StudyData", $I$2, "BAR", "", "High", $I$4, -$A20, $I$6,$I$10,,$I$8,$I$12) -> 66.5 | E20: =RTD("cqg.rtd",,"StudyData", $I$2, "BAR", "", "Low", $I$4, -$A20, $I$6,$I$10,,$I$8,$I$12) -> 66.43 | F20: =RTD("cqg.rtd",,"StudyData", $I$2, "BAR", "", "Close", $I$4, -$A20, $I$6,$I$10,,$I$8,$I$12) -> 66.5 | G20: =RTD("cqg.rtd",,"StudyData", $I$2, "Vol", "VolType=auto,CoCType=auto", "Vol",$I$4,-$A20,$I$6,,,$I$8,$I$12) -> 129876 | K20: 2021-07-27T10:55:00 | L20: 44404.45486 | M20: 10:55
A21: 19 | B21: =RTD("cqg.rtd",,"StudyData", $I$2, "BAR", "", "Time", $I$4,-$A21,$I$6,$I$10, "","False","T") -> 2021-07-27T10:50:00 | C21: =RTD("cqg.rtd",,"StudyData", $I$2, "BAR", "", "Open", $I$4, -$A21, $I$6,$I$10,,$I$8,$I$12) -> 66.57 | D21: =RTD("cqg.rtd",,"StudyData", $I$2, "BAR", "", "High", $I$4, -$A21, $I$6,$I$10,,$I$8,$I$12) -> 66.57 | E21: =RTD("cqg.rtd",,"StudyData", $I$2, "BAR", "", "Low", $I$4, -$A21, $I$6,$I$10,,$I$8,$I$12) -> 66.49 | F21: =RTD("cqg.rtd",,"StudyData", $I$2, "BAR", "", "Close", $I$4, -$A21, $I$6,$I$10,,$I$8,$I$12) -> 66.51 | G21: =RTD("cqg.rtd",,"StudyData", $I$2, "Vol", "VolType=auto,CoCType=auto", "Vol",$I$4,-$A21,$I$6,,,$I$8,$I$12) -> 155593 | K21: 2021-07-27T10:50:00 | L21: 44404.45139 | M21: 10:50
A22: 20 | B22: =RTD("cqg.rtd",,"StudyData", $I$2, "BAR", "", "Time", $I$4,-$A22,$I$6,$I$10, "","False","T") -> 2021-07-27T10:45:00 | C22: =RTD("cqg.rtd",,"StudyData", $I$2, "BAR", "", "Open", $I$4, -$A22, $I$6,$I$10,,$I$8,$I$12) -> 66.52 | D22: =RTD("cqg.rtd",,"StudyData", $I$2, "BAR", "", "High", $I$4, -$A22, $I$6,$I$10,,$I$8,$I$12) -> 66.57 | E22: =RTD("cqg.rtd",,"StudyData", $I$2, "BAR", "", "Low", $I$4, -$A22, $I$6,$I$10,,$I$8,$I$12) -> 66.47 | F22: =RTD("cqg.rtd",,"StudyData", $I$2, "BAR", "", "Close", $I$4, -$A22, $I$6,$I$10,,$I$8,$I$12) -> 66.56 | G22: =RTD("cqg.rtd",,"StudyData", $I$2, "Vol", "VolType=auto,CoCType=auto", "Vol",$I$4,-$A22,$I$6,,,$I$8,$I$12) -> 104765 | K22: 2021-07-27T10:45:00 | L22: 44404.44792 | M22: 10:45
A23: 21 | B23: =RTD("cqg.rtd",,"StudyData", $I$2, "BAR", "", "Time", $I$4,-$A23,$I$6,$I$10, "","False","T") -> 2021-07-27T10:40:00 | C23: =RTD("cqg.rtd",,"StudyData", $I$2, "BAR", "", "Open", $I$4, -$A23, $I$6,$I$10,,$I$8,$I$12) -> 66.54 | D23: =RTD("cqg.rtd",,"StudyData", $I$2, "BAR", "", "High", $I$4, -$A23, $I$6,$I$10,,$I$8,$I$12) -> 66.56 | E23: =RTD("cqg.rtd",,"StudyData", $I$2, "BAR", "", "Low", $I$4, -$A23, $I$6,$I$10,,$I$8,$I$12) -> 66.45 | F23: =RTD("cqg.rtd",,"StudyData", $I$2, "BAR", "", "Close", $I$4, -$A23, $I$6,$I$10,,$I$8,$I$12) -> 66.53 | G23: =RTD("cqg.rtd",,"StudyData", $I$2, "Vol", "VolType=auto,CoCType=auto", "Vol",$I$4,-$A23,$I$6,,,$I$8,$I$12) -> 236280 | K23: 2021-07-27T10:40:00 | L23: 44404.44444 | M23: 10:40
A24: 22 | B24: =RTD("cqg.rtd",,"StudyData", $I$2, "BAR", "", "Time", $I$4,-$A24,$I$6,$I$10, "","False","T") -> 2021-07-27T10:35:00 | C24: =RTD("cqg.rtd",,"StudyData", $I$2, "BAR", "", "Open", $I$4, -$A24, $I$6,$I$10,,$I$8,$I$12) -> 66.46 | D24: =RTD("cqg.rtd",,"StudyData", $I$2, "BAR", "", "High", $I$4, -$A24, $I$6,$I$10,,$I$8,$I$12) -> 66.57 | E24: =RTD("cqg.rtd",,"StudyData", $I$2, "BAR", "", "Low", $I$4, -$A24, $I$6,$I$10,,$I$8,$I$12) -> 66.44 | F24: =RTD("cqg.rtd",,"StudyData", $I$2, "BAR", "", "Close", $I$4, -$A24, $I$6,$I$10,,$I$8,$I$12) -> 66.53 | G24: =RTD("cqg.rtd",,"StudyData", $I$2, "Vol", "VolType=auto,CoCType=auto", "Vol",$I$4,-$A24,$I$6,,,$I$8,$I$12) -> 237766 | K24: 2021-07-27T10:35:00 | L24: 44404.44097 | M24: 10:35
A25: 23 | B25: =RTD("cqg.rtd",,"StudyData", $I$2, "BAR", "", "Time", $I$4,-$A25,$I$6,$I$10, "","False","T") -> 2021-07-27T10:30:00 | C25: =RTD("cqg.rtd",,"StudyData", $I$2, "BAR", "", "Open", $I$4, -$A25, $I$6,$I$10,,$I$8,$I$12) -> 66.44 | D25: =RTD("cqg.rtd",,"StudyData", $I$2, "BAR", "", "High", $I$4, -$A25, $I$6,$I$10,,$I$8,$I$12) -> 66.46 | E25: =RTD("cqg.rtd",,"StudyData", $I$2, "BAR", "", "Low", $I$4, -$A25, $I$6,$I$10,,$I$8,$I$12) -> 66.31 | F25: =RTD("cqg.rtd",,"StudyData", $I$2, "BAR", "", "Close", $I$4, -$A25, $I$6,$I$10,,$I$8,$I$12) -> 66.45 | G25: =RTD("cqg.rtd",,"StudyData", $I$2, "Vol", "VolType=auto,CoCType=auto", "Vol",$I$4,-$A25,$I$6,,,$I$8,$I$12) -> 321725 | K25: 2021-07-27T10:30:00 | L25: 44404.4375 | M25: 10:30
A26: 24 | B26: =RTD("cqg.rtd",,"StudyData", $I$2, "BAR", "", "Time", $I$4,-$A26,$I$6,$I$10, "","False","T") -> 2021-07-27T10:25:00 | C26: =RTD("cqg.rtd",,"StudyData", $I$2, "BAR", "", "Open", $I$4, -$A26, $I$6,$I$10,,$I$8,$I$12) -> 66.46 | D26: =RTD("cqg.rtd",,"StudyData", $I$2, "BAR", "", "High", $I$4, -$A26, $I$6,$I$10,,$I$8,$I$12) -> 66.49 | E26: =RTD("cqg.rtd",,"StudyData", $I$2, "BAR", "", "Low", $I$4, -$A26, $I$6,$I$10,,$I$8,$I$12) -> 66.41 | F26: =RTD("cqg.rtd",,"StudyData", $I$2, "BAR", "", "Close", $I$4, -$A26, $I$6,$I$10,,$I$8,$I$12) -> 66.44 | G26: =RTD("cqg.rtd",,"StudyData", $I$2, "Vol", "VolType=auto,CoCType=auto", "Vol",$I$4,-$A26,$I$6,,,$I$8,$I$12) -> 242508 | K26: 2021-07-27T10:25:00 | L26: 44404.43403 | M26: 10:25
A27: 25 | B27: =RTD("cqg.rtd",,"StudyData", $I$2, "BAR", "", "Time", $I$4,-$A27,$I$6,$I$10, "","False","T") -> 2021-07-27T10:20:00 | C27: =RTD("cqg.rtd",,"StudyData", $I$2, "BAR", "", "Open", $I$4, -$A27, $I$6,$I$10,,$I$8,$I$12) -> 66.34 | D27: =RTD("cqg.rtd",,"StudyData", $I$2, "BAR", "", "High", $I$4, -$A27, $I$6,$I$10,,$I$8,$I$12) -> 66.48 | E27: =RTD("cqg.rtd",,"StudyData", $I$2, "BAR", "", "Low", $I$4, -$A27, $I$6,$I$10,,$I$8,$I$12) -> 66.32 | F27: =RTD("cqg.rtd",,"StudyData", $I$2, "BAR", "", "Close", $I$4, -$A27, $I$6,$I$10,,$I$8,$I$12) -> 66.47 | G27: =RTD("cqg.rtd",,"StudyData", $I$2, "Vol", "VolType=auto,CoCType=auto", "Vol",$I$4,-$A27,$I$6,,,$I$8,$I$12) -> 212214 | K27: 2021-07-27T10:20:00 | L27: 44404.43056 | M27: 10:20
A28: 26 | B28: =RTD("cqg.rtd",,"StudyData", $I$2, "BAR", "", "Time", $I$4,-$A28,$I$6,$I$10, "","False","T") -> 2021-07-27T10:15:00 | C28: =RTD("cqg.rtd",,"StudyData", $I$2, "BAR", "", "Open", $I$4, -$A28, $I$6,$I$10,,$I$8,$I$12) -> 66.21 | D28: =RTD("cqg.rtd",,"StudyData", $I$2, "BAR", "", "High", $I$4, -$A28, $I$6,$I$10,,$I$8,$I$12) -> 66.36 | E28: =RTD("cqg.rtd",,"StudyData", $I$2, "BAR", "", "Low", $I$4, -$A28, $I$6,$I$10,,$I$8,$I$12) -> 66.19 | F28: =RTD("cqg.rtd",,"StudyData", $I$2, "BAR", "", "Close", $I$4, -$A28, $I$6,$I$10,,$I$8,$I$12) -> 66.33 | G28: =RTD("cqg.rtd",,"StudyData", $I$2, "Vol", "VolType=auto,CoCType=auto", "Vol",$I$4,-$A28,$I$6,,,$I$8,$I$12) -> 456509 | K28: 2021-07-27T10:15:00 | L28: 44404.42708 | M28: 10:15
A29: 27 | B29: =RTD("cqg.rtd",,"StudyData", $I$2, "BAR", "", "Time", $I$4,-$A29,$I$6,$I$10, "","False","T") -> 2021-07-27T10:10:00 | C29: =RTD("cqg.rtd",,"StudyData", $I$2, "BAR", "", "Open", $I$4, -$A29, $I$6,$I$10,,$I$8,$I$12) -> 66.08 | D29: =RTD("cqg.rtd",,"StudyData", $I$2, "BAR", "", "High", $I$4, -$A29, $I$6,$I$10,,$I$8,$I$12) -> 66.21 | E29: =RTD("cqg.rtd",,"StudyData", $I$2, "BAR", "", "Low", $I$4, -$A29, $I$6,$I$10,,$I$8,$I$12) -> 66.08 | F29: =RTD("cqg.rtd",,"StudyData", $I$2, "BAR", "", "Close", $I$4, -$A29, $I$6,$I$10,,$I$8,$I$12) -> 66.21 | G29: =RTD("cqg.rtd",,"StudyData", $I$2, "Vol", "VolType=auto,CoCType=auto", "Vol",$I$4,-$A29,$I$6,,,$I$8,$I$12) -> 340914 | K29: 2021-07-27T10:10:00 | L29: 44404.42361 | M29: 10:10
A30: 28 | B30: =RTD("cqg.rtd",,"StudyData", $I$2, "BAR", "", "Time", $I$4,-$A30,$I$6,$I$10, "","False","T") -> 2021-07-27T10:05:00 | C30: =RTD("cqg.rtd",,"StudyData", $I$2, "BAR", "", "Open", $I$4, -$A30, $I$6,$I$10,,$I$8,$I$12) -> 66.01 | D30: =RTD("cqg.rtd",,"StudyData", $I$2, "BAR", "", "High", $I$4, -$A30, $I$6,$I$10,,$I$8,$I$12) -> 66.09 | E30: =RTD("cqg.rtd",,"StudyData", $I$2, "BAR", "", "Low", $I$4, -$A30, $I$6,$I$10,,$I$8,$I$12) -> 66.01 | F30: =RTD("cqg.rtd",,"StudyData", $I$2, "BAR", "", "Close", $I$4, -$A30, $I$6,$I$10,,$I$8,$I$12) -> 66.08 | G30: =RTD("cqg.rtd",,"StudyData", $I$2, "Vol", "VolType=auto,CoCType=auto", "Vol",$I$4,-$A30,$I$6,,,$I$8,$I$12) -> 67211 | K30: 2021-07-27T10:05:00 | L30: 44404.42014 | M30: 10:05
A31: 29 | B31: =RTD("cqg.rtd",,"StudyData", $I$2, "BAR", "", "Time", $I$4,-$A31,$I$6,$I$10, "","False","T") -> 2021-07-27T10:00:00 | C31: =RTD("cqg.rtd",,"StudyData", $I$2, "BAR", "", "Open", $I$4, -$A31, $I$6,$I$10,,$I$8,$I$12) -> 65.9 | D31: =RTD("cqg.rtd",,"StudyData", $I$2, "BAR", "", "High", $I$4, -$A31, $I$6,$I$10,,$I$8,$I$12) -> 66 | E31: =RTD("cqg.rtd",,"StudyData", $I$2, "BAR", "", "Low", $I$4, -$A31, $I$6,$I$10,,$I$8,$I$12) -> 65.88 | F31: =RTD("cqg.rtd",,"StudyData", $I$2, "BAR", "", "Close", $I$4, -$A31, $I$6,$I$10,,$I$8,$I$12) -> 66 | G31: =RTD("cqg.rtd",,"StudyData", $I$2, "Vol", "VolType=auto,CoCType=auto", "Vol",$I$4,-$A31,$I$6,,,$I$8,$I$12) -> 146441 | K31: 2021-07-27T10:00:00 | L31: 44404.41667 | M31: 10:00
A32: 30 | B32: =RTD("cqg.rtd",,"StudyData", $I$2, "BAR", "", "Time", $I$4,-$A32,$I$6,$I$10, "","False","T") -> 2021-07-27T09:55:00 | C32: =RTD("cqg.rtd",,"StudyData", $I$2, "BAR", "", "Open", $I$4, -$A32, $I$6,$I$10,,$I$8,$I$12) -> 65.99 | D32: =RTD("cqg.rtd",,"StudyData", $I$2, "BAR", "", "High", $I$4, -$A32, $I$6,$I$10,,$I$8,$I$12) -> 66.02 | E32: =RTD("cqg.rtd",,"StudyData", $I$2, "BAR", "", "Low", $I$4, -$A32, $I$6,$I$10,,$I$8,$I$12) -> 65.9 | F32: =RTD("cqg.rtd",,"StudyData", $I$2, "BAR", "", "Close", $I$4, -$A32, $I$6,$I$10,,$I$8,$I$12) -> 65.91 | G32: =RTD("cqg.rtd",,"StudyData", $I$2, "Vol", "VolType=auto,CoCType=auto", "Vol",$I$4,-$A32,$I$6,,,$I$8,$I$12) -> 219749 | K32: 2021-07-27T09:55:00 | L32: 44404.41319 | M32: 09:55
A33: 31 | B33: =RTD("cqg.rtd",,"StudyData", $I$2, "BAR", "", "Time", $I$4,-$A33,$I$6,$I$10, "","False","T") -> 2021-07-27T09:50:00 | C33: =RTD("cqg.rtd",,"StudyData", $I$2, "BAR", "", "Open", $I$4, -$A33, $I$6,$I$10,,$I$8,$I$12) -> 65.97 | D33: =RTD("cqg.rtd",,"StudyData", $I$2, "BAR", "", "High", $I$4, -$A33, $I$6,$I$10,,$I$8,$I$12) -> 66.03 | E33: =RTD("cqg.rtd",,"StudyData", $I$2, "BAR", "", "Low", $I$4, -$A33, $I$6,$I$10,,$I$8,$I$12) -> 65.9 | F33: =RTD("cqg.rtd",,"StudyData", $I$2, "BAR", "", "Close", $I$4, -$A33, $I$6,$I$10,,$I$8,$I$12) -> 65.99 | G33: =RTD("cqg.rtd",,"StudyData", $I$2, "Vol", "VolType=auto,CoCType=auto", "Vol",$I$4,-$A33,$I$6,,,$I$8,$I$12) -> 106241 | K33: 2021-07-27T09:50:00 | L33: 44404.40972 | M33: 09:50
A34: 32 | B34: =RTD("cqg.rtd",,"StudyData", $I$2, "BAR", "", "Time", $I$4,-$A34,$I$6,$I$10, "","False","T") -> 2021-07-27T09:45:00 | C34: =RTD("cqg.rtd",,"StudyData", $I$2, "BAR", "", "Open", $I$4, -$A34, $I$6,$I$10,,$I$8,$I$12) -> 65.92 | D34: =RTD("cqg.rtd",,"StudyData", $I$2, "BAR", "", "High", $I$4, -$A34, $I$6,$I$10,,$I$8,$I$12) -> 66.01 | E34: =RTD("cqg.rtd",,"StudyData", $I$2, "BAR", "", "Low", $I$4, -$A34, $I$6,$I$10,,$I$8,$I$12) -> 65.92 | F34: =RTD("cqg.rtd",,"StudyData", $I$2, "BAR", "", "Close", $I$4, -$A34, $I$6,$I$10,,$I$8,$I$12) -> 65.97 | G34: =RTD("cqg.rtd",,"StudyData", $I$2, "Vol", "VolType=auto,CoCType=auto", "Vol",$I$4,-$A34,$I$6,,,$I$8,$I$12) -> 116561 | K34: 2021-07-27T09:45:00 | L34: 44404.40625 | M34: 09:45
A35: 33 | B35: =RTD("cqg.rtd",,"StudyData", $I$2, "BAR", "", "Time", $I$4,-$A35,$I$6,$I$10, "","False","T") -> 2021-07-27T09:40:00 | C35: =RTD("cqg.rtd",,"StudyData", $I$2, "BAR", "", "Open", $I$4, -$A35, $I$6,$I$10,,$I$8,$I$12) -> 65.98 | D35: =RTD("cqg.rtd",,"StudyData", $I$2, "BAR", "", "High", $I$4, -$A35, $I$6,$I$10,,$I$8,$I$12) -> 66 | E35: =RTD("cqg.rtd",,"StudyData", $I$2, "BAR", "", "Low", $I$4, -$A35, $I$6,$I$10,,$I$8,$I$12) -> 65.92 | F35: =RTD("cqg.rtd",,"StudyData", $I$2, "BAR", "", "Close", $I$4, -$A35, $I$6,$I$10,,$I$8,$I$12) -> 65.93 | G35: =RTD("cqg.rtd",,"StudyData", $I$2, "Vol", "VolType=auto,CoCType=auto", "Vol",$I$4,-$A35,$I$6,,,$I$8,$I$12) -> 106650 | K35: 2021-07-27T09:40:00 | L35: 44404.40278 | M35: 09:40
A36: 34 | B36: =RTD("cqg.rtd",,"StudyData", $I$2, "BAR", "", "Time", $I$4,-$A36,$I$6,$I$10, "","False","T") -> 2021-07-27T09:35:00 | C36: =RTD("cqg.rtd",,"StudyData", $I$2, "BAR", "", "Open", $I$4, -$A36, $I$6,$I$10,,$I$8,$I$12) -> 65.95 | D36: =RTD("cqg.rtd",,"StudyData", $I$2, "BAR", "", "High", $I$4, -$A36, $I$6,$I$10,,$I$8,$I$12) -> 66.03 | E36: =RTD("cqg.rtd",,"StudyData", $I$2, "BAR", "", "Low", $I$4, -$A36, $I$6,$I$10,,$I$8,$I$12) -> 65.93 | F36: =RTD("cqg.rtd",,"StudyData", $I$2, "BAR", "", "Close", $I$4, -$A36, $I$6,$I$10,,$I$8,$I$12) -> 65.99 | G36: =RTD("cqg.rtd",,"StudyData", $I$2, "Vol", "VolType=auto,CoCType=auto", "Vol",$I$4,-$A36,$I$6,,,$I$8,$I$12) -> 165836 | K36: 2021-07-27T09:35:00 | L36: 44404.39931 | M36: 09:35
A37: 35 | B37: =RTD("cqg.rtd",,"StudyData", $I$2, "BAR", "", "Time", $I$4,-$A37,$I$6,$I$10, "","False","T") -> 2021-07-27T09:30:00 | C37: =RTD("cqg.rtd",,"StudyData", $I$2, "BAR", "", "Open", $I$4, -$A37, $I$6,$I$10,,$I$8,$I$12) -> 65.78 | D37: =RTD("cqg.rtd",,"StudyData", $I$2, "BAR", "", "High", $I$4, -$A37, $I$6,$I$10,,$I$8,$I$12) -> 65.97 | E37: =RTD("cqg.rtd",,"StudyData", $I$2, "BAR", "", "Low", $I$4, -$A37, $I$6,$I$10,,$I$8,$I$12) -> 65.77 | F37: =RTD("cqg.rtd",,"StudyData", $I$2, "BAR", "", "Close", $I$4, -$A37, $I$6,$I$10,,$I$8,$I$12) -> 65.96 | G37: =RTD("cqg.rtd",,"StudyData", $I$2, "Vol", "VolType=auto,CoCType=auto", "Vol",$I$4,-$A37,$I$6,,,$I$8,$I$12) -> 339989 | K37: 2021-07-27T09:30:00 | L37: 44404.39583 | M37: 09:30
A38: 36 | B38: =RTD("cqg.rtd",,"StudyData", $I$2, "BAR", "", "Time", $I$4,-$A38,$I$6,$I$10, "","False","T") -> 2021-07-27T09:25:00 | C38: =RTD("cqg.rtd",,"StudyData", $I$2, "BAR", "", "Open", $I$4, -$A38, $I$6,$I$10,,$I$8,$I$12) -> 65.8 | D38: =RTD("cqg.rtd",,"StudyData", $I$2, "BAR", "", "High", $I$4, -$A38, $I$6,$I$10,,$I$8,$I$12) -> 65.8 | E38: =RTD("cqg.rtd",,"StudyData", $I$2, "BAR", "", "Low", $I$4, -$A38, $I$6,$I$10,,$I$8,$I$12) -> 65.75 | F38: =RTD("cqg.rtd",,"StudyData", $I$2, "BAR", "", "Close", $I$4, -$A38, $I$6,$I$10,,$I$8,$I$12) -> 65.78 | G38: =RTD("cqg.rtd",,"StudyData", $I$2, "Vol", "VolType=auto,CoCType=auto", "Vol",$I$4,-$A38,$I$6,,,$I$8,$I$12) -> 116430 | K38: 2021-07-27T09:25:00 | L38: 44404.39236 | M38: 09:25
A39: 37 | B39: =RTD("cqg.rtd",,"StudyData", $I$2, "BAR", "", "Time", $I$4,-$A39,$I$6,$I$10, "","False","T") -> 2021-07-27T09:20:00 | C39: =RTD("cqg.rtd",,"StudyData", $I$2, "BAR", "", "Open", $I$4, -$A39, $I$6,$I$10,,$I$8,$I$12) -> 65.8 | D39: =RTD("cqg.rtd",,"StudyData", $I$2, "BAR", "", "High", $I$4, -$A39, $I$6,$I$10,,$I$8,$I$12) -> 65.83 | E39: =RTD("cqg.rtd",,"StudyData", $I$2, "BAR", "", "Low", $I$4, -$A39, $I$6,$I$10,,$I$8,$I$12) -> 65.76 | F39: =RTD("cqg.rtd",,"StudyData", $I$2, "BAR", "", "Close", $I$4, -$A39, $I$6,$I$10,,$I$8,$I$12) -> 65.79 | G39: =RTD("cqg.rtd",,"StudyData", $I$2, "Vol", "VolType=auto,CoCType=auto", "Vol",$I$4,-$A39,$I$6,,,$I$8,$I$12) -> 115630 | K39: 2021-07-27T09:20:00 | L39: 44404.38889 | M39: 09:20
A40: 38 | B40: =RTD("cqg.rtd",,"StudyData", $I$2, "BAR", "", "Time", $I$4,-$A40,$I$6,$I$10, "","False","T") -> 2021-07-27T09:15:00 | C40: =RTD("cqg.rtd",,"StudyData", $I$2, "BAR", "", "Open", $I$4, -$A40, $I$6,$I$10,,$I$8,$I$12) -> 65.82 | D40: =RTD("cqg.rtd",,"StudyData", $I$2, "BAR", "", "High", $I$4, -$A40, $I$6,$I$10,,$I$8,$I$12) -> 65.86 | E40: =RTD("cqg.rtd",,"StudyData", $I$2, "BAR", "", "Low", $I$4, -$A40, $I$6,$I$10,,$I$8,$I$12) -> 65.74 | F40: =RTD("cqg.rtd",,"StudyData", $I$2, "BAR", "", "Close", $I$4, -$A40, $I$6,$I$10,,$I$8,$I$12) -> 65.8 | G40: =RTD("cqg.rtd",,"StudyData", $I$2, "Vol", "VolType=auto,CoCType=auto", "Vol",$I$4,-$A40,$I$6,,,$I$8,$I$12) -> 90489 | K40: 2021-07-27T09:15:00 | L40: 44404.38542 | M40: 09:15
A41: 39 | B41: =RTD("cqg.rtd",,"StudyData", $I$2, "BAR", "", "Time", $I$4,-$A41,$I$6,$I$10, "","False","T") -> 2021-07-27T09:10:00 | C41: =RTD("cqg.rtd",,"StudyData", $I$2, "BAR", "", "Open", $I$4, -$A41, $I$6,$I$10,,$I$8,$I$12) -> 65.8 | D41: =RTD("cqg.rtd",,"StudyData", $I$2, "BAR", "", "High", $I$4, -$A41, $I$6,$I$10,,$I$8,$I$12) -> 65.88 | E41: =RTD("cqg.rtd",,"StudyData", $I$2, "BAR", "", "Low", $I$4, -$A41, $I$6,$I$10,,$I$8,$I$12) -> 65.79 | F41: =RTD("cqg.rtd",,"StudyData", $I$2, "BAR", "", "Close", $I$4, -$A41, $I$6,$I$10,,$I$8,$I$12) -> 65.83 | G41: =RTD("cqg.rtd",,"StudyData", $I$2, "Vol", "VolType=auto,CoCType=auto", "Vol",$I$4,-$A41,$I$6,,,$I$8,$I$12) -> 105144 | K41: 2021-07-27T09:10:00 | L41: 44404.38194 | M41: 09:10
A42: 40 | B42: =RTD("cqg.rtd",,"StudyData", $I$2, "BAR", "", "Time", $I$4,-$A42,$I$6,$I$10, "","False","T") -> 2021-07-27T09:05:00 | C42: =RTD("cqg.rtd",,"StudyData", $I$2, "BAR", "", "Open", $I$4, -$A42, $I$6,$I$10,,$I$8,$I$12) -> 65.82 | D42: =RTD("cqg.rtd",,"StudyData", $I$2, "BAR", "", "High", $I$4, -$A42, $I$6,$I$10,,$I$8,$I$12) -> 65.86 | E42: =RTD("cqg.rtd",,"StudyData", $I$2, "BAR", "", "Low", $I$4, -$A42, $I$6,$I$10,,$I$8,$I$12) -> 65.77 | F42: =RTD("cqg.rtd",,"StudyData", $I$2, "BAR", "", "Close", $I$4, -$A42, $I$6,$I$10,,$I$8,$I$12) -> 65.81 | G42: =RTD("cqg.rtd",,"StudyData", $I$2, "Vol", "VolType=auto,CoCType=auto", "Vol",$I$4,-$A42,$I$6,,,$I$8,$I$12) -> 137817 | K42: 2021-07-27T09:05:00 | L42: 44404.37847 | M42: 09:05
A43: 41 | B43: =RTD("cqg.rtd",,"StudyData", $I$2, "BAR", "", "Time", $I$4,-$A43,$I$6,$I$10, "","False","T") -> 2021-07-27T09:00:00 | C43: =RTD("cqg.rtd",,"StudyData", $I$2, "BAR", "", "Open", $I$4, -$A43, $I$6,$I$10,,$I$8,$I$12) -> 65.66 | D43: =RTD("cqg.rtd",,"StudyData", $I$2, "BAR", "", "High", $I$4, -$A43, $I$6,$I$10,,$I$8,$I$12) -> 65.82 | E43: =RTD("cqg.rtd",,"StudyData", $I$2, "BAR", "", "Low", $I$4, -$A43, $I$6,$I$10,,$I$8,$I$12) -> 65.65 | F43: =RTD("cqg.rtd",,"StudyData", $I$2, "BAR", "", "Close", $I$4, -$A43, $I$6,$I$10,,$I$8,$I$12) -> 65.82 | G43: =RTD("cqg.rtd",,"StudyData", $I$2, "Vol", "VolType=auto,CoCType=auto", "Vol",$I$4,-$A43,$I$6,,,$I$8,$I$12) -> 215565 | K43: 2021-07-27T09:00:00 | L43: 44404.375 | M43: 09:00
A44: 42 | B44: =RTD("cqg.rtd",,"StudyData", $I$2, "BAR", "", "Time", $I$4,-$A44,$I$6,$I$10, "","False","T") -> 2021-07-27T08:55:00 | C44: =RTD("cqg.rtd",,"StudyData", $I$2, "BAR", "", "Open", $I$4, -$A44, $I$6,$I$10,,$I$8,$I$12) -> 65.56 | D44: =RTD("cqg.rtd",,"StudyData", $I$2, "BAR", "", "High", $I$4, -$A44, $I$6,$I$10,,$I$8,$I$12) -> 65.69 | E44: =RTD("cqg.rtd",,"StudyData", $I$2, "BAR", "", "Low", $I$4, -$A44, $I$6,$I$10,,$I$8,$I$12) -> 65.5 | F44: =RTD("cqg.rtd",,"StudyData", $I$2, "BAR", "", "Close", $I$4, -$A44, $I$6,$I$10,,$I$8,$I$12) -> 65.66 | G44: =RTD("cqg.rtd",,"StudyData", $I$2, "Vol", "VolType=auto,CoCType=auto", "Vol",$I$4,-$A44,$I$6,,,$I$8,$I$12) -> 195316 | K44: 2021-07-27T08:55:00 | L44: 44404.37153 | M44: 08:55
A45: 43 | B45: =RTD("cqg.rtd",,"StudyData", $I$2, "BAR", "", "Time", $I$4,-$A45,$I$6,$I$10, "","False","T") -> 2021-07-27T08:50:00 | C45: =RTD("cqg.rtd",,"StudyData", $I$2, "BAR", "", "Open", $I$4, -$A45, $I$6,$I$10,,$I$8,$I$12) -> 65.39 | D45: =RTD("cqg.rtd",,"StudyData", $I$2, "BAR", "", "High", $I$4, -$A45, $I$6,$I$10,,$I$8,$I$12) -> 65.58 | E45: =RTD("cqg.rtd",,"StudyData", $I$2, "BAR", "", "Low", $I$4, -$A45, $I$6,$I$10,,$I$8,$I$12) -> 65.37 | F45: =RTD("cqg.rtd",,"StudyData", $I$2, "BAR", "", "Close", $I$4, -$A45, $I$6,$I$10,,$I$8,$I$12) -> 65.56 | G45: =RTD("cqg.rtd",,"StudyData", $I$2, "Vol", "VolType=auto,CoCType=auto", "Vol",$I$4,-$A45,$I$6,,,$I$8,$I$12) -> 273563 | K45: 2021-07-27T08:50:00 | L45: 44404.36806 | M45: 08:50
A46: 44 | B46: =RTD("cqg.rtd",,"StudyData", $I$2, "BAR", "", "Time", $I$4,-$A46,$I$6,$I$10, "","False","T") -> 2021-07-27T08:45:00 | C46: =RTD("cqg.rtd",,"StudyData", $I$2, "BAR", "", "Open", $I$4, -$A46, $I$6,$I$10,,$I$8,$I$12) -> 65.4 | D46: =RTD("cqg.rtd",,"StudyData", $I$2, "BAR", "", "High", $I$4, -$A46, $I$6,$I$10,,$I$8,$I$12) -> 65.47 | E46: =RTD("cqg.rtd",,"StudyData", $I$2, "BAR", "", "Low", $I$4, -$A46, $I$6,$I$10,,$I$8,$I$12) -> 65.32 | F46: =RTD("cqg.rtd",,"StudyData", $I$2, "BAR", "", "Close", $I$4, -$A46, $I$6,$I$10,,$I$8,$I$12) -> 65.39 | G46: =RTD("cqg.rtd",,"StudyData", $I$2, "Vol", "VolType=auto,CoCType=auto", "Vol",$I$4,-$A46,$I$6,,,$I$8,$I$12) -> 155270 | K46: 2021-07-27T08:45:00 | L46: 44404.36458 | M46: 08:45
A47: 45 | B47: =RTD("cqg.rtd",,"StudyData", $I$2, "BAR", "", "Time", $I$4,-$A47,$I$6,$I$10, "","False","T") -> 2021-07-27T08:40:00 | C47: =RTD("cqg.rtd",,"StudyData", $I$2, "BAR", "", "Open", $I$4, -$A47, $I$6,$I$10,,$I$8,$I$12) -> 65.31 | D47: =RTD("cqg.rtd",,"StudyData", $I$2, "BAR", "", "High", $I$4, -$A47, $I$6,$I$10,,$I$8,$I$12) -> 65.41 | E47: =RTD("cqg.rtd",,"StudyData", $I$2, "BAR", "", "Low", $I$4, -$A47, $I$6,$I$10,,$I$8,$I$12) -> 65.3 | F47: =RTD("cqg.rtd",,"StudyData", $I$2, "BAR", "", "Close", $I$4, -$A47, $I$6,$I$10,,$I$8,$I$12) -> 65.4 | G47: =RTD("cqg.rtd",,"StudyData", $I$2, "Vol", "VolType=auto,CoCType=auto", "Vol",$I$4,-$A47,$I$6,,,$I$8,$I$12) -> 125237 | K47: =B47 -> 2021-07-27T08:40:00 | L47: =B47 -> 44404.36111 | M47: =IF(OR($I$4="D",$I$4="W",$I$4=",'M"),TEXT(K47,"MM/DD/YY"),TEXT(L47,"HH:MM")) -> 08:40
A48: 46 | B48: =RTD("cqg.rtd",,"StudyData", $I$2, "BAR", "", "Time", $I$4,-$A48,$I$6,$I$10, "","False","T") -> 2021-07-27T08:35:00 | C48: =RTD("cqg.rtd",,"StudyData", $I$2, "BAR", "", "Open", $I$4, -$A48, $I$6,$I$10,,$I$8,$I$12) -> 65.55 | D48: =RTD("cqg.rtd",,"StudyData", $I$2, "BAR", "", "High", $I$4, -$A48, $I$6,$I$10,,$I$8,$I$12) -> 65.63 | E48: =RTD("cqg.rtd",,"StudyData", $I$2, "BAR", "", "Low", $I$4, -$A48, $I$6,$I$10,,$I$8,$I$12) -> 65.31 | F48: =RTD("cqg.rtd",,"StudyData", $I$2, "BAR", "", "Close", $I$4, -$A48, $I$6,$I$10,,$I$8,$I$12) -> 65.31 | G48: =RTD("cqg.rtd",,"StudyData", $I$2, "Vol", "VolType=auto,CoCType=auto", "Vol",$I$4,-$A48,$I$6,,,$I$8,$I$12) -> 269181 | K48: 2021-07-27T08:35:00 | L48: 44404.35764 | M48: 08:35
A49: 47 | B49: =RTD("cqg.rtd",,"StudyData", $I$2, "BAR", "", "Time", $I$4,-$A49,$I$6,$I$10, "","False","T") -> 2021-07-27T08:30:00 | C49: =RTD("cqg.rtd",,"StudyData", $I$2, "BAR", "", "Open", $I$4, -$A49, $I$6,$I$10,,$I$8,$I$12) -> 65.68 | D49: =RTD("cqg.rtd",,"StudyData", $I$2, "BAR", "", "High", $I$4, -$A49, $I$6,$I$10,,$I$8,$I$12) -> 65.68 | E49: =RTD("cqg.rtd",,"StudyData", $I$2, "BAR", "", "Low", $I$4, -$A49, $I$6,$I$10,,$I$8,$I$12) -> 65.49 | F49: =RTD("cqg.rtd",,"StudyData", $I$2, "BAR", "", "Close", $I$4, -$A49, $I$6,$I$10,,$I$8,$I$12) -> 65.54 | G49: =RTD("cqg.rtd",,"StudyData", $I$2, "Vol", "VolType=auto,CoCType=auto", "Vol",$I$4,-$A49,$I$6,,,$I$8,$I$12) -> 413334 | K49: 2021-07-27T08:30:00 | L49: 44404.35417 | M49: 08:30
A50: 48 | B50: =RTD("cqg.rtd",,"StudyData", $I$2, "BAR", "", "Time", $I$4,-$A50,$I$6,$I$10, "","False","T") -> 2021-07-26T14:55:00 | C50: =RTD("cqg.rtd",,"StudyData", $I$2, "BAR", "", "Open", $I$4, -$A50, $I$6,$I$10,,$I$8,$I$12) -> 65.69 | D50: =RTD("cqg.rtd",,"StudyData", $I$2, "BAR", "", "High", $I$4, -$A50, $I$6,$I$10,,$I$8,$I$12) -> 65.73 | E50: =RTD("cqg.rtd",,"StudyData", $I$2, "BAR", "", "Low", $I$4, -$A50, $I$6,$I$10,,$I$8,$I$12) -> 65.64 | F50: =RTD("cqg.rtd",,"StudyData", $I$2, "BAR", "", "Close", $I$4, -$A50, $I$6,$I$10,,$I$8,$I$12) -> 65.73 | G50: =RTD("cqg.rtd",,"StudyData", $I$2, "Vol", "VolType=auto,CoCType=auto", "Vol",$I$4,-$A50,$I$6,,,$I$8,$I$12) -> 1063432 | K50: 2021-07-26T14:55:00 | L50: 44403.62153 | M50: 14:55
A51: 49 | B51: =RTD("cqg.rtd",,"StudyData", $I$2, "BAR", "", "Time", $I$4,-$A51,$I$6,$I$10, "","False","T") -> 2021-07-26T14:50:00 | C51: =RTD("cqg.rtd",,"StudyData", $I$2, "BAR", "", "Open", $I$4, -$A51, $I$6,$I$10,,$I$8,$I$12) -> 65.62 | D51: =RTD("cqg.rtd",,"StudyData", $I$2, "BAR", "", "High", $I$4, -$A51, $I$6,$I$10,,$I$8,$I$12) -> 65.69 | E51: =RTD("cqg.rtd",,"StudyData", $I$2, "BAR", "", "Low", $I$4, -$A51, $I$6,$I$10,,$I$8,$I$12) -> 65.6 | F51: =RTD("cqg.rtd",,"StudyData", $I$2, "BAR", "", "Close", $I$4, -$A51, $I$6,$I$10,,$I$8,$I$12) -> 65.68 | G51: =RTD("cqg.rtd",,"StudyData", $I$2, "Vol", "VolType=auto,CoCType=auto", "Vol",$I$4,-$A51,$I$6,,,$I$8,$I$12) -> 246726 | K51: 2021-07-26T14:50:00 | L51: 44403.61806 | M51: 14:50
A52: 50 | B52: =RTD("cqg.rtd",,"StudyData", $I$2, "BAR", "", "Time", $I$4,-$A52,$I$6,$I$10, "","False","T") -> 2021-07-26T14:45:00 | C52: =RTD("cqg.rtd",,"StudyData", $I$2, "BAR", "", "Open", $I$4, -$A52, $I$6,$I$10,,$I$8,$I$12) -> 65.57 | D52: =RTD("cqg.rtd",,"StudyData", $I$2, "BAR", "", "High", $I$4, -$A52, $I$6,$I$10,,$I$8,$I$12) -> 65.64 | E52: =RTD("cqg.rtd",,"StudyData", $I$2, "BAR", "", "Low", $I$4, -$A52, $I$6,$I$10,,$I$8,$I$12) -> 65.55 | F52: =RTD("cqg.rtd",,"StudyData", $I$2, "BAR", "", "Close", $I$4, -$A52, $I$6,$I$10,,$I$8,$I$12) -> 65.62 | G52: =RTD("cqg.rtd",,"StudyData", $I$2, "Vol", "VolType=auto,CoCType=auto", "Vol",$I$4,-$A52,$I$6,,,$I$8,$I$12) -> 149135 | K52: 2021-07-26T14:45:00 | L52: 44403.61458 | M52: 14:45
A53: 51 | B53: =RTD("cqg.rtd",,"StudyData", $I$2, "BAR", "", "Time", $I$4,-$A53,$I$6,$I$10, "","False","T") -> 2021-07-26T14:40:00 | C53: =RTD("cqg.rtd",,"StudyData", $I$2, "BAR", "", "Open", $I$4, -$A53, $I$6,$I$10,,$I$8,$I$12) -> 65.52 | D53: =RTD("cqg.rtd",,"StudyData", $I$2, "BAR", "", "High", $I$4, -$A53, $I$6,$I$10,,$I$8,$I$12) -> 65.59 | E53: =RTD("cqg.rtd",,"StudyData", $I$2, "BAR", "", "Low", $I$4, -$A53, $I$6,$I$10,,$I$8,$I$12) -> 65.51 | F53: =RTD("cqg.rtd",,"StudyData", $I$2, "BAR", "", "Close", $I$4, -$A53, $I$6,$I$10,,$I$8,$I$12) -> 65.57 | G53: =RTD("cqg.rtd",,"StudyData", $I$2, "Vol", "VolType=auto,CoCType=auto", "Vol",$I$4,-$A53,$I$6,,,$I$8,$I$12) -> 261890 | K53: 2021-07-26T14:40:00 | L53: 44403.61111 | M53: 14:40
A54: 52 | B54: =RTD("cqg.rtd",,"StudyData", $I$2, "BAR", "", "Time", $I$4,-$A54,$I$6,$I$10, "","False","T") -> 2021-07-26T14:35:00 | C54: =RTD("cqg.rtd",,"StudyData", $I$2, "BAR", "", "Open", $I$4, -$A54, $I$6,$I$10,,$I$8,$I$12) -> 65.52 | D54: =RTD("cqg.rtd",,"StudyData", $I$2, "BAR", "", "High", $I$4, -$A54, $I$6,$I$10,,$I$8,$I$12) -> 65.56 | E54: =RTD("cqg.rtd",,"StudyData", $I$2, "BAR", "", "Low", $I$4, -$A54, $I$6,$I$10,,$I$8,$I$12) -> 65.48 | F54: =RTD("cqg.rtd",,"StudyData", $I$2, "BAR", "", "Close", $I$4, -$A54, $I$6,$I$10,,$I$8,$I$12) -> 65.51 | G54: =RTD("cqg.rtd",,"StudyData", $I$2, "Vol", "VolType=auto,CoCType=auto", "Vol",$I$4,-$A54,$I$6,,,$I$8,$I$12) -> 314985 | K54: 2021-07-26T14:35:00 | L54: 44403.60764 | M54: 14:35
A55: 53 | B55: =RTD("cqg.rtd",,"StudyData", $I$2, "BAR", "", "Time", $I$4,-$A55,$I$6,$I$10, "","False","T") -> 2021-07-26T14:30:00 | C55: =RTD("cqg.rtd",,"StudyData", $I$2, "BAR", "", "Open", $I$4, -$A55, $I$6,$I$10,,$I$8,$I$12) -> 65.46 | D55: =RTD("cqg.rtd",,"StudyData", $I$2, "BAR", "", "High", $I$4, -$A55, $I$6,$I$10,,$I$8,$I$12) -> 65.55 | E55: =RTD("cqg.rtd",,"StudyData", $I$2, "BAR", "", "Low", $I$4, -$A55, $I$6,$I$10,,$I$8,$I$12) -> 65.45 | F55: =RTD("cqg.rtd",,"StudyData", $I$2, "BAR", "", "Close", $I$4, -$A55, $I$6,$I$10,,$I$8,$I$12) -> 65.53 | G55: =RTD("cqg.rtd",,"StudyData", $I$2, "Vol", "VolType=auto,CoCType=auto", "Vol",$I$4,-$A55,$I$6,,,$I$8,$I$12) -> 206263 | K55: 2021-07-26T14:30:00 | L55: 44403.60417 | M55: 14:30
A56: 54 | B56: =RTD("cqg.rtd",,"StudyData", $I$2, "BAR", "", "Time", $I$4,-$A56,$I$6,$I$10, "","False","T") -> 2021-07-26T14:25:00 | C56: =RTD("cqg.rtd",,"StudyData", $I$2, "BAR", "", "Open", $I$4, -$A56, $I$6,$I$10,,$I$8,$I$12) -> 65.54 | D56: =RTD("cqg.rtd",,"StudyData", $I$2, "BAR", "", "High", $I$4, -$A56, $I$6,$I$10,,$I$8,$I$12) -> 65.54 | E56: =RTD("cqg.rtd",,"StudyData", $I$2, "BAR", "", "Low", $I$4, -$A56, $I$6,$I$10,,$I$8,$I$12) -> 65.44 | F56: =RTD("cqg.rtd",,"StudyData", $I$2, "BAR", "", "Close", $I$4, -$A56, $I$6,$I$10,,$I$8,$I$12) -> 65.47 | G56: =RTD("cqg.rtd",,"StudyData", $I$2, "Vol", "VolType=auto,CoCType=auto", "Vol",$I$4,-$A56,$I$6,,,$I$8,$I$12) -> 175450 | K56: 2021-07-26T14:25:00 | L56: 44403.60069 | M56: 14:25
A57: 55 | B57: =RTD("cqg.rtd",,"StudyData", $I$2, "BAR", "", "Time", $I$4,-$A57,$I$6,$I$10, "","False","T") -> 2021-07-26T14:20:00 | C57: =RTD("cqg.rtd",,"StudyData", $I$2, "BAR", "", "Open", $I$4, -$A57, $I$6,$I$10,,$I$8,$I$12) -> 65.54 | D57: =RTD("cqg.rtd",,"StudyData", $I$2, "BAR", "", "High", $I$4, -$A57, $I$6,$I$10,,$I$8,$I$12) -> 65.56 | E57: =RTD("cqg.rtd",,"StudyData", $I$2, "BAR", "", "Low", $I$4, -$A57, $I$6,$I$10,,$I$8,$I$12) -> 65.53 | F57: =RTD("cqg.rtd",,"StudyData", $I$2, "BAR", "", "Close", $I$4, -$A57, $I$6,$I$10,,$I$8,$I$12) -> 65.54 | G57: =RTD("cqg.rtd",,"StudyData", $I$2, "Vol", "VolType=auto,CoCType=auto", "Vol",$I$4,-$A57,$I$6,,,$I$8,$I$12) -> 77120 | K57: 2021-07-26T14:20:00 | L57: 44403.59722 | M57: 14:20
A58: 56 | B58: =RTD("cqg.rtd",,"StudyData", $I$2, "BAR", "", "Time", $I$4,-$A58,$I$6,$I$10, "","False","T") -> 2021-07-26T14:15:00 | C58: =RTD("cqg.rtd",,"StudyData", $I$2, "BAR", "", "Open", $I$4, -$A58, $I$6,$I$10,,$I$8,$I$12) -> 65.56 | D58: =RTD("cqg.rtd",,"StudyData", $I$2, "BAR", "", "High", $I$4, -$A58, $I$6,$I$10,,$I$8,$I$12) -> 65.56 | E58: =RTD("cqg.rtd",,"StudyData", $I$2, "BAR", "", "Low", $I$4, -$A58, $I$6,$I$10,,$I$8,$I$12) -> 65.52 | F58: =RTD("cqg.rtd",,"StudyData", $I$2, "BAR", "", "Close", $I$4, -$A58, $I$6,$I$10,,$I$8,$I$12) -> 65.54 | G58: =RTD("cqg.rtd",,"StudyData", $I$2, "Vol", "VolType=auto,CoCType=auto", "Vol",$I$4,-$A58,$I$6,,,$I$8,$I$12) -> 56884 | K58: 2021-07-26T14:15:00 | L58: 44403.59375 | M58: 14:15
A59: 57 | B59: =RTD("cqg.rtd",,"StudyData", $I$2, "BAR", "", "Time", $I$4,-$A59,$I$6,$I$10, "","False","T") -> 2021-07-26T14:10:00 | C59: =RTD("cqg.rtd",,"StudyData", $I$2, "BAR", "", "Open", $I$4, -$A59, $I$6,$I$10,,$I$8,$I$12) -> 65.62 | D59: =RTD("cqg.rtd",,"StudyData", $I$2, "BAR", "", "High", $I$4, -$A59, $I$6,$I$10,,$I$8,$I$12) -> 65.62 | E59: =RTD("cqg.rtd",,"StudyData", $I$2, "BAR", "", "Low", $I$4, -$A59, $I$6,$I$10,,$I$8,$I$12) -> 65.55 | F59: =RTD("cqg.rtd",,"StudyData", $I$2, "BAR", "", "Close", $I$4, -$A59, $I$6,$I$10,,$I$8,$I$12) -> 65.56 | G59: =RTD("cqg.rtd",,"StudyData", $I$2, "Vol", "VolType=auto,CoCType=auto", "Vol",$I$4,-$A59,$I$6,,,$I$8,$I$12) -> 72452 | K59: 2021-07-26T14:10:00 | L59: 44403.59028 | M59: 14:10
A60: 58 | B60: =RTD("cqg.rtd",,"StudyData", $I$2, "BAR", "", "Time", $I$4,-$A60,$I$6,$I$10, "","False","T") -> 2021-07-26T14:05:00 | C60: =RTD("cqg.rtd",,"StudyData", $I$2, "BAR", "", "Open", $I$4, -$A60, $I$6,$I$10,,$I$8,$I$12) -> 65.58 | D60: =RTD("cqg.rtd",,"StudyData", $I$2, "BAR", "", "High", $I$4, -$A60, $I$6,$I$10,,$I$8,$I$12) -> 65.62 | E60: =RTD("cqg.rtd",,"StudyData", $I$2, "BAR", "", "Low", $I$4, -$A60, $I$6,$I$10,,$I$8,$I$12) -> 65.57 | F60: =RTD("cqg.rtd",,"StudyData", $I$2, "BAR", "", "Close", $I$4, -$A60, $I$6,$I$10,,$I$8,$I$12) -> 65.61 | G60: =RTD("cqg.rtd",,"StudyData", $I$2, "Vol", "VolType=auto,CoCType=auto", "Vol",$I$4,-$A60,$I$6,,,$I$8,$I$12) -> 77807 | K60: 2021-07-26T14:05:00 | L60: 44403.58681 | M60: 14:05
A61: 59 | B61: =RTD("cqg.rtd",,"StudyData", $I$2, "BAR", "", "Time", $I$4,-$A61,$I$6,$I$10, "","False","T") -> 2021-07-26T14:00:00 | C61: =RTD("cqg.rtd",,"StudyData", $I$2, "BAR", "", "Open", $I$4, -$A61, $I$6,$I$10,,$I$8,$I$12) -> 65.61 | D61: =RTD("cqg.rtd",,"StudyData", $I$2, "BAR", "", "High", $I$4, -$A61, $I$6,$I$10,,$I$8,$I$12) -> 65.62 | E61: =RTD("cqg.rtd",,"StudyData", $I$2, "BAR", "", "Low", $I$4, -$A61, $I$6,$I$10,,$I$8,$I$12) -> 65.57 | F61: =RTD("cqg.rtd",,"StudyData", $I$2, "BAR", "", "Close", $I$4, -$A61, $I$6,$I$10,,$I$8,$I$12) -> 65.59 | G61: =RTD("cqg.rtd",,"StudyData", $I$2, "Vol", "VolType=auto,CoCType=auto", "Vol",$I$4,-$A61,$I$6,,,$I$8,$I$12) -> 93504 | K61: 2021-07-26T14:00:00 | L61: 44403.58333 | M61: 14:00
A62: 60 | B62: =RTD("cqg.rtd",,"StudyData", $I$2, "BAR", "", "Time", $I$4,-$A62,$I$6,$I$10, "","False","T") -> 2021-07-26T13:55:00 | C62: =RTD("cqg.rtd",,"StudyData", $I$2, "BAR", "", "Open", $I$4, -$A62, $I$6,$I$10,,$I$8,$I$12) -> 65.56 | D62: =RTD("cqg.rtd",,"StudyData", $I$2, "BAR", "", "High", $I$4, -$A62, $I$6,$I$10,,$I$8,$I$12) -> 65.62 | E62: =RTD("cqg.rtd",,"StudyData", $I$2, "BAR", "", "Low", $I$4, -$A62, $I$6,$I$10,,$I$8,$I$12) -> 65.53 | F62: =RTD("cqg.rtd",,"StudyData", $I$2, "BAR", "", "Close", $I$4, -$A62, $I$6,$I$10,,$I$8,$I$12) -> 65.61 | G62: =RTD("cqg.rtd",,"StudyData", $I$2, "Vol", "VolType=auto,CoCType=auto", "Vol",$I$4,-$A62,$I$6,,,$I$8,$I$12) -> 66620 | K62: 2021-07-26T13:55:00 | L62: 44403.57986 | M62: 13:55
A63: 61 | B63: =RTD("cqg.rtd",,"StudyData", $I$2, "BAR", "", "Time", $I$4,-$A63,$I$6,$I$10, "","False","T") -> 2021-07-26T13:50:00 | C63: =RTD("cqg.rtd",,"StudyData", $I$2, "BAR", "", "Open", $I$4, -$A63, $I$6,$I$10,,$I$8,$I$12) -> 65.49 | D63: =RTD("cqg.rtd",,"StudyData", $I$2, "BAR", "", "High", $I$4, -$A63, $I$6,$I$10,,$I$8,$I$12) -> 65.57 | E63: =RTD("cqg.rtd",,"StudyData", $I$2, "BAR", "", "Low", $I$4, -$A63, $I$6,$I$10,,$I$8,$I$12) -> 65.49 | F63: =RTD("cqg.rtd",,"StudyData", $I$2, "BAR", "", "Close", $I$4, -$A63, $I$6,$I$10,,$I$8,$I$12) -> 65.57 | G63: =RTD("cqg.rtd",,"StudyData", $I$2, "Vol", "VolType=auto,CoCType=auto", "Vol",$I$4,-$A63,$I$6,,,$I$8,$I$12) -> 42398 | K63: 2021-07-26T13:50:00 | L63: 44403.57639 | M63: 13:50
A64: 62 | B64: =RTD("cqg.rtd",,"StudyData", $I$2, "BAR", "", "Time", $I$4,-$A64,$I$6,$I$10, "","False","T") -> 2021-07-26T13:45:00 | C64: =RTD("cqg.rtd",,"StudyData", $I$2, "BAR", "", "Open", $I$4, -$A64, $I$6,$I$10,,$I$8,$I$12) -> 65.52 | D64: =RTD("cqg.rtd",,"StudyData", $I$2, "BAR", "", "High", $I$4, -$A64, $I$6,$I$10,,$I$8,$I$12) -> 65.52 | E64: =RTD("cqg.rtd",,"StudyData", $I$2, "BAR", "", "Low", $I$4, -$A64, $I$6,$I$10,,$I$8,$I$12) -> 65.47 | F64: =RTD("cqg.rtd",,"StudyData", $I$2, "BAR", "", "Close", $I$4, -$A64, $I$6,$I$10,,$I$8,$I$12) -> 65.49 | G64: =RTD("cqg.rtd",,"StudyData", $I$2, "Vol", "VolType=auto,CoCType=auto", "Vol",$I$4,-$A64,$I$6,,,$I$8,$I$12) -> 44973 | K64: 2021-07-26T13:45:00 | L64: 44403.57292 | M64: 13:45
A65: 63 | B65: =RTD("cqg.rtd",,"StudyData", $I$2, "BAR", "", "Time", $I$4,-$A65,$I$6,$I$10, "","False","T") -> 2021-07-26T13:40:00 | C65: =RTD("cqg.rtd",,"StudyData", $I$2, "BAR", "", "Open", $I$4, -$A65, $I$6,$I$10,,$I$8,$I$12) -> 65.58 | D65: =RTD("cqg.rtd",,"StudyData", $I$2, "BAR", "", "High", $I$4, -$A65, $I$6,$I$10,,$I$8,$I$12) -> 65.58 | E65: =RTD("cqg.rtd",,"StudyData", $I$2, "BAR", "", "Low", $I$4, -$A65, $I$6,$I$10,,$I$8,$I$12) -> 65.5 | F65: =RTD("cqg.rtd",,"StudyData", $I$2, "BAR", "", "Close", $I$4, -$A65, $I$6,$I$10,,$I$8,$I$12) -> 65.51 | G65: =RTD("cqg.rtd",,"StudyData", $I$2, "Vol", "VolType=auto,CoCType=auto", "Vol",$I$4,-$A65,$I$6,,,$I$8,$I$12) -> 88502 | K65: 2021-07-26T13:40:00 | L65: 44403.56944 | M65: 13:40
A66: 64 | B66: =RTD("cqg.rtd",,"StudyData", $I$2, "BAR", "", "Time", $I$4,-$A66,$I$6,$I$10, "","False","T") -> 2021-07-26T13:35:00 | C66: =RTD("cqg.rtd",,"StudyData", $I$2, "BAR", "", "Open", $I$4, -$A66, $I$6,$I$10,,$I$8,$I$12) -> 65.59 | D66: =RTD("cqg.rtd",,"StudyData", $I$2, "BAR", "", "High", $I$4, -$A66, $I$6,$I$10,,$I$8,$I$12) -> 65.59 | E66: =RTD("cqg.rtd",,"StudyData", $I$2, "BAR", "", "Low", $I$4, -$A66, $I$6,$I$10,,$I$8,$I$12) -> 65.56 | F66: =RTD("cqg.rtd",,"StudyData", $I$2, "BAR", "", "Close", $I$4, -$A66, $I$6,$I$10,,$I$8,$I$12) -> 65.58 | G66: =RTD("cqg.rtd",,"StudyData", $I$2, "Vol", "VolType=auto,CoCType=auto", "Vol",$I$4,-$A66,$I$6,,,$I$8,$I$12) -> 56097 | K66: 2021-07-26T13:35:00 | L66: 44403.56597 | M66: 13:35
A67: 65 | B67: =RTD("cqg.rtd",,"StudyData", $I$2, "BAR", "", "Time", $I$4,-$A67,$I$6,$I$10, "","False","T") -> 2021-07-26T13:30:00 | C67: =RTD("cqg.rtd",,"StudyData", $I$2, "BAR", "", "Open", $I$4, -$A67, $I$6,$I$10,,$I$8,$I$12) -> 65.62 | D67: =RTD("cqg.rtd",,"StudyData", $I$2, "BAR", "", "High", $I$4, -$A67, $I$6,$I$10,,$I$8,$I$12) -> 65.62 | E67: =RTD("cqg.rtd",,"StudyData", $I$2, "BAR", "", "Low", $I$4, -$A67, $I$6,$I$10,,$I$8,$I$12) -> 65.55 | F67: =RTD("cqg.rtd",,"StudyData", $I$2, "BAR", "", "Close", $I$4, -$A67, $I$6,$I$10,,$I$8,$I$12) -> 65.59 | G67: =RTD("cqg.rtd",,"StudyData", $I$2, "Vol", "VolType=auto,CoCType=auto", "Vol",$I$4,-$A67,$I$6,,,$I$8,$I$12) -> 167169 | K67: 2021-07-26T13:30:00 | L67: 44403.5625 | M67: 13:30
A68: =A67+1 -> 66 | B68: =RTD("cqg.rtd",,"StudyData", $I$2, "BAR", "", "Time", $I$4,-$A68,$I$6,$I$10, "","False","T") -> 2021-07-26T13:25:00 | C68: =RTD("cqg.rtd",,"StudyData", $I$2, "BAR", "", "Open", $I$4, -$A68, $I$6,$I$10,,$I$8,$I$12) -> 65.61 | D68: =RTD("cqg.rtd",,"StudyData", $I$2, "BAR", "", "High", $I$4, -$A68, $I$6,$I$10,,$I$8,$I$12) -> 65.62 | E68: =RTD("cqg.rtd",,"StudyData", $I$2, "BAR", "", "Low", $I$4, -$A68, $I$6,$I$10,,$I$8,$I$12) -> 65.58 | F68: =RTD("cqg.rtd",,"StudyData", $I$2, "BAR", "", "Close", $I$4, -$A68, $I$6,$I$10,,$I$8,$I$12) -> 65.62 | G68: =RTD("cqg.rtd",,"StudyData", $I$2, "Vol", "VolType=auto,CoCType=auto", "Vol",$I$4,-$A68,$I$6,,,$I$8,$I$12) -> 40000 | K68: 2021-07-26T13:25:00 | L68: 44403.55903 | M68: 13:25
A69: 67 | B69: =RTD("cqg.rtd",,"StudyData", $I$2, "BAR", "", "Time", $I$4,-$A69,$I$6,$I$10, "","False","T") -> 2021-07-26T13:20:00 | C69: =RTD("cqg.rtd",,"StudyData", $I$2, "BAR", "", "Open", $I$4, -$A69, $I$6,$I$10,,$I$8,$I$12) -> 65.66 | D69: =RTD("cqg.rtd",,"StudyData", $I$2, "BAR", "", "High", $I$4, -$A69, $I$6,$I$10,,$I$8,$I$12) -> 65.66 | E69: =RTD("cqg.rtd",,"StudyData", $I$2, "BAR", "", "Low", $I$4, -$A69, $I$6,$I$10,,$I$8,$I$12) -> 65.6 | F69: =RTD("cqg.rtd",,"StudyData", $I$2, "BAR", "", "Close", $I$4, -$A69, $I$6,$I$10,,$I$8,$I$12) -> 65.6 | G69: =RTD("cqg.rtd",,"StudyData", $I$2, "Vol", "VolType=auto,CoCType=auto", "Vol",$I$4,-$A69,$I$6,,,$I$8,$I$12) -> 49910 | K69: 2021-07-26T13:20:00 | L69: 44403.55556 | M69: 13:20
A70: 68 | B70: =RTD("cqg.rtd",,"StudyData", $I$2, "BAR", "", "Time", $I$4,-$A70,$I$6,$I$10, "","False","T") -> 2021-07-26T13:15:00 | C70: =RTD("cqg.rtd",,"StudyData", $I$2, "BAR", "", "Open", $I$4, -$A70, $I$6,$I$10,,$I$8,$I$12) -> 65.58 | D70: =RTD("cqg.rtd",,"StudyData", $I$2, "BAR", "", "High", $I$4, -$A70, $I$6,$I$10,,$I$8,$I$12) -> 65.67 | E70: =RTD("cqg.rtd",,"StudyData", $I$2, "BAR", "", "Low", $I$4, -$A70, $I$6,$I$10,,$I$8,$I$12) -> 65.58 | F70: =RTD("cqg.rtd",,"StudyData", $I$2, "BAR", "", "Close", $I$4, -$A70, $I$6,$I$10,,$I$8,$I$12) -> 65.66 | G70: =RTD("cqg.rtd",,"StudyData", $I$2, "Vol", "VolType=auto,CoCType=auto", "Vol",$I$4,-$A70,$I$6,,,$I$8,$I$12) -> 74379 | K70: 2021-07-26T13:15:00 | L70: 44403.55208 | M70: 13:15
A71: 69 | B71: =RTD("cqg.rtd",,"StudyData", $I$2, "BAR", "", "Time", $I$4,-$A71,$I$6,$I$10, "","False","T") -> 2021-07-26T13:10:00 | C71: =RTD("cqg.rtd",,"StudyData", $I$2, "BAR", "", "Open", $I$4, -$A71, $I$6,$I$10,,$I$8,$I$12) -> 65.65 | D71: =RTD("cqg.rtd",,"StudyData", $I$2, "BAR", "", "High", $I$4, -$A71, $I$6,$I$10,,$I$8,$I$12) -> 65.65 | E71: =RTD("cqg.rtd",,"StudyData", $I$2, "BAR", "", "Low", $I$4, -$A71, $I$6,$I$10,,$I$8,$I$12) -> 65.58 | F71: =RTD("cqg.rtd",,"StudyData", $I$2, "BAR", "", "Close", $I$4, -$A71, $I$6,$I$10,,$I$8,$I$12) -> 65.58 | G71: =RTD("cqg.rtd",,"StudyData", $I$2, "Vol", "VolType=auto,CoCType=auto", "Vol",$I$4,-$A71,$I$6,,,$I$8,$I$12) -> 47783 | K71: 2021-07-26T13:10:00 | L71: 44403.54861 | M71: 13:10
A72: 70 | B72: =RTD("cqg.rtd",,"StudyData", $I$2, "BAR", "", "Time", $I$4,-$A72,$I$6,$I$10, "","False","T") -> 2021-07-26T13:05:00 | C72: =RTD("cqg.rtd",,"StudyData", $I$2, "BAR", "", "Open", $I$4, -$A72, $I$6,$I$10,,$I$8,$I$12) -> 65.66 | D72: =RTD("cqg.rtd",,"StudyData", $I$2, "BAR", "", "High", $I$4, -$A72, $I$6,$I$10,,$I$8,$I$12) -> 65.66 | E72: =RTD("cqg.rtd",,"StudyData", $I$2, "BAR", "", "Low", $I$4, -$A72, $I$6,$I$10,,$I$8,$I$12) -> 65.64 | F72: =RTD("cqg.rtd",,"StudyData", $I$2, "BAR", "", "Close", $I$4, -$A72, $I$6,$I$10,,$I$8,$I$12) -> 65.65 | G72: =RTD("cqg.rtd",,"StudyData", $I$2, "Vol", "VolType=auto,CoCType=auto", "Vol",$I$4,-$A72,$I$6,,,$I$8,$I$12) -> 30876 | K72: 2021-07-26T13:05:00 | L72: 44403.54514 | M72: 13:05
A73: 71 | B73: =RTD("cqg.rtd",,"StudyData", $I$2, "BAR", "", "Time", $I$4,-$A73,$I$6,$I$10, "","False","T") -> 2021-07-26T13:00:00 | C73: =RTD("cqg.rtd",,"StudyData", $I$2, "BAR", "", "Open", $I$4, -$A73, $I$6,$I$10,,$I$8,$I$12) -> 65.66 | D73: =RTD("cqg.rtd",,"StudyData", $I$2, "BAR", "", "High", $I$4, -$A73, $I$6,$I$10,,$I$8,$I$12) -> 65.69 | E73: =RTD("cqg.rtd",,"StudyData", $I$2, "BAR", "", "Low", $I$4, -$A73, $I$6,$I$10,,$I$8,$I$12) -> 65.65 | F73: =RTD("cqg.rtd",,"StudyData", $I$2, "BAR", "", "Close", $I$4, -$A73, $I$6,$I$10,,$I$8,$I$12) -> 65.66 | G73: =RTD("cqg.rtd",,"StudyData", $I$2, "Vol", "VolType=auto,CoCType=auto", "Vol",$I$4,-$A73,$I$6,,,$I$8,$I$12) -> 37470 | K73: 2021-07-26T13:00:00 | L73: 44403.54167 | M73: 13:00
A74: 72 | B74: =RTD("cqg.rtd",,"StudyData", $I$2, "BAR", "", "Time", $I$4,-$A74,$I$6,$I$10, "","False","T") -> 2021-07-26T12:55:00 | C74: =RTD("cqg.rtd",,"StudyData", $I$2, "BAR", "", "Open", $I$4, -$A74, $I$6,$I$10,,$I$8,$I$12) -> 65.76 | D74: =RTD("cqg.rtd",,"StudyData", $I$2, "BAR", "", "High", $I$4, -$A74, $I$6,$I$10,,$I$8,$I$12) -> 65.76 | E74: =RTD("cqg.rtd",,"StudyData", $I$2, "BAR", "", "Low", $I$4, -$A74, $I$6,$I$10,,$I$8,$I$12) -> 65.64 | F74: =RTD("cqg.rtd",,"StudyData", $I$2, "BAR", "", "Close", $I$4, -$A74, $I$6,$I$10,,$I$8,$I$12) -> 65.65 | G74: =RTD("cqg.rtd",,"StudyData", $I$2, "Vol", "VolType=auto,CoCType=auto", "Vol",$I$4,-$A74,$I$6,,,$I$8,$I$12) -> 155420 | K74: 2021-07-26T12:55:00 | L74: 44403.53819 | M74: 12:55
A75: 73 | B75: =RTD("cqg.rtd",,"StudyData", $I$2, "BAR", "", "Time", $I$4,-$A75,$I$6,$I$10, "","False","T") -> 2021-07-26T12:50:00 | C75: =RTD("cqg.rtd",,"StudyData", $I$2, "BAR", "", "Open", $I$4, -$A75, $I$6,$I$10,,$I$8,$I$12) -> 65.77 | D75: =RTD("cqg.rtd",,"StudyData", $I$2, "BAR", "", "High", $I$4, -$A75, $I$6,$I$10,,$I$8,$I$12) -> 65.79 | E75: =RTD("cqg.rtd",,"StudyData", $I$2, "BAR", "", "Low", $I$4, -$A75, $I$6,$I$10,,$I$8,$I$12) -> 65.75 | F75: =RTD("cqg.rtd",,"StudyData", $I$2, "BAR", "", "Close", $I$4, -$A75, $I$6,$I$10,,$I$8,$I$12) -> 65.76 | G75: =RTD("cqg.rtd",,"StudyData", $I$2, "Vol", "VolType=auto,CoCType=auto", "Vol",$I$4,-$A75,$I$6,,,$I$8,$I$12) -> 39573 | K75: 2021-07-26T12:50:00 | L75: 44403.53472 | M75: 12:50
A76: 74 | B76: =RTD("cqg.rtd",,"StudyData", $I$2, "BAR", "", "Time", $I$4,-$A76,$I$6,$I$10, "","False","T") -> 2021-07-26T12:45:00 | C76: =RTD("cqg.rtd",,"StudyData", $I$2, "BAR", "", "Open", $I$4, -$A76, $I$6,$I$10,,$I$8,$I$12) -> 65.73 | D76: =RTD("cqg.rtd",,"StudyData", $I$2, "BAR", "", "High", $I$4, -$A76, $I$6,$I$10,,$I$8,$I$12) -> 65.77 | E76: =RTD("cqg.rtd",,"StudyData", $I$2, "BAR", "", "Low", $I$4, -$A76, $I$6,$I$10,,$I$8,$I$12) -> 65.73 | F76: =RTD("cqg.rtd",,"StudyData", $I$2, "BAR", "", "Close", $I$4, -$A76, $I$6,$I$10,,$I$8,$I$12) -> 65.77 | G76: =RTD("cqg.rtd",,"StudyData", $I$2, "Vol", "VolType=auto,CoCType=auto", "Vol",$I$4,-$A76,$I$6,,,$I$8,$I$12) -> 36367 | K76: 2021-07-26T12:45:00 | L76: 44403.53125 | M76: 12:45
A77: 75 | B77: =RTD("cqg.rtd",,"StudyData", $I$2, "BAR", "", "Time", $I$4,-$A77,$I$6,$I$10, "","False","T") -> 2021-07-26T12:40:00 | C77: =RTD("cqg.rtd",,"StudyData", $I$2, "BAR", "", "Open", $I$4, -$A77, $I$6,$I$10,,$I$8,$I$12) -> 65.67 | D77: =RTD("cqg.rtd",,"StudyData", $I$2, "BAR", "", "High", $I$4, -$A77, $I$6,$I$10,,$I$8,$I$12) -> 65.73 | E77: =RTD("cqg.rtd",,"StudyData", $I$2, "BAR", "", "Low", $I$4, -$A77, $I$6,$I$10,,$I$8,$I$12) -> 65.67 | F77: =RTD("cqg.rtd",,"StudyData", $I$2, "BAR", "", "Close", $I$4, -$A77, $I$6,$I$10,,$I$8,$I$12) -> 65.73 | G77: =RTD("cqg.rtd",,"StudyData", $I$2, "Vol", "VolType=auto,CoCType=auto", "Vol",$I$4,-$A77,$I$6,,,$I$8,$I$12) -> 66372 | K77: 2021-07-26T12:40:00 | L77: 44403.52778 | M77: 12:40
A78: 76 | B78: =RTD("cqg.rtd",,"StudyData", $I$2, "BAR", "", "Time", $I$4,-$A78,$I$6,$I$10, "","False","T") -> 2021-07-26T12:35:00 | C78: =RTD("cqg.rtd",,"StudyData", $I$2, "BAR", "", "Open", $I$4, -$A78, $I$6,$I$10,,$I$8,$I$12) -> 65.67 | D78: =RTD("cqg.rtd",,"StudyData", $I$2, "BAR", "", "High", $I$4, -$A78, $I$6,$I$10,,$I$8,$I$12) -> 65.69 | E78: =RTD("cqg.rtd",,"StudyData", $I$2, "BAR", "", "Low", $I$4, -$A78, $I$6,$I$10,,$I$8,$I$12) -> 65.66 | F78: =RTD("cqg.rtd",,"StudyData", $I$2, "BAR", "", "Close", $I$4, -$A78, $I$6,$I$10,,$I$8,$I$12) -> 65.67 | G78: =RTD("cqg.rtd",,"StudyData", $I$2, "Vol", "VolType=auto,CoCType=auto", "Vol",$I$4,-$A78,$I$6,,,$I$8,$I$12) -> 68351 | K78: 2021-07-26T12:35:00 | L78: 44403.52431 | M78: 12:35
A79: 77 | B79: =RTD("cqg.rtd",,"StudyData", $I$2, "BAR", "", "Time", $I$4,-$A79,$I$6,$I$10, "","False","T") -> 2021-07-26T12:30:00 | C79: =RTD("cqg.rtd",,"StudyData", $I$2, "BAR", "", "Open", $I$4, -$A79, $I$6,$I$10,,$I$8,$I$12) -> 65.63 | D79: =RTD("cqg.rtd",,"StudyData", $I$2, "BAR", "", "High", $I$4, -$A79, $I$6,$I$10,,$I$8,$I$12) -> 65.69 | E79: =RTD("cqg.rtd",,"StudyData", $I$2, "BAR", "", "Low", $I$4, -$A79, $I$6,$I$10,,$I$8,$I$12) -> 65.63 | F79: =RTD("cqg.rtd",,"StudyData", $I$2, "BAR", "", "Close", $I$4, -$A79, $I$6,$I$10,,$I$8,$I$12) -> 65.67 | G79: =RTD("cqg.rtd",,"StudyData", $I$2, "Vol", "VolType=auto,CoCType=auto", "Vol",$I$4,-$A79,$I$6,,,$I$8,$I$12) -> 78118 | K79: 2021-07-26T12:30:00 | L79: 44403.52083 | M79: 12:30
A80: 78 | B80: =RTD("cqg.rtd",,"StudyData", $I$2, "BAR", "", "Time", $I$4,-$A80,$I$6,$I$10, "","False","T") -> 2021-07-26T12:25:00 | C80: =RTD("cqg.rtd",,"StudyData", $I$2, "BAR", "", "Open", $I$4, -$A80, $I$6,$I$10,,$I$8,$I$12) -> 65.63 | D80: =RTD("cqg.rtd",,"StudyData", $I$2, "BAR", "", "High", $I$4, -$A80, $I$6,$I$10,,$I$8,$I$12) -> 65.64 | E80: =RTD("cqg.rtd",,"StudyData", $I$2, "BAR", "", "Low", $I$4, -$A80, $I$6,$I$10,,$I$8,$I$12) -> 65.61 | F80: =RTD("cqg.rtd",,"StudyData", $I$2, "BAR", "", "Close", $I$4, -$A80, $I$6,$I$10,,$I$8,$I$12) -> 65.62 | G80: =RTD("cqg.rtd",,"StudyData", $I$2, "Vol", "VolType=auto,CoCType=auto", "Vol",$I$4,-$A80,$I$6,,,$I$8,$I$12) -> 81845 | K80: 2021-07-26T12:25:00 | L80: 44403.51736 | M80: 12:25
A81: 79 | B81: =RTD("cqg.rtd",,"StudyData", $I$2, "BAR", "", "Time", $I$4,-$A81,$I$6,$I$10, "","False","T") -> 2021-07-26T12:20:00 | C81: =RTD("cqg.rtd",,"StudyData", $I$2, "BAR", "", "Open", $I$4, -$A81, $I$6,$I$10,,$I$8,$I$12) -> 65.68 | D81: =RTD("cqg.rtd",,"StudyData", $I$2, "BAR", "", "High", $I$4, -$A81, $I$6,$I$10,,$I$8,$I$12) -> 65.69 | E81: =RTD("cqg.rtd",,"StudyData", $I$2, "BAR", "", "Low", $I$4, -$A81, $I$6,$I$10,,$I$8,$I$12) -> 65.63 | F81: =RTD("cqg.rtd",,"StudyData", $I$2, "BAR", "", "Close", $I$4, -$A81, $I$6,$I$10,,$I$8,$I$12) -> 65.64 | G81: =RTD("cqg.rtd",,"StudyData", $I$2, "Vol", "VolType=auto,CoCType=auto", "Vol",$I$4,-$A81,$I$6,,,$I$8,$I$12) -> 79727 | K81: 2021-07-26T12:20:00 | L81: 44403.51389 | M81: 12:20
A82: 80 | B82: =RTD("cqg.rtd",,"StudyData", $I$2, "BAR", "", "Time", $I$4,-$A82,$I$6,$I$10, "","False","T") -> 2021-07-26T12:15:00 | C82: =RTD("cqg.rtd",,"StudyData", $I$2, "BAR", "", "Open", $I$4, -$A82, $I$6,$I$10,,$I$8,$I$12) -> 65.66 | D82: =RTD("cqg.rtd",,"StudyData", $I$2, "BAR", "", "High", $I$4, -$A82, $I$6,$I$10,,$I$8,$I$12) -> 65.69 | E82: =RTD("cqg.rtd",,"StudyData", $I$2, "BAR", "", "Low", $I$4, -$A82, $I$6,$I$10,,$I$8,$I$12) -> 65.65 | F82: =RTD("cqg.rtd",,"StudyData", $I$2, "BAR", "", "Close", $I$4, -$A82, $I$6,$I$10,,$I$8,$I$12) -> 65.69 | G82: =RTD("cqg.rtd",,"StudyData", $I$2, "Vol", "VolType=auto,CoCType=auto", "Vol",$I$4,-$A82,$I$6,,,$I$8,$I$12) -> 77946 | K82: 2021-07-26T12:15:00 | L82: 44403.51042 | M82: 12:15
A83: 81 | B83: =RTD("cqg.rtd",,"StudyData", $I$2, "BAR", "", "Time", $I$4,-$A83,$I$6,$I$10, "","False","T") -> 2021-07-26T12:10:00 | C83: =RTD("cqg.rtd",,"StudyData", $I$2, "BAR", "", "Open", $I$4, -$A83, $I$6,$I$10,,$I$8,$I$12) -> 65.66 | D83: =RTD("cqg.rtd",,"StudyData", $I$2, "BAR", "", "High", $I$4, -$A83, $I$6,$I$10,,$I$8,$I$12) -> 65.67 | E83: =RTD("cqg.rtd",,"StudyData", $I$2, "BAR", "", "Low", $I$4, -$A83, $I$6,$I$10,,$I$8,$I$12) -> 65.63 | F83: =RTD("cqg.rtd",,"StudyData", $I$2, "BAR", "", "Close", $I$4, -$A83, $I$6,$I$10,,$I$8,$I$12) -> 65.65 | G83: =RTD("cqg.rtd",,"StudyData", $I$2, "Vol", "VolType=auto,CoCType=auto", "Vol",$I$4,-$A83,$I$6,,,$I$8,$I$12) -> 31254 | K83: 2021-07-26T12:10:00 | L83: 44403.50694 | M83: 12:10
A84: 82 | B84: =RTD("cqg.rtd",,"StudyData", $I$2, "BAR", "", "Time", $I$4,-$A84,$I$6,$I$10, "","False","T") -> 2021-07-26T12:05:00 | C84: =RTD("cqg.rtd",,"StudyData", $I$2, "BAR", "", "Open", $I$4, -$A84, $I$6,$I$10,,$I$8,$I$12) -> 65.66 | D84: =RTD("cqg.rtd",,"StudyData", $I$2, "BAR", "", "High", $I$4, -$A84, $I$6,$I$10,,$I$8,$I$12) -> 65.7 | E84: =RTD("cqg.rtd",,"StudyData", $I$2, "BAR", "", "Low", $I$4, -$A84, $I$6,$I$10,,$I$8,$I$12) -> 65.65 | F84: =RTD("cqg.rtd",,"StudyData", $I$2, "BAR", "", "Close", $I$4, -$A84, $I$6,$I$10,,$I$8,$I$12) -> 65.65 | G84: =RTD("cqg.rtd",,"StudyData", $I$2, "Vol", "VolType=auto,CoCType=auto", "Vol",$I$4,-$A84,$I$6,,,$I$8,$I$12) -> 39900 | K84: 2021-07-26T12:05:00 | L84: 44403.50347 | M84: 12:05
A85: 83 | B85: =RTD("cqg.rtd",,"StudyData", $I$2, "BAR", "", "Time", $I$4,-$A85,$I$6,$I$10, "","False","T") -> 2021-07-26T12:00:00 | C85: =RTD("cqg.rtd",,"StudyData", $I$2, "BAR", "", "Open", $I$4, -$A85, $I$6,$I$10,,$I$8,$I$12) -> 65.65 | D85: =RTD("cqg.rtd",,"StudyData", $I$2, "BAR", "", "High", $I$4, -$A85, $I$6,$I$10,,$I$8,$I$12) -> 65.68 | E85: =RTD("cqg.rtd",,"StudyData", $I$2, "BAR", "", "Low", $I$4, -$A85, $I$6,$I$10,,$I$8,$I$12) -> 65.65 | F85: =RTD("cqg.rtd",,"StudyData", $I$2, "BAR", "", "Close", $I$4, -$A85, $I$6,$I$10,,$I$8,$I$12) -> 65.66 | G85: =RTD("cqg.rtd",,"StudyData", $I$2, "Vol", "VolType=auto,CoCType=auto", "Vol",$I$4,-$A85,$I$6,,,$I$8,$I$12) -> 23610 | K85: 2021-07-26T12:00:00 | L85: 44403.5 | M85: 12:00
A86: 84 | B86: =RTD("cqg.rtd",,"StudyData", $I$2, "BAR", "", "Time", $I$4,-$A86,$I$6,$I$10, "","False","T") -> 2021-07-26T11:55:00 | C86: =RTD("cqg.rtd",,"StudyData", $I$2, "BAR", "", "Open", $I$4, -$A86, $I$6,$I$10,,$I$8,$I$12) -> 65.65 | D86: =RTD("cqg.rtd",,"StudyData", $I$2, "BAR", "", "High", $I$4, -$A86, $I$6,$I$10,,$I$8,$I$12) -> 65.65 | E86: =RTD("cqg.rtd",,"StudyData", $I$2, "BAR", "", "Low", $I$4, -$A86, $I$6,$I$10,,$I$8,$I$12) -> 65.63 | F86: =RTD("cqg.rtd",,"StudyData", $I$2, "BAR", "", "Close", $I$4, -$A86, $I$6,$I$10,,$I$8,$I$12) -> 65.64 | G86: =RTD("cqg.rtd",,"StudyData", $I$2, "Vol", "VolType=auto,CoCType=auto", "Vol",$I$4,-$A86,$I$6,,,$I$8,$I$12) -> 45329 | K86: 2021-07-26T11:55:00 | L86: 44403.49653 | M86: 11:55
A87: 85 | B87: =RTD("cqg.rtd",,"StudyData", $I$2, "BAR", "", "Time", $I$4,-$A87,$I$6,$I$10, "","False","T") -> 2021-07-26T11:50:00 | C87: =RTD("cqg.rtd",,"StudyData", $I$2, "BAR", "", "Open", $I$4, -$A87, $I$6,$I$10,,$I$8,$I$12) -> 65.58 | D87: =RTD("cqg.rtd",,"StudyData", $I$2, "BAR", "", "High", $I$4, -$A87, $I$6,$I$10,,$I$8,$I$12) -> 65.64 | E87: =RTD("cqg.rtd",,"StudyData", $I$2, "BAR", "", "Low", $I$4, -$A87, $I$6,$I$10,,$I$8,$I$12) -> 65.57 | F87: =RTD("cqg.rtd",,"StudyData", $I$2, "BAR", "", "Close", $I$4, -$A87, $I$6,$I$10,,$I$8,$I$12) -> 65.64 | G87: =RTD("cqg.rtd",,"StudyData", $I$2, "Vol", "VolType=auto,CoCType=auto", "Vol",$I$4,-$A87,$I$6,,,$I$8,$I$12) -> 49357 | K87: 2021-07-26T11:50:00 | L87: 44403.49306 | M87: 11:50
A88: 86 | B88: =RTD("cqg.rtd",,"StudyData", $I$2, "BAR", "", "Time", $I$4,-$A88,$I$6,$I$10, "","False","T") -> 2021-07-26T11:45:00 | C88: =RTD("cqg.rtd",,"StudyData", $I$2, "BAR", "", "Open", $I$4, -$A88, $I$6,$I$10,,$I$8,$I$12) -> 65.64 | D88: =RTD("cqg.rtd",,"StudyData", $I$2, "BAR", "", "High", $I$4, -$A88, $I$6,$I$10,,$I$8,$I$12) -> 65.65 | E88: =RTD("cqg.rtd",,"StudyData", $I$2, "BAR", "", "Low", $I$4, -$A88, $I$6,$I$10,,$I$8,$I$12) -> 65.57 | F88: =RTD("cqg.rtd",,"StudyData", $I$2, "BAR", "", "Close", $I$4, -$A88, $I$6,$I$10,,$I$8,$I$12) -> 65.58 | G88: =RTD("cqg.rtd",,"StudyData", $I$2, "Vol", "VolType=auto,CoCType=auto", "Vol",$I$4,-$A88,$I$6,,,$I$8,$I$12) -> 30604 | K88: 2021-07-26T11:45:00 | L88: 44403.48958 | M88: 11:45
A89: 87 | B89: =RTD("cqg.rtd",,"StudyData", $I$2, "BAR", "", "Time", $I$4,-$A89,$I$6,$I$10, "","False","T") -> 2021-07-26T11:40:00 | C89: =RTD("cqg.rtd",,"StudyData", $I$2, "BAR", "", "Open", $I$4, -$A89, $I$6,$I$10,,$I$8,$I$12) -> 65.57 | D89: =RTD("cqg.rtd",,"StudyData", $I$2, "BAR", "", "High", $I$4, -$A89, $I$6,$I$10,,$I$8,$I$12) -> 65.65 | E89: =RTD("cqg.rtd",,"StudyData", $I$2, "BAR", "", "Low", $I$4, -$A89, $I$6,$I$10,,$I$8,$I$12) -> 65.56 | F89: =RTD("cqg.rtd",,"StudyData", $I$2, "BAR", "", "Close", $I$4, -$A89, $I$6,$I$10,,$I$8,$I$12) -> 65.64 | G89: =RTD("cqg.rtd",,"StudyData", $I$2, "Vol", "VolType=auto,CoCType=auto", "Vol",$I$4,-$A89,$I$6,,,$I$8,$I$12) -> 63400 | K89: 2021-07-26T11:40:00 | L89: 44403.48611 | M89: 11:40
A90: 88 | B90: =RTD("cqg.rtd",,"StudyData", $I$2, "BAR", "", "Time", $I$4,-$A90,$I$6,$I$10, "","False","T") -> 2021-07-26T11:35:00 | C90: =RTD("cqg.rtd",,"StudyData", $I$2, "BAR", "", "Open", $I$4, -$A90, $I$6,$I$10,,$I$8,$I$12) -> 65.65 | D90: =RTD("cqg.rtd",,"StudyData", $I$2, "BAR", "", "High", $I$4, -$A90, $I$6,$I$10,,$I$8,$I$12) -> 65.65 | E90: =RTD("cqg.rtd",,"StudyData", $I$2, "BAR", "", "Low", $I$4, -$A90, $I$6,$I$10,,$I$8,$I$12) -> 65.58 | F90: =RTD("cqg.rtd",,"StudyData", $I$2, "BAR", "", "Close", $I$4, -$A90, $I$6,$I$10,,$I$8,$I$12) -> 65.58 | G90: =RTD("cqg.rtd",,"StudyData", $I$2, "Vol", "VolType=auto,CoCType=auto", "Vol",$I$4,-$A90,$I$6,,,$I$8,$I$12) -> 57753 | K90: 2021-07-26T11:35:00 | L90: 44403.48264 | M90: 11:35
A91: 89 | B91: =RTD("cqg.rtd",,"StudyData", $I$2, "BAR", "", "Time", $I$4,-$A91,$I$6,$I$10, "","False","T") -> 2021-07-26T11:30:00 | C91: =RTD("cqg.rtd",,"StudyData", $I$2, "BAR", "", "Open", $I$4, -$A91, $I$6,$I$10,,$I$8,$I$12) -> 65.57 | D91: =RTD("cqg.rtd",,"StudyData", $I$2, "BAR", "", "High", $I$4, -$A91, $I$6,$I$10,,$I$8,$I$12) -> 65.65 | E91: =RTD("cqg.rtd",,"StudyData", $I$2, "BAR", "", "Low", $I$4, -$A91, $I$6,$I$10,,$I$8,$I$12) -> 65.56 | F91: =RTD("cqg.rtd",,"StudyData", $I$2, "BAR", "", "Close", $I$4, -$A91, $I$6,$I$10,,$I$8,$I$12) -> 65.64 | G91: =RTD("cqg.rtd",,"StudyData", $I$2, "Vol", "VolType=auto,CoCType=auto", "Vol",$I$4,-$A91,$I$6,,,$I$8,$I$12) -> 120772 | K91: 2021-07-26T11:30:00 | L91: 44403.47917 | M91: 11:30
A92: 90 | B92: =RTD("cqg.rtd",,"StudyData", $I$2, "BAR", "", "Time", $I$4,-$A92,$I$6,$I$10, "","False","T") -> 2021-07-26T11:25:00 | C92: =RTD("cqg.rtd",,"StudyData", $I$2, "BAR", "", "Open", $I$4, -$A92, $I$6,$I$10,,$I$8,$I$12) -> 65.59 | D92: =RTD("cqg.rtd",,"StudyData", $I$2, "BAR", "", "High", $I$4, -$A92, $I$6,$I$10,,$I$8,$I$12) -> 65.59 | E92: =RTD("cqg.rtd",,"StudyData", $I$2, "BAR", "", "Low", $I$4, -$A92, $I$6,$I$10,,$I$8,$I$12) -> 65.55 | F92: =RTD("cqg.rtd",,"StudyData", $I$2, "BAR", "", "Close", $I$4, -$A92, $I$6,$I$10,,$I$8,$I$12) -> 65.56 | G92: =RTD("cqg.rtd",,"StudyData", $I$2, "Vol", "VolType=auto,CoCType=auto", "Vol",$I$4,-$A92,$I$6,,,$I$8,$I$12) -> 54394 | K92: 2021-07-26T11:25:00 | L92: 44403.47569 | M92: 11:25
A93: 91 | B93: =RTD("cqg.rtd",,"StudyData", $I$2, "BAR", "", "Time", $I$4,-$A93,$I$6,$I$10, "","False","T") -> 2021-07-26T11:20:00 | C93: =RTD("cqg.rtd",,"StudyData", $I$2, "BAR", "", "Open", $I$4, -$A93, $I$6,$I$10,,$I$8,$I$12) -> 65.61 | D93: =RTD("cqg.rtd",,"StudyData", $I$2, "BAR", "", "High", $I$4, -$A93, $I$6,$I$10,,$I$8,$I$12) -> 65.62 | E93: =RTD("cqg.rtd",,"StudyData", $I$2, "BAR", "", "Low", $I$4, -$A93, $I$6,$I$10,,$I$8,$I$12) -> 65.59 | F93: =RTD("cqg.rtd",,"StudyData", $I$2, "BAR", "", "Close", $I$4, -$A93, $I$6,$I$10,,$I$8,$I$12) -> 65.59 | G93: =RTD("cqg.rtd",,"StudyData", $I$2, "Vol", "VolType=auto,CoCType=auto", "Vol",$I$4,-$A93,$I$6,,,$I$8,$I$12) -> 57675 | K93: 2021-07-26T11:20:00 | L93: 44403.47222 | M93: 11:20
A94: 92 | B94: =RTD("cqg.rtd",,"StudyData", $I$2, "BAR", "", "Time", $I$4,-$A94,$I$6,$I$10, "","False","T") -> 2021-07-26T11:15:00 | C94: =RTD("cqg.rtd",,"StudyData", $I$2, "BAR", "", "Open", $I$4, -$A94, $I$6,$I$10,,$I$8,$I$12) -> 65.57 | D94: =RTD("cqg.rtd",,"StudyData", $I$2, "BAR", "", "High", $I$4, -$A94, $I$6,$I$10,,$I$8,$I$12) -> 65.62 | E94: =RTD("cqg.rtd",,"StudyData", $I$2, "BAR", "", "Low", $I$4, -$A94, $I$6,$I$10,,$I$8,$I$12) -> 65.57 | F94: =RTD("cqg.rtd",,"StudyData", $I$2, "BAR", "", "Close", $I$4, -$A94, $I$6,$I$10,,$I$8,$I$12) -> 65.61 | G94: =RTD("cqg.rtd",,"StudyData", $I$2, "Vol", "VolType=auto,CoCType=auto", "Vol",$I$4,-$A94,$I$6,,,$I$8,$I$12) -> 64569 | K94: 2021-07-26T11:15:00 | L94: 44403.46875 | M94: 11:15
A95: 93 | B95: =RTD("cqg.rtd",,"StudyData", $I$2, "BAR", "", "Time", $I$4,-$A95,$I$6,$I$10, "","False","T") -> 2021-07-26T11:10:00 | C95: =RTD("cqg.rtd",,"StudyData", $I$2, "BAR", "", "Open", $I$4, -$A95, $I$6,$I$10,,$I$8,$I$12) -> 65.56 | D95: =RTD("cqg.rtd",,"StudyData", $I$2, "BAR", "", "High", $I$4, -$A95, $I$6,$I$10,,$I$8,$I$12) -> 65.57 | E95: =RTD("cqg.rtd",,"StudyData", $I$2, "BAR", "", "Low", $I$4, -$A95, $I$6,$I$10,,$I$8,$I$12) -> 65.54 | F95: =RTD("cqg.rtd",,"StudyData", $I$2, "BAR", "", "Close", $I$4, -$A95, $I$6,$I$10,,$I$8,$I$12) -> 65.57 | G95: =RTD("cqg.rtd",,"StudyData", $I$2, "Vol", "VolType=auto,CoCType=auto", "Vol",$I$4,-$A95,$I$6,,,$I$8,$I$12) -> 38003 | K95: 2021-07-26T11:10:00 | L95: 44403.46528 | M95: 11:10
A96: 94 | B96: =RTD("cqg.rtd",,"StudyData", $I$2, "BAR", "", "Time", $I$4,-$A96,$I$6,$I$10, "","False","T") -> 2021-07-26T11:05:00 | C96: =RTD("cqg.rtd",,"StudyData", $I$2, "BAR", "", "Open", $I$4, -$A96, $I$6,$I$10,,$I$8,$I$12) -> 65.58 | D96: =RTD("cqg.rtd",,"StudyData", $I$2, "BAR", "", "High", $I$4, -$A96, $I$6,$I$10,,$I$8,$I$12) -> 65.6 | E96: =RTD("cqg.rtd",,"StudyData", $I$2, "BAR", "", "Low", $I$4, -$A96, $I$6,$I$10,,$I$8,$I$12) -> 65.54 | F96: =RTD("cqg.rtd",,"StudyData", $I$2, "BAR", "", "Close", $I$4, -$A96, $I$6,$I$10,,$I$8,$I$12) -> 65.55 | G96: =RTD("cqg.rtd",,"StudyData", $I$2, "Vol", "VolType=auto,CoCType=auto", "Vol",$I$4,-$A96,$I$6,,,$I$8,$I$12) -> 38242 | K96: 2021-07-26T11:05:00 | L96: 44403.46181 | M96: 11:05
A97: 95 | B97: =RTD("cqg.rtd",,"StudyData", $I$2, "BAR", "", "Time", $I$4,-$A97,$I$6,$I$10, "","False","T") -> 2021-07-26T11:00:00 | C97: =RTD("cqg.rtd",,"StudyData", $I$2, "BAR", "", "Open", $I$4, -$A97, $I$6,$I$10,,$I$8,$I$12) -> 65.63 | D97: =RTD("cqg.rtd",,"StudyData", $I$2, "BAR", "", "High", $I$4, -$A97, $I$6,$I$10,,$I$8,$I$12) -> 65.66 | E97: =RTD("cqg.rtd",,"StudyData", $I$2, "BAR", "", "Low", $I$4, -$A97, $I$6,$I$10,,$I$8,$I$12) -> 65.57 | F97: =RTD("cqg.rtd",,"StudyData", $I$2, "BAR", "", "Close", $I$4, -$A97, $I$6,$I$10,,$I$8,$I$12) -> 65.58 | G97: =RTD("cqg.rtd",,"StudyData", $I$2, "Vol", "VolType=auto,CoCType=auto", "Vol",$I$4,-$A97,$I$6,,,$I$8,$I$12) -> 73293 | K97: 2021-07-26T11:00:00 | L97: 44403.45833 | M97: 11:00
A98: 96 | B98: =RTD("cqg.rtd",,"StudyData", $I$2, "BAR", "", "Time", $I$4,-$A98,$I$6,$I$10, "","False","T") -> 2021-07-26T10:55:00 | C98: =RTD("cqg.rtd",,"StudyData", $I$2, "BAR", "", "Open", $I$4, -$A98, $I$6,$I$10,,$I$8,$I$12) -> 65.6 | D98: =RTD("cqg.rtd",,"StudyData", $I$2, "BAR", "", "High", $I$4, -$A98, $I$6,$I$10,,$I$8,$I$12) -> 65.65 | E98: =RTD("cqg.rtd",,"StudyData", $I$2, "BAR", "", "Low", $I$4, -$A98, $I$6,$I$10,,$I$8,$I$12) -> 65.6 | F98: =RTD("cqg.rtd",,"StudyData", $I$2, "BAR", "", "Close", $I$4, -$A98, $I$6,$I$10,,$I$8,$I$12) -> 65.63 | G98: =RTD("cqg.rtd",,"StudyData", $I$2, "Vol", "VolType=auto,CoCType=auto", "Vol",$I$4,-$A98,$I$6,,,$I$8,$I$12) -> 42562 | K98: 2021-07-26T10:55:00 | L98: 44403.45486 | M98: 10:55
A99: 97 | B99: =RTD("cqg.rtd",,"StudyData", $I$2, "BAR", "", "Time", $I$4,-$A99,$I$6,$I$10, "","False","T") -> 2021-07-26T10:50:00 | C99: =RTD("cqg.rtd",,"StudyData", $I$2, "BAR", "", "Open", $I$4, -$A99, $I$6,$I$10,,$I$8,$I$12) -> 65.53 | D99: =RTD("cqg.rtd",,"StudyData", $I$2, "BAR", "", "High", $I$4, -$A99, $I$6,$I$10,,$I$8,$I$12) -> 65.62 | E99: =RTD("cqg.rtd",,"StudyData", $I$2, "BAR", "", "Low", $I$4, -$A99, $I$6,$I$10,,$I$8,$I$12) -> 65.53 | F99: =RTD("cqg.rtd",,"StudyData", $I$2, "BAR", "", "Close", $I$4, -$A99, $I$6,$I$10,,$I$8,$I$12) -> 65.61 | G99: =RTD("cqg.rtd",,"StudyData", $I$2, "Vol", "VolType=auto,CoCType=auto", "Vol",$I$4,-$A99,$I$6,,,$I$8,$I$12) -> 33550 | K99: 2021-07-26T10:50:00 | L99: 44403.45139 | M99: 10:50
A100: 98 | B100: =RTD("cqg.rtd",,"StudyData", $I$2, "BAR", "", "Time", $I$4,-$A100,$I$6,$I$10, "","False","T") -> 2021-07-26T10:45:00 | C100: =RTD("cqg.rtd",,"StudyData", $I$2, "BAR", "", "Open", $I$4, -$A100, $I$6,$I$10,,$I$8,$I$12) -> 65.55 | D100: =RTD("cqg.rtd",,"StudyData", $I$2, "BAR", "", "High", $I$4, -$A100, $I$6,$I$10,,$I$8,$I$12) -> 65.57 | E100: =RTD("cqg.rtd",,"StudyData", $I$2, "BAR", "", "Low", $I$4, -$A100, $I$6,$I$10,,$I$8,$I$12) -> 65.52 | F100: =RTD("cqg.rtd",,"StudyData", $I$2, "BAR", "", "Close", $I$4, -$A100, $I$6,$I$10,,$I$8,$I$12) -> 65.52 | G100: =RTD("cqg.rtd",,"StudyData", $I$2, "Vol", "VolType=auto,CoCType=auto", "Vol",$I$4,-$A100,$I$6,,,$I$8,$I$12) -> 74067 | K100: 2021-07-26T10:45:00 | L100: 44403.44792 | M100: 10:45
A101: 99 | B101: =RTD("cqg.rtd",,"StudyData", $I$2, "BAR", "", "Time", $I$4,-$A101,$I$6,$I$10, "","False","T") -> 2021-07-26T10:40:00 | C101: =RTD("cqg.rtd",,"StudyData", $I$2, "BAR", "", "Open", $I$4, -$A101, $I$6,$I$10,,$I$8,$I$12) -> 65.49 | D101: =RTD("cqg.rtd",,"StudyData", $I$2, "BAR", "", "High", $I$4, -$A101, $I$6,$I$10,,$I$8,$I$12) -> 65.57 | E101: =RTD("cqg.rtd",,"StudyData", $I$2, "BAR", "", "Low", $I$4, -$A101, $I$6,$I$10,,$I$8,$I$12) -> 65.49 | F101: =RTD("cqg.rtd",,"StudyData", $I$2, "BAR", "", "Close", $I$4, -$A101, $I$6,$I$10,,$I$8,$I$12) -> 65.54 | G101: =RTD("cqg.rtd",,"StudyData", $I$2, "Vol", "VolType=auto,CoCType=auto", "Vol",$I$4,-$A101,$I$6,,,$I$8,$I$12) -> 49355 | K101: 2021-07-26T10:40:00 | L101: 44403.44444 | M101: 10:40
A102: 100 | B102: =RTD("cqg.rtd",,"StudyData", $I$2, "BAR", "", "Time", $I$4,-$A102,$I$6,$I$10, "","False","T") -> 2021-07-26T10:35:00 | C102: =RTD("cqg.rtd",,"StudyData", $I$2, "BAR", "", "Open", $I$4, -$A102, $I$6,$I$10,,$I$8,$I$12) -> 65.54 | D102: =RTD("cqg.rtd",,"StudyData", $I$2, "BAR", "", "High", $I$4, -$A102, $I$6,$I$10,,$I$8,$I$12) -> 65.57 | E102: =RTD("cqg.rtd",,"StudyData", $I$2, "BAR", "", "Low", $I$4, -$A102, $I$6,$I$10,,$I$8,$I$12) -> 65.46 | F102: =RTD("cqg.rtd",,"StudyData", $I$2, "BAR", "", "Close", $I$4, -$A102, $I$6,$I$10,,$I$8,$I$12) -> 65.49 | G102: =RTD("cqg.rtd",,"StudyData", $I$2, "Vol", "VolType=auto,CoCType=auto", "Vol",$I$4,-$A102,$I$6,,,$I$8,$I$12) -> 75535 | K102: 2021-07-26T10:35:00 | L102: 44403.44097 | M102: 10:35
A103: 101 | B103: =RTD("cqg.rtd",,"StudyData", $I$2, "BAR", "", "Time", $I$4,-$A103,$I$6,$I$10, "","False","T") -> 2021-07-26T10:30:00 | C103: =RTD("cqg.rtd",,"StudyData", $I$2, "BAR", "", "Open", $I$4, -$A103, $I$6,$I$10,,$I$8,$I$12) -> 65.52 | D103: =RTD("cqg.rtd",,"StudyData", $I$2, "BAR", "", "High", $I$4, -$A103, $I$6,$I$10,,$I$8,$I$12) -> 65.58 | E103: =RTD("cqg.rtd",,"StudyData", $I$2, "BAR", "", "Low", $I$4, -$A103, $I$6,$I$10,,$I$8,$I$12) -> 65.52 | F103: =RTD("cqg.rtd",,"StudyData", $I$2, "BAR", "", "Close", $I$4, -$A103, $I$6,$I$10,,$I$8,$I$12) -> 65.53 | G103: =RTD("cqg.rtd",,"StudyData", $I$2, "Vol", "VolType=auto,CoCType=auto", "Vol",$I$4,-$A103,$I$6,,,$I$8,$I$12) -> 64268
A104: 102 | B104: =RTD("cqg.rtd",,"StudyData", $I$2, "BAR", "", "Time", $I$4,-$A104,$I$6,$I$10, "","False","T") -> 2021-07-26T10:25:00 | C104: =RTD("cqg.rtd",,"StudyData", $I$2, "BAR", "", "Open", $I$4, -$A104, $I$6,$I$10,,$I$8,$I$12) -> 65.58 | D104: =RTD("cqg.rtd",,"StudyData", $I$2, "BAR", "", "High", $I$4, -$A104, $I$6,$I$10,,$I$8,$I$12) -> 65.61 | E104: =RTD("cqg.rtd",,"StudyData", $I$2, "BAR", "", "Low", $I$4, -$A104, $I$6,$I$10,,$I$8,$I$12) -> 65.52 | F104: =RTD("cqg.rtd",,"StudyData", $I$2, "BAR", "", "Close", $I$4, -$A104, $I$6,$I$10,,$I$8,$I$12) -> 65.53 | G104: =RTD("cqg.rtd",,"StudyData", $I$2, "Vol", "VolType=auto,CoCType=auto", "Vol",$I$4,-$A104,$I$6,,,$I$8,$I$12) -> 92042
A105: 103 | B105: =RTD("cqg.rtd",,"StudyData", $I$2, "BAR", "", "Time", $I$4,-$A105,$I$6,$I$10, "","False","T") -> 2021-07-26T10:20:00 | C105: =RTD("cqg.rtd",,"StudyData", $I$2, "BAR", "", "Open", $I$4, -$A105, $I$6,$I$10,,$I$8,$I$12) -> 65.54 | D105: =RTD("cqg.rtd",,"StudyData", $I$2, "BAR", "", "High", $I$4, -$A105, $I$6,$I$10,,$I$8,$I$12) -> 65.6 | E105: =RTD("cqg.rtd",,"StudyData", $I$2, "BAR", "", "Low", $I$4, -$A105, $I$6,$I$10,,$I$8,$I$12) -> 65.52 | F105: =RTD("cqg.rtd",,"StudyData", $I$2, "BAR", "", "Close", $I$4, -$A105, $I$6,$I$10,,$I$8,$I$12) -> 65.58 | G105: =RTD("cqg.rtd",,"StudyData", $I$2, "Vol", "VolType=auto,CoCType=auto", "Vol",$I$4,-$A105,$I$6,,,$I$8,$I$12) -> 27976
A106: 104 | B106: =RTD("cqg.rtd",,"StudyData", $I$2, "BAR", "", "Time", $I$4,-$A106,$I$6,$I$10, "","False","T") -> 2021-07-26T10:15:00 | C106: =RTD("cqg.rtd",,"StudyData", $I$2, "BAR", "", "Open", $I$4, -$A106, $I$6,$I$10,,$I$8,$I$12) -> 65.5 | D106: =RTD("cqg.rtd",,"StudyData", $I$2, "BAR", "", "High", $I$4, -$A106, $I$6,$I$10,,$I$8,$I$12) -> 65.57 | E106: =RTD("cqg.rtd",,"StudyData", $I$2, "BAR", "", "Low", $I$4, -$A106, $I$6,$I$10,,$I$8,$I$12) -> 65.47 | F106: =RTD("cqg.rtd",,"StudyData", $I$2, "BAR", "", "Close", $I$4, -$A106, $I$6,$I$10,,$I$8,$I$12) -> 65.54 | G106: =RTD("cqg.rtd",,"StudyData", $I$2, "Vol", "VolType=auto,CoCType=auto", "Vol",$I$4,-$A106,$I$6,,,$I$8,$I$12) -> 115730
A107: 105 | B107: =RTD("cqg.rtd",,"StudyData", $I$2, "BAR", "", "Time", $I$4,-$A107,$I$6,$I$10, "","False","T") -> 2021-07-26T10:10:00 | C107: =RTD("cqg.rtd",,"StudyData", $I$2, "BAR", "", "Open", $I$4, -$A107, $I$6,$I$10,,$I$8,$I$12) -> 65.48 | D107: =RTD("cqg.rtd",,"StudyData", $I$2, "BAR", "", "High", $I$4, -$A107, $I$6,$I$10,,$I$8,$I$12) -> 65.55 | E107: =RTD("cqg.rtd",,"StudyData", $I$2, "BAR", "", "Low", $I$4, -$A107, $I$6,$I$10,,$I$8,$I$12) -> 65.48 | F107: =RTD("cqg.rtd",,"StudyData", $I$2, "BAR", "", "Close", $I$4, -$A107, $I$6,$I$10,,$I$8,$I$12) -> 65.5 | G107: =RTD("cqg.rtd",,"StudyData", $I$2, "Vol", "VolType=auto,CoCType=auto", "Vol",$I$4,-$A107,$I$6,,,$I$8,$I$12) -> 106044
A108: 106 | B108: =RTD("cqg.rtd",,"StudyData", $I$2, "BAR", "", "Time", $I$4,-$A108,$I$6,$I$10, "","False","T") -> 2021-07-26T10:05:00 | C108: =RTD("cqg.rtd",,"StudyData", $I$2, "BAR", "", "Open", $I$4, -$A108, $I$6,$I$10,,$I$8,$I$12) -> 65.46 | D108: =RTD("cqg.rtd",,"StudyData", $I$2, "BAR", "", "High", $I$4, -$A108, $I$6,$I$10,,$I$8,$I$12) -> 65.48 | E108: =RTD("cqg.rtd",,"StudyData", $I$2, "BAR", "", "Low", $I$4, -$A108, $I$6,$I$10,,$I$8,$I$12) -> 65.42 | F108: =RTD("cqg.rtd",,"StudyData", $I$2, "BAR", "", "Close", $I$4, -$A108, $I$6,$I$10,,$I$8,$I$12) -> 65.48 | G108: =RTD("cqg.rtd",,"StudyData", $I$2, "Vol", "VolType=auto,CoCType=auto", "Vol",$I$4,-$A108,$I$6,,,$I$8,$I$12) -> 95879
A109: 107 | B109: =RTD("cqg.rtd",,"StudyData", $I$2, "BAR", "", "Time", $I$4,-$A109,$I$6,$I$10, "","False","T") -> 2021-07-26T10:00:00 | C109: =RTD("cqg.rtd",,"StudyData", $I$2, "BAR", "", "Open", $I$4, -$A109, $I$6,$I$10,,$I$8,$I$12) -> 65.6 | D109: =RTD("cqg.rtd",,"StudyData", $I$2, "BAR", "", "High", $I$4, -$A109, $I$6,$I$10,,$I$8,$I$12) -> 65.6 | E109: =RTD("cqg.rtd",,"StudyData", $I$2, "BAR", "", "Low", $I$4, -$A109, $I$6,$I$10,,$I$8,$I$12) -> 65.46 | F109: =RTD("cqg.rtd",,"StudyData", $I$2, "BAR", "", "Close", $I$4, -$A109, $I$6,$I$10,,$I$8,$I$12) -> 65.46 | G109: =RTD("cqg.rtd",,"StudyData", $I$2, "Vol", "VolType=auto,CoCType=auto", "Vol",$I$4,-$A109,$I$6,,,$I$8,$I$12) -> 79306
A110: 108 | B110: =RTD("cqg.rtd",,"StudyData", $I$2, "BAR", "", "Time", $I$4,-$A110,$I$6,$I$10, "","False","T") -> 2021-07-26T09:55:00 | C110: =RTD("cqg.rtd",,"StudyData", $I$2, "BAR", "", "Open", $I$4, -$A110, $I$6,$I$10,,$I$8,$I$12) -> 65.57 | D110: =RTD("cqg.rtd",,"StudyData", $I$2, "BAR", "", "High", $I$4, -$A110, $I$6,$I$10,,$I$8,$I$12) -> 65.6 | E110: =RTD("cqg.rtd",,"StudyData", $I$2, "BAR", "", "Low", $I$4, -$A110, $I$6,$I$10,,$I$8,$I$12) -> 65.54 | F110: =RTD("cqg.rtd",,"StudyData", $I$2, "BAR", "", "Close", $I$4, -$A110, $I$6,$I$10,,$I$8,$I$12) -> 65.6 | G110: =RTD("cqg.rtd",,"StudyData", $I$2, "Vol", "VolType=auto,CoCType=auto", "Vol",$I$4,-$A110,$I$6,,,$I$8,$I$12) -> 92669
A111: 109 | B111: =RTD("cqg.rtd",,"StudyData", $I$2, "BAR", "", "Time", $I$4,-$A111,$I$6,$I$10, "","False","T") -> 2021-07-26T09:50:00 | C111: =RTD("cqg.rtd",,"StudyData", $I$2, "BAR", "", "Open", $I$4, -$A111, $I$6,$I$10,,$I$8,$I$12) -> 65.58 | D111: =RTD("cqg.rtd",,"StudyData", $I$2, "BAR", "", "High", $I$4, -$A111, $I$6,$I$10,,$I$8,$I$12) -> 65.59 | E111: =RTD("cqg.rtd",,"StudyData", $I$2, "BAR", "", "Low", $I$4, -$A111, $I$6,$I$10,,$I$8,$I$12) -> 65.54 | F111: =RTD("cqg.rtd",,"StudyData", $I$2, "BAR", "", "Close", $I$4, -$A111, $I$6,$I$10,,$I$8,$I$12) -> 65.56 | G111: =RTD("cqg.rtd",,"StudyData", $I$2, "Vol", "VolType=auto,CoCType=auto", "Vol",$I$4,-$A111,$I$6,,,$I$8,$I$12) -> 58771
A112: 110 | B112: =RTD("cqg.rtd",,"StudyData", $I$2, "BAR", "", "Time", $I$4,-$A112,$I$6,$I$10, "","False","T") -> 2021-07-26T09:45:00 | C112: =RTD("cqg.rtd",,"StudyData", $I$2, "BAR", "", "Open", $I$4, -$A112, $I$6,$I$10,,$I$8,$I$12) -> 65.39 | D112: =RTD("cqg.rtd",,"StudyData", $I$2, "BAR", "", "High", $I$4, -$A112, $I$6,$I$10,,$I$8,$I$12) -> 65.6 | E112: =RTD("cqg.rtd",,"StudyData", $I$2, "BAR", "", "Low", $I$4, -$A112, $I$6,$I$10,,$I$8,$I$12) -> 65.39 | F112: =RTD("cqg.rtd",,"StudyData", $I$2, "BAR", "", "Close", $I$4, -$A112, $I$6,$I$10,,$I$8,$I$12) -> 65.58 | G112: =RTD("cqg.rtd",,"StudyData", $I$2, "Vol", "VolType=auto,CoCType=auto", "Vol",$I$4,-$A112,$I$6,,,$I$8,$I$12) -> 67055
A113: 111 | B113: =RTD("cqg.rtd",,"StudyData", $I$2, "BAR", "", "Time", $I$4,-$A113,$I$6,$I$10, "","False","T") -> 2021-07-26T09:40:00 | C113: =RTD("cqg.rtd",,"StudyData", $I$2, "BAR", "", "Open", $I$4, -$A113, $I$6,$I$10,,$I$8,$I$12) -> 65.46 | D113: =RTD("cqg.rtd",,"StudyData", $I$2, "BAR", "", "High", $I$4, -$A113, $I$6,$I$10,,$I$8,$I$12) -> 65.48 | E113: =RTD("cqg.rtd",,"StudyData", $I$2, "BAR", "", "Low", $I$4, -$A113, $I$6,$I$10,,$I$8,$I$12) -> 65.37 | F113: =RTD("cqg.rtd",,"StudyData", $I$2, "BAR", "", "Close", $I$4, -$A113, $I$6,$I$10,,$I$8,$I$12) -> 65.39 | G113: =RTD("cqg.rtd",,"StudyData", $I$2, "Vol", "VolType=auto,CoCType=auto", "Vol",$I$4,-$A113,$I$6,,,$I$8,$I$12) -> 95059
A114: 112 | B114: =RTD("cqg.rtd",,"StudyData", $I$2, "BAR", "", "Time", $I$4,-$A114,$I$6,$I$10, "","False","T") -> 2021-07-26T09:35:00 | C114: =RTD("cqg.rtd",,"StudyData", $I$2, "BAR", "", "Open", $I$4, -$A114, $I$6,$I$10,,$I$8,$I$12) -> 65.42 | D114: =RTD("cqg.rtd",,"StudyData", $I$2, "BAR", "", "High", $I$4, -$A114, $I$6,$I$10,,$I$8,$I$12) -> 65.48 | E114: =RTD("cqg.rtd",,"StudyData", $I$2, "BAR", "", "Low", $I$4, -$A114, $I$6,$I$10,,$I$8,$I$12) -> 65.4 | F114: =RTD("cqg.rtd",,"StudyData", $I$2, "BAR", "", "Close", $I$4, -$A114, $I$6,$I$10,,$I$8,$I$12) -> 65.46 | G114: =RTD("cqg.rtd",,"StudyData", $I$2, "Vol", "VolType=auto,CoCType=auto", "Vol",$I$4,-$A114,$I$6,,,$I$8,$I$12) -> 128352
A115: 113 | B115: =RTD("cqg.rtd",,"StudyData", $I$2, "BAR", "", "Time", $I$4,-$A115,$I$6,$I$10, "","False","T") -> 2021-07-26T09:30:00 | C115: =RTD("cqg.rtd",,"StudyData", $I$2, "BAR", "", "Open", $I$4, -$A115, $I$6,$I$10,,$I$8,$I$12) -> 65.52 | D115: =RTD("cqg.rtd",,"StudyData", $I$2, "BAR", "", "High", $I$4, -$A115, $I$6,$I$10,,$I$8,$I$12) -> 65.53 | E115: =RTD("cqg.rtd",,"StudyData", $I$2, "BAR", "", "Low", $I$4, -$A115, $I$6,$I$10,,$I$8,$I$12) -> 65.41 | F115: =RTD("cqg.rtd",,"StudyData", $I$2, "BAR", "", "Close", $I$4, -$A115, $I$6,$I$10,,$I$8,$I$12) -> 65.42 | G115: =RTD("cqg.rtd",,"StudyData", $I$2, "Vol", "VolType=auto,CoCType=auto", "Vol",$I$4,-$A115,$I$6,,,$I$8,$I$12) -> 114906
A116: 114 | B116: =RTD("cqg.rtd",,"StudyData", $I$2, "BAR", "", "Time", $I$4,-$A116,$I$6,$I$10, "","False","T") -> 2021-07-26T09:25:00 | C116: =RTD("cqg.rtd",,"StudyData", $I$2, "BAR", "", "Open", $I$4, -$A116, $I$6,$I$10,,$I$8,$I$12) -> 65.41 | D116: =RTD("cqg.rtd",,"StudyData", $I$2, "BAR", "", "High", $I$4, -$A116, $I$6,$I$10,,$I$8,$I$12) -> 65.55 | E116: =RTD("cqg.rtd",,"StudyData", $I$2, "BAR", "", "Low", $I$4, -$A116, $I$6,$I$10,,$I$8,$I$12) -> 65.4 | F116: =RTD("cqg.rtd",,"StudyData", $I$2, "BAR", "", "Close", $I$4, -$A116, $I$6,$I$10,,$I$8,$I$12) -> 65.52 | G116: =RTD("cqg.rtd",,"StudyData", $I$2, "Vol", "VolType=auto,CoCType=auto", "Vol",$I$4,-$A116,$I$6,,,$I$8,$I$12) -> 99797
A117: 115 | B117: =RTD("cqg.rtd",,"StudyData", $I$2, "BAR", "", "Time", $I$4,-$A117,$I$6,$I$10, "","False","T") -> 2021-07-26T09:20:00 | C117: =RTD("cqg.rtd",,"StudyData", $I$2, "BAR", "", "Open", $I$4, -$A117, $I$6,$I$10,,$I$8,$I$12) -> 65.44 | D117: =RTD("cqg.rtd",,"StudyData", $I$2, "BAR", "", "High", $I$4, -$A117, $I$6,$I$10,,$I$8,$I$12) -> 65.44 | E117: =RTD("cqg.rtd",,"StudyData", $I$2, "BAR", "", "Low", $I$4, -$A117, $I$6,$I$10,,$I$8,$I$12) -> 65.32 | F117: =RTD("cqg.rtd",,"StudyData", $I$2, "BAR", "", "Close", $I$4, -$A117, $I$6,$I$10,,$I$8,$I$12) -> 65.4 | G117: =RTD("cqg.rtd",,"StudyData", $I$2, "Vol", "VolType=auto,CoCType=auto", "Vol",$I$4,-$A117,$I$6,,,$I$8,$I$12) -> 65991
A118: 116 | B118: =RTD("cqg.rtd",,"StudyData", $I$2, "BAR", "", "Time", $I$4,-$A118,$I$6,$I$10, "","False","T") -> 2021-07-26T09:15:00 | C118: =RTD("cqg.rtd",,"StudyData", $I$2, "BAR", "", "Open", $I$4, -$A118, $I$6,$I$10,,$I$8,$I$12) -> 65.4 | D118: =RTD("cqg.rtd",,"StudyData", $I$2, "BAR", "", "High", $I$4, -$A118, $I$6,$I$10,,$I$8,$I$12) -> 65.45 | E118: =RTD("cqg.rtd",,"StudyData", $I$2, "BAR", "", "Low", $I$4, -$A118, $I$6,$I$10,,$I$8,$I$12) -> 65.38 | F118: =RTD("cqg.rtd",,"StudyData", $I$2, "BAR", "", "Close", $I$4, -$A118, $I$6,$I$10,,$I$8,$I$12) -> 65.45 | G118: =RTD("cqg.rtd",,"StudyData", $I$2, "Vol", "VolType=auto,CoCType=auto", "Vol",$I$4,-$A118,$I$6,,,$I$8,$I$12) -> 156144
A119: 117 | B119: =RTD("cqg.rtd",,"StudyData", $I$2, "BAR", "", "Time", $I$4,-$A119,$I$6,$I$10, "","False","T") -> 2021-07-26T09:10:00 | C119: =RTD("cqg.rtd",,"StudyData", $I$2, "BAR", "", "Open", $I$4, -$A119, $I$6,$I$10,,$I$8,$I$12) -> 65.33 | D119: =RTD("cqg.rtd",,"StudyData", $I$2, "BAR", "", "High", $I$4, -$A119, $I$6,$I$10,,$I$8,$I$12) -> 65.42 | E119: =RTD("cqg.rtd",,"StudyData", $I$2, "BAR", "", "Low", $I$4, -$A119, $I$6,$I$10,,$I$8,$I$12) -> 65.3 | F119: =RTD("cqg.rtd",,"StudyData", $I$2, "BAR", "", "Close", $I$4, -$A119, $I$6,$I$10,,$I$8,$I$12) -> 65.4 | G119: =RTD("cqg.rtd",,"StudyData", $I$2, "Vol", "VolType=auto,CoCType=auto", "Vol",$I$4,-$A119,$I$6,,,$I$8,$I$12) -> 121308
A120: 118 | B120: =RTD("cqg.rtd",,"StudyData", $I$2, "BAR", "", "Time", $I$4,-$A120,$I$6,$I$10, "","False","T") -> 2021-07-26T09:05:00 | C120: =RTD("cqg.rtd",,"StudyData", $I$2, "BAR", "", "Open", $I$4, -$A120, $I$6,$I$10,,$I$8,$I$12) -> 65.36 | D120: =RTD("cqg.rtd",,"StudyData", $I$2, "BAR", "", "High", $I$4, -$A120, $I$6,$I$10,,$I$8,$I$12) -> 65.36 | E120: =RTD("cqg.rtd",,"StudyData", $I$2, "BAR", "", "Low", $I$4, -$A120, $I$6,$I$10,,$I$8,$I$12) -> 65.27 | F120: =RTD("cqg.rtd",,"StudyData", $I$2, "BAR", "", "Close", $I$4, -$A120, $I$6,$I$10,,$I$8,$I$12) -> 65.32 | G120: =RTD("cqg.rtd",,"StudyData", $I$2, "Vol", "VolType=auto,CoCType=auto", "Vol",$I$4,-$A120,$I$6,,,$I$8,$I$12) -> 169348
A121: 119 | B121: =RTD("cqg.rtd",,"StudyData", $I$2, "BAR", "", "Time", $I$4,-$A121,$I$6,$I$10, "","False","T") -> 2021-07-26T09:00:00 | C121: =RTD("cqg.rtd",,"StudyData", $I$2, "BAR", "", "Open", $I$4, -$A121, $I$6,$I$10,,$I$8,$I$12) -> 65.45 | D121: =RTD("cqg.rtd",,"StudyData", $I$2, "BAR", "", "High", $I$4, -$A121, $I$6,$I$10,,$I$8,$I$12) -> 65.46 | E121: =RTD("cqg.rtd",,"StudyData", $I$2, "BAR", "", "Low", $I$4, -$A121, $I$6,$I$10,,$I$8,$I$12) -> 65.33 | F121: =RTD("cqg.rtd",,"StudyData", $I$2, "BAR", "", "Close", $I$4, -$A121, $I$6,$I$10,,$I$8,$I$12) -> 65.35 | G121: =RTD("cqg.rtd",,"StudyData", $I$2, "Vol", "VolType=auto,CoCType=auto", "Vol",$I$4,-$A121,$I$6,,,$I$8,$I$12) -> 139156
A122: 120 | B122: =RTD("cqg.rtd",,"StudyData", $I$2, "BAR", "", "Time", $I$4,-$A122,$I$6,$I$10, "","False","T") -> 2021-07-26T08:55:00 | C122: =RTD("cqg.rtd",,"StudyData", $I$2, "BAR", "", "Open", $I$4, -$A122, $I$6,$I$10,,$I$8,$I$12) -> 65.52 | D122: =RTD("cqg.rtd",,"StudyData", $I$2, "BAR", "", "High", $I$4, -$A122, $I$6,$I$10,,$I$8,$I$12) -> 65.54 | E122: =RTD("cqg.rtd",,"StudyData", $I$2, "BAR", "", "Low", $I$4, -$A122, $I$6,$I$10,,$I$8,$I$12) -> 65.45 | F122: =RTD("cqg.rtd",,"StudyData", $I$2, "BAR", "", "Close", $I$4, -$A122, $I$6,$I$10,,$I$8,$I$12) -> 65.46 | G122: =RTD("cqg.rtd",,"StudyData", $I$2, "Vol", "VolType=auto,CoCType=auto", "Vol",$I$4,-$A122,$I$6,,,$I$8,$I$12) -> 94190
A123: 121 | B123: =RTD("cqg.rtd",,"StudyData", $I$2, "BAR", "", "Time", $I$4,-$A123,$I$6,$I$10, "","False","T") -> 2021-07-26T08:50:00 | C123: =RTD("cqg.rtd",,"StudyData", $I$2, "BAR", "", "Open", $I$4, -$A123, $I$6,$I$10,,$I$8,$I$12) -> 65.68 | D123: =RTD("cqg.rtd",,"StudyData", $I$2, "BAR", "", "High", $I$4, -$A123, $I$6,$I$10,,$I$8,$I$12) -> 65.7 | E123: =RTD("cqg.rtd",,"StudyData", $I$2, "BAR", "", "Low", $I$4, -$A123, $I$6,$I$10,,$I$8,$I$12) -> 65.52 | F123: =RTD("cqg.rtd",,"StudyData", $I$2, "BAR", "", "Close", $I$4, -$A123, $I$6,$I$10,,$I$8,$I$12) -> 65.52 | G123: =RTD("cqg.rtd",,"StudyData", $I$2, "Vol", "VolType=auto,CoCType=auto", "Vol",$I$4,-$A123,$I$6,,,$I$8,$I$12) -> 100362
A124: 122 | B124: =RTD("cqg.rtd",,"StudyData", $I$2, "BAR", "", "Time", $I$4,-$A124,$I$6,$I$10, "","False","T") -> 2021-07-26T08:45:00 | C124: =RTD("cqg.rtd",,"StudyData", $I$2, "BAR", "", "Open", $I$4, -$A124, $I$6,$I$10,,$I$8,$I$12) -> 65.73 | D124: =RTD("cqg.rtd",,"StudyData", $I$2, "BAR", "", "High", $I$4, -$A124, $I$6,$I$10,,$I$8,$I$12) -> 65.74 | E124: =RTD("cqg.rtd",,"StudyData", $I$2, "BAR", "", "Low", $I$4, -$A124, $I$6,$I$10,,$I$8,$I$12) -> 65.61 | F124: =RTD("cqg.rtd",,"StudyData", $I$2, "BAR", "", "Close", $I$4, -$A124, $I$6,$I$10,,$I$8,$I$12) -> 65.68 | G124: =RTD("cqg.rtd",,"StudyData", $I$2, "Vol", "VolType=auto,CoCType=auto", "Vol",$I$4,-$A124,$I$6,,,$I$8,$I$12) -> 136116
A125: 123 | B125: =RTD("cqg.rtd",,"StudyData", $I$2, "BAR", "", "Time", $I$4,-$A125,$I$6,$I$10, "","False","T") -> 2021-07-26T08:40:00 | C125: =RTD("cqg.rtd",,"StudyData", $I$2, "BAR", "", "Open", $I$4, -$A125, $I$6,$I$10,,$I$8,$I$12) -> 65.85 | D125: =RTD("cqg.rtd",,"StudyData", $I$2, "BAR", "", "High", $I$4, -$A125, $I$6,$I$10,,$I$8,$I$12) -> 65.87 | E125: =RTD("cqg.rtd",,"StudyData", $I$2, "BAR", "", "Low", $I$4, -$A125, $I$6,$I$10,,$I$8,$I$12) -> 65.68 | F125: =RTD("cqg.rtd",,"StudyData", $I$2, "BAR", "", "Close", $I$4, -$A125, $I$6,$I$10,,$I$8,$I$12) -> 65.72 | G125: =RTD("cqg.rtd",,"StudyData", $I$2, "Vol", "VolType=auto,CoCType=auto", "Vol",$I$4,-$A125,$I$6,,,$I$8,$I$12) -> 151752
A126: 124 | B126: =RTD("cqg.rtd",,"StudyData", $I$2, "BAR", "", "Time", $I$4,-$A126,$I$6,$I$10, "","False","T") -> 2021-07-26T08:35:00 | C126: =RTD("cqg.rtd",,"StudyData", $I$2, "BAR", "", "Open", $I$4, -$A126, $I$6,$I$10,,$I$8,$I$12) -> 65.84 | D126: =RTD("cqg.rtd",,"StudyData", $I$2, "BAR", "", "High", $I$4, -$A126, $I$6,$I$10,,$I$8,$I$12) -> 65.93 | E126: =RTD("cqg.rtd",,"StudyData", $I$2, "BAR", "", "Low", $I$4, -$A126, $I$6,$I$10,,$I$8,$I$12) -> 65.78 | F126: =RTD("cqg.rtd",,"StudyData", $I$2, "BAR", "", "Close", $I$4, -$A126, $I$6,$I$10,,$I$8,$I$12) -> 65.84 | G126: =RTD("cqg.rtd",,"StudyData", $I$2, "Vol", "VolType=auto,CoCType=auto", "Vol",$I$4,-$A126,$I$6,,,$I$8,$I$12) -> 316967
A127: 125 | B127: =RTD("cqg.rtd",,"StudyData", $I$2, "BAR", "", "Time", $I$4,-$A127,$I$6,$I$10, "","False","T") -> 2021-07-26T08:30:00 | C127: =RTD("cqg.rtd",,"StudyData", $I$2, "BAR", "", "Open", $I$4, -$A127, $I$6,$I$10,,$I$8,$I$12) -> 65.58 | D127: =RTD("cqg.rtd",,"StudyData", $I$2, "BAR", "", "High", $I$4, -$A127, $I$6,$I$10,,$I$8,$I$12) -> 65.84 | E127: =RTD("cqg.rtd",,"StudyData", $I$2, "BAR", "", "Low", $I$4, -$A127, $I$6,$I$10,,$I$8,$I$12) -> 65.55 | F127: =RTD("cqg.rtd",,"StudyData", $I$2, "BAR", "", "Close", $I$4, -$A127, $I$6,$I$10,,$I$8,$I$12) -> 65.84 | G127: =RTD("cqg.rtd",,"StudyData", $I$2, "Vol", "VolType=auto,CoCType=auto", "Vol",$I$4,-$A127,$I$6,,,$I$8,$I$12) -> 353889
A128: 126 | B128: =RTD("cqg.rtd",,"StudyData", $I$2, "BAR", "", "Time", $I$4,-$A128,$I$6,$I$10, "","False","T") -> 2021-07-23T14:55:00 | C128: =RTD("cqg.rtd",,"StudyData", $I$2, "BAR", "", "Open", $I$4, -$A128, $I$6,$I$10,,$I$8,$I$12) -> 65.72 | D128: =RTD("cqg.rtd",,"StudyData", $I$2, "BAR", "", "High", $I$4, -$A128, $I$6,$I$10,,$I$8,$I$12) -> 65.72 | E128: =RTD("cqg.rtd",,"StudyData", $I$2, "BAR", "", "Low", $I$4, -$A128, $I$6,$I$10,,$I$8,$I$12) -> 65.68 | F128: =RTD("cqg.rtd",,"StudyData", $I$2, "BAR", "", "Close", $I$4, -$A128, $I$6,$I$10,,$I$8,$I$12) -> 65.71 | G128: =RTD("cqg.rtd",,"StudyData", $I$2, "Vol", "VolType=auto,CoCType=auto", "Vol",$I$4,-$A128,$I$6,,,$I$8,$I$12) -> 492910
A129: 127 | B129: =RTD("cqg.rtd",,"StudyData", $I$2, "BAR", "", "Time", $I$4,-$A129,$I$6,$I$10, "","False","T") -> 2021-07-23T14:50:00 | C129: =RTD("cqg.rtd",,"StudyData", $I$2, "BAR", "", "Open", $I$4, -$A129, $I$6,$I$10,,$I$8,$I$12) -> 65.69 | D129: =RTD("cqg.rtd",,"StudyData", $I$2, "BAR", "", "High", $I$4, -$A129, $I$6,$I$10,,$I$8,$I$12) -> 65.76 | E129: =RTD("cqg.rtd",,"StudyData", $I$2, "BAR", "", "Low", $I$4, -$A129, $I$6,$I$10,,$I$8,$I$12) -> 65.65 | F129: =RTD("cqg.rtd",,"StudyData", $I$2, "BAR", "", "Close", $I$4, -$A129, $I$6,$I$10,,$I$8,$I$12) -> 65.71 | G129: =RTD("cqg.rtd",,"StudyData", $I$2, "Vol", "VolType=auto,CoCType=auto", "Vol",$I$4,-$A129,$I$6,,,$I$8,$I$12) -> 355152
A130: 128 | B130: =RTD("cqg.rtd",,"StudyData", $I$2, "BAR", "", "Time", $I$4,-$A130,$I$6,$I$10, "","False","T") -> 2021-07-23T14:45:00 | C130: =RTD("cqg.rtd",,"StudyData", $I$2, "BAR", "", "Open", $I$4, -$A130, $I$6,$I$10,,$I$8,$I$12) -> 65.71 | D130: =RTD("cqg.rtd",,"StudyData", $I$2, "BAR", "", "High", $I$4, -$A130, $I$6,$I$10,,$I$8,$I$12) -> 65.73 | E130: =RTD("cqg.rtd",,"StudyData", $I$2, "BAR", "", "Low", $I$4, -$A130, $I$6,$I$10,,$I$8,$I$12) -> 65.67 | F130: =RTD("cqg.rtd",,"StudyData", $I$2, "BAR", "", "Close", $I$4, -$A130, $I$6,$I$10,,$I$8,$I$12) -> 65.68 | G130: =RTD("cqg.rtd",,"StudyData", $I$2, "Vol", "VolType=auto,CoCType=auto", "Vol",$I$4,-$A130,$I$6,,,$I$8,$I$12) -> 229450
A131: 129 | B131: =RTD("cqg.rtd",,"StudyData", $I$2, "BAR", "", "Time", $I$4,-$A131,$I$6,$I$10, "","False","T") -> 2021-07-23T14:40:00 | C131: =RTD("cqg.rtd",,"StudyData", $I$2, "BAR", "", "Open", $I$4, -$A131, $I$6,$I$10,,$I$8,$I$12) -> 65.74 | D131: =RTD("cqg.rtd",,"StudyData", $I$2, "BAR", "", "High", $I$4, -$A131, $I$6,$I$10,,$I$8,$I$12) -> 65.77 | E131: =RTD("cqg.rtd",,"StudyData", $I$2, "BAR", "", "Low", $I$4, -$A131, $I$6,$I$10,,$I$8,$I$12) -> 65.69 | F131: =RTD("cqg.rtd",,"StudyData", $I$2, "BAR", "", "Close", $I$4, -$A131, $I$6,$I$10,,$I$8,$I$12) -> 65.71 | G131: =RTD("cqg.rtd",,"StudyData", $I$2, "Vol", "VolType=auto,CoCType=auto", "Vol",$I$4,-$A131,$I$6,,,$I$8,$I$12) -> 241013
A132: =A131+1 -> 130 | B132: =RTD("cqg.rtd",,"StudyData", $I$2, "BAR", "", "Time", $I$4,-$A132,$I$6,$I$10, "","False","T") -> 2021-07-23T14:35:00 | C132: =RTD("cqg.rtd",,"StudyData", $I$2, "BAR", "", "Open", $I$4, -$A132, $I$6,$I$10,,$I$8,$I$12) -> 65.67 | D132: =RTD("cqg.rtd",,"StudyData", $I$2, "BAR", "", "High", $I$4, -$A132, $I$6,$I$10,,$I$8,$I$12) -> 65.75 | E132: =RTD("cqg.rtd",,"StudyData", $I$2, "BAR", "", "Low", $I$4, -$A132, $I$6,$I$10,,$I$8,$I$12) -> 65.67 | F132: =RTD("cqg.rtd",,"StudyData", $I$2, "BAR", "", "Close", $I$4, -$A132, $I$6,$I$10,,$I$8,$I$12) -> 65.75 | G132: =RTD("cqg.rtd",,"StudyData", $I$2, "Vol", "VolType=auto,CoCType=auto", "Vol",$I$4,-$A132,$I$6,,,$I$8,$I$12) -> 176572
A133: 131 | B133: =RTD("cqg.rtd",,"StudyData", $I$2, "BAR", "", "Time", $I$4,-$A133,$I$6,$I$10, "","False","T") -> 2021-07-23T14:30:00 | C133: =RTD("cqg.rtd",,"StudyData", $I$2, "BAR", "", "Open", $I$4, -$A133, $I$6,$I$10,,$I$8,$I$12) -> 65.62 | D133: =RTD("cqg.rtd",,"StudyData", $I$2, "BAR", "", "High", $I$4, -$A133, $I$6,$I$10,,$I$8,$I$12) -> 65.68 | E133: =RTD("cqg.rtd",,"StudyData", $I$2, "BAR", "", "Low", $I$4, -$A133, $I$6,$I$10,,$I$8,$I$12) -> 65.61 | F133: =RTD("cqg.rtd",,"StudyData", $I$2, "BAR", "", "Close", $I$4, -$A133, $I$6,$I$10,,$I$8,$I$12) -> 65.68 | G133: =RTD("cqg.rtd",,"StudyData", $I$2, "Vol", "VolType=auto,CoCType=auto", "Vol",$I$4,-$A133,$I$6,,,$I$8,$I$12) -> 145304
A134: 132 | B134: =RTD("cqg.rtd",,"StudyData", $I$2, "BAR", "", "Time", $I$4,-$A134,$I$6,$I$10, "","False","T") -> 2021-07-23T14:25:00 | C134: =RTD("cqg.rtd",,"StudyData", $I$2, "BAR", "", "Open", $I$4, -$A134, $I$6,$I$10,,$I$8,$I$12) -> 65.57 | D134: =RTD("cqg.rtd",,"StudyData", $I$2, "BAR", "", "High", $I$4, -$A134, $I$6,$I$10,,$I$8,$I$12) -> 65.62 | E134: =RTD("cqg.rtd",,"StudyData", $I$2, "BAR", "", "Low", $I$4, -$A134, $I$6,$I$10,,$I$8,$I$12) -> 65.54 | F134: =RTD("cqg.rtd",,"StudyData", $I$2, "BAR", "", "Close", $I$4, -$A134, $I$6,$I$10,,$I$8,$I$12) -> 65.62 | G134: =RTD("cqg.rtd",,"StudyData", $I$2, "Vol", "VolType=auto,CoCType=auto", "Vol",$I$4,-$A134,$I$6,,,$I$8,$I$12) -> 146735
A135: 133 | B135: =RTD("cqg.rtd",,"StudyData", $I$2, "BAR", "", "Time", $I$4,-$A135,$I$6,$I$10, "","False","T") -> 2021-07-23T14:20:00 | C135: =RTD("cqg.rtd",,"StudyData", $I$2, "BAR", "", "Open", $I$4, -$A135, $I$6,$I$10,,$I$8,$I$12) -> 65.62 | D135: =RTD("cqg.rtd",,"StudyData", $I$2, "BAR", "", "High", $I$4, -$A135, $I$6,$I$10,,$I$8,$I$12) -> 65.63 | E135: =RTD("cqg.rtd",,"StudyData", $I$2, "BAR", "", "Low", $I$4, -$A135, $I$6,$I$10,,$I$8,$I$12) -> 65.57 | F135: =RTD("cqg.rtd",,"StudyData", $I$2, "BAR", "", "Close", $I$4, -$A135, $I$6,$I$10,,$I$8,$I$12) -> 65.57 | G135: =RTD("cqg.rtd",,"StudyData", $I$2, "Vol", "VolType=auto,CoCType=auto", "Vol",$I$4,-$A135,$I$6,,,$I$8,$I$12) -> 68272
A136: 134 | B136: =RTD("cqg.rtd",,"StudyData", $I$2, "BAR", "", "Time", $I$4,-$A136,$I$6,$I$10, "","False","T") -> 2021-07-23T14:15:00 | C136: =RTD("cqg.rtd",,"StudyData", $I$2, "BAR", "", "Open", $I$4, -$A136, $I$6,$I$10,,$I$8,$I$12) -> 65.56 | D136: =RTD("cqg.rtd",,"StudyData", $I$2, "BAR", "", "High", $I$4, -$A136, $I$6,$I$10,,$I$8,$I$12) -> 65.63 | E136: =RTD("cqg.rtd",,"StudyData", $I$2, "BAR", "", "Low", $I$4, -$A136, $I$6,$I$10,,$I$8,$I$12) -> 65.56 | F136: =RTD("cqg.rtd",,"StudyData", $I$2, "BAR", "", "Close", $I$4, -$A136, $I$6,$I$10,,$I$8,$I$12) -> 65.61 | G136: =RTD("cqg.rtd",,"StudyData", $I$2, "Vol", "VolType=auto,CoCType=auto", "Vol",$I$4,-$A136,$I$6,,,$I$8,$I$12) -> 100772
A137: 135 | B137: =RTD("cqg.rtd",,"StudyData", $I$2, "BAR", "", "Time", $I$4,-$A137,$I$6,$I$10, "","False","T") -> 2021-07-23T14:10:00 | C137: =RTD("cqg.rtd",,"StudyData", $I$2, "BAR", "", "Open", $I$4, -$A137, $I$6,$I$10,,$I$8,$I$12) -> 65.62 | D137: =RTD("cqg.rtd",,"StudyData", $I$2, "BAR", "", "High", $I$4, -$A137, $I$6,$I$10,,$I$8,$I$12) -> 65.64 | E137: =RTD("cqg.rtd",,"StudyData", $I$2, "BAR", "", "Low", $I$4, -$A137, $I$6,$I$10,,$I$8,$I$12) -> 65.55 | F137: =RTD("cqg.rtd",,"StudyData", $I$2, "BAR", "", "Close", $I$4, -$A137, $I$6,$I$10,,$I$8,$I$12) -> 65.56 | G137: =RTD("cqg.rtd",,"StudyData", $I$2, "Vol", "VolType=auto,CoCType=auto", "Vol",$I$4,-$A137,$I$6,,,$I$8,$I$12) -> 106675
A138: 136 | B138: =RTD("cqg.rtd",,"StudyData", $I$2, "BAR", "", "Time", $I$4,-$A138,$I$6,$I$10, "","False","T") -> 2021-07-23T14:05:00 | C138: =RTD("cqg.rtd",,"StudyData", $I$2, "BAR", "", "Open", $I$4, -$A138, $I$6,$I$10,,$I$8,$I$12) -> 65.62 | D138: =RTD("cqg.rtd",,"StudyData", $I$2, "BAR", "", "High", $I$4, -$A138, $I$6,$I$10,,$I$8,$I$12) -> 65.64 | E138: =RTD("cqg.rtd",,"StudyData", $I$2, "BAR", "", "Low", $I$4, -$A138, $I$6,$I$10,,$I$8,$I$12) -> 65.6 | F138: =RTD("cqg.rtd",,"StudyData", $I$2, "BAR", "", "Close", $I$4, -$A138, $I$6,$I$10,,$I$8,$I$12) -> 65.61 | G138: =RTD("cqg.rtd",,"StudyData", $I$2, "Vol", "VolType=auto,CoCType=auto", "Vol",$I$4,-$A138,$I$6,,,$I$8,$I$12) -> 105272
A139: 137 | B139: =RTD("cqg.rtd",,"StudyData", $I$2, "BAR", "", "Time", $I$4,-$A139,$I$6,$I$10, "","False","T") -> 2021-07-23T14:00:00 | C139: =RTD("cqg.rtd",,"StudyData", $I$2, "BAR", "", "Open", $I$4, -$A139, $I$6,$I$10,,$I$8,$I$12) -> 65.57 | D139: =RTD("cqg.rtd",,"StudyData", $I$2, "BAR", "", "High", $I$4, -$A139, $I$6,$I$10,,$I$8,$I$12) -> 65.63 | E139: =RTD("cqg.rtd",,"StudyData", $I$2, "BAR", "", "Low", $I$4, -$A139, $I$6,$I$10,,$I$8,$I$12) -> 65.57 | F139: =RTD("cqg.rtd",,"StudyData", $I$2, "BAR", "", "Close", $I$4, -$A139, $I$6,$I$10,,$I$8,$I$12) -> 65.63 | G139: =RTD("cqg.rtd",,"StudyData", $I$2, "Vol", "VolType=auto,CoCType=auto", "Vol",$I$4,-$A139,$I$6,,,$I$8,$I$12) -> 63161
A140: 138 | B140: =RTD("cqg.rtd",,"StudyData", $I$2, "BAR", "", "Time", $I$4,-$A140,$I$6,$I$10, "","False","T") -> 2021-07-23T13:55:00 | C140: =RTD("cqg.rtd",,"StudyData", $I$2, "BAR", "", "Open", $I$4, -$A140, $I$6,$I$10,,$I$8,$I$12) -> 65.57 | D140: =RTD("cqg.rtd",,"StudyData", $I$2, "BAR", "", "High", $I$4, -$A140, $I$6,$I$10,,$I$8,$I$12) -> 65.57 | E140: =RTD("cqg.rtd",,"StudyData", $I$2, "BAR", "", "Low", $I$4, -$A140, $I$6,$I$10,,$I$8,$I$12) -> 65.54 | F140: =RTD("cqg.rtd",,"StudyData", $I$2, "BAR", "", "Close", $I$4, -$A140, $I$6,$I$10,,$I$8,$I$12) -> 65.57 | G140: =RTD("cqg.rtd",,"StudyData", $I$2, "Vol", "VolType=auto,CoCType=auto", "Vol",$I$4,-$A140,$I$6,,,$I$8,$I$12) -> 51910
A141: 139 | B141: =RTD("cqg.rtd",,"StudyData", $I$2, "BAR", "", "Time", $I$4,-$A141,$I$6,$I$10, "","False","T") -> 2021-07-23T13:50:00 | C141: =RTD("cqg.rtd",,"StudyData", $I$2, "BAR", "", "Open", $I$4, -$A141, $I$6,$I$10,,$I$8,$I$12) -> 65.58 | D141: =RTD("cqg.rtd",,"StudyData", $I$2, "BAR", "", "High", $I$4, -$A141, $I$6,$I$10,,$I$8,$I$12) -> 65.59 | E141: =RTD("cqg.rtd",,"StudyData", $I$2, "BAR", "", "Low", $I$4, -$A141, $I$6,$I$10,,$I$8,$I$12) -> 65.55 | F141: =RTD("cqg.rtd",,"StudyData", $I$2, "BAR", "", "Close", $I$4, -$A141, $I$6,$I$10,,$I$8,$I$12) -> 65.56 | G141: =RTD("cqg.rtd",,"StudyData", $I$2, "Vol", "VolType=auto,CoCType=auto", "Vol",$I$4,-$A141,$I$6,,,$I$8,$I$12) -> 65338
A142: 140 | B142: =RTD("cqg.rtd",,"StudyData", $I$2, "BAR", "", "Time", $I$4,-$A142,$I$6,$I$10, "","False","T") -> 2021-07-23T13:45:00 | C142: =RTD("cqg.rtd",,"StudyData", $I$2, "BAR", "", "Open", $I$4, -$A142, $I$6,$I$10,,$I$8,$I$12) -> 65.59 | D142: =RTD("cqg.rtd",,"StudyData", $I$2, "BAR", "", "High", $I$4, -$A142, $I$6,$I$10,,$I$8,$I$12) -> 65.61 | E142: =RTD("cqg.rtd",,"StudyData", $I$2, "BAR", "", "Low", $I$4, -$A142, $I$6,$I$10,,$I$8,$I$12) -> 65.56 | F142: =RTD("cqg.rtd",,"StudyData", $I$2, "BAR", "", "Close", $I$4, -$A142, $I$6,$I$10,,$I$8,$I$12) -> 65.58 | G142: =RTD("cqg.rtd",,"StudyData", $I$2, "Vol", "VolType=auto,CoCType=auto", "Vol",$I$4,-$A142,$I$6,,,$I$8,$I$12) -> 40786
A143: 141 | B143: =RTD("cqg.rtd",,"StudyData", $I$2, "BAR", "", "Time", $I$4,-$A143,$I$6,$I$10, "","False","T") -> 2021-07-23T13:40:00 | C143: =RTD("cqg.rtd",,"StudyData", $I$2, "BAR", "", "Open", $I$4, -$A143, $I$6,$I$10,,$I$8,$I$12) -> 65.56 | D143: =RTD("cqg.rtd",,"StudyData", $I$2, "BAR", "", "High", $I$4, -$A143, $I$6,$I$10,,$I$8,$I$12) -> 65.6 | E143: =RTD("cqg.rtd",,"StudyData", $I$2, "BAR", "", "Low", $I$4, -$A143, $I$6,$I$10,,$I$8,$I$12) -> 65.54 | F143: =RTD("cqg.rtd",,"StudyData", $I$2, "BAR", "", "Close", $I$4, -$A143, $I$6,$I$10,,$I$8,$I$12) -> 65.59 | G143: =RTD("cqg.rtd",,"StudyData", $I$2, "Vol", "VolType=auto,CoCType=auto", "Vol",$I$4,-$A143,$I$6,,,$I$8,$I$12) -> 38026
A144: 142 | B144: =RTD("cqg.rtd",,"StudyData", $I$2, "BAR", "", "Time", $I$4,-$A144,$I$6,$I$10, "","False","T") -> 2021-07-23T13:35:00 | C144: =RTD("cqg.rtd",,"StudyData", $I$2, "BAR", "", "Open", $I$4, -$A144, $I$6,$I$10,,$I$8,$I$12) -> 65.5 | D144: =RTD("cqg.rtd",,"StudyData", $I$2, "BAR", "", "High", $I$4, -$A144, $I$6,$I$10,,$I$8,$I$12) -> 65.56 | E144: =RTD("cqg.rtd",,"StudyData", $I$2, "BAR", "", "Low", $I$4, -$A144, $I$6,$I$10,,$I$8,$I$12) -> 65.49 | F144: =RTD("cqg.rtd",,"StudyData", $I$2, "BAR", "", "Close", $I$4, -$A144, $I$6,$I$10,,$I$8,$I$12) -> 65.56 | G144: =RTD("cqg.rtd",,"StudyData", $I$2, "Vol", "VolType=auto,CoCType=auto", "Vol",$I$4,-$A144,$I$6,,,$I$8,$I$12) -> 38473
A145: 143 | B145: =RTD("cqg.rtd",,"StudyData", $I$2, "BAR", "", "Time", $I$4,-$A145,$I$6,$I$10, "","False","T") -> 2021-07-23T13:30:00 | C145: =RTD("cqg.rtd",,"StudyData", $I$2, "BAR", "", "Open", $I$4, -$A145, $I$6,$I$10,,$I$8,$I$12) -> 65.48 | D145: =RTD("cqg.rtd",,"StudyData", $I$2, "BAR", "", "High", $I$4, -$A145, $I$6,$I$10,,$I$8,$I$12) -> 65.51 | E145: =RTD("cqg.rtd",,"StudyData", $I$2, "BAR", "", "Low", $I$4, -$A145, $I$6,$I$10,,$I$8,$I$12) -> 65.47 | F145: =RTD("cqg.rtd",,"StudyData", $I$2, "BAR", "", "Close", $I$4, -$A145, $I$6,$I$10,,$I$8,$I$12) -> 65.51 | G145: =RTD("cqg.rtd",,"StudyData", $I$2, "Vol", "VolType=auto,CoCType=auto", "Vol",$I$4,-$A145,$I$6,,,$I$8,$I$12) -> 64967
A146: 144 | B146: =RTD("cqg.rtd",,"StudyData", $I$2, "BAR", "", "Time", $I$4,-$A146,$I$6,$I$10, "","False","T") -> 2021-07-23T13:25:00 | C146: =RTD("cqg.rtd",,"StudyData", $I$2, "BAR", "", "Open", $I$4, -$A146, $I$6,$I$10,,$I$8,$I$12) -> 65.51 | D146: =RTD("cqg.rtd",,"StudyData", $I$2, "BAR", "", "High", $I$4, -$A146, $I$6,$I$10,,$I$8,$I$12) -> 65.51 | E146: =RTD("cqg.rtd",,"StudyData", $I$2, "BAR", "", "Low", $I$4, -$A146, $I$6,$I$10,,$I$8,$I$12) -> 65.47 | F146: =RTD("cqg.rtd",,"StudyData", $I$2, "BAR", "", "Close", $I$4, -$A146, $I$6,$I$10,,$I$8,$I$12) -> 65.48 | G146: =RTD("cqg.rtd",,"StudyData", $I$2, "Vol", "VolType=auto,CoCType=auto", "Vol",$I$4,-$A146,$I$6,,,$I$8,$I$12) -> 31159
A147: 145 | B147: =RTD("cqg.rtd",,"StudyData", $I$2, "BAR", "", "Time", $I$4,-$A147,$I$6,$I$10, "","False","T") -> 2021-07-23T13:20:00 | C147: =RTD("cqg.rtd",,"StudyData", $I$2, "BAR", "", "Open", $I$4, -$A147, $I$6,$I$10,,$I$8,$I$12) -> 65.52 | D147: =RTD("cqg.rtd",,"StudyData", $I$2, "BAR", "", "High", $I$4, -$A147, $I$6,$I$10,,$I$8,$I$12) -> 65.55 | E147: =RTD("cqg.rtd",,"StudyData", $I$2, "BAR", "", "Low", $I$4, -$A147, $I$6,$I$10,,$I$8,$I$12) -> 65.5 | F147: =RTD("cqg.rtd",,"StudyData", $I$2, "BAR", "", "Close", $I$4, -$A147, $I$6,$I$10,,$I$8,$I$12) -> 65.51 | G147: =RTD("cqg.rtd",,"StudyData", $I$2, "Vol", "VolType=auto,CoCType=auto", "Vol",$I$4,-$A147,$I$6,,,$I$8,$I$12) -> 71308
A148: 146 | B148: =RTD("cqg.rtd",,"StudyData", $I$2, "BAR", "", "Time", $I$4,-$A148,$I$6,$I$10, "","False","T") -> 2021-07-23T13:15:00 | C148: =RTD("cqg.rtd",,"StudyData", $I$2, "BAR", "", "Open", $I$4, -$A148, $I$6,$I$10,,$I$8,$I$12) -> 65.48 | D148: =RTD("cqg.rtd",,"StudyData", $I$2, "BAR", "", "High", $I$4, -$A148, $I$6,$I$10,,$I$8,$I$12) -> 65.54 | E148: =RTD("cqg.rtd",,"StudyData", $I$2, "BAR", "", "Low", $I$4, -$A148, $I$6,$I$10,,$I$8,$I$12) -> 65.46 | F148: =RTD("cqg.rtd",,"StudyData", $I$2, "BAR", "", "Close", $I$4, -$A148, $I$6,$I$10,,$I$8,$I$12) -> 65.52 | G148: =RTD("cqg.rtd",,"StudyData", $I$2, "Vol", "VolType=auto,CoCType=auto", "Vol",$I$4,-$A148,$I$6,,,$I$8,$I$12) -> 126239
A149: 147 | B149: =RTD("cqg.rtd",,"StudyData", $I$2, "BAR", "", "Time", $I$4,-$A149,$I$6,$I$10, "","False","T") -> 2021-07-23T13:10:00 | C149: =RTD("cqg.rtd",,"StudyData", $I$2, "BAR", "", "Open", $I$4, -$A149, $I$6,$I$10,,$I$8,$I$12) -> 65.45 | D149: =RTD("cqg.rtd",,"StudyData", $I$2, "BAR", "", "High", $I$4, -$A149, $I$6,$I$10,,$I$8,$I$12) -> 65.49 | E149: =RTD("cqg.rtd",,"StudyData", $I$2, "BAR", "", "Low", $I$4, -$A149, $I$6,$I$10,,$I$8,$I$12) -> 65.44 | F149: =RTD("cqg.rtd",,"StudyData", $I$2, "BAR", "", "Close", $I$4, -$A149, $I$6,$I$10,,$I$8,$I$12) -> 65.48 | G149: =RTD("cqg.rtd",,"StudyData", $I$2, "Vol", "VolType=auto,CoCType=auto", "Vol",$I$4,-$A149,$I$6,,,$I$8,$I$12) -> 54777
A150: 148 | B150: =RTD("cqg.rtd",,"StudyData", $I$2, "BAR", "", "Time", $I$4,-$A150,$I$6,$I$10, "","False","T") -> 2021-07-23T13:05:00 | C150: =RTD("cqg.rtd",,"StudyData", $I$2, "BAR", "", "Open", $I$4, -$A150, $I$6,$I$10,,$I$8,$I$12) -> 65.43 | D150: =RTD("cqg.rtd",,"StudyData", $I$2, "BAR", "", "High", $I$4, -$A150, $I$6,$I$10,,$I$8,$I$12) -> 65.46 | E150: =RTD("cqg.rtd",,"StudyData", $I$2, "BAR", "", "Low", $I$4, -$A150, $I$6,$I$10,,$I$8,$I$12) -> 65.4 | F150: =RTD("cqg.rtd",,"StudyData", $I$2, "BAR", "", "Close", $I$4, -$A150, $I$6,$I$10,,$I$8,$I$12) -> 65.45 | G150: =RTD("cqg.rtd",,"StudyData", $I$2, "Vol", "VolType=auto,CoCType=auto", "Vol",$I$4,-$A150,$I$6,,,$I$8,$I$12) -> 132963
A151: 149 | B151: =RTD("cqg.rtd",,"StudyData", $I$2, "BAR", "", "Time", $I$4,-$A151,$I$6,$I$10, "","False","T") -> 2021-07-23T13:00:00 | C151: =RTD("cqg.rtd",,"StudyData", $I$2, "BAR", "", "Open", $I$4, -$A151, $I$6,$I$10,,$I$8,$I$12) -> 65.44 | D151: =RTD("cqg.rtd",,"StudyData", $I$2, "BAR", "", "High", $I$4, -$A151, $I$6,$I$10,,$I$8,$I$12) -> 65.46 | E151: =RTD("cqg.rtd",,"StudyData", $I$2, "BAR", "", "Low", $I$4, -$A151, $I$6,$I$10,,$I$8,$I$12) -> 65.42 | F151: =RTD("cqg.rtd",,"StudyData", $I$2, "BAR", "", "Close", $I$4, -$A151, $I$6,$I$10,,$I$8,$I$12) -> 65.43 | G151: =RTD("cqg.rtd",,"StudyData", $I$2, "Vol", "VolType=auto,CoCType=auto", "Vol",$I$4,-$A151,$I$6,,,$I$8,$I$12) -> 39712
A152: 150 | B152: =RTD("cqg.rtd",,"StudyData", $I$2, "BAR", "", "Time", $I$4,-$A152,$I$6,$I$10, "","False","T") -> 2021-07-23T12:55:00 | C152: =RTD("cqg.rtd",,"StudyData", $I$2, "BAR", "", "Open", $I$4, -$A152, $I$6,$I$10,,$I$8,$I$12) -> 65.47 | D152: =RTD("cqg.rtd",,"StudyData", $I$2, "BAR", "", "High", $I$4, -$A152, $I$6,$I$10,,$I$8,$I$12) -> 65.48 | E152: =RTD("cqg.rtd",,"StudyData", $I$2, "BAR", "", "Low", $I$4, -$A152, $I$6,$I$10,,$I$8,$I$12) -> 65.43 | F152: =RTD("cqg.rtd",,"StudyData", $I$2, "BAR", "", "Close", $I$4, -$A152, $I$6,$I$10,,$I$8,$I$12) -> 65.43 | G152: =RTD("cqg.rtd",,"StudyData", $I$2, "Vol", "VolType=auto,CoCType=auto", "Vol",$I$4,-$A152,$I$6,,,$I$8,$I$12) -> 57040
A153: 151 | B153: =RTD("cqg.rtd",,"StudyData", $I$2, "BAR", "", "Time", $I$4,-$A153,$I$6,$I$10, "","False","T") -> 2021-07-23T12:50:00 | C153: =RTD("cqg.rtd",,"StudyData", $I$2, "BAR", "", "Open", $I$4, -$A153, $I$6,$I$10,,$I$8,$I$12) -> 65.47 | D153: =RTD("cqg.rtd",,"StudyData", $I$2, "BAR", "", "High", $I$4, -$A153, $I$6,$I$10,,$I$8,$I$12) -> 65.48 | E153: =RTD("cqg.rtd",,"StudyData", $I$2, "BAR", "", "Low", $I$4, -$A153, $I$6,$I$10,,$I$8,$I$12) -> 65.43 | F153: =RTD("cqg.rtd",,"StudyData", $I$2, "BAR", "", "Close", $I$4, -$A153, $I$6,$I$10,,$I$8,$I$12) -> 65.46 | G153: =RTD("cqg.rtd",,"StudyData", $I$2, "Vol", "VolType=auto,CoCType=auto", "Vol",$I$4,-$A153,$I$6,,,$I$8,$I$12) -> 15602
A154: 152 | B154: =RTD("cqg.rtd",,"StudyData", $I$2, "BAR", "", "Time", $I$4,-$A154,$I$6,$I$10, "","False","T") -> 2021-07-23T12:45:00 | C154: =RTD("cqg.rtd",,"StudyData", $I$2, "BAR", "", "Open", $I$4, -$A154, $I$6,$I$10,,$I$8,$I$12) -> 65.47 | D154: =RTD("cqg.rtd",,"StudyData", $I$2, "BAR", "", "High", $I$4, -$A154, $I$6,$I$10,,$I$8,$I$12) -> 65.47 | E154: =RTD("cqg.rtd",,"StudyData", $I$2, "BAR", "", "Low", $I$4, -$A154, $I$6,$I$10,,$I$8,$I$12) -> 65.43 | F154: =RTD("cqg.rtd",,"StudyData", $I$2, "BAR", "", "Close", $I$4, -$A154, $I$6,$I$10,,$I$8,$I$12) -> 65.46 | G154: =RTD("cqg.rtd",,"StudyData", $I$2, "Vol", "VolType=auto,CoCType=auto", "Vol",$I$4,-$A154,$I$6,,,$I$8,$I$12) -> 33103
A155: 153 | B155: =RTD("cqg.rtd",,"StudyData", $I$2, "BAR", "", "Time", $I$4,-$A155,$I$6,$I$10, "","False","T") -> 2021-07-23T12:40:00 | C155: =RTD("cqg.rtd",,"StudyData", $I$2, "BAR", "", "Open", $I$4, -$A155, $I$6,$I$10,,$I$8,$I$12) -> 65.51 | D155: =RTD("cqg.rtd",,"StudyData", $I$2, "BAR", "", "High", $I$4, -$A155, $I$6,$I$10,,$I$8,$I$12) -> 65.51 | E155: =RTD("cqg.rtd",,"StudyData", $I$2, "BAR", "", "Low", $I$4, -$A155, $I$6,$I$10,,$I$8,$I$12) -> 65.46 | F155: =RTD("cqg.rtd",,"StudyData", $I$2, "BAR", "", "Close", $I$4, -$A155, $I$6,$I$10,,$I$8,$I$12) -> 65.47 | G155: =RTD("cqg.rtd",,"StudyData", $I$2, "Vol", "VolType=auto,CoCType=auto", "Vol",$I$4,-$A155,$I$6,,,$I$8,$I$12) -> 24958
A156: 154 | B156: =RTD("cqg.rtd",,"StudyData", $I$2, "BAR", "", "Time", $I$4,-$A156,$I$6,$I$10, "","False","T") -> 2021-07-23T12:35:00 | C156: =RTD("cqg.rtd",,"StudyData", $I$2, "BAR", "", "Open", $I$4, -$A156, $I$6,$I$10,,$I$8,$I$12) -> 65.47 | D156: =RTD("cqg.rtd",,"StudyData", $I$2, "BAR", "", "High", $I$4, -$A156, $I$6,$I$10,,$I$8,$I$12) -> 65.52 | E156: =RTD("cqg.rtd",,"StudyData", $I$2, "BAR", "", "Low", $I$4, -$A156, $I$6,$I$10,,$I$8,$I$12) -> 65.45 | F156: =RTD("cqg.rtd",,"StudyData", $I$2, "BAR", "", "Close", $I$4, -$A156, $I$6,$I$10,,$I$8,$I$12) -> 65.51 | G156: =RTD("cqg.rtd",,"StudyData", $I$2, "Vol", "VolType=auto,CoCType=auto", "Vol",$I$4,-$A156,$I$6,,,$I$8,$I$12) -> 34007
A157: 155 | B157: =RTD("cqg.rtd",,"StudyData", $I$2, "BAR", "", "Time", $I$4,-$A157,$I$6,$I$10, "","False","T") -> 2021-07-23T12:30:00 | C157: =RTD("cqg.rtd",,"StudyData", $I$2, "BAR", "", "Open", $I$4, -$A157, $I$6,$I$10,,$I$8,$I$12) -> 65.45 | D157: =RTD("cqg.rtd",,"StudyData", $I$2, "BAR", "", "High", $I$4, -$A157, $I$6,$I$10,,$I$8,$I$12) -> 65.5 | E157: =RTD("cqg.rtd",,"StudyData", $I$2, "BAR", "", "Low", $I$4, -$A157, $I$6,$I$10,,$I$8,$I$12) -> 65.45 | F157: =RTD("cqg.rtd",,"StudyData", $I$2, "BAR", "", "Close", $I$4, -$A157, $I$6,$I$10,,$I$8,$I$12) -> 65.47 | G157: =RTD("cqg.rtd",,"StudyData", $I$2, "Vol", "VolType=auto,CoCType=auto", "Vol",$I$4,-$A157,$I$6,,,$I$8,$I$12) -> 29895
A158: 156 | B158: =RTD("cqg.rtd",,"StudyData", $I$2, "BAR", "", "Time", $I$4,-$A158,$I$6,$I$10, "","False","T") -> 2021-07-23T12:25:00 | C158: =RTD("cqg.rtd",,"StudyData", $I$2, "BAR", "", "Open", $I$4, -$A158, $I$6,$I$10,,$I$8,$I$12) -> 65.44 | D158: =RTD("cqg.rtd",,"StudyData", $I$2, "BAR", "", "High", $I$4, -$A158, $I$6,$I$10,,$I$8,$I$12) -> 65.48 | E158: =RTD("cqg.rtd",,"StudyData", $I$2, "BAR", "", "Low", $I$4, -$A158, $I$6,$I$10,,$I$8,$I$12) -> 65.43 | F158: =RTD("cqg.rtd",,"StudyData", $I$2, "BAR", "", "Close", $I$4, -$A158, $I$6,$I$10,,$I$8,$I$12) -> 65.44 | G158: =RTD("cqg.rtd",,"StudyData", $I$2, "Vol", "VolType=auto,CoCType=auto", "Vol",$I$4,-$A158,$I$6,,,$I$8,$I$12) -> 29516
A159: 157 | B159: =RTD("cqg.rtd",,"StudyData", $I$2, "BAR", "", "Time", $I$4,-$A159,$I$6,$I$10, "","False","T") -> 2021-07-23T12:20:00 | C159: =RTD("cqg.rtd",,"StudyData", $I$2, "BAR", "", "Open", $I$4, -$A159, $I$6,$I$10,,$I$8,$I$12) -> 65.5 | D159: =RTD("cqg.rtd",,"StudyData", $I$2, "BAR", "", "High", $I$4, -$A159, $I$6,$I$10,,$I$8,$I$12) -> 65.52 | E159: =RTD("cqg.rtd",,"StudyData", $I$2, "BAR", "", "Low", $I$4, -$A159, $I$6,$I$10,,$I$8,$I$12) -> 65.44 | F159: =RTD("cqg.rtd",,"StudyData", $I$2, "BAR", "", "Close", $I$4, -$A159, $I$6,$I$10,,$I$8,$I$12) -> 65.44 | G159: =RTD("cqg.rtd",,"StudyData", $I$2, "Vol", "VolType=auto,CoCType=auto", "Vol",$I$4,-$A159,$I$6,,,$I$8,$I$12) -> 31251
A160: 158 | B160: =RTD("cqg.rtd",,"StudyData", $I$2, "BAR", "", "Time", $I$4,-$A160,$I$6,$I$10, "","False","T") -> 2021-07-23T12:15:00 | C160: =RTD("cqg.rtd",,"StudyData", $I$2, "BAR", "", "Open", $I$4, -$A160, $I$6,$I$10,,$I$8,$I$12) -> 65.49 | D160: =RTD("cqg.rtd",,"StudyData", $I$2, "BAR", "", "High", $I$4, -$A160, $I$6,$I$10,,$I$8,$I$12) -> 65.51 | E160: =RTD("cqg.rtd",,"StudyData", $I$2, "BAR", "", "Low", $I$4, -$A160, $I$6,$I$10,,$I$8,$I$12) -> 65.46 | F160: =RTD("cqg.rtd",,"StudyData", $I$2, "BAR", "", "Close", $I$4, -$A160, $I$6,$I$10,,$I$8,$I$12) -> 65.51 | G160: =RTD("cqg.rtd",,"StudyData", $I$2, "Vol", "VolType=auto,CoCType=auto", "Vol",$I$4,-$A160,$I$6,,,$I$8,$I$12) -> 56614
A161: 159 | B161: =RTD("cqg.rtd",,"StudyData", $I$2, "BAR", "", "Time", $I$4,-$A161,$I$6,$I$10, "","False","T") -> 2021-07-23T12:10:00 | C161: =RTD("cqg.rtd",,"StudyData", $I$2, "BAR", "", "Open", $I$4, -$A161, $I$6,$I$10,,$I$8,$I$12) -> 65.49 | D161: =RTD("cqg.rtd",,"StudyData", $I$2, "BAR", "", "High", $I$4, -$A161, $I$6,$I$10,,$I$8,$I$12) -> 65.52 | E161: =RTD("cqg.rtd",,"StudyData", $I$2, "BAR", "", "Low", $I$4, -$A161, $I$6,$I$10,,$I$8,$I$12) -> 65.48 | F161: =RTD("cqg.rtd",,"StudyData", $I$2, "BAR", "", "Close", $I$4, -$A161, $I$6,$I$10,,$I$8,$I$12) -> 65.49 | G161: =RTD("cqg.rtd",,"StudyData", $I$2, "Vol", "VolType=auto,CoCType=auto", "Vol",$I$4,-$A161,$I$6,,,$I$8,$I$12) -> 200559
A162: 160 | B162: =RTD("cqg.rtd",,"StudyData", $I$2, "BAR", "", "Time", $I$4,-$A162,$I$6,$I$10, "","False","T") -> 2021-07-23T12:05:00 | C162: =RTD("cqg.rtd",,"StudyData", $I$2, "BAR", "", "Open", $I$4, -$A162, $I$6,$I$10,,$I$8,$I$12) -> 65.48 | D162: =RTD("cqg.rtd",,"StudyData", $I$2, "BAR", "", "High", $I$4, -$A162, $I$6,$I$10,,$I$8,$I$12) -> 65.52 | E162: =RTD("cqg.rtd",,"StudyData", $I$2, "BAR", "", "Low", $I$4, -$A162, $I$6,$I$10,,$I$8,$I$12) -> 65.48 | F162: =RTD("cqg.rtd",,"StudyData", $I$2, "BAR", "", "Close", $I$4, -$A162, $I$6,$I$10,,$I$8,$I$12) -> 65.48 | G162: =RTD("cqg.rtd",,"StudyData", $I$2, "Vol", "VolType=auto,CoCType=auto", "Vol",$I$4,-$A162,$I$6,,,$I$8,$I$12) -> 49474
A163: 161 | B163: =RTD("cqg.rtd",,"StudyData", $I$2, "BAR", "", "Time", $I$4,-$A163,$I$6,$I$10, "","False","T") -> 2021-07-23T12:00:00 | C163: =RTD("cqg.rtd",,"StudyData", $I$2, "BAR", "", "Open", $I$4, -$A163, $I$6,$I$10,,$I$8,$I$12) -> 65.45 | D163: =RTD("cqg.rtd",,"StudyData", $I$2, "BAR", "", "High", $I$4, -$A163, $I$6,$I$10,,$I$8,$I$12) -> 65.5 | E163: =RTD("cqg.rtd",,"StudyData", $I$2, "BAR", "", "Low", $I$4, -$A163, $I$6,$I$10,,$I$8,$I$12) -> 65.44 | F163: =RTD("cqg.rtd",,"StudyData", $I$2, "BAR", "", "Close", $I$4, -$A163, $I$6,$I$10,,$I$8,$I$12) -> 65.48 | G163: =RTD("cqg.rtd",,"StudyData", $I$2, "Vol", "VolType=auto,CoCType=auto", "Vol",$I$4,-$A163,$I$6,,,$I$8,$I$12) -> 57702
A164: 162 | B164: =RTD("cqg.rtd",,"StudyData", $I$2, "BAR", "", "Time", $I$4,-$A164,$I$6,$I$10, "","False","T") -> 2021-07-23T11:55:00 | C164: =RTD("cqg.rtd",,"StudyData", $I$2, "BAR", "", "Open", $I$4, -$A164, $I$6,$I$10,,$I$8,$I$12) -> 65.45 | D164: =RTD("cqg.rtd",,"StudyData", $I$2, "BAR", "", "High", $I$4, -$A164, $I$6,$I$10,,$I$8,$I$12) -> 65.51 | E164: =RTD("cqg.rtd",,"StudyData", $I$2, "BAR", "", "Low", $I$4, -$A164, $I$6,$I$10,,$I$8,$I$12) -> 65.43 | F164: =RTD("cqg.rtd",,"StudyData", $I$2, "BAR", "", "Close", $I$4, -$A164, $I$6,$I$10,,$I$8,$I$12) -> 65.45 | G164: =RTD("cqg.rtd",,"StudyData", $I$2, "Vol", "VolType=auto,CoCType=auto", "Vol",$I$4,-$A164,$I$6,,,$I$8,$I$12) -> 78899
A165: 163 | B165: =RTD("cqg.rtd",,"StudyData", $I$2, "BAR", "", "Time", $I$4,-$A165,$I$6,$I$10, "","False","T") -> 2021-07-23T11:50:00 | C165: =RTD("cqg.rtd",,"StudyData", $I$2, "BAR", "", "Open", $I$4, -$A165, $I$6,$I$10,,$I$8,$I$12) -> 65.41 | D165: =RTD("cqg.rtd",,"StudyData", $I$2, "BAR", "", "High", $I$4, -$A165, $I$6,$I$10,,$I$8,$I$12) -> 65.46 | E165: =RTD("cqg.rtd",,"StudyData", $I$2, "BAR", "", "Low", $I$4, -$A165, $I$6,$I$10,,$I$8,$I$12) -> 65.41 | F165: =RTD("cqg.rtd",,"StudyData", $I$2, "BAR", "", "Close", $I$4, -$A165, $I$6,$I$10,,$I$8,$I$12) -> 65.46 | G165: =RTD("cqg.rtd",,"StudyData", $I$2, "Vol", "VolType=auto,CoCType=auto", "Vol",$I$4,-$A165,$I$6,,,$I$8,$I$12) -> 18900
A166: 164 | B166: =RTD("cqg.rtd",,"StudyData", $I$2, "BAR", "", "Time", $I$4,-$A166,$I$6,$I$10, "","False","T") -> 2021-07-23T11:45:00 | C166: =RTD("cqg.rtd",,"StudyData", $I$2, "BAR", "", "Open", $I$4, -$A166, $I$6,$I$10,,$I$8,$I$12) -> 65.46 | D166: =RTD("cqg.rtd",,"StudyData", $I$2, "BAR", "", "High", $I$4, -$A166, $I$6,$I$10,,$I$8,$I$12) -> 65.46 | E166: =RTD("cqg.rtd",,"StudyData", $I$2, "BAR", "", "Low", $I$4, -$A166, $I$6,$I$10,,$I$8,$I$12) -> 65.39 | F166: =RTD("cqg.rtd",,"StudyData", $I$2, "BAR", "", "Close", $I$4, -$A166, $I$6,$I$10,,$I$8,$I$12) -> 65.4 | G166: =RTD("cqg.rtd",,"StudyData", $I$2, "Vol", "VolType=auto,CoCType=auto", "Vol",$I$4,-$A166,$I$6,,,$I$8,$I$12) -> 20825
A167: 165 | B167: =RTD("cqg.rtd",,"StudyData", $I$2, "BAR", "", "Time", $I$4,-$A167,$I$6,$I$10, "","False","T") -> 2021-07-23T11:40:00 | C167: =RTD("cqg.rtd",,"StudyData", $I$2, "BAR", "", "Open", $I$4, -$A167, $I$6,$I$10,,$I$8,$I$12) -> 65.42 | D167: =RTD("cqg.rtd",,"StudyData", $I$2, "BAR", "", "High", $I$4, -$A167, $I$6,$I$10,,$I$8,$I$12) -> 65.47 | E167: =RTD("cqg.rtd",,"StudyData", $I$2, "BAR", "", "Low", $I$4, -$A167, $I$6,$I$10,,$I$8,$I$12) -> 65.41 | F167: =RTD("cqg.rtd",,"StudyData", $I$2, "BAR", "", "Close", $I$4, -$A167, $I$6,$I$10,,$I$8,$I$12) -> 65.47 | G167: =RTD("cqg.rtd",,"StudyData", $I$2, "Vol", "VolType=auto,CoCType=auto", "Vol",$I$4,-$A167,$I$6,,,$I$8,$I$12) -> 15133
A168: 166 | B168: =RTD("cqg.rtd",,"StudyData", $I$2, "BAR", "", "Time", $I$4,-$A168,$I$6,$I$10, "","False","T") -> 2021-07-23T11:35:00 | C168: =RTD("cqg.rtd",,"StudyData", $I$2, "BAR", "", "Open", $I$4, -$A168, $I$6,$I$10,,$I$8,$I$12) -> 65.39 | D168: =RTD("cqg.rtd",,"StudyData", $I$2, "BAR", "", "High", $I$4, -$A168, $I$6,$I$10,,$I$8,$I$12) -> 65.45 | E168: =RTD("cqg.rtd",,"StudyData", $I$2, "BAR", "", "Low", $I$4, -$A168, $I$6,$I$10,,$I$8,$I$12) -> 65.39 | F168: =RTD("cqg.rtd",,"StudyData", $I$2, "BAR", "", "Close", $I$4, -$A168, $I$6,$I$10,,$I$8,$I$12) -> 65.42 | G168: =RTD("cqg.rtd",,"StudyData", $I$2, "Vol", "VolType=auto,CoCType=auto", "Vol",$I$4,-$A168,$I$6,,,$I$8,$I$12) -> 36087
A169: 167 | B169: =RTD("cqg.rtd",,"StudyData", $I$2, "BAR", "", "Time", $I$4,-$A169,$I$6,$I$10, "","False","T") -> 2021-07-23T11:30:00 | C169: =RTD("cqg.rtd",,"StudyData", $I$2, "BAR", "", "Open", $I$4, -$A169, $I$6,$I$10,,$I$8,$I$12) -> 65.35 | D169: =RTD("cqg.rtd",,"StudyData", $I$2, "BAR", "", "High", $I$4, -$A169, $I$6,$I$10,,$I$8,$I$12) -> 65.42 | E169: =RTD("cqg.rtd",,"StudyData", $I$2, "BAR", "", "Low", $I$4, -$A169, $I$6,$I$10,,$I$8,$I$12) -> 65.35 | F169: =RTD("cqg.rtd",,"StudyData", $I$2, "BAR", "", "Close", $I$4, -$A169, $I$6,$I$10,,$I$8,$I$12) -> 65.39 | G169: =RTD("cqg.rtd",,"StudyData", $I$2, "Vol", "VolType=auto,CoCType=auto", "Vol",$I$4,-$A169,$I$6,,,$I$8,$I$12) -> 35602
A170: 168 | B170: =RTD("cqg.rtd",,"StudyData", $I$2, "BAR", "", "Time", $I$4,-$A170,$I$6,$I$10, "","False","T") -> 2021-07-23T11:25:00 | C170: =RTD("cqg.rtd",,"StudyData", $I$2, "BAR", "", "Open", $I$4, -$A170, $I$6,$I$10,,$I$8,$I$12) -> 65.33 | D170: =RTD("cqg.rtd",,"StudyData", $I$2, "BAR", "", "High", $I$4, -$A170, $I$6,$I$10,,$I$8,$I$12) -> 65.34 | E170: =RTD("cqg.rtd",,"StudyData", $I$2, "BAR", "", "Low", $I$4, -$A170, $I$6,$I$10,,$I$8,$I$12) -> 65.28 | F170: =RTD("cqg.rtd",,"StudyData", $I$2, "BAR", "", "Close", $I$4, -$A170, $I$6,$I$10,,$I$8,$I$12) -> 65.34 | G170: =RTD("cqg.rtd",,"StudyData", $I$2, "Vol", "VolType=auto,CoCType=auto", "Vol",$I$4,-$A170,$I$6,,,$I$8,$I$12) -> 44774
A171: 169 | B171: =RTD("cqg.rtd",,"StudyData", $I$2, "BAR", "", "Time", $I$4,-$A171,$I$6,$I$10, "","False","T") -> 2021-07-23T11:20:00 | C171: =RTD("cqg.rtd",,"StudyData", $I$2, "BAR", "", "Open", $I$4, -$A171, $I$6,$I$10,,$I$8,$I$12) -> 65.33 | D171: =RTD("cqg.rtd",,"StudyData", $I$2, "BAR", "", "High", $I$4, -$A171, $I$6,$I$10,,$I$8,$I$12) -> 65.37 | E171: =RTD("cqg.rtd",,"StudyData", $I$2, "BAR", "", "Low", $I$4, -$A171, $I$6,$I$10,,$I$8,$I$12) -> 65.31 | F171: =RTD("cqg.rtd",,"StudyData", $I$2, "BAR", "", "Close", $I$4, -$A171, $I$6,$I$10,,$I$8,$I$12) -> 65.33 | G171: =RTD("cqg.rtd",,"StudyData", $I$2, "Vol", "VolType=auto,CoCType=auto", "Vol",$I$4,-$A171,$I$6,,,$I$8,$I$12) -> 63645
A172: 170 | B172: =RTD("cqg.rtd",,"StudyData", $I$2, "BAR", "", "Time", $I$4,-$A172,$I$6,$I$10, "","False","T") -> 2021-07-23T11:15:00 | C172: =RTD("cqg.rtd",,"StudyData", $I$2, "BAR", "", "Open", $I$4, -$A172, $I$6,$I$10,,$I$8,$I$12) -> 65.29 | D172: =RTD("cqg.rtd",,"StudyData", $I$2, "BAR", "", "High", $I$4, -$A172, $I$6,$I$10,,$I$8,$I$12) -> 65.33 | E172: =RTD("cqg.rtd",,"StudyData", $I$2, "BAR", "", "Low", $I$4, -$A172, $I$6,$I$10,,$I$8,$I$12) -> 65.29 | F172: =RTD("cqg.rtd",,"StudyData", $I$2, "BAR", "", "Close", $I$4, -$A172, $I$6,$I$10,,$I$8,$I$12) -> 65.31 | G172: =RTD("cqg.rtd",,"StudyData", $I$2, "Vol", "VolType=auto,CoCType=auto", "Vol",$I$4,-$A172,$I$6,,,$I$8,$I$12) -> 20021
A173: 171 | B173: =RTD("cqg.rtd",,"StudyData", $I$2, "BAR", "", "Time", $I$4,-$A173,$I$6,$I$10, "","False","T") -> 2021-07-23T11:10:00 | C173: =RTD("cqg.rtd",,"StudyData", $I$2, "BAR", "", "Open", $I$4, -$A173, $I$6,$I$10,,$I$8,$I$12) -> 65.25 | D173: =RTD("cqg.rtd",,"StudyData", $I$2, "BAR", "", "High", $I$4, -$A173, $I$6,$I$10,,$I$8,$I$12) -> 65.32 | E173: =RTD("cqg.rtd",,"StudyData", $I$2, "BAR", "", "Low", $I$4, -$A173, $I$6,$I$10,,$I$8,$I$12) -> 65.24 | F173: =RTD("cqg.rtd",,"StudyData", $I$2, "BAR", "", "Close", $I$4, -$A173, $I$6,$I$10,,$I$8,$I$12) -> 65.29 | G173: =RTD("cqg.rtd",,"StudyData", $I$2, "Vol", "VolType=auto,CoCType=auto", "Vol",$I$4,-$A173,$I$6,,,$I$8,$I$12) -> 24995
A174: 172 | B174: =RTD("cqg.rtd",,"StudyData", $I$2, "BAR", "", "Time", $I$4,-$A174,$I$6,$I$10, "","False","T") -> 2021-07-23T11:05:00 | C174: =RTD("cqg.rtd",,"StudyData", $I$2, "BAR", "", "Open", $I$4, -$A174, $I$6,$I$10,,$I$8,$I$12) -> 65.22 | D174: =RTD("cqg.rtd",,"StudyData", $I$2, "BAR", "", "High", $I$4, -$A174, $I$6,$I$10,,$I$8,$I$12) -> 65.28 | E174: =RTD("cqg.rtd",,"StudyData", $I$2, "BAR", "", "Low", $I$4, -$A174, $I$6,$I$10,,$I$8,$I$12) -> 65.2 | F174: =RTD("cqg.rtd",,"StudyData", $I$2, "BAR", "", "Close", $I$4, -$A174, $I$6,$I$10,,$I$8,$I$12) -> 65.25 | G174: =RTD("cqg.rtd",,"StudyData", $I$2, "Vol", "VolType=auto,CoCType=auto", "Vol",$I$4,-$A174,$I$6,,,$I$8,$I$12) -> 25773
A175: 173 | B175: =RTD("cqg.rtd",,"StudyData", $I$2, "BAR", "", "Time", $I$4,-$A175,$I$6,$I$10, "","False","T") -> 2021-07-23T11:00:00 | C175: =RTD("cqg.rtd",,"StudyData", $I$2, "BAR", "", "Open", $I$4, -$A175, $I$6,$I$10,,$I$8,$I$12) -> 65.13 | D175: =RTD("cqg.rtd",,"StudyData", $I$2, "BAR", "", "High", $I$4, -$A175, $I$6,$I$10,,$I$8,$I$12) -> 65.23 | E175: =RTD("cqg.rtd",,"StudyData", $I$2, "BAR", "", "Low", $I$4, -$A175, $I$6,$I$10,,$I$8,$I$12) -> 65.12 | F175: =RTD("cqg.rtd",,"StudyData", $I$2, "BAR", "", "Close", $I$4, -$A175, $I$6,$I$10,,$I$8,$I$12) -> 65.23 | G175: =RTD("cqg.rtd",,"StudyData", $I$2, "Vol", "VolType=auto,CoCType=auto", "Vol",$I$4,-$A175,$I$6,,,$I$8,$I$12) -> 18342
A176: 174 | B176: =RTD("cqg.rtd",,"StudyData", $I$2, "BAR", "", "Time", $I$4,-$A176,$I$6,$I$10, "","False","T") -> 2021-07-23T10:55:00 | C176: =RTD("cqg.rtd",,"StudyData", $I$2, "BAR", "", "Open", $I$4, -$A176, $I$6,$I$10,,$I$8,$I$12) -> 65.22 | D176: =RTD("cqg.rtd",,"StudyData", $I$2, "BAR", "", "High", $I$4, -$A176, $I$6,$I$10,,$I$8,$I$12) -> 65.23 | E176: =RTD("cqg.rtd",,"StudyData", $I$2, "BAR", "", "Low", $I$4, -$A176, $I$6,$I$10,,$I$8,$I$12) -> 65.1 | F176: =RTD("cqg.rtd",,"StudyData", $I$2, "BAR", "", "Close", $I$4, -$A176, $I$6,$I$10,,$I$8,$I$12) -> 65.12 | G176: =RTD("cqg.rtd",,"StudyData", $I$2, "Vol", "VolType=auto,CoCType=auto", "Vol",$I$4,-$A176,$I$6,,,$I$8,$I$12) -> 72626
A177: 175 | B177: =RTD("cqg.rtd",,"StudyData", $I$2, "BAR", "", "Time", $I$4,-$A177,$I$6,$I$10, "","False","T") -> 2021-07-23T10:50:00 | C177: =RTD("cqg.rtd",,"StudyData", $I$2, "BAR", "", "Open", $I$4, -$A177, $I$6,$I$10,,$I$8,$I$12) -> 65.25 | D177: =RTD("cqg.rtd",,"StudyData", $I$2, "BAR", "", "High", $I$4, -$A177, $I$6,$I$10,,$I$8,$I$12) -> 65.26 | E177: =RTD("cqg.rtd",,"StudyData", $I$2, "BAR", "", "Low", $I$4, -$A177, $I$6,$I$10,,$I$8,$I$12) -> 65.2 | F177: =RTD("cqg.rtd",,"StudyData", $I$2, "BAR", "", "Close", $I$4, -$A177, $I$6,$I$10,,$I$8,$I$12) -> 65.22 | G177: =RTD("cqg.rtd",,"StudyData", $I$2, "Vol", "VolType=auto,CoCType=auto", "Vol",$I$4,-$A177,$I$6,,,$I$8,$I$12) -> 22684
A178: 176 | B178: =RTD("cqg.rtd",,"StudyData", $I$2, "BAR", "", "Time", $I$4,-$A178,$I$6,$I$10, "","False","T") -> 2021-07-23T10:45:00 | C178: =RTD("cqg.rtd",,"StudyData", $I$2, "BAR", "", "Open", $I$4, -$A178, $I$6,$I$10,,$I$8,$I$12) -> 65.17 | D178: =RTD("cqg.rtd",,"StudyData", $I$2, "BAR", "", "High", $I$4, -$A178, $I$6,$I$10,,$I$8,$I$12) -> 65.29 | E178: =RTD("cqg.rtd",,"StudyData", $I$2, "BAR", "", "Low", $I$4, -$A178, $I$6,$I$10,,$I$8,$I$12) -> 65.16 | F178: =RTD("cqg.rtd",,"StudyData", $I$2, "BAR", "", "Close", $I$4, -$A178, $I$6,$I$10,,$I$8,$I$12) -> 65.26 | G178: =RTD("cqg.rtd",,"StudyData", $I$2, "Vol", "VolType=auto,CoCType=auto", "Vol",$I$4,-$A178,$I$6,,,$I$8,$I$12) -> 38512
A179: 177 | B179: =RTD("cqg.rtd",,"StudyData", $I$2, "BAR", "", "Time", $I$4,-$A179,$I$6,$I$10, "","False","T") -> 2021-07-23T10:40:00 | C179: =RTD("cqg.rtd",,"StudyData", $I$2, "BAR", "", "Open", $I$4, -$A179, $I$6,$I$10,,$I$8,$I$12) -> 65.22 | D179: =RTD("cqg.rtd",,"StudyData", $I$2, "BAR", "", "High", $I$4, -$A179, $I$6,$I$10,,$I$8,$I$12) -> 65.25 | E179: =RTD("cqg.rtd",,"StudyData", $I$2, "BAR", "", "Low", $I$4, -$A179, $I$6,$I$10,,$I$8,$I$12) -> 65.19 | F179: =RTD("cqg.rtd",,"StudyData", $I$2, "BAR", "", "Close", $I$4, -$A179, $I$6,$I$10,,$I$8,$I$12) -> 65.19 | G179: =RTD("cqg.rtd",,"StudyData", $I$2, "Vol", "VolType=auto,CoCType=auto", "Vol",$I$4,-$A179,$I$6,,,$I$8,$I$12) -> 24253
A180: 178 | B180: =RTD("cqg.rtd",,"StudyData", $I$2, "BAR", "", "Time", $I$4,-$A180,$I$6,$I$10, "","False","T") -> 2021-07-23T10:35:00 | C180: =RTD("cqg.rtd",,"StudyData", $I$2, "BAR", "", "Open", $I$4, -$A180, $I$6,$I$10,,$I$8,$I$12) -> 65.29 | D180: =RTD("cqg.rtd",,"StudyData", $I$2, "BAR", "", "High", $I$4, -$A180, $I$6,$I$10,,$I$8,$I$12) -> 65.3 | E180: =RTD("cqg.rtd",,"StudyData", $I$2, "BAR", "", "Low", $I$4, -$A180, $I$6,$I$10,,$I$8,$I$12) -> 65.22 | F180: =RTD("cqg.rtd",,"StudyData", $I$2, "BAR", "", "Close", $I$4, -$A180, $I$6,$I$10,,$I$8,$I$12) -> 65.22 | G180: =RTD("cqg.rtd",,"StudyData", $I$2, "Vol", "VolType=auto,CoCType=auto", "Vol",$I$4,-$A180,$I$6,,,$I$8,$I$12) -> 42405
A181: 179 | B181: =RTD("cqg.rtd",,"StudyData", $I$2, "BAR", "", "Time", $I$4,-$A181,$I$6,$I$10, "","False","T") -> 2021-07-23T10:30:00 | C181: =RTD("cqg.rtd",,"StudyData", $I$2, "BAR", "", "Open", $I$4, -$A181, $I$6,$I$10,,$I$8,$I$12) -> 65.33 | D181: =RTD("cqg.rtd",,"StudyData", $I$2, "BAR", "", "High", $I$4, -$A181, $I$6,$I$10,,$I$8,$I$12) -> 65.37 | E181: =RTD("cqg.rtd",,"StudyData", $I$2, "BAR", "", "Low", $I$4, -$A181, $I$6,$I$10,,$I$8,$I$12) -> 65.28 | F181: =RTD("cqg.rtd",,"StudyData", $I$2, "BAR", "", "Close", $I$4, -$A181, $I$6,$I$10,,$I$8,$I$12) -> 65.28 | G181: =RTD("cqg.rtd",,"StudyData", $I$2, "Vol", "VolType=auto,CoCType=auto", "Vol",$I$4,-$A181,$I$6,,,$I$8,$I$12) -> 58188
A182: 180 | B182: =RTD("cqg.rtd",,"StudyData", $I$2, "BAR", "", "Time", $I$4,-$A182,$I$6,$I$10, "","False","T") -> 2021-07-23T10:25:00 | C182: =RTD("cqg.rtd",,"StudyData", $I$2, "BAR", "", "Open", $I$4, -$A182, $I$6,$I$10,,$I$8,$I$12) -> 65.31 | D182: =RTD("cqg.rtd",,"StudyData", $I$2, "BAR", "", "High", $I$4, -$A182, $I$6,$I$10,,$I$8,$I$12) -> 65.35 | E182: =RTD("cqg.rtd",,"StudyData", $I$2, "BAR", "", "Low", $I$4, -$A182, $I$6,$I$10,,$I$8,$I$12) -> 65.28 | F182: =RTD("cqg.rtd",,"StudyData", $I$2, "BAR", "", "Close", $I$4, -$A182, $I$6,$I$10,,$I$8,$I$12) -> 65.33 | G182: =RTD("cqg.rtd",,"StudyData", $I$2, "Vol", "VolType=auto,CoCType=auto", "Vol",$I$4,-$A182,$I$6,,,$I$8,$I$12) -> 60223
A183: 181 | B183: =RTD("cqg.rtd",,"StudyData", $I$2, "BAR", "", "Time", $I$4,-$A183,$I$6,$I$10, "","False","T") -> 2021-07-23T10:20:00 | C183: =RTD("cqg.rtd",,"StudyData", $I$2, "BAR", "", "Open", $I$4, -$A183, $I$6,$I$10,,$I$8,$I$12) -> 65.38 | D183: =RTD("cqg.rtd",,"StudyData", $I$2, "BAR", "", "High", $I$4, -$A183, $I$6,$I$10,,$I$8,$I$12) -> 65.38 | E183: =RTD("cqg.rtd",,"StudyData", $I$2, "BAR", "", "Low", $I$4, -$A183, $I$6,$I$10,,$I$8,$I$12) -> 65.28 | F183: =RTD("cqg.rtd",,"StudyData", $I$2, "BAR", "", "Close", $I$4, -$A183, $I$6,$I$10,,$I$8,$I$12) -> 65.32 | G183: =RTD("cqg.rtd",,"StudyData", $I$2, "Vol", "VolType=auto,CoCType=auto", "Vol",$I$4,-$A183,$I$6,,,$I$8,$I$12) -> 182437
A184: 182 | B184: =RTD("cqg.rtd",,"StudyData", $I$2, "BAR", "", "Time", $I$4,-$A184,$I$6,$I$10, "","False","T") -> 2021-07-23T10:15:00 | C184: =RTD("cqg.rtd",,"StudyData", $I$2, "BAR", "", "Open", $I$4, -$A184, $I$6,$I$10,,$I$8,$I$12) -> 65.37 | D184: =RTD("cqg.rtd",,"StudyData", $I$2, "BAR", "", "High", $I$4, -$A184, $I$6,$I$10,,$I$8,$I$12) -> 65.38 | E184: =RTD("cqg.rtd",,"StudyData", $I$2, "BAR", "", "Low", $I$4, -$A184, $I$6,$I$10,,$I$8,$I$12) -> 65.3 | F184: =RTD("cqg.rtd",,"StudyData", $I$2, "BAR", "", "Close", $I$4, -$A184, $I$6,$I$10,,$I$8,$I$12) -> 65.38 | G184: =RTD("cqg.rtd",,"StudyData", $I$2, "Vol", "VolType=auto,CoCType=auto", "Vol",$I$4,-$A184,$I$6,,,$I$8,$I$12) -> 59898
A185: 183 | B185: =RTD("cqg.rtd",,"StudyData", $I$2, "BAR", "", "Time", $I$4,-$A185,$I$6,$I$10, "","False","T") -> 2021-07-23T10:10:00 | C185: =RTD("cqg.rtd",,"StudyData", $I$2, "BAR", "", "Open", $I$4, -$A185, $I$6,$I$10,,$I$8,$I$12) -> 65.31 | D185: =RTD("cqg.rtd",,"StudyData", $I$2, "BAR", "", "High", $I$4, -$A185, $I$6,$I$10,,$I$8,$I$12) -> 65.38 | E185: =RTD("cqg.rtd",,"StudyData", $I$2, "BAR", "", "Low", $I$4, -$A185, $I$6,$I$10,,$I$8,$I$12) -> 65.31 | F185: =RTD("cqg.rtd",,"StudyData", $I$2, "BAR", "", "Close", $I$4, -$A185, $I$6,$I$10,,$I$8,$I$12) -> 65.36 | G185: =RTD("cqg.rtd",,"StudyData", $I$2, "Vol", "VolType=auto,CoCType=auto", "Vol",$I$4,-$A185,$I$6,,,$I$8,$I$12) -> 39459
A186: 184 | B186: =RTD("cqg.rtd",,"StudyData", $I$2, "BAR", "", "Time", $I$4,-$A186,$I$6,$I$10, "","False","T") -> 2021-07-23T10:05:00 | C186: =RTD("cqg.rtd",,"StudyData", $I$2, "BAR", "", "Open", $I$4, -$A186, $I$6,$I$10,,$I$8,$I$12) -> 65.32 | D186: =RTD("cqg.rtd",,"StudyData", $I$2, "BAR", "", "High", $I$4, -$A186, $I$6,$I$10,,$I$8,$I$12) -> 65.34 | E186: =RTD("cqg.rtd",,"StudyData", $I$2, "BAR", "", "Low", $I$4, -$A186, $I$6,$I$10,,$I$8,$I$12) -> 65.29 | F186: =RTD("cqg.rtd",,"StudyData", $I$2, "BAR", "", "Close", $I$4, -$A186, $I$6,$I$10,,$I$8,$I$12) -> 65.3 | G186: =RTD("cqg.rtd",,"StudyData", $I$2, "Vol", "VolType=auto,CoCType=auto", "Vol",$I$4,-$A186,$I$6,,,$I$8,$I$12) -> 58310
A187: 185 | B187: =RTD("cqg.rtd",,"StudyData", $I$2, "BAR", "", "Time", $I$4,-$A187,$I$6,$I$10, "","False","T") -> 2021-07-23T10:00:00 | C187: =RTD("cqg.rtd",,"StudyData", $I$2, "BAR", "", "Open", $I$4, -$A187, $I$6,$I$10,,$I$8,$I$12) -> 65.21 | D187: =RTD("cqg.rtd",,"StudyData", $I$2, "BAR", "", "High", $I$4, -$A187, $I$6,$I$10,,$I$8,$I$12) -> 65.32 | E187: =RTD("cqg.rtd",,"StudyData", $I$2, "BAR", "", "Low", $I$4, -$A187, $I$6,$I$10,,$I$8,$I$12) -> 65.2 | F187: =RTD("cqg.rtd",,"StudyData", $I$2, "BAR", "", "Close", $I$4, -$A187, $I$6,$I$10,,$I$8,$I$12) -> 65.32 | G187: =RTD("cqg.rtd",,"StudyData", $I$2, "Vol", "VolType=auto,CoCType=auto", "Vol",$I$4,-$A187,$I$6,,,$I$8,$I$12) -> 124380
A188: 186 | B188: =RTD("cqg.rtd",,"StudyData", $I$2, "BAR", "", "Time", $I$4,-$A188,$I$6,$I$10, "","False","T") -> 2021-07-23T09:55:00 | C188: =RTD("cqg.rtd",,"StudyData", $I$2, "BAR", "", "Open", $I$4, -$A188, $I$6,$I$10,,$I$8,$I$12) -> 65.17 | D188: =RTD("cqg.rtd",,"StudyData", $I$2, "BAR", "", "High", $I$4, -$A188, $I$6,$I$10,,$I$8,$I$12) -> 65.23 | E188: =RTD("cqg.rtd",,"StudyData", $I$2, "BAR", "", "Low", $I$4, -$A188, $I$6,$I$10,,$I$8,$I$12) -> 65.17 | F188: =RTD("cqg.rtd",,"StudyData", $I$2, "BAR", "", "Close", $I$4, -$A188, $I$6,$I$10,,$I$8,$I$12) -> 65.2 | G188: =RTD("cqg.rtd",,"StudyData", $I$2, "Vol", "VolType=auto,CoCType=auto", "Vol",$I$4,-$A188,$I$6,,,$I$8,$I$12) -> 108519
A189: 187 | B189: =RTD("cqg.rtd",,"StudyData", $I$2, "BAR", "", "Time", $I$4,-$A189,$I$6,$I$10, "","False","T") -> 2021-07-23T09:50:00 | C189: =RTD("cqg.rtd",,"StudyData", $I$2, "BAR", "", "Open", $I$4, -$A189, $I$6,$I$10,,$I$8,$I$12) -> 65.16 | D189: =RTD("cqg.rtd",,"StudyData", $I$2, "BAR", "", "High", $I$4, -$A189, $I$6,$I$10,,$I$8,$I$12) -> 65.21 | E189: =RTD("cqg.rtd",,"StudyData", $I$2, "BAR", "", "Low", $I$4, -$A189, $I$6,$I$10,,$I$8,$I$12) -> 65.15 | F189: =RTD("cqg.rtd",,"StudyData", $I$2, "BAR", "", "Close", $I$4, -$A189, $I$6,$I$10,,$I$8,$I$12) -> 65.17 | G189: =RTD("cqg.rtd",,"StudyData", $I$2, "Vol", "VolType=auto,CoCType=auto", "Vol",$I$4,-$A189,$I$6,,,$I$8,$I$12) -> 76649
A190: 188 | B190: =RTD("cqg.rtd",,"StudyData", $I$2, "BAR", "", "Time", $I$4,-$A190,$I$6,$I$10, "","False","T") -> 2021-07-23T09:45:00 | C190: =RTD("cqg.rtd",,"StudyData", $I$2, "BAR", "", "Open", $I$4, -$A190, $I$6,$I$10,,$I$8,$I$12) -> 65.09 | D190: =RTD("cqg.rtd",,"StudyData", $I$2, "BAR", "", "High", $I$4, -$A190, $I$6,$I$10,,$I$8,$I$12) -> 65.17 | E190: =RTD("cqg.rtd",,"StudyData", $I$2, "BAR", "", "Low", $I$4, -$A190, $I$6,$I$10,,$I$8,$I$12) -> 65.07 | F190: =RTD("cqg.rtd",,"StudyData", $I$2, "BAR", "", "Close", $I$4, -$A190, $I$6,$I$10,,$I$8,$I$12) -> 65.17 | G190: =RTD("cqg.rtd",,"StudyData", $I$2, "Vol", "VolType=auto,CoCType=auto", "Vol",$I$4,-$A190,$I$6,,,$I$8,$I$12) -> 56292
A191: 189 | B191: =RTD("cqg.rtd",,"StudyData", $I$2, "BAR", "", "Time", $I$4,-$A191,$I$6,$I$10, "","False","T") -> 2021-07-23T09:40:00 | C191: =RTD("cqg.rtd",,"StudyData", $I$2, "BAR", "", "Open", $I$4, -$A191, $I$6,$I$10,,$I$8,$I$12) -> 65.02 | D191: =RTD("cqg.rtd",,"StudyData", $I$2, "BAR", "", "High", $I$4, -$A191, $I$6,$I$10,,$I$8,$I$12) -> 65.1 | E191: =RTD("cqg.rtd",,"StudyData", $I$2, "BAR", "", "Low", $I$4, -$A191, $I$6,$I$10,,$I$8,$I$12) -> 65.02 | F191: =RTD("cqg.rtd",,"StudyData", $I$2, "BAR", "", "Close", $I$4, -$A191, $I$6,$I$10,,$I$8,$I$12) -> 65.1 | G191: =RTD("cqg.rtd",,"StudyData", $I$2, "Vol", "VolType=auto,CoCType=auto", "Vol",$I$4,-$A191,$I$6,,,$I$8,$I$12) -> 52487
A192: 190 | B192: =RTD("cqg.rtd",,"StudyData", $I$2, "BAR", "", "Time", $I$4,-$A192,$I$6,$I$10, "","False","T") -> 2021-07-23T09:35:00 | C192: =RTD("cqg.rtd",,"StudyData", $I$2, "BAR", "", "Open", $I$4, -$A192, $I$6,$I$10,,$I$8,$I$12) -> 65.1 | D192: =RTD("cqg.rtd",,"StudyData", $I$2, "BAR", "", "High", $I$4, -$A192, $I$6,$I$10,,$I$8,$I$12) -> 65.15 | E192: =RTD("cqg.rtd",,"StudyData", $I$2, "BAR", "", "Low", $I$4, -$A192, $I$6,$I$10,,$I$8,$I$12) -> 64.99 | F192: =RTD("cqg.rtd",,"StudyData", $I$2, "BAR", "", "Close", $I$4, -$A192, $I$6,$I$10,,$I$8,$I$12) -> 65.02 | G192: =RTD("cqg.rtd",,"StudyData", $I$2, "Vol", "VolType=auto,CoCType=auto", "Vol",$I$4,-$A192,$I$6,,,$I$8,$I$12) -> 89743
A193: 191 | B193: =RTD("cqg.rtd",,"StudyData", $I$2, "BAR", "", "Time", $I$4,-$A193,$I$6,$I$10, "","False","T") -> 2021-07-23T09:30:00 | C193: =RTD("cqg.rtd",,"StudyData", $I$2, "BAR", "", "Open", $I$4, -$A193, $I$6,$I$10,,$I$8,$I$12) -> 65.09 | D193: =RTD("cqg.rtd",,"StudyData", $I$2, "BAR", "", "High", $I$4, -$A193, $I$6,$I$10,,$I$8,$I$12) -> 65.14 | E193: =RTD("cqg.rtd",,"StudyData", $I$2, "BAR", "", "Low", $I$4, -$A193, $I$6,$I$10,,$I$8,$I$12) -> 65.06 | F193: =RTD("cqg.rtd",,"StudyData", $I$2, "BAR", "", "Close", $I$4, -$A193, $I$6,$I$10,,$I$8,$I$12) -> 65.09 | G193: =RTD("cqg.rtd",,"StudyData", $I$2, "Vol", "VolType=auto,CoCType=auto", "Vol",$I$4,-$A193,$I$6,,,$I$8,$I$12) -> 77463
A194: 192 | B194: =RTD("cqg.rtd",,"StudyData", $I$2, "BAR", "", "Time", $I$4,-$A194,$I$6,$I$10, "","False","T") -> 2021-07-23T09:25:00 | C194: =RTD("cqg.rtd",,"StudyData", $I$2, "BAR", "", "Open", $I$4, -$A194, $I$6,$I$10,,$I$8,$I$12) -> 65.14 | D194: =RTD("cqg.rtd",,"StudyData", $I$2, "BAR", "", "High", $I$4, -$A194, $I$6,$I$10,,$I$8,$I$12) -> 65.19 | E194: =RTD("cqg.rtd",,"StudyData", $I$2, "BAR", "", "Low", $I$4, -$A194, $I$6,$I$10,,$I$8,$I$12) -> 65.06 | F194: =RTD("cqg.rtd",,"StudyData", $I$2, "BAR", "", "Close", $I$4, -$A194, $I$6,$I$10,,$I$8,$I$12) -> 65.08 | G194: =RTD("cqg.rtd",,"StudyData", $I$2, "Vol", "VolType=auto,CoCType=auto", "Vol",$I$4,-$A194,$I$6,,,$I$8,$I$12) -> 68608
A195: 193 | B195: =RTD("cqg.rtd",,"StudyData", $I$2, "BAR", "", "Time", $I$4,-$A195,$I$6,$I$10, "","False","T") -> 2021-07-23T09:20:00 | C195: =RTD("cqg.rtd",,"StudyData", $I$2, "BAR", "", "Open", $I$4, -$A195, $I$6,$I$10,,$I$8,$I$12) -> 65.19 | D195: =RTD("cqg.rtd",,"StudyData", $I$2, "BAR", "", "High", $I$4, -$A195, $I$6,$I$10,,$I$8,$I$12) -> 65.19 | E195: =RTD("cqg.rtd",,"StudyData", $I$2, "BAR", "", "Low", $I$4, -$A195, $I$6,$I$10,,$I$8,$I$12) -> 65.08 | F195: =RTD("cqg.rtd",,"StudyData", $I$2, "BAR", "", "Close", $I$4, -$A195, $I$6,$I$10,,$I$8,$I$12) -> 65.14 | G195: =RTD("cqg.rtd",,"StudyData", $I$2, "Vol", "VolType=auto,CoCType=auto", "Vol",$I$4,-$A195,$I$6,,,$I$8,$I$12) -> 96945
A196: =A195+1 -> 194 | B196: =RTD("cqg.rtd",,"StudyData", $I$2, "BAR", "", "Time", $I$4,-$A196,$I$6,$I$10, "","False","T") -> 2021-07-23T09:15:00 | C196: =RTD("cqg.rtd",,"StudyData", $I$2, "BAR", "", "Open", $I$4, -$A196, $I$6,$I$10,,$I$8,$I$12) -> 65.26 | D196: =RTD("cqg.rtd",,"StudyData", $I$2, "BAR", "", "High", $I$4, -$A196, $I$6,$I$10,,$I$8,$I$12) -> 65.27 | E196: =RTD("cqg.rtd",,"StudyData", $I$2, "BAR", "", "Low", $I$4, -$A196, $I$6,$I$10,,$I$8,$I$12) -> 65.13 | F196: =RTD("cqg.rtd",,"StudyData", $I$2, "BAR", "", "Close", $I$4, -$A196, $I$6,$I$10,,$I$8,$I$12) -> 65.19 | G196: =RTD("cqg.rtd",,"StudyData", $I$2, "Vol", "VolType=auto,CoCType=auto", "Vol",$I$4,-$A196,$I$6,,,$I$8,$I$12) -> 161340
A197: 195 | B197: =RTD("cqg.rtd",,"StudyData", $I$2, "BAR", "", "Time", $I$4,-$A197,$I$6,$I$10, "","False","T") -> 2021-07-23T09:10:00 | C197: =RTD("cqg.rtd",,"StudyData", $I$2, "BAR", "", "Open", $I$4, -$A197, $I$6,$I$10,,$I$8,$I$12) -> 65.32 | D197: =RTD("cqg.rtd",,"StudyData", $I$2, "BAR", "", "High", $I$4, -$A197, $I$6,$I$10,,$I$8,$I$12) -> 65.32 | E197: =RTD("cqg.rtd",,"StudyData", $I$2, "BAR", "", "Low", $I$4, -$A197, $I$6,$I$10,,$I$8,$I$12) -> 65.22 | F197: =RTD("cqg.rtd",,"StudyData", $I$2, "BAR", "", "Close", $I$4, -$A197, $I$6,$I$10,,$I$8,$I$12) -> 65.25 | G197: =RTD("cqg.rtd",,"StudyData", $I$2, "Vol", "VolType=auto,CoCType=auto", "Vol",$I$4,-$A197,$I$6,,,$I$8,$I$12) -> 296849
A198: 196 | B198: =RTD("cqg.rtd",,"StudyData", $I$2, "BAR", "", "Time", $I$4,-$A198,$I$6,$I$10, "","False","T") -> 2021-07-23T09:05:00 | C198: =RTD("cqg.rtd",,"StudyData", $I$2, "BAR", "", "Open", $I$4, -$A198, $I$6,$I$10,,$I$8,$I$12) -> 65.3 | D198: =RTD("cqg.rtd",,"StudyData", $I$2, "BAR", "", "High", $I$4, -$A198, $I$6,$I$10,,$I$8,$I$12) -> 65.37 | E198: =RTD("cqg.rtd",,"StudyData", $I$2, "BAR", "", "Low", $I$4, -$A198, $I$6,$I$10,,$I$8,$I$12) -> 65.28 | F198: =RTD("cqg.rtd",,"StudyData", $I$2, "BAR", "", "Close", $I$4, -$A198, $I$6,$I$10,,$I$8,$I$12) -> 65.32 | G198: =RTD("cqg.rtd",,"StudyData", $I$2, "Vol", "VolType=auto,CoCType=auto", "Vol",$I$4,-$A198,$I$6,,,$I$8,$I$12) -> 214404
A199: 197 | B199: =RTD("cqg.rtd",,"StudyData", $I$2, "BAR", "", "Time", $I$4,-$A199,$I$6,$I$10, "","False","T") -> 2021-07-23T09:00:00 | C199: =RTD("cqg.rtd",,"StudyData", $I$2, "BAR", "", "Open", $I$4, -$A199, $I$6,$I$10,,$I$8,$I$12) -> 65.14 | D199: =RTD("cqg.rtd",,"StudyData", $I$2, "BAR", "", "High", $I$4, -$A199, $I$6,$I$10,,$I$8,$I$12) -> 65.32 | E199: =RTD("cqg.rtd",,"StudyData", $I$2, "BAR", "", "Low", $I$4, -$A199, $I$6,$I$10,,$I$8,$I$12) -> 65.11 | F199: =RTD("cqg.rtd",,"StudyData", $I$2, "BAR", "", "Close", $I$4, -$A199, $I$6,$I$10,,$I$8,$I$12) -> 65.31 | G199: =RTD("cqg.rtd",,"StudyData", $I$2, "Vol", "VolType=auto,CoCType=auto", "Vol",$I$4,-$A199,$I$6,,,$I$8,$I$12) -> 172947
A200: 198 | B200: =RTD("cqg.rtd",,"StudyData", $I$2, "BAR", "", "Time", $I$4,-$A200,$I$6,$I$10, "","False","T") -> 2021-07-23T08:55:00 | C200: =RTD("cqg.rtd",,"StudyData", $I$2, "BAR", "", "Open", $I$4, -$A200, $I$6,$I$10,,$I$8,$I$12) -> 65.23 | D200: =RTD("cqg.rtd",,"StudyData", $I$2, "BAR", "", "High", $I$4, -$A200, $I$6,$I$10,,$I$8,$I$12) -> 65.24 | E200: =RTD("cqg.rtd",,"StudyData", $I$2, "BAR", "", "Low", $I$4, -$A200, $I$6,$I$10,,$I$8,$I$12) -> 65.11 | F200: =RTD("cqg.rtd",,"StudyData", $I$2, "BAR", "", "Close", $I$4, -$A200, $I$6,$I$10,,$I$8,$I$12) -> 65.14 | G200: =RTD("cqg.rtd",,"StudyData", $I$2, "Vol", "VolType=auto,CoCType=auto", "Vol",$I$4,-$A200,$I$6,,,$I$8,$I$12) -> 272157
... 2801 more rows
